{"text_format":"1","workbook":"xlsx","n_sheets":20,"sheets":["Référentiels","Jours Fériés","Accueil Menus","Saisie MMR","BD Menus","Menus MMR","Modif MMR","Saisie MJ","Modif MJ","Menus MJ","Saisie VWE","Modif VWE","Menus VWE","TCD quantités légumes","TCD quantités viandes","TCD quantités desserts","Tab quantité légumes","Tab quantité viandes","Tab quantité desserts","Propositions"],"not_rendered":{"charts":0,"images":0,"macros":1,"external_links":0,"defined_names":52,"comments":5,"pivot_tables":3},"unopened":[],"bounds":{"document_bytes":16777216,"sheet_cells":100000,"rows_first":2000,"rows_last":500,"rows_between":2000,"halvings":0,"cell_chars":16384,"cell_head_chars":4096},"cells_cut":0,"cells_raw":0,"read":"whole","date_system":"1900"}

{"sheet":"Référentiels","index":0,"n_rows":35,"n_cols":62,"rows_kept":35,"cut":false,"hidden":true,"merged":[]}
["Code destination","Nom destination",null,"Code catégorie","Nom catégorie",null,"Code LMR","Nom LMR",null,"Code VMR","Nom VMR",null,"Code DMR","Nom DMR",null,"Code à modifier","Nom à modifier",null,"Code mois","Nom mois",null,"Code férié","Nom férié",null,"Numéro jour","Noms jours",null,"Code VWE","Nom VWE",null,"Code PVWE","Nom PVWE",null,"Code LSLM","Nom LSLM",null,"Code LSMJ","Nom LSMJ",null,"Code LSV","Nom LSV",null,"Code LWED","Nom LWED",null,"Code LWES","Nom LWES",null,"Code VS","Nom VS",null,"Code DS","Nom DS",null,"Code DWE","Nom DWE",null,"Code conditionnement","Nom conditionnement",null,"Code jour","Nom jour"]
["CD01","Menus journaliers",null,"CC01","DMR",null,"LMR01","Asperges",null,"VMR01","Rôti d'agneau",null,"DMR01","Pomme",null,"LCÀM01","Non",null,"CM01","Janvier",null,"CF01","Jour de l'an",null,1,1,null,"VWE01","Agneau",null,"PVWE01","premier semestre",null,"LSLM01","Cassoulet",null,"LSMJ01","Macédoine de légumes",null,"LSV01","Asperges",null,"LWED01","Asperges",null,"LWES01","Pâtes à la sauce tomates",null,"VS01","Bifteck haché de bœuf",null,"DS01","Pomme",null,"DWE01","Ananas",null,"CC01","1 bocal ou 1 boîte pour 1 repas",null,"CJ01","Dimanche midi"]
["CD02","Menus midi retraite",null,"CC02","DS",null,"LMR02","Avocat",null,"VMR02","Rôti de bœuf",null,null,null,null,"LCÀM02","Oui",null,"CM02","Février",null,"CF02","Pâques",null,2,2,null,"VWE02","Bœuf",null,"PVWE02","deuxième semestre",null,"LSLM02","Choucroute",null,"LSMJ02","Petits pois",null,"LSV02","Avocat",null,"LWED02","Chips",null,"LWES02","Pâtes au beurre",null,"VS02","Bifteck haché de cheval",null,null,null,null,"DWE02","Autres fruits",null,"CC02","1 boîte de six œufs. 3 œufs pour 1 repas",null,"CJ02","Dimanche midi et soir"]
["CD03","Menus viandes weekend",null,"CC03","DWE",null,"LMR03","Carottes",null,"VMR03","Rôti de cheval",null,null,null,null,null,null,null,"CM03","Mars",null,"CF03","Lundi de Pâques",null,3,3,null,"VWE03","Cheval",null,null,null,null,"LSLM03","Chou-fleur",null,"LSMJ03","Petits pois et jeunes carottes",null,"LSV03","Betterave rouge",null,"LWED03","Frites",null,"LWES03","Pâtes au fromage râpé",null,"VS03","Bifteck haché de veau",null,null,null,null,"DWE03","Avocats",null,"CC03","1 boîte ou 1 pot pour 1 repas",null,"CJ03","Dimanche soir"]
[null,null,null,"CC04","LMR",null,"LMR04","Céleri",null,"VMR04","Rôti de porc",null,null,null,null,null,null,null,"CM04","Avril",null,"CF04","Fête du travail",null,4,4,null,"VWE04","Dinde",null,null,null,null,"LSLM04","Choux de Bruxelles",null,"LSMJ04","Ratatouille",null,"LSV04","Carottes",null,"LWED04","Haricots verts",null,null,null,null,"VS04","Bouchée à la reine",null,null,null,null,"DWE04","Bananes",null,"CC04","1 boîte pour 1 repas",null,"CJ04","Lundi à dimanche soirs"]
[null,null,null,"CC05","LSLM",null,"LMR05","Champignons",null,"VMR05","Rôti de veau",null,null,null,null,null,null,null,"CM05","Mai",null,"CF05","Victoire 1945",null,5,5,null,"VWE05","Poisson",null,null,null,null,"LSLM05","Couscous",null,"LSMJ05","Raviolis",null,"LSV05","Céleri",null,null,null,null,null,null,null,"VS05","Boudin",null,null,null,null,"DWE05","Clémentines",null,"CC05","1 boîte pour 2 repas",null,"CJ05","Lundi à vendredi midis"]
[null,null,null,"CC06","LSMJ",null,"LMR06","Concombre",null,null,null,null,null,null,null,null,null,null,"CM06","Juin",null,"CF06","Jeudi de l'ascension",null,6,6,null,"VWE06","Porc",null,null,null,null,"LSLM06","Endives",null,"LSMJ06","Tomates pelées",null,"LSV06","Champignons",null,null,null,null,null,null,null,"VS06","Cervelas",null,null,null,null,"DWE06","Crème",null,"CC06","1 botte ou 1 sachet pour 1 repas",null,"CJ06","Lundi à vendredi soirs"]
[null,null,null,"CC07","LSV",null,"LMR07","Couscous",null,null,null,null,null,null,null,null,null,null,"CM07","Juillet",null,"CF07","Pentecôte",null,7,7,null,"VWE07","Veau",null,null,null,null,"LSLM07","Haricots verts",null,null,null,null,"LSV07","Concombre",null,null,null,null,null,null,null,"VS07","Cœur",null,null,null,null,"DWE07","Dattes",null,"CC07","1 botte ou 1 sachet pour 2 repas",null,"CJ07","Lundi  et mardi soirs"]
[null,null,null,"CC08","LWED",null,"LMR08","Maïs",null,null,null,null,null,null,null,null,null,null,"CM08","Août",null,"CF08","Lundi de Pentecôte",null,8,8,null,null,null,null,null,null,null,"LSLM08","Maïs",null,null,null,null,"LSV08","Radis",null,null,null,null,null,null,null,"VS08","Croque-monsieur",null,null,null,null,"DWE08","Figues",null,"CC08","1 morceau de 400 grammes (Leclerc) pour 3 repas",null,"CJ08","Mercredi et jeudi soirs"]
[null,null,null,"CC09","LWES",null,"LMR09","Pâtes à la sauce tomates",null,null,null,null,null,null,null,null,null,null,"CM09","Septembre",null,"CF09","Fête nationale",null,9,9,null,null,null,null,null,null,null,"LSLM09","Paella",null,null,null,null,"LSV09","Salade",null,null,null,null,null,null,null,"VS09","Foie",null,null,null,null,"DWE09","Fromage blanc",null,"CC09","1 morceau de 500 grammes pour 5 repas",null,"CJ09","Samedi et dimanche midis"]
[null,null,null,"CC10","OBSE",null,"LMR10","Pâtes au beurre",null,null,null,null,null,null,null,null,null,null,"CM10","Octobre",null,"CF10","Assomption",null,10,10,null,null,null,null,null,null,null,"LSLM10","Poireau",null,null,null,null,"LSV10","Salsifis",null,null,null,null,null,null,null,"VS10","Fromage de tête",null,null,null,null,"DWE10","Fruits au sirop",null,"CC10","1 pack de 4 pots pour le week-end. 1 pot pour 1 repas",null,"CJ10","Samedi et dimanche midis et soirs"]
[null,null,null,"CC11","PC",null,"LMR11","Poireau",null,null,null,null,null,null,null,null,null,null,"CM11","Novembre",null,"CF11","Toussaint",null,11,11,null,null,null,null,null,null,null,"LSLM11","Pomme de terre",null,null,null,null,"LSV11","Tomates",null,null,null,null,null,null,null,"VS11","Jambon",null,null,null,null,"DWE11","Fruits de saison",null,"CC11","1 pack de 6 pots. 3 pots pour 1 repas",null,"CJ11","Samedi midi et soir"]
[null,null,null,"CC12","PVWE",null,"LMR12","Pomme de terre",null,null,null,null,null,null,null,null,null,null,"CM12","Décembre",null,"CF12","Armistice 1918",null,12,12,null,null,null,null,null,null,null,"LSLM12","Purée",null,null,null,null,null,null,null,null,null,null,null,null,null,"VS12","Jambonneau",null,null,null,null,"DWE12","Gâteau de riz",null,"CC12","1 paquet pour 1 repas",null,"CJ12","Vendredi soir"]
[null,null,null,"CC13","VMR",null,"LMR13","Purée",null,null,null,null,null,null,null,null,null,null,null,null,null,"CF13","Noël",null,13,13,null,null,null,null,null,null,null,"LSLM13","Quenelles",null,null,null,null,null,null,null,null,null,null,null,null,null,"VS13","Mortadelle",null,null,null,null,"DWE13","Gâteau de semoule",null,"CC13","1 paquet pour 2 repas"]
[null,null,null,"CC14","VS",null,"LMR14","Radis",null,null,null,null,null,null,null,null,null,null,null,null,null,null,null,null,14,14,null,null,null,null,null,null,null,"LSLM14","Riz",null,null,null,null,null,null,null,null,null,null,null,null,null,"VS14","Œufs",null,null,null,null,"DWE14","Gâteaux samedi dimanche",null,"CC14","1 paquet pour 2 repas. 1 ou 2 saucisses pour 1 repas"]
[null,null,null,"CC15","VWE",null,"LMR15","Riz",null,null,null,null,null,null,null,null,null,null,null,null,null,null,null,null,15,15,null,null,null,null,null,null,null,null,null,null,null,null,null,null,null,null,null,null,null,null,null,null,"VS15","Pizza",null,null,null,null,"DWE15","Mousse au chocolat",null,"CC15","1 paquet pour 4 repas"]
[null,null,null,null,null,null,"LMR16","Salade",null,null,null,null,null,null,null,null,null,null,null,null,null,null,null,null,16,16,null,null,null,null,null,null,null,null,null,null,null,null,null,null,null,null,null,null,null,null,null,null,"VS16","Poisson",null,null,null,null,"DWE16","Oranges",null,"CC16","1 paquet pour 5 repas (betteraves rouges)"]
[null,null,null,null,null,null,"LMR17","Tomates",null,null,null,null,null,null,null,null,null,null,null,null,null,null,null,null,17,17,null,null,null,null,null,null,null,null,null,null,null,null,null,null,null,null,null,null,null,null,null,null,"VS17","Quiche lorraine",null,null,null,null,"DWE17","Petits suisses",null,"CC17","1 sachet de 2 kilogrammes. 1 pomme pour 1 repas"]
[null,null,null,null,null,null,null,null,null,null,null,null,null,null,null,null,null,null,null,null,null,null,null,null,18,18,null,null,null,null,null,null,null,null,null,null,null,null,null,null,null,null,null,null,null,null,null,null,"VS18","Roulade à la pistache",null,null,null,null,"DWE18","Pruneaux",null,"CC18","1 sachet pour 2 repas"]
[null,null,null,null,null,null,null,null,null,null,null,null,null,null,null,null,null,null,null,null,null,null,null,null,19,19,null,null,null,null,null,null,null,null,null,null,null,null,null,null,null,null,null,null,null,null,null,null,"VS19","Roulé au fromage",null,null,null,null,"DWE19","Riz au lait",null,"CC19","1 sachet pour 4 repas"]
[null,null,null,null,null,null,null,null,null,null,null,null,null,null,null,null,null,null,null,null,null,null,null,null,20,20,null,null,null,null,null,null,null,null,null,null,null,null,null,null,null,null,null,null,null,null,null,null,"VS20","Salami",null,null,null,null,"DWE20","Tapioca",null,"CC20","1 tranche pour 1 repas"]
[null,null,null,null,null,null,null,null,null,null,null,null,null,null,null,null,null,null,null,null,null,null,null,null,21,21,null,null,null,null,null,null,null,null,null,null,null,null,null,null,null,null,null,null,null,null,null,null,"VS21","Saucisses",null,null,null,null,"DWE21","Yaourts",null,"CC21","1 tranche pour 2 repas"]
[null,null,null,null,null,null,null,null,null,null,null,null,null,null,null,null,null,null,null,null,null,null,null,null,22,22,null,null,null,null,null,null,null,null,null,null,null,null,null,null,null,null,null,null,null,null,null,null,"VS22","Saucisson",null,null,null,null,null,null,null,"CC22","50 grammes pour 1 repas"]
[null,null,null,null,null,null,null,null,null,null,null,null,null,null,null,null,null,null,null,null,null,null,null,null,23,23,null,null,null,null,null,null,null,null,null,null,null,null,null,null,null,null,null,null,null,null,null,null,"VS23","Tête persillée",null,null,null,null,null,null,null,"CC23","20 frites pour 1 repas"]
[null,null,null,null,null,null,null,null,null,null,null,null,null,null,null,null,null,null,null,null,null,null,null,null,24,24,null,null,null,null,null,null,null,null,null,null,null,null,null,null,null,null,null,null,null,null,null,null,"VS24","Tête roulée",null,null,null,null,null,null,null,"CC24","25 grammes pour 1 repas"]
[null,null,null,null,null,null,null,null,null,null,null,null,null,null,null,null,null,null,null,null,null,null,null,null,25,25,null,null,null,null,null,null,null,null,null,null,null,null,null,null,null,null,null,null,null,null,null,null,"VS25","Thon",null,null,null,null,null,null,null,"CC25","3 tranches pour 1 repas"]
[null,null,null,null,null,null,null,null,null,null,null,null,null,null,null,null,null,null,null,null,null,null,null,null,26,26,null,null,null,null,null,null,null,null,null,null,null,null,null,null,null,null,null,null,null,null,null,null,"VS26","Viande cassoulet",null,null,null,null,null,null,null,"CC26","5 cuillères pour 1 repas"]
[null,null,null,null,null,null,null,null,null,null,null,null,null,null,null,null,null,null,null,null,null,null,null,null,27,27,null,null,null,null,null,null,null,null,null,null,null,null,null,null,null,null,null,null,null,null,null,null,"VS27","Viande choucroute",null,null,null,null,null,null,null,"CC27","Unité : 1 branche pour 1 repas"]
[null,null,null,null,null,null,null,null,null,null,null,null,null,null,null,null,null,null,null,null,null,null,null,null,28,28,null,null,null,null,null,null,null,null,null,null,null,null,null,null,null,null,null,null,null,null,null,null,"VS28","Viande paella",null,null,null,null,null,null,null,"CC28","Unité : 1 morceau pour 2 repas"]
[null,null,null,null,null,null,null,null,null,null,null,null,null,null,null,null,null,null,null,null,null,null,null,null,29,29,null,null,null,null,null,null,null,null,null,null,null,null,null,null,null,null,null,null,null,null,null,null,null,null,null,null,null,null,null,null,null,"CC29","Unité : 1 pour 1 repas"]
[null,null,null,null,null,null,null,null,null,null,null,null,null,null,null,null,null,null,null,null,null,null,null,null,30,30,null,null,null,null,null,null,null,null,null,null,null,null,null,null,null,null,null,null,null,null,null,null,null,null,null,null,null,null,null,null,null,"CC30","Unité : 1 pour 2 repas"]
[null,null,null,null,null,null,null,null,null,null,null,null,null,null,null,null,null,null,null,null,null,null,null,null,31,31,null,null,null,null,null,null,null,null,null,null,null,null,null,null,null,null,null,null,null,null,null,null,null,null,null,null,null,null,null,null,null,"CC31","Unité : 1 pour 4 repas"]
[null,null,null,null,null,null,null,null,null,null,null,null,null,null,null,null,null,null,null,null,null,null,null,null,null,null,null,null,null,null,null,null,null,null,null,null,null,null,null,null,null,null,null,null,null,null,null,null,null,null,null,null,null,null,null,null,null,"CC32","Unité : 1 tête pour 1 repas"]
[null,null,null,null,null,null,null,null,null,null,null,null,null,null,null,null,null,null,null,null,null,null,null,null,null,null,null,null,null,null,null,null,null,null,null,null,null,null,null,null,null,null,null,null,null,null,null,null,null,null,null,null,null,null,null,null,null,"CC33","Unité : 2 à 4 pour 1 repas"]
[null,null,null,null,null,null,null,null,null,null,null,null,null,null,null,null,null,null,null,null,null,null,null,null,null,null,null,null,null,null,null,null,null,null,null,null,null,null,null,null,null,null,null,null,null,null,null,null,null,null,null,null,null,null,null,null,null,"CC34","Unité : 2 pour 1 repas"]

{"sheet":"Jours Fériés","index":1,"n_rows":19,"n_cols":2,"rows_kept":19,"cut":false,"hidden":true,"merged":[]}
[]
["Jours fériés et fêtes",{"$f":"'Accueil Menus'!$D$1","v":2021}]
["Jour de l'an",{"$f":"DATE(B2,1,1)","v":"2021-01-01"}]
["Pâques",{"$f":"DATE(YEAR(B3),3,29.56+0.979*MOD(204-11*MOD(YEAR(B3),19),30)-WEEKDAY(DATE(YEAR(B3),3,28.56+0.979*MOD(204-11*MOD(YEAR(B3),19),30))))","v":"2021-04-04"}]
["Lundi de Pâques",{"$f":"B4+1","v":"2021-04-05"}]
["Fête du travail",{"$f":"DATE(B2,5,1)","v":"2021-05-01"}]
["Victoire 1945",{"$f":"DATE(B2,5,8)","v":"2021-05-08"}]
["Jeudi de l'ascension",{"$f":"B5+38","v":"2021-05-13"}]
["Pentecôte",{"$f":"B4+49","v":"2021-05-23"}]
["Lundi de Pentecôte",{"$f":"B9+1","v":"2021-05-24"}]
["Fête nationale",{"$f":"DATE(B2,7,14)","v":"2021-07-14"}]
["Assomption",{"$f":"DATE(B2,8,15)","v":"2021-08-15"}]
["Toussaint",{"$f":"DATE(B2,11,1)","v":"2021-11-01"}]
["Armistice 1918",{"$f":"DATE(B2,11,11)","v":"2021-11-11"}]
["Noël",{"$f":"DATE(B2,12,25)","v":"2021-12-25"}]
[]
[]
[null,"Samedi"]
[null,"Dimanche"]

{"sheet":"Accueil Menus","index":2,"n_rows":15,"n_cols":17,"rows_kept":15,"cut":false,"hidden":false,"merged":[]}
[" ",null,null,2021]
[]
[]
[]
[]
[]
[null,null,11,"Janvier",{"$f":"$D$1","v":2021},null,null,null,1,"Janvier",{"$f":"$D$1","v":2021},null,null,null,4,"Janvier",{"$f":"$D$1","v":2021}]
[]
[]
[]
[null,null,11,"Janvier",{"$f":"$D$1","v":2021},null,null,null,1,"Janvier",{"$f":"$D$1","v":2021},null,null,null,4,"Janvier",{"$f":"$D$1","v":2021}]
[]
[]
[]
[null,null,11,"Janvier",{"$f":"$D$1","v":2021},null,null,null,1,"Janvier",{"$f":"$D$1","v":2021},null,null,null,4,"Janvier",{"$f":"$D$1","v":2021}]

{"sheet":"Saisie MMR","index":3,"n_rows":18,"n_cols":8,"rows_kept":18,"cut":false,"hidden":true,"merged":[[8,0,8,1],[8,3,8,4],[8,6,8,7]]}
[{"$f":"\"Création Menu Midi Retraite \"&'Accueil Menus'!$D$1","v":"Création Menu Midi Retraite 2021"}]
[]
["Code menu","CD02",null,"Code observation",{"$f":"IFERROR(INDEX(Code_férié,MATCH(E4,Nom_férié,0)),\"\")","v":""},null,"Code à modifier","LCÀM02"]
["Nom menu",{"$f":"IFERROR(INDEX(Nom_destination,MATCH(B3,Code_destination,0)),\"-\")","v":"Menus midi retraite"},null,"Nom observation",{"$f":"IF(COUNTIF('Jours Fériés'!$B$3:$B$15,B7)=0,\"\",INDEX('Jours Fériés'!$A$3:$A$15,MATCH(B7,'Jours Fériés'!$B$3:$B$15,0)))","v":""},null,"Nom à modifier",{"$f":"IFERROR(INDEX(Nom_à_modifier,MATCH(H3,Code_à_modifier,0)),\"-\")","v":"Oui"}]
[null,null,null,"Code période concernée",{"$f":"IFERROR(INDEX(Code_mois,MATCH(E6,Nom_mois,0)),\"-\")","v":"CM01"}]
[null,null,null,"Nom période concernée",{"$f":"IF(B7=\"\",\"\",TEXT(B7,\"mmmm\"))","v":"janvier"}]
["Date du menu","2021-01-11",null,"Date création menu",{"$f":"TODAY()","v":"2021-09-29"}]
[]
["Légume",null,null,"Viande",null,null,"Dessert"]
["Code catégorie","CC04",null,"Code catégorie","CC13",null,"Code catégorie","CC01"]
["Nom catégorie",{"$f":"IFERROR(INDEX(Nom_catégorie,MATCH(B10,Code_catégorie,0)),\"-\")","v":"LMR"},null,"Nom catégorie",{"$f":"IFERROR(INDEX(Nom_catégorie,MATCH(E10,Code_catégorie,0)),\"-\")","v":"VMR"},null,"Nom catégorie",{"$f":"IFERROR(INDEX(Nom_catégorie,MATCH(H10,Code_catégorie,0)),\"-\")","v":"DMR"}]
["Code produit","LMR14",null,"Code produit","VMR04",null,"Code produit","DMR01"]
["Nom produit",{"$f":"IFERROR(INDEX(Nom_LMR,MATCH(B12,Code_LMR,0)),\"-\")","v":"Radis"},null,"Nom produit",{"$f":"IFERROR(INDEX(Nom_VMR,MATCH(E12,Code_VMR,0)),\"-\")","v":"Rôti de porc"},null,"Nom produit",{"$f":"IFERROR(INDEX(Nom_DMR,MATCH(H12,Code_DMR,0)),\"-\")","v":"Pomme"}]
["Code jour","CJ05",null,"Code jour","CJ05",null,"Code jour","CJ05"]
["Nom jour",{"$f":"IFERROR(INDEX(Nom_jour,MATCH(B14,Code_jour,0)),\"-\")","v":"Lundi à vendredi midis"},null,"Nom jour",{"$f":"IFERROR(INDEX(Nom_jour,MATCH(E14,Code_jour,0)),\"-\")","v":"Lundi à vendredi midis"},null,"Nom jour",{"$f":"IFERROR(INDEX(Nom_jour,MATCH(H14,Code_jour,0)),\"-\")","v":"Lundi à vendredi midis"}]
["Code conditionnement","CC01",null,"Code conditionnement","CC17",null,"Code conditionnement","CC17"]
["Nom conditionnement",{"$f":"IFERROR(INDEX(Nom_conditionnement,MATCH(B16,Code_conditionnement,0)),\"-\")","v":"1 bocal ou 1 boîte pour 1 repas"},null,"Nom conditionnement",{"$f":"IFERROR(INDEX(Nom_conditionnement,MATCH(E16,Code_conditionnement,0)),\"-\")","v":"1 sachet de 2 kilogrammes. 1 pomme pour 1 repas"},null,"Nom conditionnement",{"$f":"IFERROR(INDEX(Nom_conditionnement,MATCH(H16,Code_conditionnement,0)),\"-\")","v":"1 sachet de 2 kilogrammes. 1 pomme pour 1 repas"}]
["Quantité légume",null,null,"Quantité viande",null,null,"Quantité dessert",1]

{"sheet":"BD Menus","index":4,"n_rows":7,"n_cols":46,"rows_kept":7,"cut":false,"hidden":false,"merged":[]}
["Date menu","Code menu","Nom menu","Code catégorie légume","Nom catégorie légume","Code produit légume","Nom produit légume","Code jour légume","Nom jour légume","Code conditionnement légume","Nom conditionnement légume","Quantité légume","Code produit légume deux","Nom produit légume deux","Code jour légume deux","Nom jour légume deux","Code conditionnement légume deux","Nom conditionnement légume deux","Quantité légume deux","Code catégorie viande","Nom catégorie viande","Code produit viande","Nom produit viande","Code jour viande","Nom jour viande","Code conditionnement viande","Nom conditionnement viande","Quantité viande","Code catégorie dessert","Nom catégorie dessert","Code produit dessert","Nom produit dessert","Code jour dessert","Nom jour dessert","Code conditionnement dessert","Nom conditionnement dessert","Quantité dessert","Code observation","Nom observation","Code période concernée","Nom période concernée","Date création menu","Code période viande weekend","Nom période viande weekend","Code à modifier","Nom à modifier"]
["2021-01-07","CD02","Menus midi retraite","CC04","LMR","LMR01","Asperges","CJ05","Lundi à vendredi midis","CC01","1 bocal ou 1 boîte pour 1 repas",null,null,null,null,null,null,null,null,"CC13","VMR","VMR03","Rôti de cheval","CJ05","Lundi à vendredi midis","CC09","1 morceau de 500 grammes pour 5 repas",null,"CC01","DMR","DMR01","Pomme","CJ05","Lundi à vendredi midis","CC17","1 sachet de 2 kilogrammes. 1 pomme pour 1 repas",1,"","","CM01","janvier","2021-01-08",null,null,"LCÀM01","Non"]
["2021-01-14","CD02","Menus midi retraite","CC04","LMR","LMR01","Asperges","CJ05","Lundi à vendredi midis","CC01","1 bocal ou 1 boîte pour 1 repas",null,null,null,null,null,null,null,null,"CC13","VMR","VMR03","Rôti de cheval","CJ05","Lundi à vendredi midis","CC17","1 sachet de 2 kilogrammes. 1 pomme pour 1 repas",null,"CC01","DMR","DMR01","Pomme","CJ05","Lundi à vendredi midis","CC17","1 sachet de 2 kilogrammes. 1 pomme pour 1 repas",1,"","","CM01","janvier","2020-12-20",null,null,"LCÀM02","Oui"]
["2021-01-18","CD02","Menus midi retraite","CC04","LMR","LMR01","Asperges","CJ05","Lundi à vendredi midis","CC01","1 bocal ou 1 boîte pour 1 repas",null,null,null,null,null,null,null,null,"CC13","VMR","VMR03","Rôti de cheval","CJ05","Lundi à vendredi midis","CC17","1 sachet de 2 kilogrammes. 1 pomme pour 1 repas",null,"CC01","DMR","DMR01","Pomme","CJ05","Lundi à vendredi midis","CC17","1 sachet de 2 kilogrammes. 1 pomme pour 1 repas",1,"","","CM01","janvier","2020-12-20",null,null,"LCÀM02","Oui"]
["2021-01-21","CD02","Menus midi retraite","CC04","LMR","LMR01","Asperges","CJ05","Lundi à vendredi midis","CC01","1 bocal ou 1 boîte pour 1 repas",null,null,null,null,null,null,null,null,"CC13","VMR","VMR03","Rôti de cheval","CJ05","Lundi à vendredi midis","CC17","1 sachet de 2 kilogrammes. 1 pomme pour 1 repas",null,"CC01","DMR","DMR01","Pomme","CJ05","Lundi à vendredi midis","CC17","1 sachet de 2 kilogrammes. 1 pomme pour 1 repas",1,"","","CM01","janvier","2020-12-20",null,null,"LCÀM02","Oui"]
["2021-01-25","CD02","Menus midi retraite","CC04","LMR","LMR01","Asperges","CJ05","Lundi à vendredi midis","CC01","1 bocal ou 1 boîte pour 1 repas",null,null,null,null,null,null,null,null,"CC13","VMR","VMR03","Rôti de cheval","CJ05","Lundi à vendredi midis","CC17","1 sachet de 2 kilogrammes. 1 pomme pour 1 repas",null,"CC01","DMR","DMR01","Pomme","CJ05","Lundi à vendredi midis","CC17","1 sachet de 2 kilogrammes. 1 pomme pour 1 repas",1,"","","CM01","janvier","2020-12-20",null,null,"LCÀM02","Oui"]
["2021-01-11","CD02","Menus midi retraite","CC04","LMR","LMR14","Radis","CJ05","Lundi à vendredi midis","CC01","1 bocal ou 1 boîte pour 1 repas",null,null,null,null,null,null,null,null,"CC13","VMR","VMR04","Rôti de porc","CJ05","Lundi à vendredi midis","CC17","1 sachet de 2 kilogrammes. 1 pomme pour 1 repas",null,"CC01","DMR","DMR01","Pomme","CJ05","Lundi à vendredi midis","CC17","1 sachet de 2 kilogrammes. 1 pomme pour 1 repas",1,"","","CM01","janvier","2021-01-10",null,null,"LCÀM02","Oui"]

{"sheet":"Menus MMR","index":5,"n_rows":55,"n_cols":7,"rows_kept":55,"cut":false,"hidden":false,"merged":[[51,0,51,6],[31,0,31,6],[35,0,35,6],[39,0,39,6],[43,0,43,6],[47,0,47,6],[27,0,27,6],[2,0,2,6],[11,0,11,6],[15,0,15,6],[19,0,19,6],[23,0,23,6]]}
[{"$f":"'Accueil Menus'!$D$1","v":2021}]
[]
[{"$f":"\"État des menus midi retraite du mois de janvier \"&$A$1","v":"État des menus midi retraite du mois de janvier 2021"}]
["Date du menu","Légume","Viande","Dessert","Observation","Nom du menu","Numéro menu"]
["2021-01-07","Asperges","Rôti de cheval","Pomme","","Menus midi retraite",{"$f":"IF(F5<>\"\",\"MMR\" & TEXT(COUNTA($A$4:A10)-COUNTBLANK($A$4:A10),\"00\"),\"\")","v":"MMR07"}]
["2021-01-11","Radis","Rôti de porc","Pomme",null,"Menus midi retraite",{"$f":"IF(F6<>\"\",\"MMR\" & TEXT(COUNTA($A$4:A11)-COUNTBLANK($A$4:A11),\"00\"),\"\")","v":"MMR08"}]
["2021-01-14","Asperges","Rôti de cheval","Pomme","","Menus midi retraite",{"$f":"IF(F7<>\"\",\"MMR\" & TEXT(COUNTA($A$4:A12)-COUNTBLANK($A$4:A12),\"00\"),\"\")","v":"MMR09"}]
["2021-01-18","Asperges","Rôti de cheval","Pomme","","Menus midi retraite",{"$f":"IF(F8<>\"\",\"MMR\" & TEXT(COUNTA($A$4:A13)-COUNTBLANK($A$4:A13),\"00\"),\"\")","v":"MMR10"}]
["2021-01-21","Asperges","Rôti de cheval","Pomme","","Menus midi retraite",{"$f":"IF(F9<>\"\",\"MMR\" & TEXT(COUNTA($A$4:A14)-COUNTBLANK($A$4:A14),\"00\"),\"\")","v":"MMR09"}]
["2021-01-25","Asperges","Rôti de cheval","Pomme","","Menus midi retraite",{"$f":"IF(F10<>\"\",\"MMR\" & TEXT(COUNTA($A$4:A15)-COUNTBLANK($A$4:A15),\"00\"),\"\")","v":"MMR10"}]
[{"$f":"\"Imprimé à Limeil-Brévannes, le \"","v":"Imprimé à Limeil-Brévannes, le "},{"$f":"TODAY()","v":"2021-09-29"},null,null,null,null,{"$f":"IF(F11<>\"\",\"MMR\" & TEXT(COUNTA($A11:A$11)-COUNTBLANK($A11:A$11),\"00\"),\"\")","v":""}]
[{"$f":"\"État des menus midi retraite du mois de février \"&$A$1","v":"État des menus midi retraite du mois de février 2021"}]
["Date du menu","Légume","Viande","Dessert","Observation","Nom du menu","Numéro menu"]
[]
[{"$f":"\"Imprimé à Limeil-Brévannes, le \"","v":"Imprimé à Limeil-Brévannes, le "},{"$f":"TODAY()","v":"2021-09-29"},null,null,null,null,{"$f":"IF(F15<>\"\",\"MMR\" & TEXT(COUNTA($A$11:A15)-COUNTBLANK($A$11:A15),\"00\"),\"\")","v":""}]
[{"$f":"\"État des menus midi retraite du mois de mars \"&$A$1","v":"État des menus midi retraite du mois de mars 2021"}]
["Date du menu","Légume","Viande","Dessert","Observation","Nom du menu","Numéro menu"]
[]
[{"$f":"\"Imprimé à Limeil-Brévannes, le \"","v":"Imprimé à Limeil-Brévannes, le "},{"$f":"TODAY()","v":"2021-09-29"},null,null,null,null,{"$f":"IF(F19<>\"\",\"MMR\" & TEXT(COUNTA($A$11:A19)-COUNTBLANK($A$11:A19),\"00\"),\"\")","v":""}]
[{"$f":"\"État des menus midi retraite du mois d'avril \"&$A$1","v":"État des menus midi retraite du mois d'avril 2021"}]
["Date du menu","Légume","Viande","Dessert","Observation","Nom du menu","Numéro menu"]
[]
[{"$f":"\"Imprimé à Limeil-Brévannes, le \"","v":"Imprimé à Limeil-Brévannes, le "},{"$f":"TODAY()","v":"2021-09-29"},null,null,null,null,{"$f":"IF(F23<>\"\",\"MMR\" & TEXT(COUNTA($A$11:A23)-COUNTBLANK($A$11:A23),\"00\"),\"\")","v":""}]
[{"$f":"\"État des menus midi retraite du mois de mai \"&$A$1","v":"État des menus midi retraite du mois de mai 2021"}]
["Date du menu","Légume","Viande","Dessert","Observation","Nom du menu","Numéro menu"]
[]
[{"$f":"\"Imprimé à Limeil-Brévannes, le \"","v":"Imprimé à Limeil-Brévannes, le "},{"$f":"TODAY()","v":"2021-09-29"},null,null,null,null,{"$f":"IF(F27<>\"\",\"MMR\" & TEXT(COUNTA($A$11:A27)-COUNTBLANK($A$11:A27),\"00\"),\"\")","v":""}]
[{"$f":"\"État des menus midi retraite du mois de juin \"&$A$1","v":"État des menus midi retraite du mois de juin 2021"}]
["Date du menu","Légume","Viande","Dessert","Observation","Nom du menu","Numéro menu"]
[]
[{"$f":"\"Imprimé à Limeil-Brévannes, le \"","v":"Imprimé à Limeil-Brévannes, le "},{"$f":"TODAY()","v":"2021-09-29"},null,null,null,null,{"$f":"IF(F31<>\"\",\"MMR\" & TEXT(COUNTA($A$11:A31)-COUNTBLANK($A$11:A31),\"00\"),\"\")","v":""}]
[{"$f":"\"État des menus midi retraite du mois de juillet \"&$A$1","v":"État des menus midi retraite du mois de juillet 2021"}]
["Date du menu","Légume","Viande","Dessert","Observation","Nom du menu","Numéro menu"]
[]
[{"$f":"\"Imprimé à Limeil-Brévannes, le \"","v":"Imprimé à Limeil-Brévannes, le "},{"$f":"TODAY()","v":"2021-09-29"},null,null,null,null,{"$f":"IF(F35<>\"\",\"MMR\" & TEXT(COUNTA($A$11:A35)-COUNTBLANK($A$11:A35),\"00\"),\"\")","v":""}]
[{"$f":"\"État des menus midi retraite du mois d'août \"&$A$1","v":"État des menus midi retraite du mois d'août 2021"}]
["Date du menu","Légume","Viande","Dessert","Observation","Nom du menu","Numéro menu"]
[]
[{"$f":"\"Imprimé à Limeil-Brévannes, le \"","v":"Imprimé à Limeil-Brévannes, le "},{"$f":"TODAY()","v":"2021-09-29"},null,null,null,null,{"$f":"IF(F39<>\"\",\"MMR\" & TEXT(COUNTA($A$11:A39)-COUNTBLANK($A$11:A39),\"00\"),\"\")","v":""}]
[{"$f":"\"État des menus midi retraite du mois de septembre \"&$A$1","v":"État des menus midi retraite du mois de septembre 2021"}]
["Date du menu","Légume","Viande","Dessert","Observation","Nom du menu","Numéro menu"]
[]
[{"$f":"\"Imprimé à Limeil-Brévannes, le \"","v":"Imprimé à Limeil-Brévannes, le "},{"$f":"TODAY()","v":"2021-09-29"},null,null,null,null,{"$f":"IF(F43<>\"\",\"MMR\" & TEXT(COUNTA($A$11:A43)-COUNTBLANK($A$11:A43),\"00\"),\"\")","v":""}]
[{"$f":"\"État des menus midi retraite du mois d'octobre \"&$A$1","v":"État des menus midi retraite du mois d'octobre 2021"}]
["Date du menu","Légume","Viande","Dessert","Observation","Nom du menu","Numéro menu"]
[]
[{"$f":"\"Imprimé à Limeil-Brévannes, le \"","v":"Imprimé à Limeil-Brévannes, le "},{"$f":"TODAY()","v":"2021-09-29"},null,null,null,null,{"$f":"IF(F47<>\"\",\"MMR\" & TEXT(COUNTA($A$11:A47)-COUNTBLANK($A$11:A47),\"00\"),\"\")","v":""}]
[{"$f":"\"État des menus midi retraite du mois de novembre \"&$A$1","v":"État des menus midi retraite du mois de novembre 2021"}]
["Date du menu","Légume","Viande","Dessert","Observation","Nom du menu","Numéro menu"]
[]
[{"$f":"\"Imprimé à Limeil-Brévannes, le \"","v":"Imprimé à Limeil-Brévannes, le "},{"$f":"TODAY()","v":"2021-09-29"},null,null,null,null,{"$f":"IF(F51<>\"\",\"MMR\" & TEXT(COUNTA($A$11:A51)-COUNTBLANK($A$11:A51),\"00\"),\"\")","v":""}]
[{"$f":"\"État des menus midi retraite du mois de décembre \"&$A$1","v":"État des menus midi retraite du mois de décembre 2021"}]
["Date du menu","Légume","Viande","Dessert","Observation","Nom du menu","Numéro menu"]
[]
[{"$f":"\"Imprimé à Limeil-Brévannes, le \"","v":"Imprimé à Limeil-Brévannes, le "},{"$f":"TODAY()","v":"2021-09-29"},null,null,null,null,{"$f":"IF(F55<>\"\",\"MMR\" & TEXT(COUNTA($A$11:A55)-COUNTBLANK($A$11:A55),\"00\"),\"\")","v":""}]

{"sheet":"Modif MMR","index":6,"n_rows":18,"n_cols":8,"rows_kept":18,"cut":false,"hidden":true,"merged":[[8,0,8,1],[8,3,8,4],[8,6,8,7]]}
[{"$f":"\"Modification Menu Midi Retraite \"&'Accueil Menus'!$D$1","v":"Modification Menu Midi Retraite 2021"}]
[]
["Code menu","CD02",null,"Code observation",{"$f":"IFERROR(INDEX(Code_férié,MATCH(E4,Nom_férié,0)),\"\")","v":""},null,"Code à modifier","LCÀM02"]
["Nom menu",{"$f":"IFERROR(INDEX(Nom_destination,MATCH(B3,Code_destination,0)),\"-\")","v":"Menus midi retraite"},null,"Nom observation",{"$f":"IF(COUNTIF('Jours Fériés'!$B$3:$B$15,B7)=0,\"\",INDEX('Jours Fériés'!$A$3:$A$15,MATCH(B7,'Jours Fériés'!$B$3:$B$15,0)))","v":""},null,"Nom à modifier",{"$f":"IFERROR(INDEX(Nom_à_modifier,MATCH(H3,Code_à_modifier,0)),\"-\")","v":"Oui"}]
[null,null,null,"Code période concernée",{"$f":"IFERROR(INDEX(Code_mois,MATCH(E6,Nom_mois,0)),\"-\")","v":"CM01"}]
[null,null,null,"Nom période concernée",{"$f":"IF(B7=\"\",\"\",TEXT(B7,\"mmmm\"))","v":"janvier"}]
["Date du menu","2021-01-11",null,"Date création menu","2020-12-20"]
[]
["Légume",null,null,"Viande",null,null,"Dessert"]
["Code catégorie","CC04",null,"Code catégorie","CC13",null,"Code catégorie","CC01"]
["Nom catégorie",{"$f":"IFERROR(INDEX(Nom_catégorie,MATCH(B10,Code_catégorie,0)),\"-\")","v":"LMR"},null,"Nom catégorie",{"$f":"IFERROR(INDEX(Nom_catégorie,MATCH(E10,Code_catégorie,0)),\"-\")","v":"VMR"},null,"Nom catégorie",{"$f":"IFERROR(INDEX(Nom_catégorie,MATCH(H10,Code_catégorie,0)),\"-\")","v":"DMR"}]
["Code produit","LMR01",null,"Code produit","VMR03",null,"Code produit","DMR01"]
["Nom produit",{"$f":"IFERROR(INDEX(Nom_LMR,MATCH(B12,Code_LMR,0)),\"-\")","v":"Asperges"},null,"Nom produit",{"$f":"IFERROR(INDEX(Nom_VMR,MATCH(E12,Code_VMR,0)),\"-\")","v":"Rôti de cheval"},null,"Nom produit",{"$f":"IFERROR(INDEX(Nom_DMR,MATCH(H12,Code_DMR,0)),\"-\")","v":"Pomme"}]
["Code jour","CJ05",null,"Code jour","CJ05",null,"Code jour","CJ05"]
["Nom jour",{"$f":"IFERROR(INDEX(Nom_jour,MATCH(B14,Code_jour,0)),\"-\")","v":"Lundi à vendredi midis"},null,"Nom jour",{"$f":"IFERROR(INDEX(Nom_jour,MATCH(E14,Code_jour,0)),\"-\")","v":"Lundi à vendredi midis"},null,"Nom jour",{"$f":"IFERROR(INDEX(Nom_jour,MATCH(H14,Code_jour,0)),\"-\")","v":"Lundi à vendredi midis"}]
["Code conditionnement","CC01",null,"Code conditionnement","CC17",null,"Code conditionnement","CC17"]
["Nom conditionnement",{"$f":"IFERROR(INDEX(Nom_conditionnement,MATCH(B16,Code_conditionnement,0)),\"-\")","v":"1 bocal ou 1 boîte pour 1 repas"},null,"Nom conditionnement",{"$f":"IFERROR(INDEX(Nom_conditionnement,MATCH(E16,Code_conditionnement,0)),\"-\")","v":"1 sachet de 2 kilogrammes. 1 pomme pour 1 repas"},null,"Nom conditionnement",{"$f":"IFERROR(INDEX(Nom_conditionnement,MATCH(H16,Code_conditionnement,0)),\"-\")","v":"1 sachet de 2 kilogrammes. 1 pomme pour 1 repas"}]
["Quantité légume",null,null,"Quantité viande",null,null,"Quantité dessert",1]

{"sheet":"Saisie MJ","index":7,"n_rows":25,"n_cols":8,"rows_kept":25,"cut":false,"hidden":true,"merged":[[8,0,8,1],[8,3,8,4],[8,6,8,7]]}
[{"$f":"\"Création Menu journalier \"&'Accueil Menus'!$D$1","v":"Création Menu journalier 2021"}]
[]
["Code menu","CD01",null,"Code observation",{"$f":"IFERROR(INDEX(ListeCodesFériés,MATCH(E4,ListeNomsFériés,0)),\"\")","v":""},null,"Code à modifier"]
["Nom menu",{"$f":"IFERROR(INDEX(ListeNomsDestination,MATCH(B3,ListeCodesDestination,0)),\"-\")","v":"-"},null,"Nom observation",{"$f":"IF(COUNTIF('Jours Fériés'!$B$3:$B$15,B7)=0,\"\",INDEX('Jours Fériés'!$A$3:$A$15,MATCH(B7,'Jours Fériés'!$B$3:$B$15,0)))","v":""},null,"Nom à modifier",{"$f":"IFERROR(INDEX(ListeNomsAModifier,MATCH(H3,ListeCodesAModifier,0)),\"-\")","v":"-"}]
[null,null,null,"Code période concernée",{"$f":"IFERROR(INDEX(ListeCodesMois,MATCH(E6,ListeNomsMois,0)),\"-\")","v":"-"}]
[null,null,null,"Nom période concernée",{"$f":"IF(B7=\"\",\"\",TEXT(B7,\"mmmm\"))","v":""}]
["Date du menu",null,null,"Date création menu",{"$f":"TODAY()","v":"2021-09-29"}]
[]
["Légume",null,null,"Viande",null,null,"Dessert"]
["Code catégorie",{"$f":"IF(WEEKDAY($B$7,2)<=2,\"CC05\",IF(WEEKDAY($B$7,2)<=4,\"CC06\",IF(WEEKDAY($B$7,2)=5,\"CC07\",IF(WEEKDAY($B$7,2)=6,\"CC09\",IF(WEEKDAY($B$7,2)=7,\"CC08\",\"\")))))","v":"CC09"},null,"Code catégorie","CC14",null,"Code catégorie",{"$f":"IF(WEEKDAY($B$7,2)<=5,\"CC02\",\"CC03\")","v":"CC03"}]
["Nom catégorie",{"$f":"IFERROR(INDEX(ListeNomscatégorie,MATCH(B10,ListeCodesCatégorie,0)),\"-\")","v":"-"},null,"Nom catégorie",{"$f":"IFERROR(INDEX(ListeNomscatégorie,MATCH(E10,ListeCodesCatégorie,0)),\"-\")","v":"-"},null,"Nom catégorie",{"$f":"IFERROR(INDEX(ListeNomscatégorie,MATCH(H10,ListeCodesCatégorie,0)),\"-\")","v":"-"}]
["Code produit",null,null,"Code produit",null,null,"Code produit"]
["Nom produit",{"$f":"IFERROR(INDEX(#REF!,MATCH(B$12,#REF!,0),MATCH($A13,#REF!,0)),\"-\")","v":"-"},null,"Nom produit",{"$f":"IFERROR(INDEX(#REF!,MATCH(E$12,#REF!,0),MATCH($A13,#REF!,0)),\"-\")","v":"-"},null,"Nom produit",{"$f":"IFERROR(INDEX(#REF!,MATCH(H$12,#REF!,0),MATCH($A13,#REF!,0)),\"-\")","v":"-"}]
["Code jour",{"$f":"IFERROR(INDEX(#REF!,MATCH(B$12,#REF!,0),MATCH($A14,#REF!,0)),\"-\")","v":"-"},null,"Code jour",{"$f":"IFERROR(INDEX(#REF!,MATCH(E$12,#REF!,0),MATCH($A14,#REF!,0)),\"-\")","v":"-"},null,"Code jour",{"$f":"IFERROR(INDEX(#REF!,MATCH(H$12,#REF!,0),MATCH($A14,#REF!,0)),\"-\")","v":"-"}]
["Nom jour",{"$f":"IFERROR(INDEX(#REF!,MATCH(B$12,#REF!,0),MATCH($A15,#REF!,0)),\"-\")","v":"-"},null,"Nom jour",{"$f":"IFERROR(INDEX(#REF!,MATCH(E$12,#REF!,0),MATCH($A15,#REF!,0)),\"-\")","v":"-"},null,"Nom jour",{"$f":"IFERROR(INDEX(#REF!,MATCH(H$12,#REF!,0),MATCH($A15,#REF!,0)),\"-\")","v":"-"}]
["Code conditionnement",{"$f":"IFERROR(INDEX(#REF!,MATCH(B$12,#REF!,0),MATCH($A16,#REF!,0)),\"-\")","v":"-"},null,"Code conditionnement",{"$f":"IFERROR(INDEX(#REF!,MATCH(E$12,#REF!,0),MATCH($A16,#REF!,0)),\"-\")","v":"-"},null,"Code conditionnement",{"$f":"IFERROR(INDEX(#REF!,MATCH(H$12,#REF!,0),MATCH($A16,#REF!,0)),\"-\")","v":"-"}]
["Nom conditionnement",{"$f":"IFERROR(INDEX(#REF!,MATCH(B$12,#REF!,0),MATCH($A17,#REF!,0)),\"-\")","v":"-"},null,"Nom conditionnement",{"$f":"IFERROR(INDEX(#REF!,MATCH(E$12,#REF!,0),MATCH($A17,#REF!,0)),\"-\")","v":"-"},null,"Nom conditionnement",{"$f":"IFERROR(INDEX(#REF!,MATCH(H$12,#REF!,0),MATCH($A17,#REF!,0)),\"-\")","v":"-"}]
["Quantité légume",null,null,"Quantité viande",null,null,"Quantité dessert",2]
["Code produit deux"]
["Nom produit deux",{"$f":"IFERROR(INDEX(#REF!,MATCH(B$19,#REF!,0),MATCH($A13,#REF!,0)),\"-\")","v":"-"}]
["Code jour deux",{"$f":"IFERROR(INDEX(#REF!,MATCH(B$19,#REF!,0),MATCH($A14,#REF!,0)),\"-\")","v":"-"}]
["Nom jour deux",{"$f":"IFERROR(INDEX(#REF!,MATCH(B$19,#REF!,0),MATCH($A15,#REF!,0)),\"-\")","v":"-"}]
["Code conditionnement légume deux",{"$f":"IFERROR(INDEX(#REF!,MATCH(B$19,#REF!,0),MATCH($A16,#REF!,0)),\"-\")","v":"-"}]
["Nom conditionnement légume deux",{"$f":"IFERROR(INDEX(#REF!,MATCH(B$19,#REF!,0),MATCH($A17,#REF!,0)),\"-\")","v":"-"}]
["Quantité légume deux"]

{"sheet":"Modif MJ","index":8,"n_rows":25,"n_cols":8,"rows_kept":25,"cut":false,"hidden":true,"merged":[[8,0,8,1],[8,3,8,4],[8,6,8,7]]}
[{"$f":"\"Modification Menu journalier \"&'Accueil Menus'!$D$1","v":"Modification Menu journalier 2021"}]
[]
["Code menu","CD01",null,"Code observation",{"$f":"IFERROR(INDEX(ListeCodesFériés,MATCH(E4,ListeNomsFériés,0)),\"\")","v":""},null,"Code à modifier","LCÀM02"]
["Nom menu",{"$f":"IFERROR(INDEX(ListeNomsDestination,MATCH(B3,ListeCodesDestination,0)),\"-\")","v":"-"},null,"Nom observation",{"$f":"IF(COUNTIF('Jours Fériés'!$B$3:$B$15,B7)=0,\"\",INDEX('Jours Fériés'!$A$3:$A$15,MATCH(B7,'Jours Fériés'!$B$3:$B$15,0)))","v":""},null,"Nom à modifier",{"$f":"IFERROR(INDEX(ListeNomsAModifier,MATCH(H3,ListeCodesAModifier,0)),\"-\")","v":"-"}]
[null,null,null,"Code période concernée",{"$f":"IFERROR(INDEX(ListeCodesMois,MATCH(E6,ListeNomsMois,0)),\"-\")","v":"-"}]
[null,null,null,"Nom période concernée",{"$f":"IF(B7=\"\",\"\",TEXT(B7,\"mmmm\"))","v":"janvier"}]
["Date du menu","2020-01-01",null,"Date création menu","2019-11-08"]
[]
["Légume",null,null,"Viande",null,null,"Dessert"]
["Code catégorie","CC06",null,"Code catégorie","CC14",null,"Code catégorie","CC02"]
["Nom catégorie",{"$f":"IFERROR(INDEX(ListeNomscatégorie,MATCH(B10,ListeCodesCatégorie,0)),\"-\")","v":"-"},null,"Nom catégorie",{"$f":"IFERROR(INDEX(ListeNomscatégorie,MATCH(E10,ListeCodesCatégorie,0)),\"-\")","v":"-"},null,"Nom catégorie",{"$f":"IFERROR(INDEX(ListeNomscatégorie,MATCH(H10,ListeCodesCatégorie,0)),\"-\")","v":"-"}]
["Code produit","LSMJ03",null,"Code produit","VS10",null,"Code produit","DS01"]
["Nom produit",{"$f":"IFERROR(INDEX(#REF!,MATCH(B$12,#REF!,0),MATCH($A13,#REF!,0)),\"-\")","v":"-"},null,"Nom produit",{"$f":"IFERROR(INDEX(#REF!,MATCH(E$12,#REF!,0),MATCH($A13,#REF!,0)),\"-\")","v":"-"},null,"Nom produit",{"$f":"IFERROR(INDEX(#REF!,MATCH(H$12,#REF!,0),MATCH($A13,#REF!,0)),\"-\")","v":"-"}]
["Code jour",{"$f":"IFERROR(INDEX(#REF!,MATCH(B$12,#REF!,0),MATCH($A14,#REF!,0)),\"-\")","v":"-"},null,"Code jour",{"$f":"IFERROR(INDEX(#REF!,MATCH(E$12,#REF!,0),MATCH($A14,#REF!,0)),\"-\")","v":"-"},null,"Code jour",{"$f":"IFERROR(INDEX(#REF!,MATCH(H$12,#REF!,0),MATCH($A14,#REF!,0)),\"-\")","v":"-"}]
["Nom jour",{"$f":"IFERROR(INDEX(#REF!,MATCH(B$12,#REF!,0),MATCH($A15,#REF!,0)),\"-\")","v":"-"},null,"Nom jour",{"$f":"IFERROR(INDEX(#REF!,MATCH(E$12,#REF!,0),MATCH($A15,#REF!,0)),\"-\")","v":"-"},null,"Nom jour",{"$f":"IFERROR(INDEX(#REF!,MATCH(H$12,#REF!,0),MATCH($A15,#REF!,0)),\"-\")","v":"-"}]
["Code conditionnement",{"$f":"IFERROR(INDEX(#REF!,MATCH(B$12,#REF!,0),MATCH($A16,#REF!,0)),\"-\")","v":"-"},null,"Code conditionnement",{"$f":"IFERROR(INDEX(#REF!,MATCH(E$12,#REF!,0),MATCH($A16,#REF!,0)),\"-\")","v":"-"},null,"Code conditionnement",{"$f":"IFERROR(INDEX(#REF!,MATCH(H$12,#REF!,0),MATCH($A16,#REF!,0)),\"-\")","v":"-"}]
["Nom conditionnement",{"$f":"IFERROR(INDEX(#REF!,MATCH(B$12,#REF!,0),MATCH($A17,#REF!,0)),\"-\")","v":"-"},null,"Nom conditionnement",{"$f":"IFERROR(INDEX(#REF!,MATCH(E$12,#REF!,0),MATCH($A17,#REF!,0)),\"-\")","v":"-"},null,"Nom conditionnement",{"$f":"IFERROR(INDEX(#REF!,MATCH(H$12,#REF!,0),MATCH($A17,#REF!,0)),\"-\")","v":"-"}]
["Quantité légume",0.5,null,"Quantité viande",0.5,null,"Quantité dessert",1]
["Code produit deux"]
["Nom produit deux",{"$f":"IFERROR(INDEX(#REF!,MATCH(B$19,#REF!,0),MATCH($A13,#REF!,0)),\"-\")","v":"-"}]
["Code jour deux",{"$f":"IFERROR(INDEX(#REF!,MATCH(B$19,#REF!,0),MATCH($A14,#REF!,0)),\"-\")","v":"-"}]
["Nom jour deux",{"$f":"IFERROR(INDEX(#REF!,MATCH(B$19,#REF!,0),MATCH($A15,#REF!,0)),\"-\")","v":"-"}]
["Code conditionnement légume deux",{"$f":"IFERROR(INDEX(#REF!,MATCH(B$19,#REF!,0),MATCH($A16,#REF!,0)),\"-\")","v":"-"}]
["Nom conditionnement légume deux",{"$f":"IFERROR(INDEX(#REF!,MATCH(B$19,#REF!,0),MATCH($A17,#REF!,0)),\"-\")","v":"-"}]
["Quantité légume"]

{"sheet":"Menus MJ","index":9,"n_rows":421,"n_cols":8,"rows_kept":421,"cut":false,"hidden":false,"merged":[[280,1,280,3],[280,4,280,7],[315,1,315,3],[315,4,315,7],[176,1,176,3],[176,4,176,7],[210,1,210,3],[210,4,210,7],[245,1,245,3],[245,4,245,7],[177,1,177,7],[212,1,212,7],[247,1,247,7],[175,4,175,7],[175,1,175,3],[70,1,70,3],[70,4,70,7],[2,1,2,7],[37,1,37,7],[72,1,72,7],[35,1,35,3],[35,4,35,7],[107,1,107,7],[142,1,142,7],[105,1,105,3],[105,4,105,7],[140,1,140,3],[140,4,140,7],[420,1,420,3],[420,4,420,7],[387,1,387,7],[282,1,282,7],[317,1,317,7],[352,1,352,7],[385,1,385,3],[385,4,385,7],[350,1,350,3],[350,4,350,7]]}
[{"$f":"'Accueil Menus'!$D$1","v":2021}]
[null,null,null,null,null,""]
[1,{"$f":"\"Menus journaliers du mois de \"&TEXT(A5,\"mmmm\")&\" \"&$A$1","v":"Menus journaliers du mois de janvier 2021"}]
["Date du menu","Légume","Légume deux","Viande","Dessert","Observation","Nature du menu","Numéro menu"]
[{"$f":"DATE($A$1,$A$3,1)","v":"2021-01-01"},null,null,null,null,null,{"$f":"IF(COUNTA(A5:E5)>1,\"Menus journaliers \" &TEXT(A5,\"mmmm\"),\"\")","v":""},{"$f":"IF(G5<>\"\",\"MJ\" & TEXT(COUNTA($A$5:A5)-COUNTBLANK($A$5:A5),\"00\"),\"\")","v":""}]
[{"$f":"A5+1","v":"2021-01-02"},null,null,null,null,null,{"$f":"IF(COUNTA(A6:E6)>1,\"Menus journaliers \" &TEXT(A6,\"mmmm\"),\"\")","v":""},{"$f":"IF(G6<>\"\",\"MJ\" & TEXT(COUNTA($A$5:A6)-COUNTBLANK($A$5:A6),\"00\"),\"\")","v":""}]
[{"$f":"A6+1","v":"2021-01-03"},null,null,null,null,null,{"$f":"IF(COUNTA(A7:E7)>1,\"Menus journaliers \" &TEXT(A7,\"mmmm\"),\"\")","v":""},{"$f":"IF(G7<>\"\",\"MJ\" & TEXT(COUNTA($A$5:A7)-COUNTBLANK($A$5:A7),\"00\"),\"\")","v":""}]
[{"$f":"A7+1","v":"2021-01-04"},null,null,null,null,null,"",{"$f":"IF(G8<>\"\",\"MJ\" & TEXT(COUNTA($A$5:A8)-COUNTBLANK($A$5:A8),\"00\"),\"\")","v":""}]
[{"$f":"A8+1","v":"2021-01-05"},null,null,null,null,null,"",{"$f":"IF(G9<>\"\",\"MJ\" & TEXT(COUNTA($A$5:A9)-COUNTBLANK($A$5:A9),\"00\"),\"\")","v":""}]
["2021-01-06",null,null,null,null,null,"",{"$f":"IF(G10<>\"\",\"MJ\" & TEXT(COUNTA($A$5:A10)-COUNTBLANK($A$5:A10),\"00\"),\"\")","v":""}]
["2021-01-07",null,null,null,null,null,"",{"$f":"IF(G11<>\"\",\"MJ\" & TEXT(COUNTA($A$5:A11)-COUNTBLANK($A$5:A11),\"00\"),\"\")","v":""}]
["2021-01-08",null,null,null,null,null,"",{"$f":"IF(G12<>\"\",\"MJ\" & TEXT(COUNTA($A$5:A12)-COUNTBLANK($A$5:A12),\"00\"),\"\")","v":""}]
["2021-01-09",null,null,null,null,null,"",{"$f":"IF(G13<>\"\",\"MJ\" & TEXT(COUNTA($A$5:A13)-COUNTBLANK($A$5:A13),\"00\"),\"\")","v":""}]
["2021-01-10",null,null,null,null,null,"",{"$f":"IF(G14<>\"\",\"MJ\" & TEXT(COUNTA($A$5:A14)-COUNTBLANK($A$5:A14),\"00\"),\"\")","v":""}]
["2021-01-11",null,null,null,null,null,"",{"$f":"IF(G15<>\"\",\"MJ\" & TEXT(COUNTA($A$5:A15)-COUNTBLANK($A$5:A15),\"00\"),\"\")","v":""}]
["2021-01-12",null,null,null,null,null,"",{"$f":"IF(G16<>\"\",\"MJ\" & TEXT(COUNTA($A$5:A16)-COUNTBLANK($A$5:A16),\"00\"),\"\")","v":""}]
["2021-01-13",null,null,null,null,null,"",{"$f":"IF(G17<>\"\",\"MJ\" & TEXT(COUNTA($A$5:A17)-COUNTBLANK($A$5:A17),\"00\"),\"\")","v":""}]
["2021-01-14",null,null,null,null,null,"",{"$f":"IF(G18<>\"\",\"MJ\" & TEXT(COUNTA($A$5:A18)-COUNTBLANK($A$5:A18),\"00\"),\"\")","v":""}]
["2021-01-15",null,null,null,null,null,"",{"$f":"IF(G19<>\"\",\"MJ\" & TEXT(COUNTA($A$5:A19)-COUNTBLANK($A$5:A19),\"00\"),\"\")","v":""}]
["2021-01-16",null,null,null,null,null,"",{"$f":"IF(G20<>\"\",\"MJ\" & TEXT(COUNTA($A$5:A20)-COUNTBLANK($A$5:A20),\"00\"),\"\")","v":""}]
["2021-01-17",null,null,null,null,null,"",{"$f":"IF(G21<>\"\",\"MJ\" & TEXT(COUNTA($A$5:A21)-COUNTBLANK($A$5:A21),\"00\"),\"\")","v":""}]
["2021-01-18",null,null,null,null,null,"",{"$f":"IF(G22<>\"\",\"MJ\" & TEXT(COUNTA($A$5:A22)-COUNTBLANK($A$5:A22),\"00\"),\"\")","v":""}]
["2021-01-19",null,null,null,null,null,"",{"$f":"IF(G23<>\"\",\"MJ\" & TEXT(COUNTA($A$5:A23)-COUNTBLANK($A$5:A23),\"00\"),\"\")","v":""}]
["2021-01-20",null,null,null,null,null,"",{"$f":"IF(G24<>\"\",\"MJ\" & TEXT(COUNTA($A$5:A24)-COUNTBLANK($A$5:A24),\"00\"),\"\")","v":""}]
["2021-01-21",null,null,null,null,null,"",{"$f":"IF(G25<>\"\",\"MJ\" & TEXT(COUNTA($A$5:A25)-COUNTBLANK($A$5:A25),\"00\"),\"\")","v":""}]
["2021-01-22",null,null,null,null,null,"",{"$f":"IF(G26<>\"\",\"MJ\" & TEXT(COUNTA($A$5:A26)-COUNTBLANK($A$5:A26),\"00\"),\"\")","v":""}]
["2021-01-23",null,null,null,null,null,"",{"$f":"IF(G27<>\"\",\"MJ\" & TEXT(COUNTA($A$5:A27)-COUNTBLANK($A$5:A27),\"00\"),\"\")","v":""}]
["2021-01-24",null,null,null,null,null,"",{"$f":"IF(G28<>\"\",\"MJ\" & TEXT(COUNTA($A$5:A28)-COUNTBLANK($A$5:A28),\"00\"),\"\")","v":""}]
["2021-01-25",null,null,null,null,null,"",{"$f":"IF(G29<>\"\",\"MJ\" & TEXT(COUNTA($A$5:A29)-COUNTBLANK($A$5:A29),\"00\"),\"\")","v":""}]
["2021-01-26",null,null,null,null,null,"",{"$f":"IF(G30<>\"\",\"MJ\" & TEXT(COUNTA($A$5:A30)-COUNTBLANK($A$5:A30),\"00\"),\"\")","v":""}]
["2021-01-27",null,null,null,null,null,"",{"$f":"IF(G31<>\"\",\"MJ\" & TEXT(COUNTA($A$5:A31)-COUNTBLANK($A$5:A31),\"00\"),\"\")","v":""}]
["2021-01-28",null,null,null,null,null,"",{"$f":"IF(G32<>\"\",\"MJ\" & TEXT(COUNTA($A$5:A32)-COUNTBLANK($A$5:A32),\"00\"),\"\")","v":""}]
["2021-01-29",null,null,null,null,null,"",{"$f":"IF(G33<>\"\",\"MJ\" & TEXT(COUNTA($A$5:A33)-COUNTBLANK($A$5:A33),\"00\"),\"\")","v":""}]
["2021-01-30",null,null,null,null,null,"",{"$f":"IF(G34<>\"\",\"MJ\" & TEXT(COUNTA($A$5:A34)-COUNTBLANK($A$5:A34),\"00\"),\"\")","v":""}]
["2021-01-31",null,null,null,null,null,"",{"$f":"IF(G35<>\"\",\"MJ\" & TEXT(COUNTA($A$5:A35)-COUNTBLANK($A$5:A35),\"00\"),\"\")","v":""}]
[null,"Fait à Limeil-Brévannes, le",null,null,{"$f":"IF(COUNTBLANK($A5:$A35)<>COUNTBLANK($G5:$G35),\"\",MAX((TableMenus[Code menu]=\"CD01\")*(TableMenus[Date menu]>=$A5)*(TableMenus[Date menu]<=MAX($A5:$A35))*TableMenus[Date création menu]))","v":""}]
[]
[2,{"$f":"\"Menus journaliers du mois de \"&TEXT(A40,\"mmmm\")&\" \"&$A$1","v":"Menus journaliers du mois de février 2021"}]
["Date du menu","Légume",null,"Viande","Dessert","Observation","Nature du menu","Numéro menu"]
[{"$f":"DATE($A$1,$A$38,1)","v":"2021-02-01"},null,null,null,null,null,{"$f":"IF(COUNTA(A40:E40)>1,\"Menus journaliers \" &TEXT(A40,\"mmmm\"),\"\")","v":""},{"$f":"IF(G40<>\"\",\"MJ\" & TEXT(COUNTA($A$5:A40)-COUNTBLANK($A$5:A40),\"00\"),\"\")","v":""}]
[{"$f":"A40+1","v":"2021-02-02"},null,null,null,null,null,"",{"$f":"IF(G41<>\"\",\"MJ\" & TEXT(COUNTA($A$5:A41)-COUNTBLANK($A$5:A41),\"00\"),\"\")","v":""}]
[{"$f":"A41+1","v":"2021-02-03"},null,null,null,null,null,"",{"$f":"IF(G42<>\"\",\"MJ\" & TEXT(COUNTA($A$5:A42)-COUNTBLANK($A$5:A42),\"00\"),\"\")","v":""}]
[{"$f":"A42+1","v":"2021-02-04"},null,null,null,null,null,"",{"$f":"IF(G43<>\"\",\"MJ\" & TEXT(COUNTA($A$5:A43)-COUNTBLANK($A$5:A43),\"00\"),\"\")","v":""}]
["2021-02-05",null,null,null,null,null,"",{"$f":"IF(G44<>\"\",\"MJ\" & TEXT(COUNTA($A$5:A44)-COUNTBLANK($A$5:A44),\"00\"),\"\")","v":""}]
["2021-02-06",null,null,null,null,null,"",{"$f":"IF(G45<>\"\",\"MJ\" & TEXT(COUNTA($A$5:A45)-COUNTBLANK($A$5:A45),\"00\"),\"\")","v":""}]
["2021-02-07",null,null,null,null,null,"",{"$f":"IF(G46<>\"\",\"MJ\" & TEXT(COUNTA($A$5:A46)-COUNTBLANK($A$5:A46),\"00\"),\"\")","v":""}]
["2021-02-08",null,null,null,null,null,"",{"$f":"IF(G47<>\"\",\"MJ\" & TEXT(COUNTA($A$5:A47)-COUNTBLANK($A$5:A47),\"00\"),\"\")","v":""}]
["2021-02-09",null,null,null,null,null,"",{"$f":"IF(G48<>\"\",\"MJ\" & TEXT(COUNTA($A$5:A48)-COUNTBLANK($A$5:A48),\"00\"),\"\")","v":""}]
["2021-02-10",null,null,null,null,null,"",{"$f":"IF(G49<>\"\",\"MJ\" & TEXT(COUNTA($A$5:A49)-COUNTBLANK($A$5:A49),\"00\"),\"\")","v":""}]
["2021-02-11",null,null,null,null,null,"",{"$f":"IF(G50<>\"\",\"MJ\" & TEXT(COUNTA($A$5:A50)-COUNTBLANK($A$5:A50),\"00\"),\"\")","v":""}]
["2021-02-12",null,null,null,null,null,"",{"$f":"IF(G51<>\"\",\"MJ\" & TEXT(COUNTA($A$5:A51)-COUNTBLANK($A$5:A51),\"00\"),\"\")","v":""}]
["2021-02-13",null,null,null,null,null,"",{"$f":"IF(G52<>\"\",\"MJ\" & TEXT(COUNTA($A$5:A52)-COUNTBLANK($A$5:A52),\"00\"),\"\")","v":""}]
["2021-02-14",null,null,null,null,null,"",{"$f":"IF(G53<>\"\",\"MJ\" & TEXT(COUNTA($A$5:A53)-COUNTBLANK($A$5:A53),\"00\"),\"\")","v":""}]
["2021-02-15",null,null,null,null,null,"",{"$f":"IF(G54<>\"\",\"MJ\" & TEXT(COUNTA($A$5:A54)-COUNTBLANK($A$5:A54),\"00\"),\"\")","v":""}]
["2021-02-16",null,null,null,null,null,"",{"$f":"IF(G55<>\"\",\"MJ\" & TEXT(COUNTA($A$5:A55)-COUNTBLANK($A$5:A55),\"00\"),\"\")","v":""}]
["2021-02-17",null,null,null,null,null,"",{"$f":"IF(G56<>\"\",\"MJ\" & TEXT(COUNTA($A$5:A56)-COUNTBLANK($A$5:A56),\"00\"),\"\")","v":""}]
["2021-02-18",null,null,null,null,null,"",{"$f":"IF(G57<>\"\",\"MJ\" & TEXT(COUNTA($A$5:A57)-COUNTBLANK($A$5:A57),\"00\"),\"\")","v":""}]
["2021-02-19",null,null,null,null,null,"",{"$f":"IF(G58<>\"\",\"MJ\" & TEXT(COUNTA($A$5:A58)-COUNTBLANK($A$5:A58),\"00\"),\"\")","v":""}]
["2021-02-20",null,null,null,null,null,"",{"$f":"IF(G59<>\"\",\"MJ\" & TEXT(COUNTA($A$5:A59)-COUNTBLANK($A$5:A59),\"00\"),\"\")","v":""}]
["2021-02-21",null,null,null,null,null,"",{"$f":"IF(G60<>\"\",\"MJ\" & TEXT(COUNTA($A$5:A60)-COUNTBLANK($A$5:A60),\"00\"),\"\")","v":""}]
["2021-02-22",null,null,null,null,null,"",{"$f":"IF(G61<>\"\",\"MJ\" & TEXT(COUNTA($A$5:A61)-COUNTBLANK($A$5:A61),\"00\"),\"\")","v":""}]
["2021-02-23",null,null,null,null,null,"",{"$f":"IF(G62<>\"\",\"MJ\" & TEXT(COUNTA($A$5:A62)-COUNTBLANK($A$5:A62),\"00\"),\"\")","v":""}]
["2021-02-24",null,null,null,null,null,"",{"$f":"IF(G63<>\"\",\"MJ\" & TEXT(COUNTA($A$5:A63)-COUNTBLANK($A$5:A63),\"00\"),\"\")","v":""}]
["2021-02-25",null,null,null,null,null,"",{"$f":"IF(G64<>\"\",\"MJ\" & TEXT(COUNTA($A$5:A64)-COUNTBLANK($A$5:A64),\"00\"),\"\")","v":""}]
["2021-02-26",null,null,null,null,null,"",{"$f":"IF(G65<>\"\",\"MJ\" & TEXT(COUNTA($A$5:A65)-COUNTBLANK($A$5:A65),\"00\"),\"\")","v":""}]
["2021-02-27",null,null,null,null,null,"",{"$f":"IF(G66<>\"\",\"MJ\" & TEXT(COUNTA($A$5:A66)-COUNTBLANK($A$5:A66),\"00\"),\"\")","v":""}]
["2021-02-28",null,null,null,null,null,"",{"$f":"IF(G67<>\"\",\"MJ\" & TEXT(COUNTA($A$5:A67)-COUNTBLANK($A$5:A67),\"00\"),\"\")","v":""}]
[{"$f":"IFERROR(IF(MONTH(A67+1)=MONTH(A67),A67+1,\"\"),\"\")","v":""},null,null,null,null,null,"",{"$f":"IF(G68<>\"\",\"MJ\" & TEXT(COUNTA($A$5:A68)-COUNTBLANK($A$5:A68),\"00\"),\"\")","v":""}]
["",null,null,null,null,null,"",{"$f":"IF(G69<>\"\",\"MJ\" & TEXT(COUNTA($A$5:A69)-COUNTBLANK($A$5:A69),\"00\"),\"\")","v":""}]
["",null,null,null,null,null,{"$f":"IF(COUNTA(A70:E70)>1,\"Menus journaliers \" &TEXT(A70,\"mmmm\"),\"\")","v":""},{"$f":"IF(G70<>\"\",\"MJ\" & TEXT(COUNTA($A$5:A70)-COUNTBLANK($A$5:A70),\"00\"),\"\")","v":""}]
[null,"Fait à Limeil-Brévannes, le",null,null,{"$f":"IF(COUNTBLANK($A40:$A70)<>COUNTBLANK($G40:$G70),\"\",MAX((TableMenus[Code menu]=\"CD01\")*(TableMenus[Date menu]>=$A40)*(TableMenus[Date menu]<=MAX($A40:$A70))*TableMenus[Date création menu]))","v":""}]
[]
[3,{"$f":"\"Menus journaliers du mois de \"&TEXT(A75,\"mmmm\")&\" \"&$A$1","v":"Menus journaliers du mois de mars 2021"}]
["Date du menu","Légume",null,"Viande","Dessert","Observation","Nature du menu","Numéro menu"]
[{"$f":"DATE($A$1,$A$73,1)","v":"2021-03-01"},null,null,null,null,null,{"$f":"IF(COUNTA(A75:E75)>1,\"Menus journaliers \" &TEXT(A75,\"mmmm\"),\"\")","v":""},{"$f":"IF(G75<>\"\",\"MJ\" & TEXT(COUNTA($A$5:A75)-COUNTBLANK($A$5:A75),\"00\"),\"\")","v":""}]
[{"$f":"A75+1","v":"2021-03-02"},null,null,null,null,null,"",{"$f":"IF(G76<>\"\",\"MJ\" & TEXT(COUNTA($A$5:A76)-COUNTBLANK($A$5:A76),\"00\"),\"\")","v":""}]
[{"$f":"A76+1","v":"2021-03-03"},null,null,null,null,null,"",{"$f":"IF(G77<>\"\",\"MJ\" & TEXT(COUNTA($A$5:A77)-COUNTBLANK($A$5:A77),\"00\"),\"\")","v":""}]
["2021-03-04",null,null,null,null,null,"",{"$f":"IF(G78<>\"\",\"MJ\" & TEXT(COUNTA($A$5:A78)-COUNTBLANK($A$5:A78),\"00\"),\"\")","v":""}]
["2021-03-05",null,null,null,null,null,"",{"$f":"IF(G79<>\"\",\"MJ\" & TEXT(COUNTA($A$5:A79)-COUNTBLANK($A$5:A79),\"00\"),\"\")","v":""}]
["2021-03-06",null,null,null,null,null,"",{"$f":"IF(G80<>\"\",\"MJ\" & TEXT(COUNTA($A$5:A80)-COUNTBLANK($A$5:A80),\"00\"),\"\")","v":""}]
["2021-03-07",null,null,null,null,null,"",{"$f":"IF(G81<>\"\",\"MJ\" & TEXT(COUNTA($A$5:A81)-COUNTBLANK($A$5:A81),\"00\"),\"\")","v":""}]
["2021-03-08",null,null,null,null,null,"",{"$f":"IF(G82<>\"\",\"MJ\" & TEXT(COUNTA($A$5:A82)-COUNTBLANK($A$5:A82),\"00\"),\"\")","v":""}]
["2021-03-09",null,null,null,null,null,"",{"$f":"IF(G83<>\"\",\"MJ\" & TEXT(COUNTA($A$5:A83)-COUNTBLANK($A$5:A83),\"00\"),\"\")","v":""}]
["2021-03-10",null,null,null,null,null,"",{"$f":"IF(G84<>\"\",\"MJ\" & TEXT(COUNTA($A$5:A84)-COUNTBLANK($A$5:A84),\"00\"),\"\")","v":""}]
["2021-03-11",null,null,null,null,null,"",{"$f":"IF(G85<>\"\",\"MJ\" & TEXT(COUNTA($A$5:A85)-COUNTBLANK($A$5:A85),\"00\"),\"\")","v":""}]
["2021-03-12",null,null,null,null,null,"",{"$f":"IF(G86<>\"\",\"MJ\" & TEXT(COUNTA($A$5:A86)-COUNTBLANK($A$5:A86),\"00\"),\"\")","v":""}]
["2021-03-13",null,null,null,null,null,"",{"$f":"IF(G87<>\"\",\"MJ\" & TEXT(COUNTA($A$5:A87)-COUNTBLANK($A$5:A87),\"00\"),\"\")","v":""}]
["2021-03-14",null,null,null,null,null,"",{"$f":"IF(G88<>\"\",\"MJ\" & TEXT(COUNTA($A$5:A88)-COUNTBLANK($A$5:A88),\"00\"),\"\")","v":""}]
["2021-03-15",null,null,null,null,null,"",{"$f":"IF(G89<>\"\",\"MJ\" & TEXT(COUNTA($A$5:A89)-COUNTBLANK($A$5:A89),\"00\"),\"\")","v":""}]
["2021-03-16",null,null,null,null,null,"",{"$f":"IF(G90<>\"\",\"MJ\" & TEXT(COUNTA($A$5:A90)-COUNTBLANK($A$5:A90),\"00\"),\"\")","v":""}]
["2021-03-17",null,null,null,null,null,"",{"$f":"IF(G91<>\"\",\"MJ\" & TEXT(COUNTA($A$5:A91)-COUNTBLANK($A$5:A91),\"00\"),\"\")","v":""}]
["2021-03-18",null,null,null,null,null,"",{"$f":"IF(G92<>\"\",\"MJ\" & TEXT(COUNTA($A$5:A92)-COUNTBLANK($A$5:A92),\"00\"),\"\")","v":""}]
["2021-03-19",null,null,null,null,null,"",{"$f":"IF(G93<>\"\",\"MJ\" & TEXT(COUNTA($A$5:A93)-COUNTBLANK($A$5:A93),\"00\"),\"\")","v":""}]
["2021-03-20",null,null,null,null,null,"",{"$f":"IF(G94<>\"\",\"MJ\" & TEXT(COUNTA($A$5:A94)-COUNTBLANK($A$5:A94),\"00\"),\"\")","v":""}]
["2021-03-21",null,null,null,null,null,"",{"$f":"IF(G95<>\"\",\"MJ\" & TEXT(COUNTA($A$5:A95)-COUNTBLANK($A$5:A95),\"00\"),\"\")","v":""}]
["2021-03-22",null,null,null,null,null,"",{"$f":"IF(G96<>\"\",\"MJ\" & TEXT(COUNTA($A$5:A96)-COUNTBLANK($A$5:A96),\"00\"),\"\")","v":""}]
["2021-03-23",null,null,null,null,null,"",{"$f":"IF(G97<>\"\",\"MJ\" & TEXT(COUNTA($A$5:A97)-COUNTBLANK($A$5:A97),\"00\"),\"\")","v":""}]
["2021-03-24",null,null,null,null,null,"",{"$f":"IF(G98<>\"\",\"MJ\" & TEXT(COUNTA($A$5:A98)-COUNTBLANK($A$5:A98),\"00\"),\"\")","v":""}]
["2021-03-25",null,null,null,null,null,"",{"$f":"IF(G99<>\"\",\"MJ\" & TEXT(COUNTA($A$5:A99)-COUNTBLANK($A$5:A99),\"00\"),\"\")","v":""}]
["2021-03-26",null,null,null,null,null,"",{"$f":"IF(G100<>\"\",\"MJ\" & TEXT(COUNTA($A$5:A100)-COUNTBLANK($A$5:A100),\"00\"),\"\")","v":""}]
["2021-03-27",null,null,null,null,null,"",{"$f":"IF(G101<>\"\",\"MJ\" & TEXT(COUNTA($A$5:A101)-COUNTBLANK($A$5:A101),\"00\"),\"\")","v":""}]
["2021-03-28",null,null,null,null,null,"",{"$f":"IF(G102<>\"\",\"MJ\" & TEXT(COUNTA($A$5:A102)-COUNTBLANK($A$5:A102),\"00\"),\"\")","v":""}]
["2021-03-29",null,null,null,null,null,"",{"$f":"IF(G103<>\"\",\"MJ\" & TEXT(COUNTA($A$5:A103)-COUNTBLANK($A$5:A103),\"00\"),\"\")","v":""}]
["2021-03-30",null,null,null,null,null,"",{"$f":"IF(G104<>\"\",\"MJ\" & TEXT(COUNTA($A$5:A104)-COUNTBLANK($A$5:A104),\"00\"),\"\")","v":""}]
["2021-03-31",null,null,null,null,null,"",{"$f":"IF(G105<>\"\",\"MJ\" & TEXT(COUNTA($A$5:A105)-COUNTBLANK($A$5:A105),\"00\"),\"\")","v":""}]
[null,"Fait à Limeil-Brévannes, le",null,null,{"$f":"IF(COUNTBLANK($A75:$A105)<>COUNTBLANK($G75:$G105),\"\",MAX((TableMenus[Code menu]=\"CD01\")*(TableMenus[Date menu]>=$A75)*(TableMenus[Date menu]<=MAX($A75:$A105))*TableMenus[Date création menu]))","v":""}]
[]
[4,{"$f":"\"Menus journaliers du mois de \"&TEXT(A110,\"mmmm\")&\" \"&$A$1","v":"Menus journaliers du mois de avril 2021"}]
["Date du menu","Légume",null,"Viande","Dessert","Observation","Nature du menu","Numéro menu"]
[{"$f":"DATE($A$1,$A$108,1)","v":"2021-04-01"},null,null,null,null,null,{"$f":"IF(COUNTA(A110:E110)>1,\"Menus journaliers \" &TEXT(A110,\"mmmm\"),\"\")","v":""},{"$f":"IF(G110<>\"\",\"MJ\" & TEXT(COUNTA($A$5:A110)-COUNTBLANK($A$5:A110),\"00\"),\"\")","v":""}]
[{"$f":"A110+1","v":"2021-04-02"},null,null,null,null,null,"",{"$f":"IF(G111<>\"\",\"MJ\" & TEXT(COUNTA($A$5:A111)-COUNTBLANK($A$5:A111),\"00\"),\"\")","v":""}]
[{"$f":"A111+1","v":"2021-04-03"},null,null,null,null,null,"",{"$f":"IF(G112<>\"\",\"MJ\" & TEXT(COUNTA($A$5:A112)-COUNTBLANK($A$5:A112),\"00\"),\"\")","v":""}]
["2021-04-04",null,null,null,null,null,"",{"$f":"IF(G113<>\"\",\"MJ\" & TEXT(COUNTA($A$5:A113)-COUNTBLANK($A$5:A113),\"00\"),\"\")","v":""}]
["2021-04-05",null,null,null,null,null,"",{"$f":"IF(G114<>\"\",\"MJ\" & TEXT(COUNTA($A$5:A114)-COUNTBLANK($A$5:A114),\"00\"),\"\")","v":""}]
["2021-04-06",null,null,null,null,null,"",{"$f":"IF(G115<>\"\",\"MJ\" & TEXT(COUNTA($A$5:A115)-COUNTBLANK($A$5:A115),\"00\"),\"\")","v":""}]
["2021-04-07",null,null,null,null,null,"",{"$f":"IF(G116<>\"\",\"MJ\" & TEXT(COUNTA($A$5:A116)-COUNTBLANK($A$5:A116),\"00\"),\"\")","v":""}]
["2021-04-08",null,null,null,null,null,"",{"$f":"IF(G117<>\"\",\"MJ\" & TEXT(COUNTA($A$5:A117)-COUNTBLANK($A$5:A117),\"00\"),\"\")","v":""}]
["2021-04-09",null,null,null,null,null,"",{"$f":"IF(G118<>\"\",\"MJ\" & TEXT(COUNTA($A$5:A118)-COUNTBLANK($A$5:A118),\"00\"),\"\")","v":""}]
["2021-04-10",null,null,null,null,null,"",{"$f":"IF(G119<>\"\",\"MJ\" & TEXT(COUNTA($A$5:A119)-COUNTBLANK($A$5:A119),\"00\"),\"\")","v":""}]
["2021-04-11",null,null,null,null,null,"",{"$f":"IF(G120<>\"\",\"MJ\" & TEXT(COUNTA($A$5:A120)-COUNTBLANK($A$5:A120),\"00\"),\"\")","v":""}]
["2021-04-12",null,null,null,null,null,"",{"$f":"IF(G121<>\"\",\"MJ\" & TEXT(COUNTA($A$5:A121)-COUNTBLANK($A$5:A121),\"00\"),\"\")","v":""}]
["2021-04-13",null,null,null,null,null,"",{"$f":"IF(G122<>\"\",\"MJ\" & TEXT(COUNTA($A$5:A122)-COUNTBLANK($A$5:A122),\"00\"),\"\")","v":""}]
["2021-04-14",null,null,null,null,null,"",{"$f":"IF(G123<>\"\",\"MJ\" & TEXT(COUNTA($A$5:A123)-COUNTBLANK($A$5:A123),\"00\"),\"\")","v":""}]
["2021-04-15",null,null,null,null,null,"",{"$f":"IF(G124<>\"\",\"MJ\" & TEXT(COUNTA($A$5:A124)-COUNTBLANK($A$5:A124),\"00\"),\"\")","v":""}]
["2021-04-16",null,null,null,null,null,"",{"$f":"IF(G125<>\"\",\"MJ\" & TEXT(COUNTA($A$5:A125)-COUNTBLANK($A$5:A125),\"00\"),\"\")","v":""}]
["2021-04-17",null,null,null,null,null,"",{"$f":"IF(G126<>\"\",\"MJ\" & TEXT(COUNTA($A$5:A126)-COUNTBLANK($A$5:A126),\"00\"),\"\")","v":""}]
["2021-04-18",null,null,null,null,null,"",{"$f":"IF(G127<>\"\",\"MJ\" & TEXT(COUNTA($A$5:A127)-COUNTBLANK($A$5:A127),\"00\"),\"\")","v":""}]
["2021-04-19",null,null,null,null,null,"",{"$f":"IF(G128<>\"\",\"MJ\" & TEXT(COUNTA($A$5:A128)-COUNTBLANK($A$5:A128),\"00\"),\"\")","v":""}]
["2021-04-20",null,null,null,null,null,"",{"$f":"IF(G129<>\"\",\"MJ\" & TEXT(COUNTA($A$5:A129)-COUNTBLANK($A$5:A129),\"00\"),\"\")","v":""}]
["2021-04-21",null,null,null,null,null,"",{"$f":"IF(G130<>\"\",\"MJ\" & TEXT(COUNTA($A$5:A130)-COUNTBLANK($A$5:A130),\"00\"),\"\")","v":""}]
["2021-04-22",null,null,null,null,null,"",{"$f":"IF(G131<>\"\",\"MJ\" & TEXT(COUNTA($A$5:A131)-COUNTBLANK($A$5:A131),\"00\"),\"\")","v":""}]
["2021-04-23",null,null,null,null,null,"",{"$f":"IF(G132<>\"\",\"MJ\" & TEXT(COUNTA($A$5:A132)-COUNTBLANK($A$5:A132),\"00\"),\"\")","v":""}]
["2021-04-24",null,null,null,null,null,"",{"$f":"IF(G133<>\"\",\"MJ\" & TEXT(COUNTA($A$5:A133)-COUNTBLANK($A$5:A133),\"00\"),\"\")","v":""}]
["2021-04-25",null,null,null,null,null,"",{"$f":"IF(G134<>\"\",\"MJ\" & TEXT(COUNTA($A$5:A134)-COUNTBLANK($A$5:A134),\"00\"),\"\")","v":""}]
["2021-04-26",null,null,null,null,null,"",{"$f":"IF(G135<>\"\",\"MJ\" & TEXT(COUNTA($A$5:A135)-COUNTBLANK($A$5:A135),\"00\"),\"\")","v":""}]
["2021-04-27",null,null,null,null,null,"",{"$f":"IF(G136<>\"\",\"MJ\" & TEXT(COUNTA($A$5:A136)-COUNTBLANK($A$5:A136),\"00\"),\"\")","v":""}]
["2021-04-28",null,null,null,null,null,"",{"$f":"IF(G137<>\"\",\"MJ\" & TEXT(COUNTA($A$5:A137)-COUNTBLANK($A$5:A137),\"00\"),\"\")","v":""}]
["2021-04-29",null,null,null,null,null,"",{"$f":"IF(G138<>\"\",\"MJ\" & TEXT(COUNTA($A$5:A138)-COUNTBLANK($A$5:A138),\"00\"),\"\")","v":""}]
["2021-04-30",null,null,null,null,null,"",{"$f":"IF(G139<>\"\",\"MJ\" & TEXT(COUNTA($A$5:A139)-COUNTBLANK($A$5:A139),\"00\"),\"\")","v":""}]
[{"$f":"IFERROR(IF(MONTH(A139+1)=MONTH(A139),A139+1,\"\"),\"\")","v":""}]
[null,"Fait à Limeil-Brévannes, le",null,null,{"$f":"IF(COUNTBLANK($A110:$A140)<>COUNTBLANK($G110:$G140),\"\",MAX((TableMenus[Code menu]=\"CD01\")*(TableMenus[Date menu]>=$A110)*(TableMenus[Date menu]<=MAX($A110:$A140))*TableMenus[Date création menu]))","v":""}]
[]
[5,{"$f":"\"Menus journaliers du mois de \"&TEXT(A145,\"mmmm\")&\" \"&$A$1","v":"Menus journaliers du mois de mai 2021"}]
["Date du menu","Légume",null,"Viande","Dessert","Observation","Nature du menu","Numéro menu"]
[{"$f":"DATE($A$1,$A$143,1)","v":"2021-05-01"},null,null,null,null,null,{"$f":"IF(COUNTA(A145:E145)>1,\"Menus journaliers \" &TEXT(A145,\"mmmm\"),\"\")","v":""},{"$f":"IF(G145<>\"\",\"MJ\" & TEXT(COUNTA($A$5:A145)-COUNTBLANK($A$5:A145),\"00\"),\"\")","v":""}]
[{"$f":"A145+1","v":"2021-05-02"},null,null,null,null,null,"",{"$f":"IF(G146<>\"\",\"MJ\" & TEXT(COUNTA($A$5:A146)-COUNTBLANK($A$5:A146),\"00\"),\"\")","v":""}]
[{"$f":"A146+1","v":"2021-05-03"},null,null,null,null,null,"",{"$f":"IF(G147<>\"\",\"MJ\" & TEXT(COUNTA($A$5:A147)-COUNTBLANK($A$5:A147),\"00\"),\"\")","v":""}]
["2021-05-04",null,null,null,null,null,"",{"$f":"IF(G148<>\"\",\"MJ\" & TEXT(COUNTA($A$5:A148)-COUNTBLANK($A$5:A148),\"00\"),\"\")","v":""}]
["2021-05-05",null,null,null,null,null,"",{"$f":"IF(G149<>\"\",\"MJ\" & TEXT(COUNTA($A$5:A149)-COUNTBLANK($A$5:A149),\"00\"),\"\")","v":""}]
["2021-05-06",null,null,null,null,null,"",{"$f":"IF(G150<>\"\",\"MJ\" & TEXT(COUNTA($A$5:A150)-COUNTBLANK($A$5:A150),\"00\"),\"\")","v":""}]
["2021-05-07",null,null,null,null,null,"",{"$f":"IF(G151<>\"\",\"MJ\" & TEXT(COUNTA($A$5:A151)-COUNTBLANK($A$5:A151),\"00\"),\"\")","v":""}]
["2021-05-08",null,null,null,null,null,"",{"$f":"IF(G152<>\"\",\"MJ\" & TEXT(COUNTA($A$5:A152)-COUNTBLANK($A$5:A152),\"00\"),\"\")","v":""}]
["2021-05-09",null,null,null,null,null,"",{"$f":"IF(G153<>\"\",\"MJ\" & TEXT(COUNTA($A$5:A153)-COUNTBLANK($A$5:A153),\"00\"),\"\")","v":""}]
["2021-05-10",null,null,null,null,null,"",{"$f":"IF(G154<>\"\",\"MJ\" & TEXT(COUNTA($A$5:A154)-COUNTBLANK($A$5:A154),\"00\"),\"\")","v":""}]
["2021-05-11",null,null,null,null,null,"",{"$f":"IF(G155<>\"\",\"MJ\" & TEXT(COUNTA($A$5:A155)-COUNTBLANK($A$5:A155),\"00\"),\"\")","v":""}]
["2021-05-12",null,null,null,null,null,"",{"$f":"IF(G156<>\"\",\"MJ\" & TEXT(COUNTA($A$5:A156)-COUNTBLANK($A$5:A156),\"00\"),\"\")","v":""}]
["2021-05-13",null,null,null,null,null,"",{"$f":"IF(G157<>\"\",\"MJ\" & TEXT(COUNTA($A$5:A157)-COUNTBLANK($A$5:A157),\"00\"),\"\")","v":""}]
["2021-05-14",null,null,null,null,null,"",{"$f":"IF(G158<>\"\",\"MJ\" & TEXT(COUNTA($A$5:A158)-COUNTBLANK($A$5:A158),\"00\"),\"\")","v":""}]
["2021-05-15",null,null,null,null,null,"",{"$f":"IF(G159<>\"\",\"MJ\" & TEXT(COUNTA($A$5:A159)-COUNTBLANK($A$5:A159),\"00\"),\"\")","v":""}]
["2021-05-16",null,null,null,null,null,"",{"$f":"IF(G160<>\"\",\"MJ\" & TEXT(COUNTA($A$5:A160)-COUNTBLANK($A$5:A160),\"00\"),\"\")","v":""}]
["2021-05-17",null,null,null,null,null,"",{"$f":"IF(G161<>\"\",\"MJ\" & TEXT(COUNTA($A$5:A161)-COUNTBLANK($A$5:A161),\"00\"),\"\")","v":""}]
["2021-05-18",null,null,null,null,null,"",{"$f":"IF(G162<>\"\",\"MJ\" & TEXT(COUNTA($A$5:A162)-COUNTBLANK($A$5:A162),\"00\"),\"\")","v":""}]
["2021-05-19",null,null,null,null,null,"",{"$f":"IF(G163<>\"\",\"MJ\" & TEXT(COUNTA($A$5:A163)-COUNTBLANK($A$5:A163),\"00\"),\"\")","v":""}]
["2021-05-20",null,null,null,null,null,"",{"$f":"IF(G164<>\"\",\"MJ\" & TEXT(COUNTA($A$5:A164)-COUNTBLANK($A$5:A164),\"00\"),\"\")","v":""}]
["2021-05-21",null,null,null,null,null,"",{"$f":"IF(G165<>\"\",\"MJ\" & TEXT(COUNTA($A$5:A165)-COUNTBLANK($A$5:A165),\"00\"),\"\")","v":""}]
["2021-05-22",null,null,null,null,null,"",{"$f":"IF(G166<>\"\",\"MJ\" & TEXT(COUNTA($A$5:A166)-COUNTBLANK($A$5:A166),\"00\"),\"\")","v":""}]
["2021-05-23",null,null,null,null,null,"",{"$f":"IF(G167<>\"\",\"MJ\" & TEXT(COUNTA($A$5:A167)-COUNTBLANK($A$5:A167),\"00\"),\"\")","v":""}]
["2021-05-24",null,null,null,null,null,"",{"$f":"IF(G168<>\"\",\"MJ\" & TEXT(COUNTA($A$5:A168)-COUNTBLANK($A$5:A168),\"00\"),\"\")","v":""}]
["2021-05-25",null,null,null,null,null,"",{"$f":"IF(G169<>\"\",\"MJ\" & TEXT(COUNTA($A$5:A169)-COUNTBLANK($A$5:A169),\"00\"),\"\")","v":""}]
["2021-05-26",null,null,null,null,null,"",{"$f":"IF(G170<>\"\",\"MJ\" & TEXT(COUNTA($A$5:A170)-COUNTBLANK($A$5:A170),\"00\"),\"\")","v":""}]
["2021-05-27",null,null,null,null,null,"",{"$f":"IF(G171<>\"\",\"MJ\" & TEXT(COUNTA($A$5:A171)-COUNTBLANK($A$5:A171),\"00\"),\"\")","v":""}]
["2021-05-28",null,null,null,null,null,"",{"$f":"IF(G172<>\"\",\"MJ\" & TEXT(COUNTA($A$5:A172)-COUNTBLANK($A$5:A172),\"00\"),\"\")","v":""}]
["2021-05-29",null,null,null,null,null,"",{"$f":"IF(G173<>\"\",\"MJ\" & TEXT(COUNTA($A$5:A173)-COUNTBLANK($A$5:A173),\"00\"),\"\")","v":""}]
["2021-05-30",null,null,null,null,null,"",{"$f":"IF(G174<>\"\",\"MJ\" & TEXT(COUNTA($A$5:A174)-COUNTBLANK($A$5:A174),\"00\"),\"\")","v":""}]
["2021-05-31",null,null,null,null,null,"",{"$f":"IF(G175<>\"\",\"MJ\" & TEXT(COUNTA($A$5:A175)-COUNTBLANK($A$5:A175),\"00\"),\"\")","v":""}]
[null,"Fait à Limeil-Brévannes, le",null,null,{"$f":"IF(COUNTBLANK($A145:$A175)<>COUNTBLANK($G145:$G175),\"\",MAX((TableMenus[Code menu]=\"CD01\")*(TableMenus[Date menu]>=$A145)*(TableMenus[Date menu]<=MAX($A145:$A175))*TableMenus[Date création menu]))","v":""}]
[]
[6,{"$f":"\"Menus journaliers du mois de \"&TEXT(A180,\"mmmm\")&\" \"&$A$1","v":"Menus journaliers du mois de juin 2021"}]
["Date du menu","Légume",null,"Viande","Dessert","Observation","Nature du menu","Numéro menu"]
[{"$f":"DATE($A$1,$A$178,1)","v":"2021-06-01"},null,null,null,null,null,{"$f":"IF(COUNTA(A180:E180)>1,\"Menus journaliers \" &TEXT(A180,\"mmmm\"),\"\")","v":""},{"$f":"IF(G180<>\"\",\"MJ\" & TEXT(COUNTA($A$5:A180)-COUNTBLANK($A$5:A180),\"00\"),\"\")","v":""}]
[{"$f":"A180+1","v":"2021-06-02"},null,null,null,null,null,"",{"$f":"IF(G181<>\"\",\"MJ\" & TEXT(COUNTA($A$5:A181)-COUNTBLANK($A$5:A181),\"00\"),\"\")","v":""}]
[{"$f":"A181+1","v":"2021-06-03"},null,null,null,null,null,"",{"$f":"IF(G182<>\"\",\"MJ\" & TEXT(COUNTA($A$5:A182)-COUNTBLANK($A$5:A182),\"00\"),\"\")","v":""}]
["2021-06-04",null,null,null,null,null,"",{"$f":"IF(G183<>\"\",\"MJ\" & TEXT(COUNTA($A$5:A183)-COUNTBLANK($A$5:A183),\"00\"),\"\")","v":""}]
["2021-06-05",null,null,null,null,null,"",{"$f":"IF(G184<>\"\",\"MJ\" & TEXT(COUNTA($A$5:A184)-COUNTBLANK($A$5:A184),\"00\"),\"\")","v":""}]
["2021-06-06",null,null,null,null,null,"",{"$f":"IF(G185<>\"\",\"MJ\" & TEXT(COUNTA($A$5:A185)-COUNTBLANK($A$5:A185),\"00\"),\"\")","v":""}]
["2021-06-07",null,null,null,null,null,"",{"$f":"IF(G186<>\"\",\"MJ\" & TEXT(COUNTA($A$5:A186)-COUNTBLANK($A$5:A186),\"00\"),\"\")","v":""}]
["2021-06-08",null,null,null,null,null,"",{"$f":"IF(G187<>\"\",\"MJ\" & TEXT(COUNTA($A$5:A187)-COUNTBLANK($A$5:A187),\"00\"),\"\")","v":""}]
["2021-06-09",null,null,null,null,null,"",{"$f":"IF(G188<>\"\",\"MJ\" & TEXT(COUNTA($A$5:A188)-COUNTBLANK($A$5:A188),\"00\"),\"\")","v":""}]
["2021-06-10",null,null,null,null,null,"",{"$f":"IF(G189<>\"\",\"MJ\" & TEXT(COUNTA($A$5:A189)-COUNTBLANK($A$5:A189),\"00\"),\"\")","v":""}]
["2021-06-11",null,null,null,null,null,"",{"$f":"IF(G190<>\"\",\"MJ\" & TEXT(COUNTA($A$5:A190)-COUNTBLANK($A$5:A190),\"00\"),\"\")","v":""}]
["2021-06-12",null,null,null,null,null,"",{"$f":"IF(G191<>\"\",\"MJ\" & TEXT(COUNTA($A$5:A191)-COUNTBLANK($A$5:A191),\"00\"),\"\")","v":""}]
["2021-06-13",null,null,null,null,null,"",{"$f":"IF(G192<>\"\",\"MJ\" & TEXT(COUNTA($A$5:A192)-COUNTBLANK($A$5:A192),\"00\"),\"\")","v":""}]
["2021-06-14",null,null,null,null,null,"",{"$f":"IF(G193<>\"\",\"MJ\" & TEXT(COUNTA($A$5:A193)-COUNTBLANK($A$5:A193),\"00\"),\"\")","v":""}]
["2021-06-15",null,null,null,null,null,"",{"$f":"IF(G194<>\"\",\"MJ\" & TEXT(COUNTA($A$5:A194)-COUNTBLANK($A$5:A194),\"00\"),\"\")","v":""}]
["2021-06-16",null,null,null,null,null,"",{"$f":"IF(G195<>\"\",\"MJ\" & TEXT(COUNTA($A$5:A195)-COUNTBLANK($A$5:A195),\"00\"),\"\")","v":""}]
["2021-06-17",null,null,null,null,null,"",{"$f":"IF(G196<>\"\",\"MJ\" & TEXT(COUNTA($A$5:A196)-COUNTBLANK($A$5:A196),\"00\"),\"\")","v":""}]
["2021-06-18",null,null,null,null,null,"",{"$f":"IF(G197<>\"\",\"MJ\" & TEXT(COUNTA($A$5:A197)-COUNTBLANK($A$5:A197),\"00\"),\"\")","v":""}]
["2021-06-19",null,null,null,null,null,"",{"$f":"IF(G198<>\"\",\"MJ\" & TEXT(COUNTA($A$5:A198)-COUNTBLANK($A$5:A198),\"00\"),\"\")","v":""}]
["2021-06-20",null,null,null,null,null,"",{"$f":"IF(G199<>\"\",\"MJ\" & TEXT(COUNTA($A$5:A199)-COUNTBLANK($A$5:A199),\"00\"),\"\")","v":""}]
["2021-06-21",null,null,null,null,null,"",{"$f":"IF(G200<>\"\",\"MJ\" & TEXT(COUNTA($A$5:A200)-COUNTBLANK($A$5:A200),\"00\"),\"\")","v":""}]
["2021-06-22",null,null,null,null,null,"",{"$f":"IF(G201<>\"\",\"MJ\" & TEXT(COUNTA($A$5:A201)-COUNTBLANK($A$5:A201),\"00\"),\"\")","v":""}]
["2021-06-23",null,null,null,null,null,"",{"$f":"IF(G202<>\"\",\"MJ\" & TEXT(COUNTA($A$5:A202)-COUNTBLANK($A$5:A202),\"00\"),\"\")","v":""}]
["2021-06-24",null,null,null,null,null,"",{"$f":"IF(G203<>\"\",\"MJ\" & TEXT(COUNTA($A$5:A203)-COUNTBLANK($A$5:A203),\"00\"),\"\")","v":""}]
["2021-06-25",null,null,null,null,null,"",{"$f":"IF(G204<>\"\",\"MJ\" & TEXT(COUNTA($A$5:A204)-COUNTBLANK($A$5:A204),\"00\"),\"\")","v":""}]
["2021-06-26",null,null,null,null,null,"",{"$f":"IF(G205<>\"\",\"MJ\" & TEXT(COUNTA($A$5:A205)-COUNTBLANK($A$5:A205),\"00\"),\"\")","v":""}]
["2021-06-27",null,null,null,null,null,"",{"$f":"IF(G206<>\"\",\"MJ\" & TEXT(COUNTA($A$5:A206)-COUNTBLANK($A$5:A206),\"00\"),\"\")","v":""}]
["2021-06-28",null,null,null,null,null,"",{"$f":"IF(G207<>\"\",\"MJ\" & TEXT(COUNTA($A$5:A207)-COUNTBLANK($A$5:A207),\"00\"),\"\")","v":""}]
["2021-06-29",null,null,null,null,null,"",{"$f":"IF(G208<>\"\",\"MJ\" & TEXT(COUNTA($A$5:A208)-COUNTBLANK($A$5:A208),\"00\"),\"\")","v":""}]
["2021-06-30",null,null,null,null,null,"",{"$f":"IF(G209<>\"\",\"MJ\" & TEXT(COUNTA($A$5:A209)-COUNTBLANK($A$5:A209),\"00\"),\"\")","v":""}]
[{"$f":"IFERROR(IF(MONTH(A209+1)=MONTH(A209),A209+1,\"\"),\"\")","v":""}]
[null,"Fait à Limeil-Brévannes, le",null,null,{"$f":"IF(COUNTBLANK($A180:$A210)<>COUNTBLANK($G180:$G210),\"\",MAX((TableMenus[Code menu]=\"CD01\")*(TableMenus[Date menu]>=$A180)*(TableMenus[Date menu]<=MAX($A180:$A210))*TableMenus[Date création menu]))","v":""}]
[]
[7,{"$f":"\"Menus journaliers du mois de \"&TEXT(A215,\"mmmm\")&\" \"&$A$1","v":"Menus journaliers du mois de juillet 2021"}]
["Date du menu","Légume",null,"Viande","Dessert","Observation","Nature du menu","Numéro menu"]
[{"$f":"DATE($A$1,$A$213,1)","v":"2021-07-01"},null,null,null,null,null,{"$f":"IF(COUNTA(A215:E215)>1,\"Menus journaliers \" &TEXT(A215,\"mmmm\"),\"\")","v":""},{"$f":"IF(G215<>\"\",\"MJ\" & TEXT(COUNTA($A$5:A215)-COUNTBLANK($A$5:A215),\"00\"),\"\")","v":""}]
[{"$f":"A215+1","v":"2021-07-02"},null,null,null,null,null,"",{"$f":"IF(G216<>\"\",\"MJ\" & TEXT(COUNTA($A$5:A216)-COUNTBLANK($A$5:A216),\"00\"),\"\")","v":""}]
[{"$f":"A216+1","v":"2021-07-03"},null,null,null,null,null,"",{"$f":"IF(G217<>\"\",\"MJ\" & TEXT(COUNTA($A$5:A217)-COUNTBLANK($A$5:A217),\"00\"),\"\")","v":""}]
["2021-07-04",null,null,null,null,null,"",{"$f":"IF(G218<>\"\",\"MJ\" & TEXT(COUNTA($A$5:A218)-COUNTBLANK($A$5:A218),\"00\"),\"\")","v":""}]
["2021-07-05",null,null,null,null,null,"",{"$f":"IF(G219<>\"\",\"MJ\" & TEXT(COUNTA($A$5:A219)-COUNTBLANK($A$5:A219),\"00\"),\"\")","v":""}]
["2021-07-06",null,null,null,null,null,"",{"$f":"IF(G220<>\"\",\"MJ\" & TEXT(COUNTA($A$5:A220)-COUNTBLANK($A$5:A220),\"00\"),\"\")","v":""}]
["2021-07-07",null,null,null,null,null,"",{"$f":"IF(G221<>\"\",\"MJ\" & TEXT(COUNTA($A$5:A221)-COUNTBLANK($A$5:A221),\"00\"),\"\")","v":""}]
["2021-07-08",null,null,null,null,null,"",{"$f":"IF(G222<>\"\",\"MJ\" & TEXT(COUNTA($A$5:A222)-COUNTBLANK($A$5:A222),\"00\"),\"\")","v":""}]
["2021-07-09",null,null,null,null,null,"",{"$f":"IF(G223<>\"\",\"MJ\" & TEXT(COUNTA($A$5:A223)-COUNTBLANK($A$5:A223),\"00\"),\"\")","v":""}]
["2021-07-10",null,null,null,null,null,"",{"$f":"IF(G224<>\"\",\"MJ\" & TEXT(COUNTA($A$5:A224)-COUNTBLANK($A$5:A224),\"00\"),\"\")","v":""}]
["2021-07-11",null,null,null,null,null,"",{"$f":"IF(G225<>\"\",\"MJ\" & TEXT(COUNTA($A$5:A225)-COUNTBLANK($A$5:A225),\"00\"),\"\")","v":""}]
["2021-07-12",null,null,null,null,null,"",{"$f":"IF(G226<>\"\",\"MJ\" & TEXT(COUNTA($A$5:A226)-COUNTBLANK($A$5:A226),\"00\"),\"\")","v":""}]
["2021-07-13",null,null,null,null,null,"",{"$f":"IF(G227<>\"\",\"MJ\" & TEXT(COUNTA($A$5:A227)-COUNTBLANK($A$5:A227),\"00\"),\"\")","v":""}]
["2021-07-14",null,null,null,null,null,"",{"$f":"IF(G228<>\"\",\"MJ\" & TEXT(COUNTA($A$5:A228)-COUNTBLANK($A$5:A228),\"00\"),\"\")","v":""}]
["2021-07-15",null,null,null,null,null,"",{"$f":"IF(G229<>\"\",\"MJ\" & TEXT(COUNTA($A$5:A229)-COUNTBLANK($A$5:A229),\"00\"),\"\")","v":""}]
["2021-07-16",null,null,null,null,null,"",{"$f":"IF(G230<>\"\",\"MJ\" & TEXT(COUNTA($A$5:A230)-COUNTBLANK($A$5:A230),\"00\"),\"\")","v":""}]
["2021-07-17",null,null,null,null,null,"",{"$f":"IF(G231<>\"\",\"MJ\" & TEXT(COUNTA($A$5:A231)-COUNTBLANK($A$5:A231),\"00\"),\"\")","v":""}]
["2021-07-18",null,null,null,null,null,"",{"$f":"IF(G232<>\"\",\"MJ\" & TEXT(COUNTA($A$5:A232)-COUNTBLANK($A$5:A232),\"00\"),\"\")","v":""}]
["2021-07-19",null,null,null,null,null,"",{"$f":"IF(G233<>\"\",\"MJ\" & TEXT(COUNTA($A$5:A233)-COUNTBLANK($A$5:A233),\"00\"),\"\")","v":""}]
["2021-07-20",null,null,null,null,null,"",{"$f":"IF(G234<>\"\",\"MJ\" & TEXT(COUNTA($A$5:A234)-COUNTBLANK($A$5:A234),\"00\"),\"\")","v":""}]
["2021-07-21",null,null,null,null,null,"",{"$f":"IF(G235<>\"\",\"MJ\" & TEXT(COUNTA($A$5:A235)-COUNTBLANK($A$5:A235),\"00\"),\"\")","v":""}]
["2021-07-22",null,null,null,null,null,"",{"$f":"IF(G236<>\"\",\"MJ\" & TEXT(COUNTA($A$5:A236)-COUNTBLANK($A$5:A236),\"00\"),\"\")","v":""}]
["2021-07-23",null,null,null,null,null,"",{"$f":"IF(G237<>\"\",\"MJ\" & TEXT(COUNTA($A$5:A237)-COUNTBLANK($A$5:A237),\"00\"),\"\")","v":""}]
["2021-07-24",null,null,null,null,null,"",{"$f":"IF(G238<>\"\",\"MJ\" & TEXT(COUNTA($A$5:A238)-COUNTBLANK($A$5:A238),\"00\"),\"\")","v":""}]
["2021-07-25",null,null,null,null,null,"",{"$f":"IF(G239<>\"\",\"MJ\" & TEXT(COUNTA($A$5:A239)-COUNTBLANK($A$5:A239),\"00\"),\"\")","v":""}]
["2021-07-26",null,null,null,null,null,"",{"$f":"IF(G240<>\"\",\"MJ\" & TEXT(COUNTA($A$5:A240)-COUNTBLANK($A$5:A240),\"00\"),\"\")","v":""}]
["2021-07-27",null,null,null,null,null,"",{"$f":"IF(G241<>\"\",\"MJ\" & TEXT(COUNTA($A$5:A241)-COUNTBLANK($A$5:A241),\"00\"),\"\")","v":""}]
["2021-07-28",null,null,null,null,null,"",{"$f":"IF(G242<>\"\",\"MJ\" & TEXT(COUNTA($A$5:A242)-COUNTBLANK($A$5:A242),\"00\"),\"\")","v":""}]
["2021-07-29",null,null,null,null,null,"",{"$f":"IF(G243<>\"\",\"MJ\" & TEXT(COUNTA($A$5:A243)-COUNTBLANK($A$5:A243),\"00\"),\"\")","v":""}]
["2021-07-30",null,null,null,null,null,"",{"$f":"IF(G244<>\"\",\"MJ\" & TEXT(COUNTA($A$5:A244)-COUNTBLANK($A$5:A244),\"00\"),\"\")","v":""}]
["2021-07-31",null,null,null,null,null,"",{"$f":"IF(G245<>\"\",\"MJ\" & TEXT(COUNTA($A$5:A245)-COUNTBLANK($A$5:A245),\"00\"),\"\")","v":""}]
[null,"Fait à Limeil-Brévannes, le",null,null,{"$f":"IF(COUNTBLANK($A215:$A245)<>COUNTBLANK($G215:$G245),\"\",MAX((TableMenus[Code menu]=\"CD01\")*(TableMenus[Date menu]>=$A215)*(TableMenus[Date menu]<=MAX($A215:$A245))*TableMenus[Date création menu]))","v":""}]
[]
[8,{"$f":"\"Menus journaliers du mois de \"&TEXT(A250,\"mmmm\")&\" \"&$A$1","v":"Menus journaliers du mois de août 2021"}]
["Date du menu","Légume",null,"Viande","Dessert","Observation","Nature du menu","Numéro menu"]
[{"$f":"DATE($A$1,$A$248,1)","v":"2021-08-01"},null,null,null,null,null,{"$f":"IF(COUNTA(A250:E250)>1,\"Menus journaliers \" &TEXT(A250,\"mmmm\"),\"\")","v":""},{"$f":"IF(G250<>\"\",\"MJ\" & TEXT(COUNTA($A$5:A250)-COUNTBLANK($A$5:A250),\"00\"),\"\")","v":""}]
[{"$f":"A250+1","v":"2021-08-02"},null,null,null,null,null,"",{"$f":"IF(G251<>\"\",\"MJ\" & TEXT(COUNTA($A$5:A251)-COUNTBLANK($A$5:A251),\"00\"),\"\")","v":""}]
[{"$f":"A251+1","v":"2021-08-03"},null,null,null,null,null,"",{"$f":"IF(G252<>\"\",\"MJ\" & TEXT(COUNTA($A$5:A252)-COUNTBLANK($A$5:A252),\"00\"),\"\")","v":""}]
["2021-08-04",null,null,null,null,null,"",{"$f":"IF(G253<>\"\",\"MJ\" & TEXT(COUNTA($A$5:A253)-COUNTBLANK($A$5:A253),\"00\"),\"\")","v":""}]
["2021-08-05",null,null,null,null,null,"",{"$f":"IF(G254<>\"\",\"MJ\" & TEXT(COUNTA($A$5:A254)-COUNTBLANK($A$5:A254),\"00\"),\"\")","v":""}]
["2021-08-06",null,null,null,null,null,"",{"$f":"IF(G255<>\"\",\"MJ\" & TEXT(COUNTA($A$5:A255)-COUNTBLANK($A$5:A255),\"00\"),\"\")","v":""}]
["2021-08-07",null,null,null,null,null,"",{"$f":"IF(G256<>\"\",\"MJ\" & TEXT(COUNTA($A$5:A256)-COUNTBLANK($A$5:A256),\"00\"),\"\")","v":""}]
["2021-08-08",null,null,null,null,null,"",{"$f":"IF(G257<>\"\",\"MJ\" & TEXT(COUNTA($A$5:A257)-COUNTBLANK($A$5:A257),\"00\"),\"\")","v":""}]
["2021-08-09",null,null,null,null,null,"",{"$f":"IF(G258<>\"\",\"MJ\" & TEXT(COUNTA($A$5:A258)-COUNTBLANK($A$5:A258),\"00\"),\"\")","v":""}]
["2021-08-10",null,null,null,null,null,"",{"$f":"IF(G259<>\"\",\"MJ\" & TEXT(COUNTA($A$5:A259)-COUNTBLANK($A$5:A259),\"00\"),\"\")","v":""}]
["2021-08-11",null,null,null,null,null,"",{"$f":"IF(G260<>\"\",\"MJ\" & TEXT(COUNTA($A$5:A260)-COUNTBLANK($A$5:A260),\"00\"),\"\")","v":""}]
["2021-08-12",null,null,null,null,null,"",{"$f":"IF(G261<>\"\",\"MJ\" & TEXT(COUNTA($A$5:A261)-COUNTBLANK($A$5:A261),\"00\"),\"\")","v":""}]
["2021-08-13",null,null,null,null,null,"",{"$f":"IF(G262<>\"\",\"MJ\" & TEXT(COUNTA($A$5:A262)-COUNTBLANK($A$5:A262),\"00\"),\"\")","v":""}]
["2021-08-14",null,null,null,null,null,"",{"$f":"IF(G263<>\"\",\"MJ\" & TEXT(COUNTA($A$5:A263)-COUNTBLANK($A$5:A263),\"00\"),\"\")","v":""}]
["2021-08-15",null,null,null,null,null,"",{"$f":"IF(G264<>\"\",\"MJ\" & TEXT(COUNTA($A$5:A264)-COUNTBLANK($A$5:A264),\"00\"),\"\")","v":""}]
["2021-08-16",null,null,null,null,null,"",{"$f":"IF(G265<>\"\",\"MJ\" & TEXT(COUNTA($A$5:A265)-COUNTBLANK($A$5:A265),\"00\"),\"\")","v":""}]
["2021-08-17",null,null,null,null,null,"",{"$f":"IF(G266<>\"\",\"MJ\" & TEXT(COUNTA($A$5:A266)-COUNTBLANK($A$5:A266),\"00\"),\"\")","v":""}]
["2021-08-18",null,null,null,null,null,"",{"$f":"IF(G267<>\"\",\"MJ\" & TEXT(COUNTA($A$5:A267)-COUNTBLANK($A$5:A267),\"00\"),\"\")","v":""}]
["2021-08-19",null,null,null,null,null,"",{"$f":"IF(G268<>\"\",\"MJ\" & TEXT(COUNTA($A$5:A268)-COUNTBLANK($A$5:A268),\"00\"),\"\")","v":""}]
["2021-08-20",null,null,null,null,null,"",{"$f":"IF(G269<>\"\",\"MJ\" & TEXT(COUNTA($A$5:A269)-COUNTBLANK($A$5:A269),\"00\"),\"\")","v":""}]
["2021-08-21",null,null,null,null,null,"",{"$f":"IF(G270<>\"\",\"MJ\" & TEXT(COUNTA($A$5:A270)-COUNTBLANK($A$5:A270),\"00\"),\"\")","v":""}]
["2021-08-22",null,null,null,null,null,"",{"$f":"IF(G271<>\"\",\"MJ\" & TEXT(COUNTA($A$5:A271)-COUNTBLANK($A$5:A271),\"00\"),\"\")","v":""}]
["2021-08-23",null,null,null,null,null,"",{"$f":"IF(G272<>\"\",\"MJ\" & TEXT(COUNTA($A$5:A272)-COUNTBLANK($A$5:A272),\"00\"),\"\")","v":""}]
["2021-08-24",null,null,null,null,null,"",{"$f":"IF(G273<>\"\",\"MJ\" & TEXT(COUNTA($A$5:A273)-COUNTBLANK($A$5:A273),\"00\"),\"\")","v":""}]
["2021-08-25",null,null,null,null,null,"",{"$f":"IF(G274<>\"\",\"MJ\" & TEXT(COUNTA($A$5:A274)-COUNTBLANK($A$5:A274),\"00\"),\"\")","v":""}]
["2021-08-26",null,null,null,null,null,"",{"$f":"IF(G275<>\"\",\"MJ\" & TEXT(COUNTA($A$5:A275)-COUNTBLANK($A$5:A275),\"00\"),\"\")","v":""}]
["2021-08-27",null,null,null,null,null,"",{"$f":"IF(G276<>\"\",\"MJ\" & TEXT(COUNTA($A$5:A276)-COUNTBLANK($A$5:A276),\"00\"),\"\")","v":""}]
["2021-08-28",null,null,null,null,null,"",{"$f":"IF(G277<>\"\",\"MJ\" & TEXT(COUNTA($A$5:A277)-COUNTBLANK($A$5:A277),\"00\"),\"\")","v":""}]
["2021-08-29",null,null,null,null,null,"",{"$f":"IF(G278<>\"\",\"MJ\" & TEXT(COUNTA($A$5:A278)-COUNTBLANK($A$5:A278),\"00\"),\"\")","v":""}]
["2021-08-30",null,null,null,null,null,"",{"$f":"IF(G279<>\"\",\"MJ\" & TEXT(COUNTA($A$5:A279)-COUNTBLANK($A$5:A279),\"00\"),\"\")","v":""}]
["2021-08-31",null,null,null,null,null,"",{"$f":"IF(G280<>\"\",\"MJ\" & TEXT(COUNTA($A$5:A280)-COUNTBLANK($A$5:A280),\"00\"),\"\")","v":""}]
[null,"Fait à Limeil-Brévannes, le",null,null,{"$f":"IF(COUNTBLANK($A250:$A280)<>COUNTBLANK($G250:$G280),\"\",MAX((TableMenus[Code menu]=\"CD01\")*(TableMenus[Date menu]>=$A250)*(TableMenus[Date menu]<=MAX($A250:$A280))*TableMenus[Date création menu]))","v":""}]
[]
[9,{"$f":"\"Menus journaliers du mois de \"&TEXT(A285,\"mmmm\")&\" \"&$A$1","v":"Menus journaliers du mois de septembre 2021"}]
["Date du menu","Légume",null,"Viande","Dessert","Observation","Nature du menu","Numéro menu"]
[{"$f":"DATE($A$1,$A$283,1)","v":"2021-09-01"},null,null,null,null,null,{"$f":"IF(COUNTA(A285:E285)>1,\"Menus journaliers \" &TEXT(A285,\"mmmm\"),\"\")","v":""},{"$f":"IF(G285<>\"\",\"MJ\" & TEXT(COUNTA($A$5:A285)-COUNTBLANK($A$5:A285),\"00\"),\"\")","v":""}]
[{"$f":"A285+1","v":"2021-09-02"},null,null,null,null,null,"",{"$f":"IF(G286<>\"\",\"MJ\" & TEXT(COUNTA($A$5:A286)-COUNTBLANK($A$5:A286),\"00\"),\"\")","v":""}]
[{"$f":"A286+1","v":"2021-09-03"},null,null,null,null,null,"",{"$f":"IF(G287<>\"\",\"MJ\" & TEXT(COUNTA($A$5:A287)-COUNTBLANK($A$5:A287),\"00\"),\"\")","v":""}]
["2021-09-04",null,null,null,null,null,"",{"$f":"IF(G288<>\"\",\"MJ\" & TEXT(COUNTA($A$5:A288)-COUNTBLANK($A$5:A288),\"00\"),\"\")","v":""}]
["2021-09-05",null,null,null,null,null,"",{"$f":"IF(G289<>\"\",\"MJ\" & TEXT(COUNTA($A$5:A289)-COUNTBLANK($A$5:A289),\"00\"),\"\")","v":""}]
["2021-09-06",null,null,null,null,null,"",{"$f":"IF(G290<>\"\",\"MJ\" & TEXT(COUNTA($A$5:A290)-COUNTBLANK($A$5:A290),\"00\"),\"\")","v":""}]
["2021-09-07",null,null,null,null,null,"",{"$f":"IF(G291<>\"\",\"MJ\" & TEXT(COUNTA($A$5:A291)-COUNTBLANK($A$5:A291),\"00\"),\"\")","v":""}]
["2021-09-08",null,null,null,null,null,"",{"$f":"IF(G292<>\"\",\"MJ\" & TEXT(COUNTA($A$5:A292)-COUNTBLANK($A$5:A292),\"00\"),\"\")","v":""}]
["2021-09-09",null,null,null,null,null,"",{"$f":"IF(G293<>\"\",\"MJ\" & TEXT(COUNTA($A$5:A293)-COUNTBLANK($A$5:A293),\"00\"),\"\")","v":""}]
["2021-09-10",null,null,null,null,null,"",{"$f":"IF(G294<>\"\",\"MJ\" & TEXT(COUNTA($A$5:A294)-COUNTBLANK($A$5:A294),\"00\"),\"\")","v":""}]
["2021-09-11",null,null,null,null,null,"",{"$f":"IF(G295<>\"\",\"MJ\" & TEXT(COUNTA($A$5:A295)-COUNTBLANK($A$5:A295),\"00\"),\"\")","v":""}]
["2021-09-12",null,null,null,null,null,"",{"$f":"IF(G296<>\"\",\"MJ\" & TEXT(COUNTA($A$5:A296)-COUNTBLANK($A$5:A296),\"00\"),\"\")","v":""}]
["2021-09-13",null,null,null,null,null,"",{"$f":"IF(G297<>\"\",\"MJ\" & TEXT(COUNTA($A$5:A297)-COUNTBLANK($A$5:A297),\"00\"),\"\")","v":""}]
["2021-09-14",null,null,null,null,null,"",{"$f":"IF(G298<>\"\",\"MJ\" & TEXT(COUNTA($A$5:A298)-COUNTBLANK($A$5:A298),\"00\"),\"\")","v":""}]
["2021-09-15",null,null,null,null,null,"",{"$f":"IF(G299<>\"\",\"MJ\" & TEXT(COUNTA($A$5:A299)-COUNTBLANK($A$5:A299),\"00\"),\"\")","v":""}]
["2021-09-16",null,null,null,null,null,"",{"$f":"IF(G300<>\"\",\"MJ\" & TEXT(COUNTA($A$5:A300)-COUNTBLANK($A$5:A300),\"00\"),\"\")","v":""}]
["2021-09-17",null,null,null,null,null,"",{"$f":"IF(G301<>\"\",\"MJ\" & TEXT(COUNTA($A$5:A301)-COUNTBLANK($A$5:A301),\"00\"),\"\")","v":""}]
["2021-09-18",null,null,null,null,null,"",{"$f":"IF(G302<>\"\",\"MJ\" & TEXT(COUNTA($A$5:A302)-COUNTBLANK($A$5:A302),\"00\"),\"\")","v":""}]
["2021-09-19",null,null,null,null,null,"",{"$f":"IF(G303<>\"\",\"MJ\" & TEXT(COUNTA($A$5:A303)-COUNTBLANK($A$5:A303),\"00\"),\"\")","v":""}]
["2021-09-20",null,null,null,null,null,"",{"$f":"IF(G304<>\"\",\"MJ\" & TEXT(COUNTA($A$5:A304)-COUNTBLANK($A$5:A304),\"00\"),\"\")","v":""}]
["2021-09-21",null,null,null,null,null,"",{"$f":"IF(G305<>\"\",\"MJ\" & TEXT(COUNTA($A$5:A305)-COUNTBLANK($A$5:A305),\"00\"),\"\")","v":""}]
["2021-09-22",null,null,null,null,null,"",{"$f":"IF(G306<>\"\",\"MJ\" & TEXT(COUNTA($A$5:A306)-COUNTBLANK($A$5:A306),\"00\"),\"\")","v":""}]
["2021-09-23",null,null,null,null,null,"",{"$f":"IF(G307<>\"\",\"MJ\" & TEXT(COUNTA($A$5:A307)-COUNTBLANK($A$5:A307),\"00\"),\"\")","v":""}]
["2021-09-24",null,null,null,null,null,"",{"$f":"IF(G308<>\"\",\"MJ\" & TEXT(COUNTA($A$5:A308)-COUNTBLANK($A$5:A308),\"00\"),\"\")","v":""}]
["2021-09-25",null,null,null,null,null,"",{"$f":"IF(G309<>\"\",\"MJ\" & TEXT(COUNTA($A$5:A309)-COUNTBLANK($A$5:A309),\"00\"),\"\")","v":""}]
["2021-09-26",null,null,null,null,null,"",{"$f":"IF(G310<>\"\",\"MJ\" & TEXT(COUNTA($A$5:A310)-COUNTBLANK($A$5:A310),\"00\"),\"\")","v":""}]
["2021-09-27",null,null,null,null,null,"",{"$f":"IF(G311<>\"\",\"MJ\" & TEXT(COUNTA($A$5:A311)-COUNTBLANK($A$5:A311),\"00\"),\"\")","v":""}]
["2021-09-28",null,null,null,null,null,"",{"$f":"IF(G312<>\"\",\"MJ\" & TEXT(COUNTA($A$5:A312)-COUNTBLANK($A$5:A312),\"00\"),\"\")","v":""}]
["2021-09-29",null,null,null,null,null,"",{"$f":"IF(G313<>\"\",\"MJ\" & TEXT(COUNTA($A$5:A313)-COUNTBLANK($A$5:A313),\"00\"),\"\")","v":""}]
["2021-09-30",null,null,null,null,null,"",{"$f":"IF(G314<>\"\",\"MJ\" & TEXT(COUNTA($A$5:A314)-COUNTBLANK($A$5:A314),\"00\"),\"\")","v":""}]
[{"$f":"IFERROR(IF(MONTH(A314+1)=MONTH(A314),A314+1,\"\"),\"\")","v":""}]
[null,"Fait à Limeil-Brévannes, le",null,null,{"$f":"IF(COUNTBLANK($A285:$A315)<>COUNTBLANK($G285:$G315),\"\",MAX((TableMenus[Code menu]=\"CD01\")*(TableMenus[Date menu]>=$A285)*(TableMenus[Date menu]<=MAX($A285:$A315))*TableMenus[Date création menu]))","v":""}]
[]
[10,{"$f":"\"Menus journaliers du mois de \"&TEXT(A320,\"mmmm\")&\" \"&$A$1","v":"Menus journaliers du mois de octobre 2021"}]
["Date du menu","Légume",null,"Viande","Dessert","Observation","Nature du menu","Numéro menu"]
[{"$f":"DATE($A$1,$A$318,1)","v":"2021-10-01"},null,null,null,null,null,{"$f":"IF(COUNTA(A320:E320)>1,\"Menus journaliers \" &TEXT(A320,\"mmmm\"),\"\")","v":""},{"$f":"IF(G320<>\"\",\"MJ\" & TEXT(COUNTA($A$5:A320)-COUNTBLANK($A$5:A320),\"00\"),\"\")","v":""}]
[{"$f":"A320+1","v":"2021-10-02"},null,null,null,null,null,"",{"$f":"IF(G321<>\"\",\"MJ\" & TEXT(COUNTA($A$5:A321)-COUNTBLANK($A$5:A321),\"00\"),\"\")","v":""}]
[{"$f":"A321+1","v":"2021-10-03"},null,null,null,null,null,"",{"$f":"IF(G322<>\"\",\"MJ\" & TEXT(COUNTA($A$5:A322)-COUNTBLANK($A$5:A322),\"00\"),\"\")","v":""}]
["2021-10-04",null,null,null,null,null,"",{"$f":"IF(G323<>\"\",\"MJ\" & TEXT(COUNTA($A$5:A323)-COUNTBLANK($A$5:A323),\"00\"),\"\")","v":""}]
["2021-10-05",null,null,null,null,null,"",{"$f":"IF(G324<>\"\",\"MJ\" & TEXT(COUNTA($A$5:A324)-COUNTBLANK($A$5:A324),\"00\"),\"\")","v":""}]
["2021-10-06",null,null,null,null,null,"",{"$f":"IF(G325<>\"\",\"MJ\" & TEXT(COUNTA($A$5:A325)-COUNTBLANK($A$5:A325),\"00\"),\"\")","v":""}]
["2021-10-07",null,null,null,null,null,"",{"$f":"IF(G326<>\"\",\"MJ\" & TEXT(COUNTA($A$5:A326)-COUNTBLANK($A$5:A326),\"00\"),\"\")","v":""}]
["2021-10-08",null,null,null,null,null,"",{"$f":"IF(G327<>\"\",\"MJ\" & TEXT(COUNTA($A$5:A327)-COUNTBLANK($A$5:A327),\"00\"),\"\")","v":""}]
["2021-10-09",null,null,null,null,null,"",{"$f":"IF(G328<>\"\",\"MJ\" & TEXT(COUNTA($A$5:A328)-COUNTBLANK($A$5:A328),\"00\"),\"\")","v":""}]
["2021-10-10",null,null,null,null,null,"",{"$f":"IF(G329<>\"\",\"MJ\" & TEXT(COUNTA($A$5:A329)-COUNTBLANK($A$5:A329),\"00\"),\"\")","v":""}]
["2021-10-11",null,null,null,null,null,"",{"$f":"IF(G330<>\"\",\"MJ\" & TEXT(COUNTA($A$5:A330)-COUNTBLANK($A$5:A330),\"00\"),\"\")","v":""}]
["2021-10-12",null,null,null,null,null,"",{"$f":"IF(G331<>\"\",\"MJ\" & TEXT(COUNTA($A$5:A331)-COUNTBLANK($A$5:A331),\"00\"),\"\")","v":""}]
["2021-10-13",null,null,null,null,null,"",{"$f":"IF(G332<>\"\",\"MJ\" & TEXT(COUNTA($A$5:A332)-COUNTBLANK($A$5:A332),\"00\"),\"\")","v":""}]
["2021-10-14",null,null,null,null,null,"",{"$f":"IF(G333<>\"\",\"MJ\" & TEXT(COUNTA($A$5:A333)-COUNTBLANK($A$5:A333),\"00\"),\"\")","v":""}]
["2021-10-15",null,null,null,null,null,"",{"$f":"IF(G334<>\"\",\"MJ\" & TEXT(COUNTA($A$5:A334)-COUNTBLANK($A$5:A334),\"00\"),\"\")","v":""}]
["2021-10-16",null,null,null,null,null,"",{"$f":"IF(G335<>\"\",\"MJ\" & TEXT(COUNTA($A$5:A335)-COUNTBLANK($A$5:A335),\"00\"),\"\")","v":""}]
["2021-10-17",null,null,null,null,null,"",{"$f":"IF(G336<>\"\",\"MJ\" & TEXT(COUNTA($A$5:A336)-COUNTBLANK($A$5:A336),\"00\"),\"\")","v":""}]
["2021-10-18",null,null,null,null,null,"",{"$f":"IF(G337<>\"\",\"MJ\" & TEXT(COUNTA($A$5:A337)-COUNTBLANK($A$5:A337),\"00\"),\"\")","v":""}]
["2021-10-19",null,null,null,null,null,"",{"$f":"IF(G338<>\"\",\"MJ\" & TEXT(COUNTA($A$5:A338)-COUNTBLANK($A$5:A338),\"00\"),\"\")","v":""}]
["2021-10-20",null,null,null,null,null,"",{"$f":"IF(G339<>\"\",\"MJ\" & TEXT(COUNTA($A$5:A339)-COUNTBLANK($A$5:A339),\"00\"),\"\")","v":""}]
["2021-10-21",null,null,null,null,null,"",{"$f":"IF(G340<>\"\",\"MJ\" & TEXT(COUNTA($A$5:A340)-COUNTBLANK($A$5:A340),\"00\"),\"\")","v":""}]
["2021-10-22",null,null,null,null,null,"",{"$f":"IF(G341<>\"\",\"MJ\" & TEXT(COUNTA($A$5:A341)-COUNTBLANK($A$5:A341),\"00\"),\"\")","v":""}]
["2021-10-23",null,null,null,null,null,"",{"$f":"IF(G342<>\"\",\"MJ\" & TEXT(COUNTA($A$5:A342)-COUNTBLANK($A$5:A342),\"00\"),\"\")","v":""}]
["2021-10-24",null,null,null,null,null,"",{"$f":"IF(G343<>\"\",\"MJ\" & TEXT(COUNTA($A$5:A343)-COUNTBLANK($A$5:A343),\"00\"),\"\")","v":""}]
["2021-10-25",null,null,null,null,null,"",{"$f":"IF(G344<>\"\",\"MJ\" & TEXT(COUNTA($A$5:A344)-COUNTBLANK($A$5:A344),\"00\"),\"\")","v":""}]
["2021-10-26",null,null,null,null,null,"",{"$f":"IF(G345<>\"\",\"MJ\" & TEXT(COUNTA($A$5:A345)-COUNTBLANK($A$5:A345),\"00\"),\"\")","v":""}]
["2021-10-27",null,null,null,null,null,"",{"$f":"IF(G346<>\"\",\"MJ\" & TEXT(COUNTA($A$5:A346)-COUNTBLANK($A$5:A346),\"00\"),\"\")","v":""}]
["2021-10-28",null,null,null,null,null,"",{"$f":"IF(G347<>\"\",\"MJ\" & TEXT(COUNTA($A$5:A347)-COUNTBLANK($A$5:A347),\"00\"),\"\")","v":""}]
["2021-10-29",null,null,null,null,null,"",{"$f":"IF(G348<>\"\",\"MJ\" & TEXT(COUNTA($A$5:A348)-COUNTBLANK($A$5:A348),\"00\"),\"\")","v":""}]
["2021-10-30",null,null,null,null,null,"",{"$f":"IF(G349<>\"\",\"MJ\" & TEXT(COUNTA($A$5:A349)-COUNTBLANK($A$5:A349),\"00\"),\"\")","v":""}]
["2021-10-31",null,null,null,null,null,"",{"$f":"IF(G350<>\"\",\"MJ\" & TEXT(COUNTA($A$5:A350)-COUNTBLANK($A$5:A350),\"00\"),\"\")","v":""}]
[null,"Fait à Limeil-Brévannes, le",null,null,{"$f":"IF(COUNTBLANK($A320:$A350)<>COUNTBLANK($G320:$G350),\"\",MAX((TableMenus[Code menu]=\"CD01\")*(TableMenus[Date menu]>=$A320)*(TableMenus[Date menu]<=MAX($A320:$A350))*TableMenus[Date création menu]))","v":""}]
[]
[11,{"$f":"\"Menus journaliers du mois de \"&TEXT(A355,\"mmmm\")&\" \"&$A$1","v":"Menus journaliers du mois de novembre 2021"}]
["Date du menu","Légume",null,"Viande","Dessert","Observation","Nature du menu","Numéro menu"]
[{"$f":"DATE($A$1,$A$353,1)","v":"2021-11-01"},null,null,null,null,null,{"$f":"IF(COUNTA(A355:E355)>1,\"Menus journaliers \" &TEXT(A355,\"mmmm\"),\"\")","v":""},{"$f":"IF(G355<>\"\",\"MJ\" & TEXT(COUNTA($A$5:A355)-COUNTBLANK($A$5:A355),\"00\"),\"\")","v":""}]
[{"$f":"A355+1","v":"2021-11-02"},null,null,null,null,null,"",{"$f":"IF(G356<>\"\",\"MJ\" & TEXT(COUNTA($A$5:A356)-COUNTBLANK($A$5:A356),\"00\"),\"\")","v":""}]
[{"$f":"A356+1","v":"2021-11-03"},null,null,null,null,null,"",{"$f":"IF(G357<>\"\",\"MJ\" & TEXT(COUNTA($A$5:A357)-COUNTBLANK($A$5:A357),\"00\"),\"\")","v":""}]
["2021-11-04",null,null,null,null,null,"",{"$f":"IF(G358<>\"\",\"MJ\" & TEXT(COUNTA($A$5:A358)-COUNTBLANK($A$5:A358),\"00\"),\"\")","v":""}]
["2021-11-05",null,null,null,null,null,"",{"$f":"IF(G359<>\"\",\"MJ\" & TEXT(COUNTA($A$5:A359)-COUNTBLANK($A$5:A359),\"00\"),\"\")","v":""}]
["2021-11-06",null,null,null,null,null,"",{"$f":"IF(G360<>\"\",\"MJ\" & TEXT(COUNTA($A$5:A360)-COUNTBLANK($A$5:A360),\"00\"),\"\")","v":""}]
["2021-11-07",null,null,null,null,null,"",{"$f":"IF(G361<>\"\",\"MJ\" & TEXT(COUNTA($A$5:A361)-COUNTBLANK($A$5:A361),\"00\"),\"\")","v":""}]
["2021-11-08",null,null,null,null,null,"",{"$f":"IF(G362<>\"\",\"MJ\" & TEXT(COUNTA($A$5:A362)-COUNTBLANK($A$5:A362),\"00\"),\"\")","v":""}]
["2021-11-09",null,null,null,null,null,"",{"$f":"IF(G363<>\"\",\"MJ\" & TEXT(COUNTA($A$5:A363)-COUNTBLANK($A$5:A363),\"00\"),\"\")","v":""}]
["2021-11-10",null,null,null,null,null,"",{"$f":"IF(G364<>\"\",\"MJ\" & TEXT(COUNTA($A$5:A364)-COUNTBLANK($A$5:A364),\"00\"),\"\")","v":""}]
["2021-11-11",null,null,null,null,null,"",{"$f":"IF(G365<>\"\",\"MJ\" & TEXT(COUNTA($A$5:A365)-COUNTBLANK($A$5:A365),\"00\"),\"\")","v":""}]
["2021-11-12",null,null,null,null,null,"",{"$f":"IF(G366<>\"\",\"MJ\" & TEXT(COUNTA($A$5:A366)-COUNTBLANK($A$5:A366),\"00\"),\"\")","v":""}]
["2021-11-13",null,null,null,null,null,"",{"$f":"IF(G367<>\"\",\"MJ\" & TEXT(COUNTA($A$5:A367)-COUNTBLANK($A$5:A367),\"00\"),\"\")","v":""}]
["2021-11-14",null,null,null,null,null,"",{"$f":"IF(G368<>\"\",\"MJ\" & TEXT(COUNTA($A$5:A368)-COUNTBLANK($A$5:A368),\"00\"),\"\")","v":""}]
["2021-11-15",null,null,null,null,null,"",{"$f":"IF(G369<>\"\",\"MJ\" & TEXT(COUNTA($A$5:A369)-COUNTBLANK($A$5:A369),\"00\"),\"\")","v":""}]
["2021-11-16",null,null,null,null,null,"",{"$f":"IF(G370<>\"\",\"MJ\" & TEXT(COUNTA($A$5:A370)-COUNTBLANK($A$5:A370),\"00\"),\"\")","v":""}]
["2021-11-17",null,null,null,null,null,"",{"$f":"IF(G371<>\"\",\"MJ\" & TEXT(COUNTA($A$5:A371)-COUNTBLANK($A$5:A371),\"00\"),\"\")","v":""}]
["2021-11-18",null,null,null,null,null,"",{"$f":"IF(G372<>\"\",\"MJ\" & TEXT(COUNTA($A$5:A372)-COUNTBLANK($A$5:A372),\"00\"),\"\")","v":""}]
["2021-11-19",null,null,null,null,null,"",{"$f":"IF(G373<>\"\",\"MJ\" & TEXT(COUNTA($A$5:A373)-COUNTBLANK($A$5:A373),\"00\"),\"\")","v":""}]
["2021-11-20",null,null,null,null,null,"",{"$f":"IF(G374<>\"\",\"MJ\" & TEXT(COUNTA($A$5:A374)-COUNTBLANK($A$5:A374),\"00\"),\"\")","v":""}]
["2021-11-21",null,null,null,null,null,"",{"$f":"IF(G375<>\"\",\"MJ\" & TEXT(COUNTA($A$5:A375)-COUNTBLANK($A$5:A375),\"00\"),\"\")","v":""}]
["2021-11-22",null,null,null,null,null,"",{"$f":"IF(G376<>\"\",\"MJ\" & TEXT(COUNTA($A$5:A376)-COUNTBLANK($A$5:A376),\"00\"),\"\")","v":""}]
["2021-11-23",null,null,null,null,null,"",{"$f":"IF(G377<>\"\",\"MJ\" & TEXT(COUNTA($A$5:A377)-COUNTBLANK($A$5:A377),\"00\"),\"\")","v":""}]
["2021-11-24",null,null,null,null,null,"",{"$f":"IF(G378<>\"\",\"MJ\" & TEXT(COUNTA($A$5:A378)-COUNTBLANK($A$5:A378),\"00\"),\"\")","v":""}]
["2021-11-25",null,null,null,null,null,"",{"$f":"IF(G379<>\"\",\"MJ\" & TEXT(COUNTA($A$5:A379)-COUNTBLANK($A$5:A379),\"00\"),\"\")","v":""}]
["2021-11-26",null,null,null,null,null,"",{"$f":"IF(G380<>\"\",\"MJ\" & TEXT(COUNTA($A$5:A380)-COUNTBLANK($A$5:A380),\"00\"),\"\")","v":""}]
["2021-11-27",null,null,null,null,null,"",{"$f":"IF(G381<>\"\",\"MJ\" & TEXT(COUNTA($A$5:A381)-COUNTBLANK($A$5:A381),\"00\"),\"\")","v":""}]
["2021-11-28",null,null,null,null,null,"",{"$f":"IF(G382<>\"\",\"MJ\" & TEXT(COUNTA($A$5:A382)-COUNTBLANK($A$5:A382),\"00\"),\"\")","v":""}]
["2021-11-29",null,null,null,null,null,"",{"$f":"IF(G383<>\"\",\"MJ\" & TEXT(COUNTA($A$5:A383)-COUNTBLANK($A$5:A383),\"00\"),\"\")","v":""}]
["2021-11-30",null,null,null,null,null,"",{"$f":"IF(G384<>\"\",\"MJ\" & TEXT(COUNTA($A$5:A384)-COUNTBLANK($A$5:A384),\"00\"),\"\")","v":""}]
[{"$f":"IFERROR(IF(MONTH(A384+1)=MONTH(A384),A384+1,\"\"),\"\")","v":""},null,null,null,null,null,"",{"$f":"IF(G385<>\"\",\"MJ\" & TEXT(COUNTA($A$5:A385)-COUNTBLANK($A$5:A385),\"00\"),\"\")","v":""}]
[null,"Fait à Limeil-Brévannes, le",null,null,{"$f":"IF(COUNTBLANK($A355:$A385)<>COUNTBLANK($G355:$G385),\"\",MAX((TableMenus[Code menu]=\"CD01\")*(TableMenus[Date menu]>=$A355)*(TableMenus[Date menu]<=MAX($A355:$A385))*TableMenus[Date création menu]))","v":""}]
[]
[12,{"$f":"\"Menus journaliers du mois de \"&TEXT(A390,\"mmmm\")&\" \"&$A$1","v":"Menus journaliers du mois de décembre 2021"}]
["Date du menu","Légume",null,"Viande","Dessert","Observation","Nature du menu","Numéro menu"]
[{"$f":"DATE($A$1,$A$388,1)","v":"2021-12-01"},null,null,null,null,null,{"$f":"IF(COUNTA(A390:E390)>1,\"Menus journaliers \" &TEXT(A390,\"mmmm\"),\"\")","v":""},{"$f":"IF(G390<>\"\",\"MJ\" & TEXT(COUNTA($A$5:A390)-COUNTBLANK($A$5:A390),\"00\"),\"\")","v":""}]
[{"$f":"A390+1","v":"2021-12-02"},null,null,null,null,null,"",{"$f":"IF(G391<>\"\",\"MJ\" & TEXT(COUNTA($A$5:A391)-COUNTBLANK($A$5:A391),\"00\"),\"\")","v":""}]
[{"$f":"A391+1","v":"2021-12-03"},null,null,null,null,null,"",{"$f":"IF(G392<>\"\",\"MJ\" & TEXT(COUNTA($A$5:A392)-COUNTBLANK($A$5:A392),\"00\"),\"\")","v":""}]
["2021-12-04",null,null,null,null,null,"",{"$f":"IF(G393<>\"\",\"MJ\" & TEXT(COUNTA($A$5:A393)-COUNTBLANK($A$5:A393),\"00\"),\"\")","v":""}]
["2021-12-05",null,null,null,null,null,"",{"$f":"IF(G394<>\"\",\"MJ\" & TEXT(COUNTA($A$5:A394)-COUNTBLANK($A$5:A394),\"00\"),\"\")","v":""}]
["2021-12-06",null,null,null,null,null,"",{"$f":"IF(G395<>\"\",\"MJ\" & TEXT(COUNTA($A$5:A395)-COUNTBLANK($A$5:A395),\"00\"),\"\")","v":""}]
["2021-12-07",null,null,null,null,null,"",{"$f":"IF(G396<>\"\",\"MJ\" & TEXT(COUNTA($A$5:A396)-COUNTBLANK($A$5:A396),\"00\"),\"\")","v":""}]
["2021-12-08",null,null,null,null,null,"",{"$f":"IF(G397<>\"\",\"MJ\" & TEXT(COUNTA($A$5:A397)-COUNTBLANK($A$5:A397),\"00\"),\"\")","v":""}]
["2021-12-09",null,null,null,null,null,"",{"$f":"IF(G398<>\"\",\"MJ\" & TEXT(COUNTA($A$5:A398)-COUNTBLANK($A$5:A398),\"00\"),\"\")","v":""}]
["2021-12-10",null,null,null,null,null,"",{"$f":"IF(G399<>\"\",\"MJ\" & TEXT(COUNTA($A$5:A399)-COUNTBLANK($A$5:A399),\"00\"),\"\")","v":""}]
["2021-12-11",null,null,null,null,null,"",{"$f":"IF(G400<>\"\",\"MJ\" & TEXT(COUNTA($A$5:A400)-COUNTBLANK($A$5:A400),\"00\"),\"\")","v":""}]
["2021-12-12",null,null,null,null,null,"",{"$f":"IF(G401<>\"\",\"MJ\" & TEXT(COUNTA($A$5:A401)-COUNTBLANK($A$5:A401),\"00\"),\"\")","v":""}]
["2021-12-13",null,null,null,null,null,"",{"$f":"IF(G402<>\"\",\"MJ\" & TEXT(COUNTA($A$5:A402)-COUNTBLANK($A$5:A402),\"00\"),\"\")","v":""}]
["2021-12-14",null,null,null,null,null,"",{"$f":"IF(G403<>\"\",\"MJ\" & TEXT(COUNTA($A$5:A403)-COUNTBLANK($A$5:A403),\"00\"),\"\")","v":""}]
["2021-12-15",null,null,null,null,null,"",{"$f":"IF(G404<>\"\",\"MJ\" & TEXT(COUNTA($A$5:A404)-COUNTBLANK($A$5:A404),\"00\"),\"\")","v":""}]
["2021-12-16",null,null,null,null,null,"",{"$f":"IF(G405<>\"\",\"MJ\" & TEXT(COUNTA($A$5:A405)-COUNTBLANK($A$5:A405),\"00\"),\"\")","v":""}]
["2021-12-17",null,null,null,null,null,"",{"$f":"IF(G406<>\"\",\"MJ\" & TEXT(COUNTA($A$5:A406)-COUNTBLANK($A$5:A406),\"00\"),\"\")","v":""}]
["2021-12-18",null,null,null,null,null,"",{"$f":"IF(G407<>\"\",\"MJ\" & TEXT(COUNTA($A$5:A407)-COUNTBLANK($A$5:A407),\"00\"),\"\")","v":""}]
["2021-12-19",null,null,null,null,null,"",{"$f":"IF(G408<>\"\",\"MJ\" & TEXT(COUNTA($A$5:A408)-COUNTBLANK($A$5:A408),\"00\"),\"\")","v":""}]
["2021-12-20",null,null,null,null,null,"",{"$f":"IF(G409<>\"\",\"MJ\" & TEXT(COUNTA($A$5:A409)-COUNTBLANK($A$5:A409),\"00\"),\"\")","v":""}]
["2021-12-21",null,null,null,null,null,"",{"$f":"IF(G410<>\"\",\"MJ\" & TEXT(COUNTA($A$5:A410)-COUNTBLANK($A$5:A410),\"00\"),\"\")","v":""}]
["2021-12-22",null,null,null,null,null,"",{"$f":"IF(G411<>\"\",\"MJ\" & TEXT(COUNTA($A$5:A411)-COUNTBLANK($A$5:A411),\"00\"),\"\")","v":""}]
["2021-12-23",null,null,null,null,null,"",{"$f":"IF(G412<>\"\",\"MJ\" & TEXT(COUNTA($A$5:A412)-COUNTBLANK($A$5:A412),\"00\"),\"\")","v":""}]
["2021-12-24",null,null,null,null,null,"",{"$f":"IF(G413<>\"\",\"MJ\" & TEXT(COUNTA($A$5:A413)-COUNTBLANK($A$5:A413),\"00\"),\"\")","v":""}]
["2021-12-25",null,null,null,null,null,"",{"$f":"IF(G414<>\"\",\"MJ\" & TEXT(COUNTA($A$5:A414)-COUNTBLANK($A$5:A414),\"00\"),\"\")","v":""}]
["2021-12-26",null,null,null,null,null,"",{"$f":"IF(G415<>\"\",\"MJ\" & TEXT(COUNTA($A$5:A415)-COUNTBLANK($A$5:A415),\"00\"),\"\")","v":""}]
["2021-12-27",null,null,null,null,null,"",{"$f":"IF(G416<>\"\",\"MJ\" & TEXT(COUNTA($A$5:A416)-COUNTBLANK($A$5:A416),\"00\"),\"\")","v":""}]
["2021-12-28",null,null,null,null,null,"",{"$f":"IF(G417<>\"\",\"MJ\" & TEXT(COUNTA($A$5:A417)-COUNTBLANK($A$5:A417),\"00\"),\"\")","v":""}]
["2021-12-29",null,null,null,null,null,"",{"$f":"IF(G418<>\"\",\"MJ\" & TEXT(COUNTA($A$5:A418)-COUNTBLANK($A$5:A418),\"00\"),\"\")","v":""}]
["2021-12-30",null,null,null,null,null,"",{"$f":"IF(G419<>\"\",\"MJ\" & TEXT(COUNTA($A$5:A419)-COUNTBLANK($A$5:A419),\"00\"),\"\")","v":""}]
[{"$f":"A419+1","v":"2021-12-31"},null,null,null,null,null,"",{"$f":"IF(G420<>\"\",\"MJ\" & TEXT(COUNTA($A$5:A420)-COUNTBLANK($A$5:A420),\"00\"),\"\")","v":""}]
[null,"Fait à Limeil-Brévannes, le",null,null,{"$f":"IF(COUNTBLANK($A390:$A420)<>COUNTBLANK($G390:$G420),\"\",MAX((TableMenus[Code menu]=\"CD01\")*(TableMenus[Date menu]>=$A390)*(TableMenus[Date menu]<=MAX($A390:$A420))*TableMenus[Date création menu]))","v":""}]

{"sheet":"Saisie VWE","index":10,"n_rows":20,"n_cols":8,"rows_kept":20,"cut":false,"hidden":true,"merged":[]}
[{"$f":"\"Création menus viande week-end \"&'Accueil Menus'!D1","v":"Création menus viande week-end 2021"}]
[]
["Code menu","CD03",null,"Code observation",{"$f":"IFERROR(INDEX(ListeCodesFériés,MATCH(E4,ListeNomsFériés,0)),\"\")","v":""},null,"Code à modifier","LCÀM02"]
["Nom menu",{"$f":"IFERROR(INDEX(ListeNomsDestination,MATCH($B$3,ListeCodesDestination,0)),\"-\")","v":"-"},null,"Nom observation",{"$f":"IF(COUNTIF('Jours Fériés'!$B$3:$B$15,B7)=0,\"\",INDEX('Jours Fériés'!$A$3:$A$15,MATCH(B7,'Jours Fériés'!$B$3:$B$15,0)))","v":""},null,"Nom à modifier",{"$f":"IFERROR(INDEX(ListeNomsAModifier,MATCH($H$3,ListeCodesAModifier,0)),\"-\")","v":"-"}]
[null,null,null,"Code période concernée",{"$f":"IFERROR(INDEX(ListeCodesMois,MATCH(E6,ListeNomsMois,0)),\"-\")","v":"-"}]
[null,null,null,"Nom période concernée",{"$f":"IF(B7=\"\",\"\",TEXT(B7,\"mmmm\"))","v":"janvier"}]
["Date du menu","2020-01-04",null,"Date création menu",{"$f":"TODAY()","v":"2021-09-29"}]
[]
[]
["Code catégorie","CC15"]
["Nom catégorie",{"$f":"IFERROR(INDEX(ListeNomscatégorie,MATCH(B10,ListeCodesCatégorie,0)),\"-\")","v":"-"}]
["Code produit","VWE01"]
["Nom produit",{"$f":"IFERROR(INDEX(#REF!,MATCH(B$12,#REF!,0),MATCH($A13,#REF!,0)),\"-\")","v":"-"}]
["Code jour",{"$f":"IFERROR(INDEX(#REF!,MATCH(B$12,#REF!,0),MATCH($A14,#REF!,0)),\"-\")","v":"-"}]
["Nom jour",{"$f":"IFERROR(INDEX(#REF!,MATCH(B$12,#REF!,0),MATCH($A15,#REF!,0)),\"-\")","v":"-"}]
["Code conditionnement",{"$f":"IFERROR(INDEX(#REF!,MATCH(B$12,#REF!,0),MATCH($A16,#REF!,0)),\"-\")","v":"-"}]
["Nom conditionnement",{"$f":"IFERROR(INDEX(#REF!,MATCH(B$12,#REF!,0),MATCH($A17,#REF!,0)),\"-\")","v":"-"}]
["Quantité viande"]
["Code période viande weekend",{"$f":"IF(MONTH(B7)<=6,\"PVWE01\",\"PVWE02\")","v":"PVWE01"}]
["Nom période viande weekend",{"$f":"IFERROR(INDEX(Liste_Nom_PVWE,MATCH($B$19,Liste_Code_PVWE,0)),\"-\")","v":"-"}]

{"sheet":"Modif VWE","index":11,"n_rows":20,"n_cols":8,"rows_kept":20,"cut":false,"hidden":true,"merged":[]}
[{"$f":"\"Modification menu viande week-end \"&'Accueil Menus'!D1","v":"Modification menu viande week-end 2021"}]
[]
["Code menu","CD03",null,"Code observation",{"$f":"IFERROR(INDEX(ListeCodesFériés,MATCH(E4,ListeNomsFériés,0)),\"\")","v":""},null,"Code à modifier","LCÀM02"]
["Nom menu",{"$f":"IFERROR(INDEX(ListeNomsDestination,MATCH(B3,ListeCodesDestination,0)),\"-\")","v":"-"},null,"Nom observation",{"$f":"IF(COUNTIF('Jours Fériés'!$B$3:$B$15,B7)=0,\"\",INDEX('Jours Fériés'!$A$3:$A$15,MATCH(B7,'Jours Fériés'!$B$3:$B$15,0)))","v":""},null,"Nom à modifier",{"$f":"IFERROR(INDEX(ListeNomsAModifier,MATCH(H3,ListeCodesAModifier,0)),\"-\")","v":"-"}]
[null,null,null,"Code période concernée",{"$f":"IFERROR(INDEX(ListeCodesMois,MATCH(E6,ListeNomsMois,0)),\"-\")","v":"-"}]
[null,null,null,"Nom période concernée",{"$f":"IF(B7=\"\",\"\",TEXT(B7,\"mmmm\"))","v":"janvier"}]
["Date du menu","2021-01-02",null,"Date création menu","2020-09-05"]
[]
[]
["Code catégorie","CC15"]
["Nom catégorie",{"$f":"IFERROR(INDEX(ListeNomscatégorie,MATCH(B10,ListeCodesCatégorie,0)),\"-\")","v":"-"}]
["Code produit","VWE03"]
["Nom produit",{"$f":"IFERROR(INDEX(#REF!,MATCH(B$12,#REF!,0),MATCH($A13,#REF!,0)),\"-\")","v":"-"}]
["Code jour",{"$f":"IFERROR(INDEX(#REF!,MATCH(B$12,#REF!,0),MATCH($A14,#REF!,0)),\"-\")","v":"-"}]
["Nom jour",{"$f":"IFERROR(INDEX(#REF!,MATCH(B$12,#REF!,0),MATCH($A15,#REF!,0)),\"-\")","v":"-"}]
["Code conditionnement",{"$f":"IFERROR(INDEX(#REF!,MATCH(B$12,#REF!,0),MATCH($A16,#REF!,0)),\"-\")","v":"-"}]
["Nom conditionnement",{"$f":"IFERROR(INDEX(#REF!,MATCH(B$12,#REF!,0),MATCH($A17,#REF!,0)),\"-\")","v":"-"}]
["Quantité viande"]
["Code période viande weekend",{"$f":"IF(MONTH(B7)<=6,\"PVWE01\",\"PVWE02\")","v":"PVWE01"}]
["Nom période viande weekend",{"$f":"IFERROR(INDEX(Liste_Nom_PVWE,MATCH($B$19,Liste_Code_PVWE,0)),\"-\")","v":"-"}]

{"sheet":"Menus VWE","index":12,"n_rows":117,"n_cols":6,"rows_kept":117,"cut":false,"hidden":false,"merged":[[2,1,2,5],[60,1,60,5],[58,1,58,3],[58,4,58,5],[116,1,116,3],[116,4,116,5]]}
[{"$f":"'Accueil Menus'!D1","v":2021}]
[]
[1,{"$f":"\"Menus viande week-end \"&IF(A3=1,\"premier\",\"deuxième\")&\" semestre\"","v":"Menus viande week-end premier semestre"}]
["Date du menu","Nom viande","Nom observation","Nature du menu","Numéro menu","Nom période viande weekend"]
[{"$f":"IF(WEEKDAY(DATE($A$1,A3*6-5,1),2)>=6,DATE($A$1,A3*6-5,1),DATE($A$1,A3*6-5,1)+7-WEEKDAY(DATE($A$1,A3*6-5,1)))","v":"2021-01-02"},null,null,{"$f":"IF(COUNTA(A5:B5)>1,\"Menus viandes weekend  \" &TEXT(F5,\"\"),\"\")","v":""},{"$f":"IF(COUNTA(A5:B5)>1,\"MVWE\" & TEXT(COUNTA($A$5:A5)-COUNTBLANK($A$5:A5),\"00\"),\"\")","v":""}]
[{"$f":"A5+IF(WEEKDAY(A5,2)=6,1,6)","v":"2021-01-03"},null,null,{"$f":"IF(COUNTA(A6:B6)>1,\"Menus viandes weekend  \" &TEXT(F6,\"\"),\"\")","v":""},{"$f":"IF(COUNTA(A6:B6)>1,\"MVWE\" & TEXT(COUNTA($A$5:A6)-COUNTBLANK($A$5:A6),\"00\"),\"\")","v":""}]
[{"$f":"A6+IF(WEEKDAY(A6,2)=6,1,6)","v":"2021-01-09"},null,null,"",{"$f":"IF(COUNTA(A7:B7)>1,\"MVWE\" & TEXT(COUNTA($A$5:A7)-COUNTBLANK($A$5:A7),\"00\"),\"\")","v":""}]
["2021-01-10",null,null,"",{"$f":"IF(COUNTA(A8:B8)>1,\"MVWE\" & TEXT(COUNTA($A$5:A8)-COUNTBLANK($A$5:A8),\"00\"),\"\")","v":""}]
["2021-01-16",null,null,"",{"$f":"IF(COUNTA(A9:B9)>1,\"MVWE\" & TEXT(COUNTA($A$5:A9)-COUNTBLANK($A$5:A9),\"00\"),\"\")","v":""}]
["2021-01-17",null,null,"",{"$f":"IF(COUNTA(A10:B10)>1,\"MVWE\" & TEXT(COUNTA($A$5:A10)-COUNTBLANK($A$5:A10),\"00\"),\"\")","v":""}]
["2021-01-23",null,null,"",{"$f":"IF(COUNTA(A11:B11)>1,\"MVWE\" & TEXT(COUNTA($A$5:A11)-COUNTBLANK($A$5:A11),\"00\"),\"\")","v":""}]
["2021-01-24",null,null,"",{"$f":"IF(COUNTA(A12:B12)>1,\"MVWE\" & TEXT(COUNTA($A$5:A12)-COUNTBLANK($A$5:A12),\"00\"),\"\")","v":""}]
["2021-01-30",null,null,"",{"$f":"IF(COUNTA(A13:B13)>1,\"MVWE\" & TEXT(COUNTA($A$5:A13)-COUNTBLANK($A$5:A13),\"00\"),\"\")","v":""}]
["2021-01-31",null,null,"",{"$f":"IF(COUNTA(A14:B14)>1,\"MVWE\" & TEXT(COUNTA($A$5:A14)-COUNTBLANK($A$5:A14),\"00\"),\"\")","v":""}]
["2021-02-06",null,null,"",{"$f":"IF(COUNTA(A15:B15)>1,\"MVWE\" & TEXT(COUNTA($A$5:A15)-COUNTBLANK($A$5:A15),\"00\"),\"\")","v":""}]
["2021-02-07",null,null,"",{"$f":"IF(COUNTA(A16:B16)>1,\"MVWE\" & TEXT(COUNTA($A$5:A16)-COUNTBLANK($A$5:A16),\"00\"),\"\")","v":""}]
["2021-02-13",null,null,"",{"$f":"IF(COUNTA(A17:B17)>1,\"MVWE\" & TEXT(COUNTA($A$5:A17)-COUNTBLANK($A$5:A17),\"00\"),\"\")","v":""}]
["2021-02-14",null,null,"",{"$f":"IF(COUNTA(A18:B18)>1,\"MVWE\" & TEXT(COUNTA($A$5:A18)-COUNTBLANK($A$5:A18),\"00\"),\"\")","v":""}]
["2021-02-20",null,null,"",{"$f":"IF(COUNTA(A19:B19)>1,\"MVWE\" & TEXT(COUNTA($A$5:A19)-COUNTBLANK($A$5:A19),\"00\"),\"\")","v":""}]
["2021-02-21",null,null,"",{"$f":"IF(COUNTA(A20:B20)>1,\"MVWE\" & TEXT(COUNTA($A$5:A20)-COUNTBLANK($A$5:A20),\"00\"),\"\")","v":""}]
["2021-02-27",null,null,"",{"$f":"IF(COUNTA(A21:B21)>1,\"MVWE\" & TEXT(COUNTA($A$5:A21)-COUNTBLANK($A$5:A21),\"00\"),\"\")","v":""}]
["2021-02-28",null,null,"",{"$f":"IF(COUNTA(A22:B22)>1,\"MVWE\" & TEXT(COUNTA($A$5:A22)-COUNTBLANK($A$5:A22),\"00\"),\"\")","v":""}]
["2021-03-06",null,null,"",{"$f":"IF(COUNTA(A23:B23)>1,\"MVWE\" & TEXT(COUNTA($A$5:A23)-COUNTBLANK($A$5:A23),\"00\"),\"\")","v":""}]
["2021-03-07",null,null,"",{"$f":"IF(COUNTA(A24:B24)>1,\"MVWE\" & TEXT(COUNTA($A$5:A24)-COUNTBLANK($A$5:A24),\"00\"),\"\")","v":""}]
["2021-03-13",null,null,"",{"$f":"IF(COUNTA(A25:B25)>1,\"MVWE\" & TEXT(COUNTA($A$5:A25)-COUNTBLANK($A$5:A25),\"00\"),\"\")","v":""}]
["2021-03-14",null,null,"",{"$f":"IF(COUNTA(A26:B26)>1,\"MVWE\" & TEXT(COUNTA($A$5:A26)-COUNTBLANK($A$5:A26),\"00\"),\"\")","v":""}]
["2021-03-20",null,null,"",{"$f":"IF(COUNTA(A27:B27)>1,\"MVWE\" & TEXT(COUNTA($A$5:A27)-COUNTBLANK($A$5:A27),\"00\"),\"\")","v":""}]
["2021-03-21",null,null,"",{"$f":"IF(COUNTA(A28:B28)>1,\"MVWE\" & TEXT(COUNTA($A$5:A28)-COUNTBLANK($A$5:A28),\"00\"),\"\")","v":""}]
["2021-03-27",null,null,"",{"$f":"IF(COUNTA(A29:B29)>1,\"MVWE\" & TEXT(COUNTA($A$5:A29)-COUNTBLANK($A$5:A29),\"00\"),\"\")","v":""}]
["2021-03-28",null,null,"",{"$f":"IF(COUNTA(A30:B30)>1,\"MVWE\" & TEXT(COUNTA($A$5:A30)-COUNTBLANK($A$5:A30),\"00\"),\"\")","v":""}]
["2021-04-03",null,null,"",{"$f":"IF(COUNTA(A31:B31)>1,\"MVWE\" & TEXT(COUNTA($A$5:A31)-COUNTBLANK($A$5:A31),\"00\"),\"\")","v":""}]
["2021-04-04",null,null,"",{"$f":"IF(COUNTA(A32:B32)>1,\"MVWE\" & TEXT(COUNTA($A$5:A32)-COUNTBLANK($A$5:A32),\"00\"),\"\")","v":""}]
["2021-04-10",null,null,"",{"$f":"IF(COUNTA(A33:B33)>1,\"MVWE\" & TEXT(COUNTA($A$5:A33)-COUNTBLANK($A$5:A33),\"00\"),\"\")","v":""}]
["2021-04-11",null,null,"",{"$f":"IF(COUNTA(A34:B34)>1,\"MVWE\" & TEXT(COUNTA($A$5:A34)-COUNTBLANK($A$5:A34),\"00\"),\"\")","v":""}]
["2021-04-17",null,null,"",{"$f":"IF(COUNTA(A35:B35)>1,\"MVWE\" & TEXT(COUNTA($A$5:A35)-COUNTBLANK($A$5:A35),\"00\"),\"\")","v":""}]
["2021-04-18",null,null,"",{"$f":"IF(COUNTA(A36:B36)>1,\"MVWE\" & TEXT(COUNTA($A$5:A36)-COUNTBLANK($A$5:A36),\"00\"),\"\")","v":""}]
["2021-04-24",null,null,"",{"$f":"IF(COUNTA(A37:B37)>1,\"MVWE\" & TEXT(COUNTA($A$5:A37)-COUNTBLANK($A$5:A37),\"00\"),\"\")","v":""}]
["2021-04-25",null,null,"",{"$f":"IF(COUNTA(A38:B38)>1,\"MVWE\" & TEXT(COUNTA($A$5:A38)-COUNTBLANK($A$5:A38),\"00\"),\"\")","v":""}]
["2021-05-01",null,null,"",{"$f":"IF(COUNTA(A39:B39)>1,\"MVWE\" & TEXT(COUNTA($A$5:A39)-COUNTBLANK($A$5:A39),\"00\"),\"\")","v":""}]
["2021-05-02",null,null,"",{"$f":"IF(COUNTA(A40:B40)>1,\"MVWE\" & TEXT(COUNTA($A$5:A40)-COUNTBLANK($A$5:A40),\"00\"),\"\")","v":""}]
["2021-05-08",null,null,"",{"$f":"IF(COUNTA(A41:B41)>1,\"MVWE\" & TEXT(COUNTA($A$5:A41)-COUNTBLANK($A$5:A41),\"00\"),\"\")","v":""}]
["2021-05-09",null,null,"",{"$f":"IF(COUNTA(A42:B42)>1,\"MVWE\" & TEXT(COUNTA($A$5:A42)-COUNTBLANK($A$5:A42),\"00\"),\"\")","v":""}]
["2021-05-15",null,null,"",{"$f":"IF(COUNTA(A43:B43)>1,\"MVWE\" & TEXT(COUNTA($A$5:A43)-COUNTBLANK($A$5:A43),\"00\"),\"\")","v":""}]
["2021-05-16",null,null,"",{"$f":"IF(COUNTA(A44:B44)>1,\"MVWE\" & TEXT(COUNTA($A$5:A44)-COUNTBLANK($A$5:A44),\"00\"),\"\")","v":""}]
["2021-05-22",null,null,"",{"$f":"IF(COUNTA(A45:B45)>1,\"MVWE\" & TEXT(COUNTA($A$5:A45)-COUNTBLANK($A$5:A45),\"00\"),\"\")","v":""}]
["2021-05-23",null,null,"",{"$f":"IF(COUNTA(A46:B46)>1,\"MVWE\" & TEXT(COUNTA($A$5:A46)-COUNTBLANK($A$5:A46),\"00\"),\"\")","v":""}]
["2021-05-29",null,null,"",{"$f":"IF(COUNTA(A47:B47)>1,\"MVWE\" & TEXT(COUNTA($A$5:A47)-COUNTBLANK($A$5:A47),\"00\"),\"\")","v":""}]
["2021-05-30",null,null,"",{"$f":"IF(COUNTA(A48:B48)>1,\"MVWE\" & TEXT(COUNTA($A$5:A48)-COUNTBLANK($A$5:A48),\"00\"),\"\")","v":""}]
["2021-06-05",null,null,"",{"$f":"IF(COUNTA(A49:B49)>1,\"MVWE\" & TEXT(COUNTA($A$5:A49)-COUNTBLANK($A$5:A49),\"00\"),\"\")","v":""}]
["2021-06-06",null,null,"",{"$f":"IF(COUNTA(A50:B50)>1,\"MVWE\" & TEXT(COUNTA($A$5:A50)-COUNTBLANK($A$5:A50),\"00\"),\"\")","v":""}]
["2021-06-12",null,null,"",{"$f":"IF(COUNTA(A51:B51)>1,\"MVWE\" & TEXT(COUNTA($A$5:A51)-COUNTBLANK($A$5:A51),\"00\"),\"\")","v":""}]
["2021-06-13",null,null,"",{"$f":"IF(COUNTA(A52:B52)>1,\"MVWE\" & TEXT(COUNTA($A$5:A52)-COUNTBLANK($A$5:A52),\"00\"),\"\")","v":""}]
["2021-06-19",null,null,"",{"$f":"IF(COUNTA(A53:B53)>1,\"MVWE\" & TEXT(COUNTA($A$5:A53)-COUNTBLANK($A$5:A53),\"00\"),\"\")","v":""}]
["2021-06-20",null,null,"",{"$f":"IF(COUNTA(A54:B54)>1,\"MVWE\" & TEXT(COUNTA($A$5:A54)-COUNTBLANK($A$5:A54),\"00\"),\"\")","v":""}]
["2021-06-26",null,null,"",{"$f":"IF(COUNTA(A55:B55)>1,\"MVWE\" & TEXT(COUNTA($A$5:A55)-COUNTBLANK($A$5:A55),\"00\"),\"\")","v":""}]
[{"$f":"IFERROR(IF(MONTH(A55+IF(WEEKDAY(A55,2)=6,1,6))=MONTH(A55),A55+IF(WEEKDAY(A55,2)=6,1,6),\"\"),\"\")","v":"2021-06-27"},null,null,"",{"$f":"IF(COUNTA(A56:B56)>1,\"MVWE\" & TEXT(COUNTA($A$5:A56)-COUNTBLANK($A$5:A56),\"00\"),\"\")","v":""}]
[{"$f":"IFERROR(IF(MONTH(A56+IF(WEEKDAY(A56,2)=6,1,6))=MONTH(A56),A56+IF(WEEKDAY(A56,2)=6,1,6),\"\"),\"\")","v":""},null,null,{"$f":"IF(COUNTA(A57:B57)>1,\"Menus viandes weekend  \" &TEXT(F57,\"\"),\"\")","v":""},{"$f":"IF(COUNTA(A57:B57)>1,\"MVWE\" & TEXT(COUNTA($A$5:A57)-COUNTBLANK($A$5:A57),\"00\"),\"\")","v":""}]
[{"$f":"IFERROR(IF(MONTH(A57+IF(WEEKDAY(A57,2)=6,1,6))=MONTH(A57),A57+IF(WEEKDAY(A57,2)=6,1,6),\"\"),\"\")","v":""},null,null,{"$f":"IF(COUNTA(A58:B58)>1,\"Menus viandes weekend  \" &TEXT(F58,\"\"),\"\")","v":""},{"$f":"IF(COUNTA(A58:B58)>1,\"MVWE\" & TEXT(COUNTA($A$5:A58)-COUNTBLANK($A$5:A58),\"00\"),\"\")","v":""}]
[null,"Fait à Limeil-Brévannes, le",null,null,{"$f":"IF(COUNTBLANK($A5:$A58)<>COUNTBLANK($E5:$E58),\"\",MAX((TableMenus[Code menu]=\"CD03\")*(TableMenus[Date menu]>=$A5)*(TableMenus[Date menu]<=MAX($A5:$A58))*TableMenus[Date création menu]))","v":""}]
[]
[2,{"$f":"\"Menus viande week-end \"&IF(A61=1,\"premier\",\"deuxième\")&\" semestre\"","v":"Menus viande week-end deuxième semestre"}]
["Date du menu",null,null,"Nature du menu","Numéro menu"]
[{"$f":"IF(WEEKDAY(DATE($A$1,A61*6-5,1),2)>=6,DATE($A$1,A61*6-5,1),DATE($A$1,A61*6-5,1)+7-WEEKDAY(DATE($A$1,A61*6-5,1)))","v":"2021-07-03"},null,null,{"$f":"IF(COUNTA(A63:B63)>1,\"Menus viandes weekend  \" &TEXT(F63,\"\"),\"\")","v":""},{"$f":"IF(COUNTA(A63:B63)>1,\"MVWE\" & TEXT(COUNTA($A$5:A63)-COUNTBLANK($A$5:A63),\"00\"),\"\")","v":""}]
[{"$f":"A63+IF(WEEKDAY(A63,2)=6,1,6)","v":"2021-07-04"},null,null,{"$f":"IF(COUNTA(A64:B64)>1,\"Menus viandes weekend  \" &TEXT(F64,\"\"),\"\")","v":""},{"$f":"IF(COUNTA(A64:B64)>1,\"MVWE\" & TEXT(COUNTA($A$5:A64)-COUNTBLANK($A$5:A64),\"00\"),\"\")","v":""}]
[{"$f":"A64+IF(WEEKDAY(A64,2)=6,1,6)","v":"2021-07-10"},null,null,"",{"$f":"IF(COUNTA(A65:B65)>1,\"MVWE\" & TEXT(COUNTA($A$5:A65)-COUNTBLANK($A$5:A65),\"00\"),\"\")","v":""}]
["2021-07-11",null,null,"",{"$f":"IF(COUNTA(A66:B66)>1,\"MVWE\" & TEXT(COUNTA($A$5:A66)-COUNTBLANK($A$5:A66),\"00\"),\"\")","v":""}]
["2021-07-17",null,null,"",{"$f":"IF(COUNTA(A67:B67)>1,\"MVWE\" & TEXT(COUNTA($A$5:A67)-COUNTBLANK($A$5:A67),\"00\"),\"\")","v":""}]
["2021-07-18",null,null,"",{"$f":"IF(COUNTA(A68:B68)>1,\"MVWE\" & TEXT(COUNTA($A$5:A68)-COUNTBLANK($A$5:A68),\"00\"),\"\")","v":""}]
["2021-07-24",null,null,"",{"$f":"IF(COUNTA(A69:B69)>1,\"MVWE\" & TEXT(COUNTA($A$5:A69)-COUNTBLANK($A$5:A69),\"00\"),\"\")","v":""}]
["2021-07-25",null,null,"",{"$f":"IF(COUNTA(A70:B70)>1,\"MVWE\" & TEXT(COUNTA($A$5:A70)-COUNTBLANK($A$5:A70),\"00\"),\"\")","v":""}]
["2021-07-31",null,null,"",{"$f":"IF(COUNTA(A71:B71)>1,\"MVWE\" & TEXT(COUNTA($A$5:A71)-COUNTBLANK($A$5:A71),\"00\"),\"\")","v":""}]
["2021-08-01",null,null,"",{"$f":"IF(COUNTA(A72:B72)>1,\"MVWE\" & TEXT(COUNTA($A$5:A72)-COUNTBLANK($A$5:A72),\"00\"),\"\")","v":""}]
["2021-08-07",null,null,"",{"$f":"IF(COUNTA(A73:B73)>1,\"MVWE\" & TEXT(COUNTA($A$5:A73)-COUNTBLANK($A$5:A73),\"00\"),\"\")","v":""}]
["2021-08-08",null,null,"",{"$f":"IF(COUNTA(A74:B74)>1,\"MVWE\" & TEXT(COUNTA($A$5:A74)-COUNTBLANK($A$5:A74),\"00\"),\"\")","v":""}]
["2021-08-14",null,null,"",{"$f":"IF(COUNTA(A75:B75)>1,\"MVWE\" & TEXT(COUNTA($A$5:A75)-COUNTBLANK($A$5:A75),\"00\"),\"\")","v":""}]
["2021-08-15",null,null,"",{"$f":"IF(COUNTA(A76:B76)>1,\"MVWE\" & TEXT(COUNTA($A$5:A76)-COUNTBLANK($A$5:A76),\"00\"),\"\")","v":""}]
["2021-08-21",null,null,"",{"$f":"IF(COUNTA(A77:B77)>1,\"MVWE\" & TEXT(COUNTA($A$5:A77)-COUNTBLANK($A$5:A77),\"00\"),\"\")","v":""}]
["2021-08-22",null,null,"",{"$f":"IF(COUNTA(A78:B78)>1,\"MVWE\" & TEXT(COUNTA($A$5:A78)-COUNTBLANK($A$5:A78),\"00\"),\"\")","v":""}]
["2021-08-28",null,null,"",{"$f":"IF(COUNTA(A79:B79)>1,\"MVWE\" & TEXT(COUNTA($A$5:A79)-COUNTBLANK($A$5:A79),\"00\"),\"\")","v":""}]
["2021-08-29",null,null,"",{"$f":"IF(COUNTA(A80:B80)>1,\"MVWE\" & TEXT(COUNTA($A$5:A80)-COUNTBLANK($A$5:A80),\"00\"),\"\")","v":""}]
["2021-09-04",null,null,"",{"$f":"IF(COUNTA(A81:B81)>1,\"MVWE\" & TEXT(COUNTA($A$5:A81)-COUNTBLANK($A$5:A81),\"00\"),\"\")","v":""}]
["2021-09-05",null,null,"",{"$f":"IF(COUNTA(A82:B82)>1,\"MVWE\" & TEXT(COUNTA($A$5:A82)-COUNTBLANK($A$5:A82),\"00\"),\"\")","v":""}]
["2021-09-11",null,null,"",{"$f":"IF(COUNTA(A83:B83)>1,\"MVWE\" & TEXT(COUNTA($A$5:A83)-COUNTBLANK($A$5:A83),\"00\"),\"\")","v":""}]
["2021-09-12",null,null,"",{"$f":"IF(COUNTA(A84:B84)>1,\"MVWE\" & TEXT(COUNTA($A$5:A84)-COUNTBLANK($A$5:A84),\"00\"),\"\")","v":""}]
["2021-09-18",null,null,"",{"$f":"IF(COUNTA(A85:B85)>1,\"MVWE\" & TEXT(COUNTA($A$5:A85)-COUNTBLANK($A$5:A85),\"00\"),\"\")","v":""}]
["2021-09-19",null,null,"",{"$f":"IF(COUNTA(A86:B86)>1,\"MVWE\" & TEXT(COUNTA($A$5:A86)-COUNTBLANK($A$5:A86),\"00\"),\"\")","v":""}]
["2021-09-25",null,null,"",{"$f":"IF(COUNTA(A87:B87)>1,\"MVWE\" & TEXT(COUNTA($A$5:A87)-COUNTBLANK($A$5:A87),\"00\"),\"\")","v":""}]
["2021-09-26",null,null,"",{"$f":"IF(COUNTA(A88:B88)>1,\"MVWE\" & TEXT(COUNTA($A$5:A88)-COUNTBLANK($A$5:A88),\"00\"),\"\")","v":""}]
["2021-10-02",null,null,"",{"$f":"IF(COUNTA(A89:B89)>1,\"MVWE\" & TEXT(COUNTA($A$5:A89)-COUNTBLANK($A$5:A89),\"00\"),\"\")","v":""}]
["2021-10-03",null,null,"",{"$f":"IF(COUNTA(A90:B90)>1,\"MVWE\" & TEXT(COUNTA($A$5:A90)-COUNTBLANK($A$5:A90),\"00\"),\"\")","v":""}]
["2021-10-09",null,null,"",{"$f":"IF(COUNTA(A91:B91)>1,\"MVWE\" & TEXT(COUNTA($A$5:A91)-COUNTBLANK($A$5:A91),\"00\"),\"\")","v":""}]
["2021-10-10",null,null,"",{"$f":"IF(COUNTA(A92:B92)>1,\"MVWE\" & TEXT(COUNTA($A$5:A92)-COUNTBLANK($A$5:A92),\"00\"),\"\")","v":""}]
["2021-10-16",null,null,"",{"$f":"IF(COUNTA(A93:B93)>1,\"MVWE\" & TEXT(COUNTA($A$5:A93)-COUNTBLANK($A$5:A93),\"00\"),\"\")","v":""}]
["2021-10-17",null,null,"",{"$f":"IF(COUNTA(A94:B94)>1,\"MVWE\" & TEXT(COUNTA($A$5:A94)-COUNTBLANK($A$5:A94),\"00\"),\"\")","v":""}]
["2021-10-23",null,null,"",{"$f":"IF(COUNTA(A95:B95)>1,\"MVWE\" & TEXT(COUNTA($A$5:A95)-COUNTBLANK($A$5:A95),\"00\"),\"\")","v":""}]
["2021-10-24",null,null,"",{"$f":"IF(COUNTA(A96:B96)>1,\"MVWE\" & TEXT(COUNTA($A$5:A96)-COUNTBLANK($A$5:A96),\"00\"),\"\")","v":""}]
["2021-10-30",null,null,"",{"$f":"IF(COUNTA(A97:B97)>1,\"MVWE\" & TEXT(COUNTA($A$5:A97)-COUNTBLANK($A$5:A97),\"00\"),\"\")","v":""}]
["2021-10-31",null,null,"",{"$f":"IF(COUNTA(A98:B98)>1,\"MVWE\" & TEXT(COUNTA($A$5:A98)-COUNTBLANK($A$5:A98),\"00\"),\"\")","v":""}]
["2021-11-06",null,null,"",{"$f":"IF(COUNTA(A99:B99)>1,\"MVWE\" & TEXT(COUNTA($A$5:A99)-COUNTBLANK($A$5:A99),\"00\"),\"\")","v":""}]
["2021-11-07",null,null,"",{"$f":"IF(COUNTA(A100:B100)>1,\"MVWE\" & TEXT(COUNTA($A$5:A100)-COUNTBLANK($A$5:A100),\"00\"),\"\")","v":""}]
["2021-11-13",null,null,"",{"$f":"IF(COUNTA(A101:B101)>1,\"MVWE\" & TEXT(COUNTA($A$5:A101)-COUNTBLANK($A$5:A101),\"00\"),\"\")","v":""}]
["2021-11-14",null,null,"",{"$f":"IF(COUNTA(A102:B102)>1,\"MVWE\" & TEXT(COUNTA($A$5:A102)-COUNTBLANK($A$5:A102),\"00\"),\"\")","v":""}]
["2021-11-20",null,null,"",{"$f":"IF(COUNTA(A103:B103)>1,\"MVWE\" & TEXT(COUNTA($A$5:A103)-COUNTBLANK($A$5:A103),\"00\"),\"\")","v":""}]
["2021-11-21",null,null,"",{"$f":"IF(COUNTA(A104:B104)>1,\"MVWE\" & TEXT(COUNTA($A$5:A104)-COUNTBLANK($A$5:A104),\"00\"),\"\")","v":""}]
["2021-11-27",null,null,"",{"$f":"IF(COUNTA(A105:B105)>1,\"MVWE\" & TEXT(COUNTA($A$5:A105)-COUNTBLANK($A$5:A105),\"00\"),\"\")","v":""}]
["2021-11-28",null,null,"",{"$f":"IF(COUNTA(A106:B106)>1,\"MVWE\" & TEXT(COUNTA($A$5:A106)-COUNTBLANK($A$5:A106),\"00\"),\"\")","v":""}]
["2021-12-04",null,null,"",{"$f":"IF(COUNTA(A107:B107)>1,\"MVWE\" & TEXT(COUNTA($A$5:A107)-COUNTBLANK($A$5:A107),\"00\"),\"\")","v":""}]
["2021-12-05",null,null,"",{"$f":"IF(COUNTA(A108:B108)>1,\"MVWE\" & TEXT(COUNTA($A$5:A108)-COUNTBLANK($A$5:A108),\"00\"),\"\")","v":""}]
["2021-12-11",null,null,"",{"$f":"IF(COUNTA(A109:B109)>1,\"MVWE\" & TEXT(COUNTA($A$5:A109)-COUNTBLANK($A$5:A109),\"00\"),\"\")","v":""}]
["2021-12-12",null,null,"",{"$f":"IF(COUNTA(A110:B110)>1,\"MVWE\" & TEXT(COUNTA($A$5:A110)-COUNTBLANK($A$5:A110),\"00\"),\"\")","v":""}]
["2021-12-18",null,null,"",{"$f":"IF(COUNTA(A111:B111)>1,\"MVWE\" & TEXT(COUNTA($A$5:A111)-COUNTBLANK($A$5:A111),\"00\"),\"\")","v":""}]
["2021-12-19",null,null,"",{"$f":"IF(COUNTA(A112:B112)>1,\"MVWE\" & TEXT(COUNTA($A$5:A112)-COUNTBLANK($A$5:A112),\"00\"),\"\")","v":""}]
["2021-12-25",null,null,"",{"$f":"IF(COUNTA(A113:B113)>1,\"MVWE\" & TEXT(COUNTA($A$5:A113)-COUNTBLANK($A$5:A113),\"00\"),\"\")","v":""}]
[{"$f":"IFERROR(IF(MONTH(A113+IF(WEEKDAY(A113,2)=6,1,6))=MONTH(A113),A113+IF(WEEKDAY(A113,2)=6,1,6),\"\"),\"\")","v":"2021-12-26"},null,null,"",{"$f":"IF(COUNTA(A114:B114)>1,\"MVWE\" & TEXT(COUNTA($A$5:A114)-COUNTBLANK($A$5:A114),\"00\"),\"\")","v":""}]
["",null,null,{"$f":"IF(COUNTA(A115:B115)>1,\"Menus viandes weekend  \" &TEXT(F115,\"\"),\"\")","v":""},{"$f":"IF(COUNTA(A115:B115)>1,\"MVWE\" & TEXT(COUNTA($A$5:A115)-COUNTBLANK($A$5:A115),\"00\"),\"\")","v":""}]
["",null,null,{"$f":"IF(COUNTA(A116:B116)>1,\"Menus viandes weekend  \" &TEXT(F116,\"\"),\"\")","v":""},{"$f":"IF(COUNTA(A116:B116)>1,\"MVWE\" & TEXT(COUNTA($A$5:A116)-COUNTBLANK($A$5:A116),\"00\"),\"\")","v":""}]
[null,"Fait à Limeil-Brévannes, le",null,null,{"$f":"IF(COUNTBLANK($A63:$A116)<>COUNTBLANK($E63:$E116),\"\",MAX((TableMenus[Code menu]=\"CD03\")*(TableMenus[Date menu]>=$A63)*(TableMenus[Date menu]<=MAX($A63:$A116))*TableMenus[Date création menu]))","v":""}]

{"sheet":"TCD quantités légumes","index":13,"n_rows":8,"n_cols":3,"rows_kept":8,"cut":false,"hidden":true,"merged":[[0,0,0,13]]}
[{"$f":"\"Quantités des légumes par articles et par mois de l'année \"&'Accueil Menus'!$D$1","v":"Quantités des légumes par articles et par mois de l'année 2021"}]
[]
["Nom menu","(Tous)"]
[]
["Somme de Quantité légume"]
[null,"janvier","Total général"]
["Asperges"]
["Total général"]

{"sheet":"TCD quantités viandes","index":14,"n_rows":8,"n_cols":3,"rows_kept":8,"cut":false,"hidden":true,"merged":[[0,0,0,13]]}
[{"$f":"\"Quantités des viandes par articles et par mois pour l'année \" &'Accueil Menus'!$D$1","v":"Quantités des viandes par articles et par mois pour l'année 2021"}]
[]
["Nom menu","Menus midi retraite"]
[]
["Somme de Quantité viande"]
[null,"janvier","Total général"]
["Rôti de cheval"]
["Total général"]

{"sheet":"TCD quantités desserts","index":15,"n_rows":8,"n_cols":3,"rows_kept":8,"cut":false,"hidden":true,"merged":[[0,0,0,13]]}
[{"$f":"\"Quantités des desserts par articles et par mois pour l'année \"&  'Accueil Menus'!D1","v":"Quantités des desserts par articles et par mois pour l'année 2021"}]
[]
["Nom menu","Menus midi retraite"]
[]
["Somme de Quantité dessert"]
[null,"janvier","Total général"]
["Pomme",5,5]
["Total général",5,5]

{"sheet":"Tab quantité légumes","index":16,"n_rows":45,"n_cols":14,"rows_kept":45,"cut":false,"hidden":true,"merged":[[0,1,0,12],[42,0,42,13]]}
[null,{"$f":"\"Quantités par légume et par mois pour l'année \" &  'Accueil Menus'!D1","v":"Quantités par légume et par mois pour l'année 2021"}]
[]
[]
[]
["Nom  légume","janvier","février","mars","avril","mai","juin","juillet","août","septembre","octobre","novembre","décembre","Total"]
["Asperges",{"$f":"SUMIFS(TableMenus[Quantité légume],TableMenus[Nom produit légume],$A6,TableMenus[Nom période concernée],B$5) +SUMIFS(TableMenus[Quantité légume deux],TableMenus[Nom produit légume deux],$A6,TableMenus[Nom période concernée],B$5)","v":0},{"$f":"SUMIFS(TableMenus[Quantité légume],TableMenus[Nom produit légume],$A6,TableMenus[Nom période concernée],C$5) +SUMIFS(TableMenus[Quantité légume deux],TableMenus[Nom produit légume deux],$A6,TableMenus[Nom période concernée],C$5)","v":0},{"$f":"SUMIFS(TableMenus[Quantité légume],TableMenus[Nom produit légume],$A6,TableMenus[Nom période concernée],D$5) +SUMIFS(TableMenus[Quantité légume deux],TableMenus[Nom produit légume deux],$A6,TableMenus[Nom période concernée],D$5)","v":0},{"$f":"SUMIFS(TableMenus[Quantité légume],TableMenus[Nom produit légume],$A6,TableMenus[Nom période concernée],E$5) +SUMIFS(TableMenus[Quantité légume deux],TableMenus[Nom produit légume deux],$A6,TableMenus[Nom période concernée],E$5)","v":0},{"$f":"SUMIFS(TableMenus[Quantité légume],TableMenus[Nom produit légume],$A6,TableMenus[Nom période concernée],F$5) +SUMIFS(TableMenus[Quantité légume deux],TableMenus[Nom produit légume deux],$A6,TableMenus[Nom période concernée],F$5)","v":0},{"$f":"SUMIFS(TableMenus[Quantité légume],TableMenus[Nom produit légume],$A6,TableMenus[Nom période concernée],G$5) +SUMIFS(TableMenus[Quantité légume deux],TableMenus[Nom produit légume deux],$A6,TableMenus[Nom période concernée],G$5)","v":0},{"$f":"SUMIFS(TableMenus[Quantité légume],TableMenus[Nom produit légume],$A6,TableMenus[Nom période concernée],H$5) +SUMIFS(TableMenus[Quantité légume deux],TableMenus[Nom produit légume deux],$A6,TableMenus[Nom période concernée],H$5)","v":0},{"$f":"SUMIFS(TableMenus[Quantité légume],TableMenus[Nom produit légume],$A6,TableMenus[Nom période concernée],I$5) +SUMIFS(TableMenus[Quantité légume deux],TableMenus[Nom produit légume deux],$A6,TableMenus[Nom période concernée],I$5)","v":0},{"$f":"SUMIFS(TableMenus[Quantité légume],TableMenus[Nom produit légume],$A6,TableMenus[Nom période concernée],J$5) +SUMIFS(TableMenus[Quantité légume deux],TableMenus[Nom produit légume deux],$A6,TableMenus[Nom période concernée],J$5)","v":0},{"$f":"SUMIFS(TableMenus[Quantité légume],TableMenus[Nom produit légume],$A6,TableMenus[Nom période concernée],K$5) +SUMIFS(TableMenus[Quantité légume deux],TableMenus[Nom produit légume deux],$A6,TableMenus[Nom période concernée],K$5)","v":0},{"$f":"SUMIFS(TableMenus[Quantité légume],TableMenus[Nom produit légume],$A6,TableMenus[Nom période concernée],L$5) +SUMIFS(TableMenus[Quantité légume deux],TableMenus[Nom produit légume deux],$A6,TableMenus[Nom période concernée],L$5)","v":0},{"$f":"SUMIFS(TableMenus[Quantité légume],TableMenus[Nom produit légume],$A6,TableMenus[Nom période concernée],M$5) +SUMIFS(TableMenus[Quantité légume deux],TableMenus[Nom produit légume deux],$A6,TableMenus[Nom période concernée],M$5)","v":0},{"$f":"SUM(B6:M6)","v":0}]
["Avocat",{"$f":"SUMIFS(TableMenus[Quantité légume],TableMenus[Nom produit légume],$A7,TableMenus[Nom période concernée],B$5)","v":0},{"$f":"SUMIFS(TableMenus[Quantité légume],TableMenus[Nom produit légume],$A7,TableMenus[Nom période concernée],C$5)","v":0},{"$f":"SUMIFS(TableMenus[Quantité légume],TableMenus[Nom produit légume],$A7,TableMenus[Nom période concernée],D$5)","v":0},{"$f":"SUMIFS(TableMenus[Quantité légume],TableMenus[Nom produit légume],$A7,TableMenus[Nom période concernée],E$5)","v":0},{"$f":"SUMIFS(TableMenus[Quantité légume],TableMenus[Nom produit légume],$A7,TableMenus[Nom période concernée],F$5)","v":0},{"$f":"SUMIFS(TableMenus[Quantité légume],TableMenus[Nom produit légume],$A7,TableMenus[Nom période concernée],G$5)","v":0},{"$f":"SUMIFS(TableMenus[Quantité légume],TableMenus[Nom produit légume],$A7,TableMenus[Nom période concernée],H$5)","v":0},{"$f":"SUMIFS(TableMenus[Quantité légume],TableMenus[Nom produit légume],$A7,TableMenus[Nom période concernée],I$5)","v":0},{"$f":"SUMIFS(TableMenus[Quantité légume],TableMenus[Nom produit légume],$A7,TableMenus[Nom période concernée],J$5)","v":0},{"$f":"SUMIFS(TableMenus[Quantité légume],TableMenus[Nom produit légume],$A7,TableMenus[Nom période concernée],K$5)","v":0},{"$f":"SUMIFS(TableMenus[Quantité légume],TableMenus[Nom produit légume],$A7,TableMenus[Nom période concernée],L$5)","v":0},{"$f":"SUMIFS(TableMenus[Quantité légume],TableMenus[Nom produit légume],$A7,TableMenus[Nom période concernée],M$5)","v":0},0]
["Betterave rouge",{"$f":"SUMIFS(TableMenus[Quantité légume],TableMenus[Nom produit légume],$A8,TableMenus[Nom période concernée],B$5)","v":0},{"$f":"SUMIFS(TableMenus[Quantité légume],TableMenus[Nom produit légume],$A8,TableMenus[Nom période concernée],C$5)","v":0},{"$f":"SUMIFS(TableMenus[Quantité légume],TableMenus[Nom produit légume],$A8,TableMenus[Nom période concernée],D$5)","v":0},{"$f":"SUMIFS(TableMenus[Quantité légume],TableMenus[Nom produit légume],$A8,TableMenus[Nom période concernée],E$5)","v":0},{"$f":"SUMIFS(TableMenus[Quantité légume],TableMenus[Nom produit légume],$A8,TableMenus[Nom période concernée],F$5)","v":0},{"$f":"SUMIFS(TableMenus[Quantité légume],TableMenus[Nom produit légume],$A8,TableMenus[Nom période concernée],G$5)","v":0},{"$f":"SUMIFS(TableMenus[Quantité légume],TableMenus[Nom produit légume],$A8,TableMenus[Nom période concernée],H$5)","v":0},{"$f":"SUMIFS(TableMenus[Quantité légume],TableMenus[Nom produit légume],$A8,TableMenus[Nom période concernée],I$5)","v":0},{"$f":"SUMIFS(TableMenus[Quantité légume],TableMenus[Nom produit légume],$A8,TableMenus[Nom période concernée],J$5)","v":0},{"$f":"SUMIFS(TableMenus[Quantité légume],TableMenus[Nom produit légume],$A8,TableMenus[Nom période concernée],K$5)","v":0},{"$f":"SUMIFS(TableMenus[Quantité légume],TableMenus[Nom produit légume],$A8,TableMenus[Nom période concernée],L$5)","v":0},{"$f":"SUMIFS(TableMenus[Quantité légume],TableMenus[Nom produit légume],$A8,TableMenus[Nom période concernée],M$5)","v":0},0]
["Carottes",{"$f":"SUMIFS(TableMenus[Quantité légume],TableMenus[Nom produit légume],$A9,TableMenus[Nom période concernée],B$5)","v":0},{"$f":"SUMIFS(TableMenus[Quantité légume],TableMenus[Nom produit légume],$A9,TableMenus[Nom période concernée],C$5)","v":0},{"$f":"SUMIFS(TableMenus[Quantité légume],TableMenus[Nom produit légume],$A9,TableMenus[Nom période concernée],D$5)","v":0},{"$f":"SUMIFS(TableMenus[Quantité légume],TableMenus[Nom produit légume],$A9,TableMenus[Nom période concernée],E$5)","v":0},{"$f":"SUMIFS(TableMenus[Quantité légume],TableMenus[Nom produit légume],$A9,TableMenus[Nom période concernée],F$5)","v":0},{"$f":"SUMIFS(TableMenus[Quantité légume],TableMenus[Nom produit légume],$A9,TableMenus[Nom période concernée],G$5)","v":0},{"$f":"SUMIFS(TableMenus[Quantité légume],TableMenus[Nom produit légume],$A9,TableMenus[Nom période concernée],H$5)","v":0},{"$f":"SUMIFS(TableMenus[Quantité légume],TableMenus[Nom produit légume],$A9,TableMenus[Nom période concernée],I$5)","v":0},{"$f":"SUMIFS(TableMenus[Quantité légume],TableMenus[Nom produit légume],$A9,TableMenus[Nom période concernée],J$5)","v":0},{"$f":"SUMIFS(TableMenus[Quantité légume],TableMenus[Nom produit légume],$A9,TableMenus[Nom période concernée],K$5)","v":0},{"$f":"SUMIFS(TableMenus[Quantité légume],TableMenus[Nom produit légume],$A9,TableMenus[Nom période concernée],L$5)","v":0},{"$f":"SUMIFS(TableMenus[Quantité légume],TableMenus[Nom produit légume],$A9,TableMenus[Nom période concernée],M$5)","v":0},0]
["Cassoulet",{"$f":"SUMIFS(TableMenus[Quantité légume],TableMenus[Nom produit légume],$A10,TableMenus[Nom période concernée],B$5)","v":0},{"$f":"SUMIFS(TableMenus[Quantité légume],TableMenus[Nom produit légume],$A10,TableMenus[Nom période concernée],C$5)","v":0},{"$f":"SUMIFS(TableMenus[Quantité légume],TableMenus[Nom produit légume],$A10,TableMenus[Nom période concernée],D$5)","v":0},{"$f":"SUMIFS(TableMenus[Quantité légume],TableMenus[Nom produit légume],$A10,TableMenus[Nom période concernée],E$5)","v":0},{"$f":"SUMIFS(TableMenus[Quantité légume],TableMenus[Nom produit légume],$A10,TableMenus[Nom période concernée],F$5)","v":0},{"$f":"SUMIFS(TableMenus[Quantité légume],TableMenus[Nom produit légume],$A10,TableMenus[Nom période concernée],G$5)","v":0},{"$f":"SUMIFS(TableMenus[Quantité légume],TableMenus[Nom produit légume],$A10,TableMenus[Nom période concernée],H$5)","v":0},{"$f":"SUMIFS(TableMenus[Quantité légume],TableMenus[Nom produit légume],$A10,TableMenus[Nom période concernée],I$5)","v":0},{"$f":"SUMIFS(TableMenus[Quantité légume],TableMenus[Nom produit légume],$A10,TableMenus[Nom période concernée],J$5)","v":0},{"$f":"SUMIFS(TableMenus[Quantité légume],TableMenus[Nom produit légume],$A10,TableMenus[Nom période concernée],K$5)","v":0},{"$f":"SUMIFS(TableMenus[Quantité légume],TableMenus[Nom produit légume],$A10,TableMenus[Nom période concernée],L$5)","v":0},{"$f":"SUMIFS(TableMenus[Quantité légume],TableMenus[Nom produit légume],$A10,TableMenus[Nom période concernée],M$5)","v":0},0]
["Céleri",{"$f":"SUMIFS(TableMenus[Quantité légume],TableMenus[Nom produit légume],$A11,TableMenus[Nom période concernée],B$5)","v":0},{"$f":"SUMIFS(TableMenus[Quantité légume],TableMenus[Nom produit légume],$A11,TableMenus[Nom période concernée],C$5)","v":0},{"$f":"SUMIFS(TableMenus[Quantité légume],TableMenus[Nom produit légume],$A11,TableMenus[Nom période concernée],D$5)","v":0},{"$f":"SUMIFS(TableMenus[Quantité légume],TableMenus[Nom produit légume],$A11,TableMenus[Nom période concernée],E$5)","v":0},{"$f":"SUMIFS(TableMenus[Quantité légume],TableMenus[Nom produit légume],$A11,TableMenus[Nom période concernée],F$5)","v":0},{"$f":"SUMIFS(TableMenus[Quantité légume],TableMenus[Nom produit légume],$A11,TableMenus[Nom période concernée],G$5)","v":0},{"$f":"SUMIFS(TableMenus[Quantité légume],TableMenus[Nom produit légume],$A11,TableMenus[Nom période concernée],H$5)","v":0},{"$f":"SUMIFS(TableMenus[Quantité légume],TableMenus[Nom produit légume],$A11,TableMenus[Nom période concernée],I$5)","v":0},{"$f":"SUMIFS(TableMenus[Quantité légume],TableMenus[Nom produit légume],$A11,TableMenus[Nom période concernée],J$5)","v":0},{"$f":"SUMIFS(TableMenus[Quantité légume],TableMenus[Nom produit légume],$A11,TableMenus[Nom période concernée],K$5)","v":0},{"$f":"SUMIFS(TableMenus[Quantité légume],TableMenus[Nom produit légume],$A11,TableMenus[Nom période concernée],L$5)","v":0},{"$f":"SUMIFS(TableMenus[Quantité légume],TableMenus[Nom produit légume],$A11,TableMenus[Nom période concernée],M$5)","v":0},0]
["Champignons",{"$f":"SUMIFS(TableMenus[Quantité légume],TableMenus[Nom produit légume],$A12,TableMenus[Nom période concernée],B$5)","v":0},{"$f":"SUMIFS(TableMenus[Quantité légume],TableMenus[Nom produit légume],$A12,TableMenus[Nom période concernée],C$5)","v":0},{"$f":"SUMIFS(TableMenus[Quantité légume],TableMenus[Nom produit légume],$A12,TableMenus[Nom période concernée],D$5)","v":0},{"$f":"SUMIFS(TableMenus[Quantité légume],TableMenus[Nom produit légume],$A12,TableMenus[Nom période concernée],E$5)","v":0},{"$f":"SUMIFS(TableMenus[Quantité légume],TableMenus[Nom produit légume],$A12,TableMenus[Nom période concernée],F$5)","v":0},{"$f":"SUMIFS(TableMenus[Quantité légume],TableMenus[Nom produit légume],$A12,TableMenus[Nom période concernée],G$5)","v":0},{"$f":"SUMIFS(TableMenus[Quantité légume],TableMenus[Nom produit légume],$A12,TableMenus[Nom période concernée],H$5)","v":0},{"$f":"SUMIFS(TableMenus[Quantité légume],TableMenus[Nom produit légume],$A12,TableMenus[Nom période concernée],I$5)","v":0},{"$f":"SUMIFS(TableMenus[Quantité légume],TableMenus[Nom produit légume],$A12,TableMenus[Nom période concernée],J$5)","v":0},{"$f":"SUMIFS(TableMenus[Quantité légume],TableMenus[Nom produit légume],$A12,TableMenus[Nom période concernée],K$5)","v":0},{"$f":"SUMIFS(TableMenus[Quantité légume],TableMenus[Nom produit légume],$A12,TableMenus[Nom période concernée],L$5)","v":0},{"$f":"SUMIFS(TableMenus[Quantité légume],TableMenus[Nom produit légume],$A12,TableMenus[Nom période concernée],M$5)","v":0},0]
["Chips",{"$f":"SUMIFS(TableMenus[Quantité légume],TableMenus[Nom produit légume],$A13,TableMenus[Nom période concernée],B$5)","v":0},{"$f":"SUMIFS(TableMenus[Quantité légume],TableMenus[Nom produit légume],$A13,TableMenus[Nom période concernée],C$5)","v":0},{"$f":"SUMIFS(TableMenus[Quantité légume],TableMenus[Nom produit légume],$A13,TableMenus[Nom période concernée],D$5)","v":0},{"$f":"SUMIFS(TableMenus[Quantité légume],TableMenus[Nom produit légume],$A13,TableMenus[Nom période concernée],E$5)","v":0},{"$f":"SUMIFS(TableMenus[Quantité légume],TableMenus[Nom produit légume],$A13,TableMenus[Nom période concernée],F$5)","v":0},{"$f":"SUMIFS(TableMenus[Quantité légume],TableMenus[Nom produit légume],$A13,TableMenus[Nom période concernée],G$5)","v":0},{"$f":"SUMIFS(TableMenus[Quantité légume],TableMenus[Nom produit légume],$A13,TableMenus[Nom période concernée],H$5)","v":0},{"$f":"SUMIFS(TableMenus[Quantité légume],TableMenus[Nom produit légume],$A13,TableMenus[Nom période concernée],I$5)","v":0},{"$f":"SUMIFS(TableMenus[Quantité légume],TableMenus[Nom produit légume],$A13,TableMenus[Nom période concernée],J$5)","v":0},{"$f":"SUMIFS(TableMenus[Quantité légume],TableMenus[Nom produit légume],$A13,TableMenus[Nom période concernée],K$5)","v":0},{"$f":"SUMIFS(TableMenus[Quantité légume],TableMenus[Nom produit légume],$A13,TableMenus[Nom période concernée],L$5)","v":0},{"$f":"SUMIFS(TableMenus[Quantité légume],TableMenus[Nom produit légume],$A13,TableMenus[Nom période concernée],M$5)","v":0},0]
["Choucroute",{"$f":"SUMIFS(TableMenus[Quantité légume],TableMenus[Nom produit légume],$A14,TableMenus[Nom période concernée],B$5)","v":0},{"$f":"SUMIFS(TableMenus[Quantité légume],TableMenus[Nom produit légume],$A14,TableMenus[Nom période concernée],C$5)","v":0},{"$f":"SUMIFS(TableMenus[Quantité légume],TableMenus[Nom produit légume],$A14,TableMenus[Nom période concernée],D$5)","v":0},{"$f":"SUMIFS(TableMenus[Quantité légume],TableMenus[Nom produit légume],$A14,TableMenus[Nom période concernée],E$5)","v":0},{"$f":"SUMIFS(TableMenus[Quantité légume],TableMenus[Nom produit légume],$A14,TableMenus[Nom période concernée],F$5)","v":0},{"$f":"SUMIFS(TableMenus[Quantité légume],TableMenus[Nom produit légume],$A14,TableMenus[Nom période concernée],G$5)","v":0},{"$f":"SUMIFS(TableMenus[Quantité légume],TableMenus[Nom produit légume],$A14,TableMenus[Nom période concernée],H$5)","v":0},{"$f":"SUMIFS(TableMenus[Quantité légume],TableMenus[Nom produit légume],$A14,TableMenus[Nom période concernée],I$5)","v":0},{"$f":"SUMIFS(TableMenus[Quantité légume],TableMenus[Nom produit légume],$A14,TableMenus[Nom période concernée],J$5)","v":0},{"$f":"SUMIFS(TableMenus[Quantité légume],TableMenus[Nom produit légume],$A14,TableMenus[Nom période concernée],K$5)","v":0},{"$f":"SUMIFS(TableMenus[Quantité légume],TableMenus[Nom produit légume],$A14,TableMenus[Nom période concernée],L$5)","v":0},{"$f":"SUMIFS(TableMenus[Quantité légume],TableMenus[Nom produit légume],$A14,TableMenus[Nom période concernée],M$5)","v":0},0]
["Chou-fleur",{"$f":"SUMIFS(TableMenus[Quantité légume],TableMenus[Nom produit légume],$A15,TableMenus[Nom période concernée],B$5)","v":0},{"$f":"SUMIFS(TableMenus[Quantité légume],TableMenus[Nom produit légume],$A15,TableMenus[Nom période concernée],C$5)","v":0},{"$f":"SUMIFS(TableMenus[Quantité légume],TableMenus[Nom produit légume],$A15,TableMenus[Nom période concernée],D$5)","v":0},{"$f":"SUMIFS(TableMenus[Quantité légume],TableMenus[Nom produit légume],$A15,TableMenus[Nom période concernée],E$5)","v":0},{"$f":"SUMIFS(TableMenus[Quantité légume],TableMenus[Nom produit légume],$A15,TableMenus[Nom période concernée],F$5)","v":0},{"$f":"SUMIFS(TableMenus[Quantité légume],TableMenus[Nom produit légume],$A15,TableMenus[Nom période concernée],G$5)","v":0},{"$f":"SUMIFS(TableMenus[Quantité légume],TableMenus[Nom produit légume],$A15,TableMenus[Nom période concernée],H$5)","v":0},{"$f":"SUMIFS(TableMenus[Quantité légume],TableMenus[Nom produit légume],$A15,TableMenus[Nom période concernée],I$5)","v":0},{"$f":"SUMIFS(TableMenus[Quantité légume],TableMenus[Nom produit légume],$A15,TableMenus[Nom période concernée],J$5)","v":0},{"$f":"SUMIFS(TableMenus[Quantité légume],TableMenus[Nom produit légume],$A15,TableMenus[Nom période concernée],K$5)","v":0},{"$f":"SUMIFS(TableMenus[Quantité légume],TableMenus[Nom produit légume],$A15,TableMenus[Nom période concernée],L$5)","v":0},{"$f":"SUMIFS(TableMenus[Quantité légume],TableMenus[Nom produit légume],$A15,TableMenus[Nom période concernée],M$5)","v":0},0]
["Choux de Bruxelles",{"$f":"SUMIFS(TableMenus[Quantité légume],TableMenus[Nom produit légume],$A16,TableMenus[Nom période concernée],B$5)","v":0},{"$f":"SUMIFS(TableMenus[Quantité légume],TableMenus[Nom produit légume],$A16,TableMenus[Nom période concernée],C$5)","v":0},{"$f":"SUMIFS(TableMenus[Quantité légume],TableMenus[Nom produit légume],$A16,TableMenus[Nom période concernée],D$5)","v":0},{"$f":"SUMIFS(TableMenus[Quantité légume],TableMenus[Nom produit légume],$A16,TableMenus[Nom période concernée],E$5)","v":0},{"$f":"SUMIFS(TableMenus[Quantité légume],TableMenus[Nom produit légume],$A16,TableMenus[Nom période concernée],F$5)","v":0},{"$f":"SUMIFS(TableMenus[Quantité légume],TableMenus[Nom produit légume],$A16,TableMenus[Nom période concernée],G$5)","v":0},{"$f":"SUMIFS(TableMenus[Quantité légume],TableMenus[Nom produit légume],$A16,TableMenus[Nom période concernée],H$5)","v":0},{"$f":"SUMIFS(TableMenus[Quantité légume],TableMenus[Nom produit légume],$A16,TableMenus[Nom période concernée],I$5)","v":0},{"$f":"SUMIFS(TableMenus[Quantité légume],TableMenus[Nom produit légume],$A16,TableMenus[Nom période concernée],J$5)","v":0},{"$f":"SUMIFS(TableMenus[Quantité légume],TableMenus[Nom produit légume],$A16,TableMenus[Nom période concernée],K$5)","v":0},{"$f":"SUMIFS(TableMenus[Quantité légume],TableMenus[Nom produit légume],$A16,TableMenus[Nom période concernée],L$5)","v":0},{"$f":"SUMIFS(TableMenus[Quantité légume],TableMenus[Nom produit légume],$A16,TableMenus[Nom période concernée],M$5)","v":0},0]
["Concombre",{"$f":"SUMIFS(TableMenus[Quantité légume],TableMenus[Nom produit légume],$A17,TableMenus[Nom période concernée],B$5)","v":0},{"$f":"SUMIFS(TableMenus[Quantité légume],TableMenus[Nom produit légume],$A17,TableMenus[Nom période concernée],C$5)","v":0},{"$f":"SUMIFS(TableMenus[Quantité légume],TableMenus[Nom produit légume],$A17,TableMenus[Nom période concernée],D$5)","v":0},{"$f":"SUMIFS(TableMenus[Quantité légume],TableMenus[Nom produit légume],$A17,TableMenus[Nom période concernée],E$5)","v":0},{"$f":"SUMIFS(TableMenus[Quantité légume],TableMenus[Nom produit légume],$A17,TableMenus[Nom période concernée],F$5)","v":0},{"$f":"SUMIFS(TableMenus[Quantité légume],TableMenus[Nom produit légume],$A17,TableMenus[Nom période concernée],G$5)","v":0},{"$f":"SUMIFS(TableMenus[Quantité légume],TableMenus[Nom produit légume],$A17,TableMenus[Nom période concernée],H$5)","v":0},{"$f":"SUMIFS(TableMenus[Quantité légume],TableMenus[Nom produit légume],$A17,TableMenus[Nom période concernée],I$5)","v":0},{"$f":"SUMIFS(TableMenus[Quantité légume],TableMenus[Nom produit légume],$A17,TableMenus[Nom période concernée],J$5)","v":0},{"$f":"SUMIFS(TableMenus[Quantité légume],TableMenus[Nom produit légume],$A17,TableMenus[Nom période concernée],K$5)","v":0},{"$f":"SUMIFS(TableMenus[Quantité légume],TableMenus[Nom produit légume],$A17,TableMenus[Nom période concernée],L$5)","v":0},{"$f":"SUMIFS(TableMenus[Quantité légume],TableMenus[Nom produit légume],$A17,TableMenus[Nom période concernée],M$5)","v":0},0]
["Couscous",{"$f":"SUMIFS(TableMenus[Quantité légume],TableMenus[Nom produit légume],$A18,TableMenus[Nom période concernée],B$5)","v":0},{"$f":"SUMIFS(TableMenus[Quantité légume],TableMenus[Nom produit légume],$A18,TableMenus[Nom période concernée],C$5)","v":0},{"$f":"SUMIFS(TableMenus[Quantité légume],TableMenus[Nom produit légume],$A18,TableMenus[Nom période concernée],D$5)","v":0},{"$f":"SUMIFS(TableMenus[Quantité légume],TableMenus[Nom produit légume],$A18,TableMenus[Nom période concernée],E$5)","v":0},{"$f":"SUMIFS(TableMenus[Quantité légume],TableMenus[Nom produit légume],$A18,TableMenus[Nom période concernée],F$5)","v":0},{"$f":"SUMIFS(TableMenus[Quantité légume],TableMenus[Nom produit légume],$A18,TableMenus[Nom période concernée],G$5)","v":0},{"$f":"SUMIFS(TableMenus[Quantité légume],TableMenus[Nom produit légume],$A18,TableMenus[Nom période concernée],H$5)","v":0},{"$f":"SUMIFS(TableMenus[Quantité légume],TableMenus[Nom produit légume],$A18,TableMenus[Nom période concernée],I$5)","v":0},{"$f":"SUMIFS(TableMenus[Quantité légume],TableMenus[Nom produit légume],$A18,TableMenus[Nom période concernée],J$5)","v":0},{"$f":"SUMIFS(TableMenus[Quantité légume],TableMenus[Nom produit légume],$A18,TableMenus[Nom période concernée],K$5)","v":0},{"$f":"SUMIFS(TableMenus[Quantité légume],TableMenus[Nom produit légume],$A18,TableMenus[Nom période concernée],L$5)","v":0},{"$f":"SUMIFS(TableMenus[Quantité légume],TableMenus[Nom produit légume],$A18,TableMenus[Nom période concernée],M$5)","v":0},0]
["Endives",{"$f":"SUMIFS(TableMenus[Quantité légume],TableMenus[Nom produit légume],$A19,TableMenus[Nom période concernée],B$5)","v":0},{"$f":"SUMIFS(TableMenus[Quantité légume],TableMenus[Nom produit légume],$A19,TableMenus[Nom période concernée],C$5)","v":0},{"$f":"SUMIFS(TableMenus[Quantité légume],TableMenus[Nom produit légume],$A19,TableMenus[Nom période concernée],D$5)","v":0},{"$f":"SUMIFS(TableMenus[Quantité légume],TableMenus[Nom produit légume],$A19,TableMenus[Nom période concernée],E$5)","v":0},{"$f":"SUMIFS(TableMenus[Quantité légume],TableMenus[Nom produit légume],$A19,TableMenus[Nom période concernée],F$5)","v":0},{"$f":"SUMIFS(TableMenus[Quantité légume],TableMenus[Nom produit légume],$A19,TableMenus[Nom période concernée],G$5)","v":0},{"$f":"SUMIFS(TableMenus[Quantité légume],TableMenus[Nom produit légume],$A19,TableMenus[Nom période concernée],H$5)","v":0},{"$f":"SUMIFS(TableMenus[Quantité légume],TableMenus[Nom produit légume],$A19,TableMenus[Nom période concernée],I$5)","v":0},{"$f":"SUMIFS(TableMenus[Quantité légume],TableMenus[Nom produit légume],$A19,TableMenus[Nom période concernée],J$5)","v":0},{"$f":"SUMIFS(TableMenus[Quantité légume],TableMenus[Nom produit légume],$A19,TableMenus[Nom période concernée],K$5)","v":0},{"$f":"SUMIFS(TableMenus[Quantité légume],TableMenus[Nom produit légume],$A19,TableMenus[Nom période concernée],L$5)","v":0},{"$f":"SUMIFS(TableMenus[Quantité légume],TableMenus[Nom produit légume],$A19,TableMenus[Nom période concernée],M$5)","v":0},0]
["Frites",{"$f":"SUMIFS(TableMenus[Quantité légume],TableMenus[Nom produit légume],$A20,TableMenus[Nom période concernée],B$5)","v":0},{"$f":"SUMIFS(TableMenus[Quantité légume],TableMenus[Nom produit légume],$A20,TableMenus[Nom période concernée],C$5)","v":0},{"$f":"SUMIFS(TableMenus[Quantité légume],TableMenus[Nom produit légume],$A20,TableMenus[Nom période concernée],D$5)","v":0},{"$f":"SUMIFS(TableMenus[Quantité légume],TableMenus[Nom produit légume],$A20,TableMenus[Nom période concernée],E$5)","v":0},{"$f":"SUMIFS(TableMenus[Quantité légume],TableMenus[Nom produit légume],$A20,TableMenus[Nom période concernée],F$5)","v":0},{"$f":"SUMIFS(TableMenus[Quantité légume],TableMenus[Nom produit légume],$A20,TableMenus[Nom période concernée],G$5)","v":0},{"$f":"SUMIFS(TableMenus[Quantité légume],TableMenus[Nom produit légume],$A20,TableMenus[Nom période concernée],H$5)","v":0},{"$f":"SUMIFS(TableMenus[Quantité légume],TableMenus[Nom produit légume],$A20,TableMenus[Nom période concernée],I$5)","v":0},{"$f":"SUMIFS(TableMenus[Quantité légume],TableMenus[Nom produit légume],$A20,TableMenus[Nom période concernée],J$5)","v":0},{"$f":"SUMIFS(TableMenus[Quantité légume],TableMenus[Nom produit légume],$A20,TableMenus[Nom période concernée],K$5)","v":0},{"$f":"SUMIFS(TableMenus[Quantité légume],TableMenus[Nom produit légume],$A20,TableMenus[Nom période concernée],L$5)","v":0},{"$f":"SUMIFS(TableMenus[Quantité légume],TableMenus[Nom produit légume],$A20,TableMenus[Nom période concernée],M$5)","v":0},{"$f":"SUM(B20:M20)","v":0}]
["Haricots verts",{"$f":"SUMIFS(TableMenus[Quantité légume],TableMenus[Nom produit légume],$A21,TableMenus[Nom période concernée],B$5)","v":0},{"$f":"SUMIFS(TableMenus[Quantité légume],TableMenus[Nom produit légume],$A21,TableMenus[Nom période concernée],C$5)","v":0},{"$f":"SUMIFS(TableMenus[Quantité légume],TableMenus[Nom produit légume],$A21,TableMenus[Nom période concernée],D$5)","v":0},{"$f":"SUMIFS(TableMenus[Quantité légume],TableMenus[Nom produit légume],$A21,TableMenus[Nom période concernée],E$5)","v":0},{"$f":"SUMIFS(TableMenus[Quantité légume],TableMenus[Nom produit légume],$A21,TableMenus[Nom période concernée],F$5)","v":0},{"$f":"SUMIFS(TableMenus[Quantité légume],TableMenus[Nom produit légume],$A21,TableMenus[Nom période concernée],G$5)","v":0},{"$f":"SUMIFS(TableMenus[Quantité légume],TableMenus[Nom produit légume],$A21,TableMenus[Nom période concernée],H$5)","v":0},{"$f":"SUMIFS(TableMenus[Quantité légume],TableMenus[Nom produit légume],$A21,TableMenus[Nom période concernée],I$5)","v":0},{"$f":"SUMIFS(TableMenus[Quantité légume],TableMenus[Nom produit légume],$A21,TableMenus[Nom période concernée],J$5)","v":0},{"$f":"SUMIFS(TableMenus[Quantité légume],TableMenus[Nom produit légume],$A21,TableMenus[Nom période concernée],K$5)","v":0},{"$f":"SUMIFS(TableMenus[Quantité légume],TableMenus[Nom produit légume],$A21,TableMenus[Nom période concernée],L$5)","v":0},{"$f":"SUMIFS(TableMenus[Quantité légume],TableMenus[Nom produit légume],$A21,TableMenus[Nom période concernée],M$5)","v":0},0]
["Macédoine de légumes",{"$f":"SUMIFS(TableMenus[Quantité légume],TableMenus[Nom produit légume],A22,TableMenus[Nom période concernée],B$5)","v":0},{"$f":"SUMIFS(TableMenus[Quantité légume],TableMenus[Nom produit légume],$A22,TableMenus[Nom période concernée],C$5)","v":0},{"$f":"SUMIFS(TableMenus[Quantité légume],TableMenus[Nom produit légume],$A22,TableMenus[Nom période concernée],D$5)","v":0},{"$f":"SUMIFS(TableMenus[Quantité légume],TableMenus[Nom produit légume],$A22,TableMenus[Nom période concernée],E$5)","v":0},{"$f":"SUMIFS(TableMenus[Quantité légume],TableMenus[Nom produit légume],$A22,TableMenus[Nom période concernée],F$5)","v":0},{"$f":"SUMIFS(TableMenus[Quantité légume],TableMenus[Nom produit légume],$A22,TableMenus[Nom période concernée],G$5)","v":0},{"$f":"SUMIFS(TableMenus[Quantité légume],TableMenus[Nom produit légume],$A22,TableMenus[Nom période concernée],H$5)","v":0},{"$f":"SUMIFS(TableMenus[Quantité légume],TableMenus[Nom produit légume],$A22,TableMenus[Nom période concernée],I$5)","v":0},{"$f":"SUMIFS(TableMenus[Quantité légume],TableMenus[Nom produit légume],$A22,TableMenus[Nom période concernée],J$5)","v":0},{"$f":"SUMIFS(TableMenus[Quantité légume],TableMenus[Nom produit légume],$A22,TableMenus[Nom période concernée],K$5)","v":0},{"$f":"SUMIFS(TableMenus[Quantité légume],TableMenus[Nom produit légume],$A22,TableMenus[Nom période concernée],L$5)","v":0},{"$f":"SUMIFS(TableMenus[Quantité légume],TableMenus[Nom produit légume],$A22,TableMenus[Nom période concernée],M$5)","v":0},0]
["Maïs",{"$f":"SUMIFS(TableMenus[Quantité légume],TableMenus[Nom produit légume],$A23,TableMenus[Nom période concernée],B$5)","v":0},{"$f":"SUMIFS(TableMenus[Quantité légume],TableMenus[Nom produit légume],$A23,TableMenus[Nom période concernée],C$5)","v":0},{"$f":"SUMIFS(TableMenus[Quantité légume],TableMenus[Nom produit légume],$A23,TableMenus[Nom période concernée],D$5)","v":0},{"$f":"SUMIFS(TableMenus[Quantité légume],TableMenus[Nom produit légume],$A23,TableMenus[Nom période concernée],E$5)","v":0},{"$f":"SUMIFS(TableMenus[Quantité légume],TableMenus[Nom produit légume],$A23,TableMenus[Nom période concernée],F$5)","v":0},{"$f":"SUMIFS(TableMenus[Quantité légume],TableMenus[Nom produit légume],$A23,TableMenus[Nom période concernée],G$5)","v":0},{"$f":"SUMIFS(TableMenus[Quantité légume],TableMenus[Nom produit légume],$A23,TableMenus[Nom période concernée],H$5)","v":0},{"$f":"SUMIFS(TableMenus[Quantité légume],TableMenus[Nom produit légume],$A23,TableMenus[Nom période concernée],I$5)","v":0},{"$f":"SUMIFS(TableMenus[Quantité légume],TableMenus[Nom produit légume],$A23,TableMenus[Nom période concernée],J$5)","v":0},{"$f":"SUMIFS(TableMenus[Quantité légume],TableMenus[Nom produit légume],$A23,TableMenus[Nom période concernée],K$5)","v":0},{"$f":"SUMIFS(TableMenus[Quantité légume],TableMenus[Nom produit légume],$A23,TableMenus[Nom période concernée],L$5)","v":0},{"$f":"SUMIFS(TableMenus[Quantité légume],TableMenus[Nom produit légume],$A23,TableMenus[Nom période concernée],M$5)","v":0},0]
["Paella",{"$f":"SUMIFS(TableMenus[Quantité légume],TableMenus[Nom produit légume],A24,TableMenus[Nom période concernée],B$5)","v":0},{"$f":"SUMIFS(TableMenus[Quantité légume],TableMenus[Nom produit légume],$A24,TableMenus[Nom période concernée],C$5)","v":0},{"$f":"SUMIFS(TableMenus[Quantité légume],TableMenus[Nom produit légume],$A24,TableMenus[Nom période concernée],D$5)","v":0},{"$f":"SUMIFS(TableMenus[Quantité légume],TableMenus[Nom produit légume],$A24,TableMenus[Nom période concernée],E$5)","v":0},{"$f":"SUMIFS(TableMenus[Quantité légume],TableMenus[Nom produit légume],$A24,TableMenus[Nom période concernée],F$5)","v":0},{"$f":"SUMIFS(TableMenus[Quantité légume],TableMenus[Nom produit légume],$A24,TableMenus[Nom période concernée],G$5)","v":0},{"$f":"SUMIFS(TableMenus[Quantité légume],TableMenus[Nom produit légume],$A24,TableMenus[Nom période concernée],H$5)","v":0},{"$f":"SUMIFS(TableMenus[Quantité légume],TableMenus[Nom produit légume],$A24,TableMenus[Nom période concernée],I$5)","v":0},{"$f":"SUMIFS(TableMenus[Quantité légume],TableMenus[Nom produit légume],$A24,TableMenus[Nom période concernée],J$5)","v":0},{"$f":"SUMIFS(TableMenus[Quantité légume],TableMenus[Nom produit légume],$A24,TableMenus[Nom période concernée],K$5)","v":0},{"$f":"SUMIFS(TableMenus[Quantité légume],TableMenus[Nom produit légume],$A24,TableMenus[Nom période concernée],L$5)","v":0},{"$f":"SUMIFS(TableMenus[Quantité légume],TableMenus[Nom produit légume],$A24,TableMenus[Nom période concernée],M$5)","v":0},0]
["Pâtes à la sauce tomates",{"$f":"SUMIFS(TableMenus[Quantité légume],TableMenus[Nom produit légume],$A25,TableMenus[Nom période concernée],B$5)","v":0},{"$f":"SUMIFS(TableMenus[Quantité légume],TableMenus[Nom produit légume],$A25,TableMenus[Nom période concernée],C$5)","v":0},{"$f":"SUMIFS(TableMenus[Quantité légume],TableMenus[Nom produit légume],$A25,TableMenus[Nom période concernée],D$5)","v":0},{"$f":"SUMIFS(TableMenus[Quantité légume],TableMenus[Nom produit légume],$A25,TableMenus[Nom période concernée],E$5)","v":0},{"$f":"SUMIFS(TableMenus[Quantité légume],TableMenus[Nom produit légume],$A25,TableMenus[Nom période concernée],F$5)","v":0},{"$f":"SUMIFS(TableMenus[Quantité légume],TableMenus[Nom produit légume],$A25,TableMenus[Nom période concernée],G$5)","v":0},{"$f":"SUMIFS(TableMenus[Quantité légume],TableMenus[Nom produit légume],$A25,TableMenus[Nom période concernée],H$5)","v":0},{"$f":"SUMIFS(TableMenus[Quantité légume],TableMenus[Nom produit légume],$A25,TableMenus[Nom période concernée],I$5)","v":0},{"$f":"SUMIFS(TableMenus[Quantité légume],TableMenus[Nom produit légume],$A25,TableMenus[Nom période concernée],J$5)","v":0},{"$f":"SUMIFS(TableMenus[Quantité légume],TableMenus[Nom produit légume],$A25,TableMenus[Nom période concernée],K$5)","v":0},{"$f":"SUMIFS(TableMenus[Quantité légume],TableMenus[Nom produit légume],$A25,TableMenus[Nom période concernée],L$5)","v":0},{"$f":"SUMIFS(TableMenus[Quantité légume],TableMenus[Nom produit légume],$A25,TableMenus[Nom période concernée],M$5)","v":0},0]
["Pâtes au beurre",{"$f":"SUMIFS(TableMenus[Quantité légume],TableMenus[Nom produit légume],A26,TableMenus[Nom période concernée],B$5)","v":0},{"$f":"SUMIFS(TableMenus[Quantité légume],TableMenus[Nom produit légume],$A26,TableMenus[Nom période concernée],C$5)","v":0},{"$f":"SUMIFS(TableMenus[Quantité légume],TableMenus[Nom produit légume],$A26,TableMenus[Nom période concernée],D$5)","v":0},{"$f":"SUMIFS(TableMenus[Quantité légume],TableMenus[Nom produit légume],$A26,TableMenus[Nom période concernée],E$5)","v":0},{"$f":"SUMIFS(TableMenus[Quantité légume],TableMenus[Nom produit légume],$A26,TableMenus[Nom période concernée],F$5)","v":0},{"$f":"SUMIFS(TableMenus[Quantité légume],TableMenus[Nom produit légume],$A26,TableMenus[Nom période concernée],G$5)","v":0},{"$f":"SUMIFS(TableMenus[Quantité légume],TableMenus[Nom produit légume],$A26,TableMenus[Nom période concernée],H$5)","v":0},{"$f":"SUMIFS(TableMenus[Quantité légume],TableMenus[Nom produit légume],$A26,TableMenus[Nom période concernée],I$5)","v":0},{"$f":"SUMIFS(TableMenus[Quantité légume],TableMenus[Nom produit légume],$A26,TableMenus[Nom période concernée],J$5)","v":0},{"$f":"SUMIFS(TableMenus[Quantité légume],TableMenus[Nom produit légume],$A26,TableMenus[Nom période concernée],K$5)","v":0},{"$f":"SUMIFS(TableMenus[Quantité légume],TableMenus[Nom produit légume],$A26,TableMenus[Nom période concernée],L$5)","v":0},{"$f":"SUMIFS(TableMenus[Quantité légume],TableMenus[Nom produit légume],$A26,TableMenus[Nom période concernée],M$5)","v":0},0]
["Pâtes au fromage râpé",{"$f":"SUMIFS(TableMenus[Quantité légume],TableMenus[Nom produit légume],$A27,TableMenus[Nom période concernée],B$5)","v":0},{"$f":"SUMIFS(TableMenus[Quantité légume],TableMenus[Nom produit légume],$A27,TableMenus[Nom période concernée],C$5)","v":0},{"$f":"SUMIFS(TableMenus[Quantité légume],TableMenus[Nom produit légume],$A27,TableMenus[Nom période concernée],D$5)","v":0},{"$f":"SUMIFS(TableMenus[Quantité légume],TableMenus[Nom produit légume],$A27,TableMenus[Nom période concernée],E$5)","v":0},{"$f":"SUMIFS(TableMenus[Quantité légume],TableMenus[Nom produit légume],$A27,TableMenus[Nom période concernée],F$5)","v":0},{"$f":"SUMIFS(TableMenus[Quantité légume],TableMenus[Nom produit légume],$A27,TableMenus[Nom période concernée],G$5)","v":0},{"$f":"SUMIFS(TableMenus[Quantité légume],TableMenus[Nom produit légume],$A27,TableMenus[Nom période concernée],H$5)","v":0},{"$f":"SUMIFS(TableMenus[Quantité légume],TableMenus[Nom produit légume],$A27,TableMenus[Nom période concernée],I$5)","v":0},{"$f":"SUMIFS(TableMenus[Quantité légume],TableMenus[Nom produit légume],$A27,TableMenus[Nom période concernée],J$5)","v":0},{"$f":"SUMIFS(TableMenus[Quantité légume],TableMenus[Nom produit légume],$A27,TableMenus[Nom période concernée],K$5)","v":0},{"$f":"SUMIFS(TableMenus[Quantité légume],TableMenus[Nom produit légume],$A27,TableMenus[Nom période concernée],L$5)","v":0},{"$f":"SUMIFS(TableMenus[Quantité légume],TableMenus[Nom produit légume],$A27,TableMenus[Nom période concernée],M$5)","v":0},0]
["Petits pois",{"$f":"SUMIFS(TableMenus[Quantité légume],TableMenus[Nom produit légume],$A28,TableMenus[Nom période concernée],B$5)","v":0},{"$f":"SUMIFS(TableMenus[Quantité légume],TableMenus[Nom produit légume],$A28,TableMenus[Nom période concernée],C$5)","v":0},{"$f":"SUMIFS(TableMenus[Quantité légume],TableMenus[Nom produit légume],$A28,TableMenus[Nom période concernée],D$5)","v":0},{"$f":"SUMIFS(TableMenus[Quantité légume],TableMenus[Nom produit légume],$A28,TableMenus[Nom période concernée],E$5)","v":0},{"$f":"SUMIFS(TableMenus[Quantité légume],TableMenus[Nom produit légume],$A28,TableMenus[Nom période concernée],F$5)","v":0},{"$f":"SUMIFS(TableMenus[Quantité légume],TableMenus[Nom produit légume],$A28,TableMenus[Nom période concernée],G$5)","v":0},{"$f":"SUMIFS(TableMenus[Quantité légume],TableMenus[Nom produit légume],$A28,TableMenus[Nom période concernée],H$5)","v":0},{"$f":"SUMIFS(TableMenus[Quantité légume],TableMenus[Nom produit légume],$A28,TableMenus[Nom période concernée],I$5)","v":0},{"$f":"SUMIFS(TableMenus[Quantité légume],TableMenus[Nom produit légume],$A28,TableMenus[Nom période concernée],J$5)","v":0},{"$f":"SUMIFS(TableMenus[Quantité légume],TableMenus[Nom produit légume],$A28,TableMenus[Nom période concernée],K$5)","v":0},{"$f":"SUMIFS(TableMenus[Quantité légume],TableMenus[Nom produit légume],$A28,TableMenus[Nom période concernée],L$5)","v":0},{"$f":"SUMIFS(TableMenus[Quantité légume],TableMenus[Nom produit légume],$A28,TableMenus[Nom période concernée],M$5)","v":0},0]
["Petits pois et jeunes carottes",{"$f":"SUMIFS(TableMenus[Quantité légume],TableMenus[Nom produit légume],$A29,TableMenus[Nom période concernée],B$5)","v":0},{"$f":"SUMIFS(TableMenus[Quantité légume],TableMenus[Nom produit légume],$A29,TableMenus[Nom période concernée],C$5)","v":0},{"$f":"SUMIFS(TableMenus[Quantité légume],TableMenus[Nom produit légume],$A29,TableMenus[Nom période concernée],D$5)","v":0},{"$f":"SUMIFS(TableMenus[Quantité légume],TableMenus[Nom produit légume],$A29,TableMenus[Nom période concernée],E$5)","v":0},{"$f":"SUMIFS(TableMenus[Quantité légume],TableMenus[Nom produit légume],$A29,TableMenus[Nom période concernée],F$5)","v":0},{"$f":"SUMIFS(TableMenus[Quantité légume],TableMenus[Nom produit légume],$A29,TableMenus[Nom période concernée],G$5)","v":0},{"$f":"SUMIFS(TableMenus[Quantité légume],TableMenus[Nom produit légume],$A29,TableMenus[Nom période concernée],H$5)","v":0},{"$f":"SUMIFS(TableMenus[Quantité légume],TableMenus[Nom produit légume],$A29,TableMenus[Nom période concernée],I$5)","v":0},{"$f":"SUMIFS(TableMenus[Quantité légume],TableMenus[Nom produit légume],$A29,TableMenus[Nom période concernée],J$5)","v":0},{"$f":"SUMIFS(TableMenus[Quantité légume],TableMenus[Nom produit légume],$A29,TableMenus[Nom période concernée],K$5)","v":0},{"$f":"SUMIFS(TableMenus[Quantité légume],TableMenus[Nom produit légume],$A29,TableMenus[Nom période concernée],L$5)","v":0},{"$f":"SUMIFS(TableMenus[Quantité légume],TableMenus[Nom produit légume],$A29,TableMenus[Nom période concernée],M$5)","v":0},0]
["Poireau",{"$f":"SUMIFS(TableMenus[Quantité légume],TableMenus[Nom produit légume],$A30,TableMenus[Nom période concernée],B$5)","v":0},{"$f":"SUMIFS(TableMenus[Quantité légume],TableMenus[Nom produit légume],$A30,TableMenus[Nom période concernée],C$5)","v":0},{"$f":"SUMIFS(TableMenus[Quantité légume],TableMenus[Nom produit légume],$A30,TableMenus[Nom période concernée],D$5)","v":0},{"$f":"SUMIFS(TableMenus[Quantité légume],TableMenus[Nom produit légume],$A30,TableMenus[Nom période concernée],E$5)","v":0},{"$f":"SUMIFS(TableMenus[Quantité légume],TableMenus[Nom produit légume],$A30,TableMenus[Nom période concernée],F$5)","v":0},{"$f":"SUMIFS(TableMenus[Quantité légume],TableMenus[Nom produit légume],$A30,TableMenus[Nom période concernée],G$5)","v":0},{"$f":"SUMIFS(TableMenus[Quantité légume],TableMenus[Nom produit légume],$A30,TableMenus[Nom période concernée],H$5)","v":0},{"$f":"SUMIFS(TableMenus[Quantité légume],TableMenus[Nom produit légume],$A30,TableMenus[Nom période concernée],I$5)","v":0},{"$f":"SUMIFS(TableMenus[Quantité légume],TableMenus[Nom produit légume],$A30,TableMenus[Nom période concernée],J$5)","v":0},{"$f":"SUMIFS(TableMenus[Quantité légume],TableMenus[Nom produit légume],$A30,TableMenus[Nom période concernée],K$5)","v":0},{"$f":"SUMIFS(TableMenus[Quantité légume],TableMenus[Nom produit légume],$A30,TableMenus[Nom période concernée],L$5)","v":0},{"$f":"SUMIFS(TableMenus[Quantité légume],TableMenus[Nom produit légume],$A30,TableMenus[Nom période concernée],M$5)","v":0},0]
["Pomme de terre",{"$f":"SUMIFS(TableMenus[Quantité légume],TableMenus[Nom produit légume],$A31,TableMenus[Nom période concernée],B$5)","v":0},{"$f":"SUMIFS(TableMenus[Quantité légume],TableMenus[Nom produit légume],$A31,TableMenus[Nom période concernée],C$5)","v":0},{"$f":"SUMIFS(TableMenus[Quantité légume],TableMenus[Nom produit légume],$A31,TableMenus[Nom période concernée],D$5)","v":0},{"$f":"SUMIFS(TableMenus[Quantité légume],TableMenus[Nom produit légume],$A31,TableMenus[Nom période concernée],E$5)","v":0},{"$f":"SUMIFS(TableMenus[Quantité légume],TableMenus[Nom produit légume],$A31,TableMenus[Nom période concernée],F$5)","v":0},{"$f":"SUMIFS(TableMenus[Quantité légume],TableMenus[Nom produit légume],$A31,TableMenus[Nom période concernée],G$5)","v":0},{"$f":"SUMIFS(TableMenus[Quantité légume],TableMenus[Nom produit légume],$A31,TableMenus[Nom période concernée],H$5)","v":0},{"$f":"SUMIFS(TableMenus[Quantité légume],TableMenus[Nom produit légume],$A31,TableMenus[Nom période concernée],I$5)","v":0},{"$f":"SUMIFS(TableMenus[Quantité légume],TableMenus[Nom produit légume],$A31,TableMenus[Nom période concernée],J$5)","v":0},{"$f":"SUMIFS(TableMenus[Quantité légume],TableMenus[Nom produit légume],$A31,TableMenus[Nom période concernée],K$5)","v":0},{"$f":"SUMIFS(TableMenus[Quantité légume],TableMenus[Nom produit légume],$A31,TableMenus[Nom période concernée],L$5)","v":0},{"$f":"SUMIFS(TableMenus[Quantité légume],TableMenus[Nom produit légume],$A31,TableMenus[Nom période concernée],M$5)","v":0},0]
["Purée",{"$f":"SUMIFS(TableMenus[Quantité légume],TableMenus[Nom produit légume],$A32,TableMenus[Nom période concernée],B$5)","v":0},{"$f":"SUMIFS(TableMenus[Quantité légume],TableMenus[Nom produit légume],$A32,TableMenus[Nom période concernée],C$5)","v":0},{"$f":"SUMIFS(TableMenus[Quantité légume],TableMenus[Nom produit légume],$A32,TableMenus[Nom période concernée],D$5)","v":0},{"$f":"SUMIFS(TableMenus[Quantité légume],TableMenus[Nom produit légume],$A32,TableMenus[Nom période concernée],E$5)","v":0},{"$f":"SUMIFS(TableMenus[Quantité légume],TableMenus[Nom produit légume],$A32,TableMenus[Nom période concernée],F$5)","v":0},{"$f":"SUMIFS(TableMenus[Quantité légume],TableMenus[Nom produit légume],$A32,TableMenus[Nom période concernée],G$5)","v":0},{"$f":"SUMIFS(TableMenus[Quantité légume],TableMenus[Nom produit légume],$A32,TableMenus[Nom période concernée],H$5)","v":0},{"$f":"SUMIFS(TableMenus[Quantité légume],TableMenus[Nom produit légume],$A32,TableMenus[Nom période concernée],I$5)","v":0},{"$f":"SUMIFS(TableMenus[Quantité légume],TableMenus[Nom produit légume],$A32,TableMenus[Nom période concernée],J$5)","v":0},{"$f":"SUMIFS(TableMenus[Quantité légume],TableMenus[Nom produit légume],$A32,TableMenus[Nom période concernée],K$5)","v":0},{"$f":"SUMIFS(TableMenus[Quantité légume],TableMenus[Nom produit légume],$A32,TableMenus[Nom période concernée],L$5)","v":0},{"$f":"SUMIFS(TableMenus[Quantité légume],TableMenus[Nom produit légume],$A32,TableMenus[Nom période concernée],M$5)","v":0},0]
["Quenelles",{"$f":"SUMIFS(TableMenus[Quantité légume],TableMenus[Nom produit légume],$A33,TableMenus[Nom période concernée],B$5)","v":0},{"$f":"SUMIFS(TableMenus[Quantité légume],TableMenus[Nom produit légume],$A33,TableMenus[Nom période concernée],C$5)","v":0},{"$f":"SUMIFS(TableMenus[Quantité légume],TableMenus[Nom produit légume],$A33,TableMenus[Nom période concernée],D$5)","v":0},{"$f":"SUMIFS(TableMenus[Quantité légume],TableMenus[Nom produit légume],$A33,TableMenus[Nom période concernée],E$5)","v":0},{"$f":"SUMIFS(TableMenus[Quantité légume],TableMenus[Nom produit légume],$A33,TableMenus[Nom période concernée],F$5)","v":0},{"$f":"SUMIFS(TableMenus[Quantité légume],TableMenus[Nom produit légume],$A33,TableMenus[Nom période concernée],G$5)","v":0},{"$f":"SUMIFS(TableMenus[Quantité légume],TableMenus[Nom produit légume],$A33,TableMenus[Nom période concernée],H$5)","v":0},{"$f":"SUMIFS(TableMenus[Quantité légume],TableMenus[Nom produit légume],$A33,TableMenus[Nom période concernée],I$5)","v":0},{"$f":"SUMIFS(TableMenus[Quantité légume],TableMenus[Nom produit légume],$A33,TableMenus[Nom période concernée],J$5)","v":0},{"$f":"SUMIFS(TableMenus[Quantité légume],TableMenus[Nom produit légume],$A33,TableMenus[Nom période concernée],K$5)","v":0},{"$f":"SUMIFS(TableMenus[Quantité légume],TableMenus[Nom produit légume],$A33,TableMenus[Nom période concernée],L$5)","v":0},{"$f":"SUMIFS(TableMenus[Quantité légume],TableMenus[Nom produit légume],$A33,TableMenus[Nom période concernée],M$5)","v":0},0]
["Radis",{"$f":"SUMIFS(TableMenus[Quantité légume],TableMenus[Nom produit légume],$A34,TableMenus[Nom période concernée],B$5)","v":0},{"$f":"SUMIFS(TableMenus[Quantité légume],TableMenus[Nom produit légume],$A34,TableMenus[Nom période concernée],C$5)","v":0},{"$f":"SUMIFS(TableMenus[Quantité légume],TableMenus[Nom produit légume],$A34,TableMenus[Nom période concernée],D$5)","v":0},{"$f":"SUMIFS(TableMenus[Quantité légume],TableMenus[Nom produit légume],$A34,TableMenus[Nom période concernée],E$5)","v":0},{"$f":"SUMIFS(TableMenus[Quantité légume],TableMenus[Nom produit légume],$A34,TableMenus[Nom période concernée],F$5)","v":0},{"$f":"SUMIFS(TableMenus[Quantité légume],TableMenus[Nom produit légume],$A34,TableMenus[Nom période concernée],G$5)","v":0},{"$f":"SUMIFS(TableMenus[Quantité légume],TableMenus[Nom produit légume],$A34,TableMenus[Nom période concernée],H$5)","v":0},{"$f":"SUMIFS(TableMenus[Quantité légume],TableMenus[Nom produit légume],$A34,TableMenus[Nom période concernée],I$5)","v":0},{"$f":"SUMIFS(TableMenus[Quantité légume],TableMenus[Nom produit légume],$A34,TableMenus[Nom période concernée],J$5)","v":0},{"$f":"SUMIFS(TableMenus[Quantité légume],TableMenus[Nom produit légume],$A34,TableMenus[Nom période concernée],K$5)","v":0},{"$f":"SUMIFS(TableMenus[Quantité légume],TableMenus[Nom produit légume],$A34,TableMenus[Nom période concernée],L$5)","v":0},{"$f":"SUMIFS(TableMenus[Quantité légume],TableMenus[Nom produit légume],$A34,TableMenus[Nom période concernée],M$5)","v":0},0]
["Ratatouille",{"$f":"SUMIFS(TableMenus[Quantité légume],TableMenus[Nom produit légume],$A35,TableMenus[Nom période concernée],B$5)","v":0},{"$f":"SUMIFS(TableMenus[Quantité légume],TableMenus[Nom produit légume],$A35,TableMenus[Nom période concernée],C$5)","v":0},{"$f":"SUMIFS(TableMenus[Quantité légume],TableMenus[Nom produit légume],$A35,TableMenus[Nom période concernée],D$5)","v":0},{"$f":"SUMIFS(TableMenus[Quantité légume],TableMenus[Nom produit légume],$A35,TableMenus[Nom période concernée],E$5)","v":0},{"$f":"SUMIFS(TableMenus[Quantité légume],TableMenus[Nom produit légume],$A35,TableMenus[Nom période concernée],F$5)","v":0},{"$f":"SUMIFS(TableMenus[Quantité légume],TableMenus[Nom produit légume],$A35,TableMenus[Nom période concernée],G$5)","v":0},{"$f":"SUMIFS(TableMenus[Quantité légume],TableMenus[Nom produit légume],$A35,TableMenus[Nom période concernée],H$5)","v":0},{"$f":"SUMIFS(TableMenus[Quantité légume],TableMenus[Nom produit légume],$A35,TableMenus[Nom période concernée],I$5)","v":0},{"$f":"SUMIFS(TableMenus[Quantité légume],TableMenus[Nom produit légume],$A35,TableMenus[Nom période concernée],J$5)","v":0},{"$f":"SUMIFS(TableMenus[Quantité légume],TableMenus[Nom produit légume],$A35,TableMenus[Nom période concernée],K$5)","v":0},{"$f":"SUMIFS(TableMenus[Quantité légume],TableMenus[Nom produit légume],$A35,TableMenus[Nom période concernée],L$5)","v":0},{"$f":"SUMIFS(TableMenus[Quantité légume],TableMenus[Nom produit légume],$A35,TableMenus[Nom période concernée],M$5)","v":0},0]
["Raviolis",{"$f":"SUMIFS(TableMenus[Quantité légume],TableMenus[Nom produit légume],$A36,TableMenus[Nom période concernée],B$5)","v":0},{"$f":"SUMIFS(TableMenus[Quantité légume],TableMenus[Nom produit légume],$A36,TableMenus[Nom période concernée],C$5)","v":0},{"$f":"SUMIFS(TableMenus[Quantité légume],TableMenus[Nom produit légume],$A36,TableMenus[Nom période concernée],D$5)","v":0},{"$f":"SUMIFS(TableMenus[Quantité légume],TableMenus[Nom produit légume],$A36,TableMenus[Nom période concernée],E$5)","v":0},{"$f":"SUMIFS(TableMenus[Quantité légume],TableMenus[Nom produit légume],$A36,TableMenus[Nom période concernée],F$5)","v":0},{"$f":"SUMIFS(TableMenus[Quantité légume],TableMenus[Nom produit légume],$A36,TableMenus[Nom période concernée],G$5)","v":0},{"$f":"SUMIFS(TableMenus[Quantité légume],TableMenus[Nom produit légume],$A36,TableMenus[Nom période concernée],H$5)","v":0},{"$f":"SUMIFS(TableMenus[Quantité légume],TableMenus[Nom produit légume],$A36,TableMenus[Nom période concernée],I$5)","v":0},{"$f":"SUMIFS(TableMenus[Quantité légume],TableMenus[Nom produit légume],$A36,TableMenus[Nom période concernée],J$5)","v":0},{"$f":"SUMIFS(TableMenus[Quantité légume],TableMenus[Nom produit légume],$A36,TableMenus[Nom période concernée],K$5)","v":0},{"$f":"SUMIFS(TableMenus[Quantité légume],TableMenus[Nom produit légume],$A36,TableMenus[Nom période concernée],L$5)","v":0},{"$f":"SUMIFS(TableMenus[Quantité légume],TableMenus[Nom produit légume],$A36,TableMenus[Nom période concernée],M$5)","v":0},0]
["Riz",{"$f":"SUMIFS(TableMenus[Quantité légume],TableMenus[Nom produit légume],$A37,TableMenus[Nom période concernée],B$5)","v":0},{"$f":"SUMIFS(TableMenus[Quantité légume],TableMenus[Nom produit légume],$A37,TableMenus[Nom période concernée],C$5)","v":0},{"$f":"SUMIFS(TableMenus[Quantité légume],TableMenus[Nom produit légume],$A37,TableMenus[Nom période concernée],D$5)","v":0},{"$f":"SUMIFS(TableMenus[Quantité légume],TableMenus[Nom produit légume],$A37,TableMenus[Nom période concernée],E$5)","v":0},{"$f":"SUMIFS(TableMenus[Quantité légume],TableMenus[Nom produit légume],$A37,TableMenus[Nom période concernée],F$5)","v":0},{"$f":"SUMIFS(TableMenus[Quantité légume],TableMenus[Nom produit légume],$A37,TableMenus[Nom période concernée],G$5)","v":0},{"$f":"SUMIFS(TableMenus[Quantité légume],TableMenus[Nom produit légume],$A37,TableMenus[Nom période concernée],H$5)","v":0},{"$f":"SUMIFS(TableMenus[Quantité légume],TableMenus[Nom produit légume],$A37,TableMenus[Nom période concernée],I$5)","v":0},{"$f":"SUMIFS(TableMenus[Quantité légume],TableMenus[Nom produit légume],$A37,TableMenus[Nom période concernée],J$5)","v":0},{"$f":"SUMIFS(TableMenus[Quantité légume],TableMenus[Nom produit légume],$A37,TableMenus[Nom période concernée],K$5)","v":0},{"$f":"SUMIFS(TableMenus[Quantité légume],TableMenus[Nom produit légume],$A37,TableMenus[Nom période concernée],L$5)","v":0},{"$f":"SUMIFS(TableMenus[Quantité légume],TableMenus[Nom produit légume],$A37,TableMenus[Nom période concernée],M$5)","v":0},0]
["Salade",{"$f":"SUMIFS(TableMenus[Quantité légume],TableMenus[Nom produit légume],$A38,TableMenus[Nom période concernée],B$5)","v":0},{"$f":"SUMIFS(TableMenus[Quantité légume],TableMenus[Nom produit légume],$A38,TableMenus[Nom période concernée],C$5)","v":0},{"$f":"SUMIFS(TableMenus[Quantité légume],TableMenus[Nom produit légume],$A38,TableMenus[Nom période concernée],D$5)","v":0},{"$f":"SUMIFS(TableMenus[Quantité légume],TableMenus[Nom produit légume],$A38,TableMenus[Nom période concernée],E$5)","v":0},{"$f":"SUMIFS(TableMenus[Quantité légume],TableMenus[Nom produit légume],$A38,TableMenus[Nom période concernée],F$5)","v":0},{"$f":"SUMIFS(TableMenus[Quantité légume],TableMenus[Nom produit légume],$A38,TableMenus[Nom période concernée],G$5)","v":0},{"$f":"SUMIFS(TableMenus[Quantité légume],TableMenus[Nom produit légume],$A38,TableMenus[Nom période concernée],H$5)","v":0},{"$f":"SUMIFS(TableMenus[Quantité légume],TableMenus[Nom produit légume],$A38,TableMenus[Nom période concernée],I$5)","v":0},{"$f":"SUMIFS(TableMenus[Quantité légume],TableMenus[Nom produit légume],$A38,TableMenus[Nom période concernée],J$5)","v":0},{"$f":"SUMIFS(TableMenus[Quantité légume],TableMenus[Nom produit légume],$A38,TableMenus[Nom période concernée],K$5)","v":0},{"$f":"SUMIFS(TableMenus[Quantité légume],TableMenus[Nom produit légume],$A38,TableMenus[Nom période concernée],L$5)","v":0},{"$f":"SUMIFS(TableMenus[Quantité légume],TableMenus[Nom produit légume],$A38,TableMenus[Nom période concernée],M$5)","v":0},0]
["Salsifis",{"$f":"SUMIFS(TableMenus[Quantité légume],TableMenus[Nom produit légume],$A39,TableMenus[Nom période concernée],B$5)","v":0},{"$f":"SUMIFS(TableMenus[Quantité légume],TableMenus[Nom produit légume],$A39,TableMenus[Nom période concernée],C$5)","v":0},{"$f":"SUMIFS(TableMenus[Quantité légume],TableMenus[Nom produit légume],$A39,TableMenus[Nom période concernée],D$5)","v":0},{"$f":"SUMIFS(TableMenus[Quantité légume],TableMenus[Nom produit légume],$A39,TableMenus[Nom période concernée],E$5)","v":0},{"$f":"SUMIFS(TableMenus[Quantité légume],TableMenus[Nom produit légume],$A39,TableMenus[Nom période concernée],F$5)","v":0},{"$f":"SUMIFS(TableMenus[Quantité légume],TableMenus[Nom produit légume],$A39,TableMenus[Nom période concernée],G$5)","v":0},{"$f":"SUMIFS(TableMenus[Quantité légume],TableMenus[Nom produit légume],$A39,TableMenus[Nom période concernée],H$5)","v":0},{"$f":"SUMIFS(TableMenus[Quantité légume],TableMenus[Nom produit légume],$A39,TableMenus[Nom période concernée],I$5)","v":0},{"$f":"SUMIFS(TableMenus[Quantité légume],TableMenus[Nom produit légume],$A39,TableMenus[Nom période concernée],J$5)","v":0},{"$f":"SUMIFS(TableMenus[Quantité légume],TableMenus[Nom produit légume],$A39,TableMenus[Nom période concernée],K$5)","v":0},{"$f":"SUMIFS(TableMenus[Quantité légume],TableMenus[Nom produit légume],$A39,TableMenus[Nom période concernée],L$5)","v":0},{"$f":"SUMIFS(TableMenus[Quantité légume],TableMenus[Nom produit légume],$A39,TableMenus[Nom période concernée],M$5)","v":0},0]
["Tomates",{"$f":"SUMIFS(TableMenus[Quantité légume],TableMenus[Nom produit légume],$A40,TableMenus[Nom période concernée],B$5)","v":0},{"$f":"SUMIFS(TableMenus[Quantité légume],TableMenus[Nom produit légume],$A40,TableMenus[Nom période concernée],C$5)","v":0},{"$f":"SUMIFS(TableMenus[Quantité légume],TableMenus[Nom produit légume],$A40,TableMenus[Nom période concernée],D$5)","v":0},{"$f":"SUMIFS(TableMenus[Quantité légume],TableMenus[Nom produit légume],$A40,TableMenus[Nom période concernée],E$5)","v":0},{"$f":"SUMIFS(TableMenus[Quantité légume],TableMenus[Nom produit légume],$A40,TableMenus[Nom période concernée],F$5)","v":0},{"$f":"SUMIFS(TableMenus[Quantité légume],TableMenus[Nom produit légume],$A40,TableMenus[Nom période concernée],G$5)","v":0},{"$f":"SUMIFS(TableMenus[Quantité légume],TableMenus[Nom produit légume],$A40,TableMenus[Nom période concernée],H$5)","v":0},{"$f":"SUMIFS(TableMenus[Quantité légume],TableMenus[Nom produit légume],$A40,TableMenus[Nom période concernée],I$5)","v":0},{"$f":"SUMIFS(TableMenus[Quantité légume],TableMenus[Nom produit légume],$A40,TableMenus[Nom période concernée],J$5)","v":0},{"$f":"SUMIFS(TableMenus[Quantité légume],TableMenus[Nom produit légume],$A40,TableMenus[Nom période concernée],K$5)","v":0},{"$f":"SUMIFS(TableMenus[Quantité légume],TableMenus[Nom produit légume],$A40,TableMenus[Nom période concernée],L$5)","v":0},{"$f":"SUMIFS(TableMenus[Quantité légume],TableMenus[Nom produit légume],$A40,TableMenus[Nom période concernée],M$5)","v":0},0]
["Tomates pelées",{"$f":"SUMIFS(TableMenus[Quantité légume],TableMenus[Nom produit légume],$A41,TableMenus[Nom période concernée],B$5)","v":0},{"$f":"SUMIFS(TableMenus[Quantité légume],TableMenus[Nom produit légume],$A41,TableMenus[Nom période concernée],C$5)","v":0},{"$f":"SUMIFS(TableMenus[Quantité légume],TableMenus[Nom produit légume],$A41,TableMenus[Nom période concernée],D$5)","v":0},{"$f":"SUMIFS(TableMenus[Quantité légume],TableMenus[Nom produit légume],$A41,TableMenus[Nom période concernée],E$5)","v":0},{"$f":"SUMIFS(TableMenus[Quantité légume],TableMenus[Nom produit légume],$A41,TableMenus[Nom période concernée],F$5)","v":0},{"$f":"SUMIFS(TableMenus[Quantité légume],TableMenus[Nom produit légume],$A41,TableMenus[Nom période concernée],G$5)","v":0},{"$f":"SUMIFS(TableMenus[Quantité légume],TableMenus[Nom produit légume],$A41,TableMenus[Nom période concernée],H$5)","v":0},{"$f":"SUMIFS(TableMenus[Quantité légume],TableMenus[Nom produit légume],$A41,TableMenus[Nom période concernée],I$5)","v":0},{"$f":"SUMIFS(TableMenus[Quantité légume],TableMenus[Nom produit légume],$A41,TableMenus[Nom période concernée],J$5)","v":0},{"$f":"SUMIFS(TableMenus[Quantité légume],TableMenus[Nom produit légume],$A41,TableMenus[Nom période concernée],K$5)","v":0},{"$f":"SUMIFS(TableMenus[Quantité légume],TableMenus[Nom produit légume],$A41,TableMenus[Nom période concernée],L$5)","v":0},{"$f":"SUMIFS(TableMenus[Quantité légume],TableMenus[Nom produit légume],$A41,TableMenus[Nom période concernée],M$5)","v":0},0]
[]
[{"$f":"\"Fait à Limeil-Brévannes, le \"&TEXT(TODAY(),\"jjjj j mmmm aaaa\")","v":"Fait à Limeil-Brévannes, le mercredi 29 septembre 2021"}]
[]
["Asperges",{"$f":"SUMIFS(TableMenus[Quantité légume deux],TableMenus[Nom produit légume deux],$A45,TableMenus[Nom période concernée],B$5)","v":0},{"$f":"SUMIFS(TableMenus[Quantité légume deux],TableMenus[Nom produit légume deux],$A45,TableMenus[Nom période concernée],C$5)","v":0}]

{"sheet":"Tab quantité viandes","index":17,"n_rows":45,"n_cols":14,"rows_kept":45,"cut":false,"hidden":true,"merged":[[0,1,0,12],[44,0,44,13]]}
[null,{"$f":"\"Quantités par viande et par mois pour l'année \" &  'Accueil Menus'!D1","v":"Quantités par viande et par mois pour l'année 2021"}]
[]
[]
["Nom  viande","janvier","février","mars","avril","mai","juin","juillet","août","septembre","octobre","novembre","décembre","Total"]
["Agneau",{"$f":"SUMIFS(TableMenus[Quantité viande],TableMenus[Nom produit viande],$A5,TableMenus[Nom période concernée],B$4)","v":0},{"$f":"SUMIFS(TableMenus[Quantité viande],TableMenus[Nom produit viande],$A5,TableMenus[Nom période concernée],C$4)","v":0},{"$f":"SUMIFS(TableMenus[Quantité viande],TableMenus[Nom produit viande],$A5,TableMenus[Nom période concernée],D$4)","v":0},{"$f":"SUMIFS(TableMenus[Quantité viande],TableMenus[Nom produit viande],$A5,TableMenus[Nom période concernée],E$4)","v":0},{"$f":"SUMIFS(TableMenus[Quantité viande],TableMenus[Nom produit viande],$A5,TableMenus[Nom période concernée],F$4)","v":0},{"$f":"SUMIFS(TableMenus[Quantité viande],TableMenus[Nom produit viande],$A5,TableMenus[Nom période concernée],G$4)","v":0},{"$f":"SUMIFS(TableMenus[Quantité viande],TableMenus[Nom produit viande],$A5,TableMenus[Nom période concernée],H$4)","v":0},{"$f":"SUMIFS(TableMenus[Quantité viande],TableMenus[Nom produit viande],$A5,TableMenus[Nom période concernée],I$4)","v":0},{"$f":"SUMIFS(TableMenus[Quantité viande],TableMenus[Nom produit viande],$A5,TableMenus[Nom période concernée],J$4)","v":0},{"$f":"SUMIFS(TableMenus[Quantité viande],TableMenus[Nom produit viande],$A5,TableMenus[Nom période concernée],K$4)","v":0},{"$f":"SUMIFS(TableMenus[Quantité viande],TableMenus[Nom produit viande],$A5,TableMenus[Nom période concernée],L$4)","v":0},{"$f":"SUMIFS(TableMenus[Quantité viande],TableMenus[Nom produit viande],$A5,TableMenus[Nom période concernée],M$4)","v":0},{"$f":"SUM(B5:M5)","v":0}]
["Bifteck haché de bœuf",{"$f":"SUMIFS(TableMenus[Quantité viande],TableMenus[Nom produit viande],$A6,TableMenus[Nom période concernée],B$4)","v":0},{"$f":"SUMIFS(TableMenus[Quantité viande],TableMenus[Nom produit viande],$A6,TableMenus[Nom période concernée],C$4)","v":0},{"$f":"SUMIFS(TableMenus[Quantité viande],TableMenus[Nom produit viande],$A6,TableMenus[Nom période concernée],D$4)","v":0},{"$f":"SUMIFS(TableMenus[Quantité viande],TableMenus[Nom produit viande],$A6,TableMenus[Nom période concernée],E$4)","v":0},{"$f":"SUMIFS(TableMenus[Quantité viande],TableMenus[Nom produit viande],$A6,TableMenus[Nom période concernée],F$4)","v":0},{"$f":"SUMIFS(TableMenus[Quantité viande],TableMenus[Nom produit viande],$A6,TableMenus[Nom période concernée],G$4)","v":0},{"$f":"SUMIFS(TableMenus[Quantité viande],TableMenus[Nom produit viande],$A6,TableMenus[Nom période concernée],H$4)","v":0},{"$f":"SUMIFS(TableMenus[Quantité viande],TableMenus[Nom produit viande],$A6,TableMenus[Nom période concernée],I$4)","v":0},{"$f":"SUMIFS(TableMenus[Quantité viande],TableMenus[Nom produit viande],$A6,TableMenus[Nom période concernée],J$4)","v":0},{"$f":"SUMIFS(TableMenus[Quantité viande],TableMenus[Nom produit viande],$A6,TableMenus[Nom période concernée],K$4)","v":0},{"$f":"SUMIFS(TableMenus[Quantité viande],TableMenus[Nom produit viande],$A6,TableMenus[Nom période concernée],L$4)","v":0},{"$f":"SUMIFS(TableMenus[Quantité viande],TableMenus[Nom produit viande],$A6,TableMenus[Nom période concernée],M$4)","v":0},0]
["Bifteck haché de cheval",{"$f":"SUMIFS(TableMenus[Quantité viande],TableMenus[Nom produit viande],$A7,TableMenus[Nom période concernée],B$4)","v":0},{"$f":"SUMIFS(TableMenus[Quantité viande],TableMenus[Nom produit viande],$A7,TableMenus[Nom période concernée],C$4)","v":0},{"$f":"SUMIFS(TableMenus[Quantité viande],TableMenus[Nom produit viande],$A7,TableMenus[Nom période concernée],D$4)","v":0},{"$f":"SUMIFS(TableMenus[Quantité viande],TableMenus[Nom produit viande],$A7,TableMenus[Nom période concernée],E$4)","v":0},{"$f":"SUMIFS(TableMenus[Quantité viande],TableMenus[Nom produit viande],$A7,TableMenus[Nom période concernée],F$4)","v":0},{"$f":"SUMIFS(TableMenus[Quantité viande],TableMenus[Nom produit viande],$A7,TableMenus[Nom période concernée],G$4)","v":0},{"$f":"SUMIFS(TableMenus[Quantité viande],TableMenus[Nom produit viande],$A7,TableMenus[Nom période concernée],H$4)","v":0},{"$f":"SUMIFS(TableMenus[Quantité viande],TableMenus[Nom produit viande],$A7,TableMenus[Nom période concernée],I$4)","v":0},{"$f":"SUMIFS(TableMenus[Quantité viande],TableMenus[Nom produit viande],$A7,TableMenus[Nom période concernée],J$4)","v":0},{"$f":"SUMIFS(TableMenus[Quantité viande],TableMenus[Nom produit viande],$A7,TableMenus[Nom période concernée],K$4)","v":0},{"$f":"SUMIFS(TableMenus[Quantité viande],TableMenus[Nom produit viande],$A7,TableMenus[Nom période concernée],L$4)","v":0},{"$f":"SUMIFS(TableMenus[Quantité viande],TableMenus[Nom produit viande],$A7,TableMenus[Nom période concernée],M$4)","v":0},0]
["Bifteck haché de veau",{"$f":"SUMIFS(TableMenus[Quantité viande],TableMenus[Nom produit viande],$A8,TableMenus[Nom période concernée],B$4)","v":0},{"$f":"SUMIFS(TableMenus[Quantité viande],TableMenus[Nom produit viande],$A8,TableMenus[Nom période concernée],C$4)","v":0},{"$f":"SUMIFS(TableMenus[Quantité viande],TableMenus[Nom produit viande],$A8,TableMenus[Nom période concernée],D$4)","v":0},{"$f":"SUMIFS(TableMenus[Quantité viande],TableMenus[Nom produit viande],$A8,TableMenus[Nom période concernée],E$4)","v":0},{"$f":"SUMIFS(TableMenus[Quantité viande],TableMenus[Nom produit viande],$A8,TableMenus[Nom période concernée],F$4)","v":0},{"$f":"SUMIFS(TableMenus[Quantité viande],TableMenus[Nom produit viande],$A8,TableMenus[Nom période concernée],G$4)","v":0},{"$f":"SUMIFS(TableMenus[Quantité viande],TableMenus[Nom produit viande],$A8,TableMenus[Nom période concernée],H$4)","v":0},{"$f":"SUMIFS(TableMenus[Quantité viande],TableMenus[Nom produit viande],$A8,TableMenus[Nom période concernée],I$4)","v":0},{"$f":"SUMIFS(TableMenus[Quantité viande],TableMenus[Nom produit viande],$A8,TableMenus[Nom période concernée],J$4)","v":0},{"$f":"SUMIFS(TableMenus[Quantité viande],TableMenus[Nom produit viande],$A8,TableMenus[Nom période concernée],K$4)","v":0},{"$f":"SUMIFS(TableMenus[Quantité viande],TableMenus[Nom produit viande],$A8,TableMenus[Nom période concernée],L$4)","v":0},{"$f":"SUMIFS(TableMenus[Quantité viande],TableMenus[Nom produit viande],$A8,TableMenus[Nom période concernée],M$4)","v":0},0]
["Bœuf",{"$f":"SUMIFS(TableMenus[Quantité viande],TableMenus[Nom produit viande],$A9,TableMenus[Nom période concernée],B$4)","v":0},{"$f":"SUMIFS(TableMenus[Quantité viande],TableMenus[Nom produit viande],$A9,TableMenus[Nom période concernée],C$4)","v":0},{"$f":"SUMIFS(TableMenus[Quantité viande],TableMenus[Nom produit viande],$A9,TableMenus[Nom période concernée],D$4)","v":0},{"$f":"SUMIFS(TableMenus[Quantité viande],TableMenus[Nom produit viande],$A9,TableMenus[Nom période concernée],E$4)","v":0},{"$f":"SUMIFS(TableMenus[Quantité viande],TableMenus[Nom produit viande],$A9,TableMenus[Nom période concernée],F$4)","v":0},{"$f":"SUMIFS(TableMenus[Quantité viande],TableMenus[Nom produit viande],$A9,TableMenus[Nom période concernée],G$4)","v":0},{"$f":"SUMIFS(TableMenus[Quantité viande],TableMenus[Nom produit viande],$A9,TableMenus[Nom période concernée],H$4)","v":0},{"$f":"SUMIFS(TableMenus[Quantité viande],TableMenus[Nom produit viande],$A9,TableMenus[Nom période concernée],I$4)","v":0},{"$f":"SUMIFS(TableMenus[Quantité viande],TableMenus[Nom produit viande],$A9,TableMenus[Nom période concernée],J$4)","v":0},{"$f":"SUMIFS(TableMenus[Quantité viande],TableMenus[Nom produit viande],$A9,TableMenus[Nom période concernée],K$4)","v":0},{"$f":"SUMIFS(TableMenus[Quantité viande],TableMenus[Nom produit viande],$A9,TableMenus[Nom période concernée],L$4)","v":0},{"$f":"SUMIFS(TableMenus[Quantité viande],TableMenus[Nom produit viande],$A9,TableMenus[Nom période concernée],M$4)","v":0},0]
["Bouchée à la reine",{"$f":"SUMIFS(TableMenus[Quantité viande],TableMenus[Nom produit viande],$A10,TableMenus[Nom période concernée],B$4)","v":0},{"$f":"SUMIFS(TableMenus[Quantité viande],TableMenus[Nom produit viande],$A10,TableMenus[Nom période concernée],C$4)","v":0},{"$f":"SUMIFS(TableMenus[Quantité viande],TableMenus[Nom produit viande],$A10,TableMenus[Nom période concernée],D$4)","v":0},{"$f":"SUMIFS(TableMenus[Quantité viande],TableMenus[Nom produit viande],$A10,TableMenus[Nom période concernée],E$4)","v":0},{"$f":"SUMIFS(TableMenus[Quantité viande],TableMenus[Nom produit viande],$A10,TableMenus[Nom période concernée],F$4)","v":0},{"$f":"SUMIFS(TableMenus[Quantité viande],TableMenus[Nom produit viande],$A10,TableMenus[Nom période concernée],G$4)","v":0},{"$f":"SUMIFS(TableMenus[Quantité viande],TableMenus[Nom produit viande],$A10,TableMenus[Nom période concernée],H$4)","v":0},{"$f":"SUMIFS(TableMenus[Quantité viande],TableMenus[Nom produit viande],$A10,TableMenus[Nom période concernée],I$4)","v":0},{"$f":"SUMIFS(TableMenus[Quantité viande],TableMenus[Nom produit viande],$A10,TableMenus[Nom période concernée],J$4)","v":0},{"$f":"SUMIFS(TableMenus[Quantité viande],TableMenus[Nom produit viande],$A10,TableMenus[Nom période concernée],K$4)","v":0},{"$f":"SUMIFS(TableMenus[Quantité viande],TableMenus[Nom produit viande],$A10,TableMenus[Nom période concernée],L$4)","v":0},{"$f":"SUMIFS(TableMenus[Quantité viande],TableMenus[Nom produit viande],$A10,TableMenus[Nom période concernée],M$4)","v":0},0]
["Boudin",{"$f":"SUMIFS(TableMenus[Quantité viande],TableMenus[Nom produit viande],$A11,TableMenus[Nom période concernée],B$4)","v":0},{"$f":"SUMIFS(TableMenus[Quantité viande],TableMenus[Nom produit viande],$A11,TableMenus[Nom période concernée],C$4)","v":0},{"$f":"SUMIFS(TableMenus[Quantité viande],TableMenus[Nom produit viande],$A11,TableMenus[Nom période concernée],D$4)","v":0},{"$f":"SUMIFS(TableMenus[Quantité viande],TableMenus[Nom produit viande],$A11,TableMenus[Nom période concernée],E$4)","v":0},{"$f":"SUMIFS(TableMenus[Quantité viande],TableMenus[Nom produit viande],$A11,TableMenus[Nom période concernée],F$4)","v":0},{"$f":"SUMIFS(TableMenus[Quantité viande],TableMenus[Nom produit viande],$A11,TableMenus[Nom période concernée],G$4)","v":0},{"$f":"SUMIFS(TableMenus[Quantité viande],TableMenus[Nom produit viande],$A11,TableMenus[Nom période concernée],H$4)","v":0},{"$f":"SUMIFS(TableMenus[Quantité viande],TableMenus[Nom produit viande],$A11,TableMenus[Nom période concernée],I$4)","v":0},{"$f":"SUMIFS(TableMenus[Quantité viande],TableMenus[Nom produit viande],$A11,TableMenus[Nom période concernée],J$4)","v":0},{"$f":"SUMIFS(TableMenus[Quantité viande],TableMenus[Nom produit viande],$A11,TableMenus[Nom période concernée],K$4)","v":0},{"$f":"SUMIFS(TableMenus[Quantité viande],TableMenus[Nom produit viande],$A11,TableMenus[Nom période concernée],L$4)","v":0},{"$f":"SUMIFS(TableMenus[Quantité viande],TableMenus[Nom produit viande],$A11,TableMenus[Nom période concernée],M$4)","v":0},0]
["Cervelas",{"$f":"SUMIFS(TableMenus[Quantité viande],TableMenus[Nom produit viande],$A12,TableMenus[Nom période concernée],B$4)","v":0},{"$f":"SUMIFS(TableMenus[Quantité viande],TableMenus[Nom produit viande],$A12,TableMenus[Nom période concernée],C$4)","v":0},{"$f":"SUMIFS(TableMenus[Quantité viande],TableMenus[Nom produit viande],$A12,TableMenus[Nom période concernée],D$4)","v":0},{"$f":"SUMIFS(TableMenus[Quantité viande],TableMenus[Nom produit viande],$A12,TableMenus[Nom période concernée],E$4)","v":0},{"$f":"SUMIFS(TableMenus[Quantité viande],TableMenus[Nom produit viande],$A12,TableMenus[Nom période concernée],F$4)","v":0},{"$f":"SUMIFS(TableMenus[Quantité viande],TableMenus[Nom produit viande],$A12,TableMenus[Nom période concernée],G$4)","v":0},{"$f":"SUMIFS(TableMenus[Quantité viande],TableMenus[Nom produit viande],$A12,TableMenus[Nom période concernée],H$4)","v":0},{"$f":"SUMIFS(TableMenus[Quantité viande],TableMenus[Nom produit viande],$A12,TableMenus[Nom période concernée],I$4)","v":0},{"$f":"SUMIFS(TableMenus[Quantité viande],TableMenus[Nom produit viande],$A12,TableMenus[Nom période concernée],J$4)","v":0},{"$f":"SUMIFS(TableMenus[Quantité viande],TableMenus[Nom produit viande],$A12,TableMenus[Nom période concernée],K$4)","v":0},{"$f":"SUMIFS(TableMenus[Quantité viande],TableMenus[Nom produit viande],$A12,TableMenus[Nom période concernée],L$4)","v":0},{"$f":"SUMIFS(TableMenus[Quantité viande],TableMenus[Nom produit viande],$A12,TableMenus[Nom période concernée],M$4)","v":0},0]
["Cheval",{"$f":"SUMIFS(TableMenus[Quantité viande],TableMenus[Nom produit viande],$A13,TableMenus[Nom période concernée],B$4)","v":0},{"$f":"SUMIFS(TableMenus[Quantité viande],TableMenus[Nom produit viande],$A13,TableMenus[Nom période concernée],C$4)","v":0},{"$f":"SUMIFS(TableMenus[Quantité viande],TableMenus[Nom produit viande],$A13,TableMenus[Nom période concernée],D$4)","v":0},{"$f":"SUMIFS(TableMenus[Quantité viande],TableMenus[Nom produit viande],$A13,TableMenus[Nom période concernée],E$4)","v":0},{"$f":"SUMIFS(TableMenus[Quantité viande],TableMenus[Nom produit viande],$A13,TableMenus[Nom période concernée],F$4)","v":0},{"$f":"SUMIFS(TableMenus[Quantité viande],TableMenus[Nom produit viande],$A13,TableMenus[Nom période concernée],G$4)","v":0},{"$f":"SUMIFS(TableMenus[Quantité viande],TableMenus[Nom produit viande],$A13,TableMenus[Nom période concernée],H$4)","v":0},{"$f":"SUMIFS(TableMenus[Quantité viande],TableMenus[Nom produit viande],$A13,TableMenus[Nom période concernée],I$4)","v":0},{"$f":"SUMIFS(TableMenus[Quantité viande],TableMenus[Nom produit viande],$A13,TableMenus[Nom période concernée],J$4)","v":0},{"$f":"SUMIFS(TableMenus[Quantité viande],TableMenus[Nom produit viande],$A13,TableMenus[Nom période concernée],K$4)","v":0},{"$f":"SUMIFS(TableMenus[Quantité viande],TableMenus[Nom produit viande],$A13,TableMenus[Nom période concernée],L$4)","v":0},{"$f":"SUMIFS(TableMenus[Quantité viande],TableMenus[Nom produit viande],$A13,TableMenus[Nom période concernée],M$4)","v":0},0]
["Cœur",{"$f":"SUMIFS(TableMenus[Quantité viande],TableMenus[Nom produit viande],$A14,TableMenus[Nom période concernée],B$4)","v":0},{"$f":"SUMIFS(TableMenus[Quantité viande],TableMenus[Nom produit viande],$A14,TableMenus[Nom période concernée],C$4)","v":0},{"$f":"SUMIFS(TableMenus[Quantité viande],TableMenus[Nom produit viande],$A14,TableMenus[Nom période concernée],D$4)","v":0},{"$f":"SUMIFS(TableMenus[Quantité viande],TableMenus[Nom produit viande],$A14,TableMenus[Nom période concernée],E$4)","v":0},{"$f":"SUMIFS(TableMenus[Quantité viande],TableMenus[Nom produit viande],$A14,TableMenus[Nom période concernée],F$4)","v":0},{"$f":"SUMIFS(TableMenus[Quantité viande],TableMenus[Nom produit viande],$A14,TableMenus[Nom période concernée],G$4)","v":0},{"$f":"SUMIFS(TableMenus[Quantité viande],TableMenus[Nom produit viande],$A14,TableMenus[Nom période concernée],H$4)","v":0},{"$f":"SUMIFS(TableMenus[Quantité viande],TableMenus[Nom produit viande],$A14,TableMenus[Nom période concernée],I$4)","v":0},{"$f":"SUMIFS(TableMenus[Quantité viande],TableMenus[Nom produit viande],$A14,TableMenus[Nom période concernée],J$4)","v":0},{"$f":"SUMIFS(TableMenus[Quantité viande],TableMenus[Nom produit viande],$A14,TableMenus[Nom période concernée],K$4)","v":0},{"$f":"SUMIFS(TableMenus[Quantité viande],TableMenus[Nom produit viande],$A14,TableMenus[Nom période concernée],L$4)","v":0},{"$f":"SUMIFS(TableMenus[Quantité viande],TableMenus[Nom produit viande],$A14,TableMenus[Nom période concernée],M$4)","v":0},0]
["Croque-monsieur",{"$f":"SUMIFS(TableMenus[Quantité viande],TableMenus[Nom produit viande],$A15,TableMenus[Nom période concernée],B$4)","v":0},{"$f":"SUMIFS(TableMenus[Quantité viande],TableMenus[Nom produit viande],$A15,TableMenus[Nom période concernée],C$4)","v":0},{"$f":"SUMIFS(TableMenus[Quantité viande],TableMenus[Nom produit viande],$A15,TableMenus[Nom période concernée],D$4)","v":0},{"$f":"SUMIFS(TableMenus[Quantité viande],TableMenus[Nom produit viande],$A15,TableMenus[Nom période concernée],E$4)","v":0},{"$f":"SUMIFS(TableMenus[Quantité viande],TableMenus[Nom produit viande],$A15,TableMenus[Nom période concernée],F$4)","v":0},{"$f":"SUMIFS(TableMenus[Quantité viande],TableMenus[Nom produit viande],$A15,TableMenus[Nom période concernée],G$4)","v":0},{"$f":"SUMIFS(TableMenus[Quantité viande],TableMenus[Nom produit viande],$A15,TableMenus[Nom période concernée],H$4)","v":0},{"$f":"SUMIFS(TableMenus[Quantité viande],TableMenus[Nom produit viande],$A15,TableMenus[Nom période concernée],I$4)","v":0},{"$f":"SUMIFS(TableMenus[Quantité viande],TableMenus[Nom produit viande],$A15,TableMenus[Nom période concernée],J$4)","v":0},{"$f":"SUMIFS(TableMenus[Quantité viande],TableMenus[Nom produit viande],$A15,TableMenus[Nom période concernée],K$4)","v":0},{"$f":"SUMIFS(TableMenus[Quantité viande],TableMenus[Nom produit viande],$A15,TableMenus[Nom période concernée],L$4)","v":0},{"$f":"SUMIFS(TableMenus[Quantité viande],TableMenus[Nom produit viande],$A15,TableMenus[Nom période concernée],M$4)","v":0},0]
["Dinde",{"$f":"SUMIFS(TableMenus[Quantité viande],TableMenus[Nom produit viande],$A16,TableMenus[Nom période concernée],B$4)","v":0},{"$f":"SUMIFS(TableMenus[Quantité viande],TableMenus[Nom produit viande],$A16,TableMenus[Nom période concernée],C$4)","v":0},{"$f":"SUMIFS(TableMenus[Quantité viande],TableMenus[Nom produit viande],$A16,TableMenus[Nom période concernée],D$4)","v":0},{"$f":"SUMIFS(TableMenus[Quantité viande],TableMenus[Nom produit viande],$A16,TableMenus[Nom période concernée],E$4)","v":0},{"$f":"SUMIFS(TableMenus[Quantité viande],TableMenus[Nom produit viande],$A16,TableMenus[Nom période concernée],F$4)","v":0},{"$f":"SUMIFS(TableMenus[Quantité viande],TableMenus[Nom produit viande],$A16,TableMenus[Nom période concernée],G$4)","v":0},{"$f":"SUMIFS(TableMenus[Quantité viande],TableMenus[Nom produit viande],$A16,TableMenus[Nom période concernée],H$4)","v":0},{"$f":"SUMIFS(TableMenus[Quantité viande],TableMenus[Nom produit viande],$A16,TableMenus[Nom période concernée],I$4)","v":0},{"$f":"SUMIFS(TableMenus[Quantité viande],TableMenus[Nom produit viande],$A16,TableMenus[Nom période concernée],J$4)","v":0},{"$f":"SUMIFS(TableMenus[Quantité viande],TableMenus[Nom produit viande],$A16,TableMenus[Nom période concernée],K$4)","v":0},{"$f":"SUMIFS(TableMenus[Quantité viande],TableMenus[Nom produit viande],$A16,TableMenus[Nom période concernée],L$4)","v":0},{"$f":"SUMIFS(TableMenus[Quantité viande],TableMenus[Nom produit viande],$A16,TableMenus[Nom période concernée],M$4)","v":0},0]
["Foie",{"$f":"SUMIFS(TableMenus[Quantité viande],TableMenus[Nom produit viande],$A17,TableMenus[Nom période concernée],B$4)","v":0},{"$f":"SUMIFS(TableMenus[Quantité viande],TableMenus[Nom produit viande],$A17,TableMenus[Nom période concernée],C$4)","v":0},{"$f":"SUMIFS(TableMenus[Quantité viande],TableMenus[Nom produit viande],$A17,TableMenus[Nom période concernée],D$4)","v":0},{"$f":"SUMIFS(TableMenus[Quantité viande],TableMenus[Nom produit viande],$A17,TableMenus[Nom période concernée],E$4)","v":0},{"$f":"SUMIFS(TableMenus[Quantité viande],TableMenus[Nom produit viande],$A17,TableMenus[Nom période concernée],F$4)","v":0},{"$f":"SUMIFS(TableMenus[Quantité viande],TableMenus[Nom produit viande],$A17,TableMenus[Nom période concernée],G$4)","v":0},{"$f":"SUMIFS(TableMenus[Quantité viande],TableMenus[Nom produit viande],$A17,TableMenus[Nom période concernée],H$4)","v":0},{"$f":"SUMIFS(TableMenus[Quantité viande],TableMenus[Nom produit viande],$A17,TableMenus[Nom période concernée],I$4)","v":0},{"$f":"SUMIFS(TableMenus[Quantité viande],TableMenus[Nom produit viande],$A17,TableMenus[Nom période concernée],J$4)","v":0},{"$f":"SUMIFS(TableMenus[Quantité viande],TableMenus[Nom produit viande],$A17,TableMenus[Nom période concernée],K$4)","v":0},{"$f":"SUMIFS(TableMenus[Quantité viande],TableMenus[Nom produit viande],$A17,TableMenus[Nom période concernée],L$4)","v":0},{"$f":"SUMIFS(TableMenus[Quantité viande],TableMenus[Nom produit viande],$A17,TableMenus[Nom période concernée],M$4)","v":0},0]
["Fromage de tête",{"$f":"SUMIFS(TableMenus[Quantité viande],TableMenus[Nom produit viande],$A18,TableMenus[Nom période concernée],B$4)","v":0},{"$f":"SUMIFS(TableMenus[Quantité viande],TableMenus[Nom produit viande],$A18,TableMenus[Nom période concernée],C$4)","v":0},{"$f":"SUMIFS(TableMenus[Quantité viande],TableMenus[Nom produit viande],$A18,TableMenus[Nom période concernée],D$4)","v":0},{"$f":"SUMIFS(TableMenus[Quantité viande],TableMenus[Nom produit viande],$A18,TableMenus[Nom période concernée],E$4)","v":0},{"$f":"SUMIFS(TableMenus[Quantité viande],TableMenus[Nom produit viande],$A18,TableMenus[Nom période concernée],F$4)","v":0},{"$f":"SUMIFS(TableMenus[Quantité viande],TableMenus[Nom produit viande],$A18,TableMenus[Nom période concernée],G$4)","v":0},{"$f":"SUMIFS(TableMenus[Quantité viande],TableMenus[Nom produit viande],$A18,TableMenus[Nom période concernée],H$4)","v":0},{"$f":"SUMIFS(TableMenus[Quantité viande],TableMenus[Nom produit viande],$A18,TableMenus[Nom période concernée],I$4)","v":0},{"$f":"SUMIFS(TableMenus[Quantité viande],TableMenus[Nom produit viande],$A18,TableMenus[Nom période concernée],J$4)","v":0},{"$f":"SUMIFS(TableMenus[Quantité viande],TableMenus[Nom produit viande],$A18,TableMenus[Nom période concernée],K$4)","v":0},{"$f":"SUMIFS(TableMenus[Quantité viande],TableMenus[Nom produit viande],$A18,TableMenus[Nom période concernée],L$4)","v":0},{"$f":"SUMIFS(TableMenus[Quantité viande],TableMenus[Nom produit viande],$A18,TableMenus[Nom période concernée],M$4)","v":0},0]
["Jambon",{"$f":"SUMIFS(TableMenus[Quantité viande],TableMenus[Nom produit viande],$A19,TableMenus[Nom période concernée],B$4)","v":0},{"$f":"SUMIFS(TableMenus[Quantité viande],TableMenus[Nom produit viande],$A19,TableMenus[Nom période concernée],C$4)","v":0},{"$f":"SUMIFS(TableMenus[Quantité viande],TableMenus[Nom produit viande],$A19,TableMenus[Nom période concernée],D$4)","v":0},{"$f":"SUMIFS(TableMenus[Quantité viande],TableMenus[Nom produit viande],$A19,TableMenus[Nom période concernée],E$4)","v":0},{"$f":"SUMIFS(TableMenus[Quantité viande],TableMenus[Nom produit viande],$A19,TableMenus[Nom période concernée],F$4)","v":0},{"$f":"SUMIFS(TableMenus[Quantité viande],TableMenus[Nom produit viande],$A19,TableMenus[Nom période concernée],G$4)","v":0},{"$f":"SUMIFS(TableMenus[Quantité viande],TableMenus[Nom produit viande],$A19,TableMenus[Nom période concernée],H$4)","v":0},{"$f":"SUMIFS(TableMenus[Quantité viande],TableMenus[Nom produit viande],$A19,TableMenus[Nom période concernée],I$4)","v":0},{"$f":"SUMIFS(TableMenus[Quantité viande],TableMenus[Nom produit viande],$A19,TableMenus[Nom période concernée],J$4)","v":0},{"$f":"SUMIFS(TableMenus[Quantité viande],TableMenus[Nom produit viande],$A19,TableMenus[Nom période concernée],K$4)","v":0},{"$f":"SUMIFS(TableMenus[Quantité viande],TableMenus[Nom produit viande],$A19,TableMenus[Nom période concernée],L$4)","v":0},{"$f":"SUMIFS(TableMenus[Quantité viande],TableMenus[Nom produit viande],$A19,TableMenus[Nom période concernée],M$4)","v":0},0]
["Jambonneau",{"$f":"SUMIFS(TableMenus[Quantité viande],TableMenus[Nom produit viande],$A20,TableMenus[Nom période concernée],B$4)","v":0},{"$f":"SUMIFS(TableMenus[Quantité viande],TableMenus[Nom produit viande],$A20,TableMenus[Nom période concernée],C$4)","v":0},{"$f":"SUMIFS(TableMenus[Quantité viande],TableMenus[Nom produit viande],$A20,TableMenus[Nom période concernée],D$4)","v":0},{"$f":"SUMIFS(TableMenus[Quantité viande],TableMenus[Nom produit viande],$A20,TableMenus[Nom période concernée],E$4)","v":0},{"$f":"SUMIFS(TableMenus[Quantité viande],TableMenus[Nom produit viande],$A20,TableMenus[Nom période concernée],F$4)","v":0},{"$f":"SUMIFS(TableMenus[Quantité viande],TableMenus[Nom produit viande],$A20,TableMenus[Nom période concernée],G$4)","v":0},{"$f":"SUMIFS(TableMenus[Quantité viande],TableMenus[Nom produit viande],$A20,TableMenus[Nom période concernée],H$4)","v":0},{"$f":"SUMIFS(TableMenus[Quantité viande],TableMenus[Nom produit viande],$A20,TableMenus[Nom période concernée],I$4)","v":0},{"$f":"SUMIFS(TableMenus[Quantité viande],TableMenus[Nom produit viande],$A20,TableMenus[Nom période concernée],J$4)","v":0},{"$f":"SUMIFS(TableMenus[Quantité viande],TableMenus[Nom produit viande],$A20,TableMenus[Nom période concernée],K$4)","v":0},{"$f":"SUMIFS(TableMenus[Quantité viande],TableMenus[Nom produit viande],$A20,TableMenus[Nom période concernée],L$4)","v":0},{"$f":"SUMIFS(TableMenus[Quantité viande],TableMenus[Nom produit viande],$A20,TableMenus[Nom période concernée],M$4)","v":0},0]
["Mortadelle",{"$f":"SUMIFS(TableMenus[Quantité viande],TableMenus[Nom produit viande],$A21,TableMenus[Nom période concernée],B$4)","v":0},{"$f":"SUMIFS(TableMenus[Quantité viande],TableMenus[Nom produit viande],$A21,TableMenus[Nom période concernée],C$4)","v":0},{"$f":"SUMIFS(TableMenus[Quantité viande],TableMenus[Nom produit viande],$A21,TableMenus[Nom période concernée],D$4)","v":0},{"$f":"SUMIFS(TableMenus[Quantité viande],TableMenus[Nom produit viande],$A21,TableMenus[Nom période concernée],E$4)","v":0},{"$f":"SUMIFS(TableMenus[Quantité viande],TableMenus[Nom produit viande],$A21,TableMenus[Nom période concernée],F$4)","v":0},{"$f":"SUMIFS(TableMenus[Quantité viande],TableMenus[Nom produit viande],$A21,TableMenus[Nom période concernée],G$4)","v":0},{"$f":"SUMIFS(TableMenus[Quantité viande],TableMenus[Nom produit viande],$A21,TableMenus[Nom période concernée],H$4)","v":0},{"$f":"SUMIFS(TableMenus[Quantité viande],TableMenus[Nom produit viande],$A21,TableMenus[Nom période concernée],I$4)","v":0},{"$f":"SUMIFS(TableMenus[Quantité viande],TableMenus[Nom produit viande],$A21,TableMenus[Nom période concernée],J$4)","v":0},{"$f":"SUMIFS(TableMenus[Quantité viande],TableMenus[Nom produit viande],$A21,TableMenus[Nom période concernée],K$4)","v":0},{"$f":"SUMIFS(TableMenus[Quantité viande],TableMenus[Nom produit viande],$A21,TableMenus[Nom période concernée],L$4)","v":0},{"$f":"SUMIFS(TableMenus[Quantité viande],TableMenus[Nom produit viande],$A21,TableMenus[Nom période concernée],M$4)","v":0},0]
["Œufs",{"$f":"SUMIFS(TableMenus[Quantité viande],TableMenus[Nom produit viande],$A22,TableMenus[Nom période concernée],B$4)","v":0},{"$f":"SUMIFS(TableMenus[Quantité viande],TableMenus[Nom produit viande],$A22,TableMenus[Nom période concernée],C$4)","v":0},{"$f":"SUMIFS(TableMenus[Quantité viande],TableMenus[Nom produit viande],$A22,TableMenus[Nom période concernée],D$4)","v":0},{"$f":"SUMIFS(TableMenus[Quantité viande],TableMenus[Nom produit viande],$A22,TableMenus[Nom période concernée],E$4)","v":0},{"$f":"SUMIFS(TableMenus[Quantité viande],TableMenus[Nom produit viande],$A22,TableMenus[Nom période concernée],F$4)","v":0},{"$f":"SUMIFS(TableMenus[Quantité viande],TableMenus[Nom produit viande],$A22,TableMenus[Nom période concernée],G$4)","v":0},{"$f":"SUMIFS(TableMenus[Quantité viande],TableMenus[Nom produit viande],$A22,TableMenus[Nom période concernée],H$4)","v":0},{"$f":"SUMIFS(TableMenus[Quantité viande],TableMenus[Nom produit viande],$A22,TableMenus[Nom période concernée],I$4)","v":0},{"$f":"SUMIFS(TableMenus[Quantité viande],TableMenus[Nom produit viande],$A22,TableMenus[Nom période concernée],J$4)","v":0},{"$f":"SUMIFS(TableMenus[Quantité viande],TableMenus[Nom produit viande],$A22,TableMenus[Nom période concernée],K$4)","v":0},{"$f":"SUMIFS(TableMenus[Quantité viande],TableMenus[Nom produit viande],$A22,TableMenus[Nom période concernée],L$4)","v":0},{"$f":"SUMIFS(TableMenus[Quantité viande],TableMenus[Nom produit viande],$A22,TableMenus[Nom période concernée],M$4)","v":0},0]
["Pizza",{"$f":"SUMIFS(TableMenus[Quantité viande],TableMenus[Nom produit viande],$A23,TableMenus[Nom période concernée],B$4)","v":0},{"$f":"SUMIFS(TableMenus[Quantité viande],TableMenus[Nom produit viande],$A23,TableMenus[Nom période concernée],C$4)","v":0},{"$f":"SUMIFS(TableMenus[Quantité viande],TableMenus[Nom produit viande],$A23,TableMenus[Nom période concernée],D$4)","v":0},{"$f":"SUMIFS(TableMenus[Quantité viande],TableMenus[Nom produit viande],$A23,TableMenus[Nom période concernée],E$4)","v":0},{"$f":"SUMIFS(TableMenus[Quantité viande],TableMenus[Nom produit viande],$A23,TableMenus[Nom période concernée],F$4)","v":0},{"$f":"SUMIFS(TableMenus[Quantité viande],TableMenus[Nom produit viande],$A23,TableMenus[Nom période concernée],G$4)","v":0},{"$f":"SUMIFS(TableMenus[Quantité viande],TableMenus[Nom produit viande],$A23,TableMenus[Nom période concernée],H$4)","v":0},{"$f":"SUMIFS(TableMenus[Quantité viande],TableMenus[Nom produit viande],$A23,TableMenus[Nom période concernée],I$4)","v":0},{"$f":"SUMIFS(TableMenus[Quantité viande],TableMenus[Nom produit viande],$A23,TableMenus[Nom période concernée],J$4)","v":0},{"$f":"SUMIFS(TableMenus[Quantité viande],TableMenus[Nom produit viande],$A23,TableMenus[Nom période concernée],K$4)","v":0},{"$f":"SUMIFS(TableMenus[Quantité viande],TableMenus[Nom produit viande],$A23,TableMenus[Nom période concernée],L$4)","v":0},{"$f":"SUMIFS(TableMenus[Quantité viande],TableMenus[Nom produit viande],$A23,TableMenus[Nom période concernée],M$4)","v":0},0]
["Poisson",{"$f":"SUMIFS(TableMenus[Quantité viande],TableMenus[Nom produit viande],$A24,TableMenus[Nom période concernée],B$4)","v":0},{"$f":"SUMIFS(TableMenus[Quantité viande],TableMenus[Nom produit viande],$A24,TableMenus[Nom période concernée],C$4)","v":0},{"$f":"SUMIFS(TableMenus[Quantité viande],TableMenus[Nom produit viande],$A24,TableMenus[Nom période concernée],D$4)","v":0},{"$f":"SUMIFS(TableMenus[Quantité viande],TableMenus[Nom produit viande],$A24,TableMenus[Nom période concernée],E$4)","v":0},{"$f":"SUMIFS(TableMenus[Quantité viande],TableMenus[Nom produit viande],$A24,TableMenus[Nom période concernée],F$4)","v":0},{"$f":"SUMIFS(TableMenus[Quantité viande],TableMenus[Nom produit viande],$A24,TableMenus[Nom période concernée],G$4)","v":0},{"$f":"SUMIFS(TableMenus[Quantité viande],TableMenus[Nom produit viande],$A24,TableMenus[Nom période concernée],H$4)","v":0},{"$f":"SUMIFS(TableMenus[Quantité viande],TableMenus[Nom produit viande],$A24,TableMenus[Nom période concernée],I$4)","v":0},{"$f":"SUMIFS(TableMenus[Quantité viande],TableMenus[Nom produit viande],$A24,TableMenus[Nom période concernée],J$4)","v":0},{"$f":"SUMIFS(TableMenus[Quantité viande],TableMenus[Nom produit viande],$A24,TableMenus[Nom période concernée],K$4)","v":0},{"$f":"SUMIFS(TableMenus[Quantité viande],TableMenus[Nom produit viande],$A24,TableMenus[Nom période concernée],L$4)","v":0},{"$f":"SUMIFS(TableMenus[Quantité viande],TableMenus[Nom produit viande],$A24,TableMenus[Nom période concernée],M$4)","v":0},0]
["Porc",{"$f":"SUMIFS(TableMenus[Quantité viande],TableMenus[Nom produit viande],$A25,TableMenus[Nom période concernée],B$4)","v":0},{"$f":"SUMIFS(TableMenus[Quantité viande],TableMenus[Nom produit viande],$A25,TableMenus[Nom période concernée],C$4)","v":0},{"$f":"SUMIFS(TableMenus[Quantité viande],TableMenus[Nom produit viande],$A25,TableMenus[Nom période concernée],D$4)","v":0},{"$f":"SUMIFS(TableMenus[Quantité viande],TableMenus[Nom produit viande],$A25,TableMenus[Nom période concernée],E$4)","v":0},{"$f":"SUMIFS(TableMenus[Quantité viande],TableMenus[Nom produit viande],$A25,TableMenus[Nom période concernée],F$4)","v":0},{"$f":"SUMIFS(TableMenus[Quantité viande],TableMenus[Nom produit viande],$A25,TableMenus[Nom période concernée],G$4)","v":0},{"$f":"SUMIFS(TableMenus[Quantité viande],TableMenus[Nom produit viande],$A25,TableMenus[Nom période concernée],H$4)","v":0},{"$f":"SUMIFS(TableMenus[Quantité viande],TableMenus[Nom produit viande],$A25,TableMenus[Nom période concernée],I$4)","v":0},{"$f":"SUMIFS(TableMenus[Quantité viande],TableMenus[Nom produit viande],$A25,TableMenus[Nom période concernée],J$4)","v":0},{"$f":"SUMIFS(TableMenus[Quantité viande],TableMenus[Nom produit viande],$A25,TableMenus[Nom période concernée],K$4)","v":0},{"$f":"SUMIFS(TableMenus[Quantité viande],TableMenus[Nom produit viande],$A25,TableMenus[Nom période concernée],L$4)","v":0},{"$f":"SUMIFS(TableMenus[Quantité viande],TableMenus[Nom produit viande],$A25,TableMenus[Nom période concernée],M$4)","v":0},0]
["Quiche lorraine",{"$f":"SUMIFS(TableMenus[Quantité viande],TableMenus[Nom produit viande],$A26,TableMenus[Nom période concernée],B$4)","v":0},{"$f":"SUMIFS(TableMenus[Quantité viande],TableMenus[Nom produit viande],$A26,TableMenus[Nom période concernée],C$4)","v":0},{"$f":"SUMIFS(TableMenus[Quantité viande],TableMenus[Nom produit viande],$A26,TableMenus[Nom période concernée],D$4)","v":0},{"$f":"SUMIFS(TableMenus[Quantité viande],TableMenus[Nom produit viande],$A26,TableMenus[Nom période concernée],E$4)","v":0},{"$f":"SUMIFS(TableMenus[Quantité viande],TableMenus[Nom produit viande],$A26,TableMenus[Nom période concernée],F$4)","v":0},{"$f":"SUMIFS(TableMenus[Quantité viande],TableMenus[Nom produit viande],$A26,TableMenus[Nom période concernée],G$4)","v":0},{"$f":"SUMIFS(TableMenus[Quantité viande],TableMenus[Nom produit viande],$A26,TableMenus[Nom période concernée],H$4)","v":0},{"$f":"SUMIFS(TableMenus[Quantité viande],TableMenus[Nom produit viande],$A26,TableMenus[Nom période concernée],I$4)","v":0},{"$f":"SUMIFS(TableMenus[Quantité viande],TableMenus[Nom produit viande],$A26,TableMenus[Nom période concernée],J$4)","v":0},{"$f":"SUMIFS(TableMenus[Quantité viande],TableMenus[Nom produit viande],$A26,TableMenus[Nom période concernée],K$4)","v":0},{"$f":"SUMIFS(TableMenus[Quantité viande],TableMenus[Nom produit viande],$A26,TableMenus[Nom période concernée],L$4)","v":0},{"$f":"SUMIFS(TableMenus[Quantité viande],TableMenus[Nom produit viande],$A26,TableMenus[Nom période concernée],M$4)","v":0},0]
["Rôti d'agneau",{"$f":"SUMIFS(TableMenus[Quantité viande],TableMenus[Nom produit viande],$A27,TableMenus[Nom période concernée],B$4)","v":0},{"$f":"SUMIFS(TableMenus[Quantité viande],TableMenus[Nom produit viande],$A27,TableMenus[Nom période concernée],C$4)","v":0},{"$f":"SUMIFS(TableMenus[Quantité viande],TableMenus[Nom produit viande],$A27,TableMenus[Nom période concernée],D$4)","v":0},{"$f":"SUMIFS(TableMenus[Quantité viande],TableMenus[Nom produit viande],$A27,TableMenus[Nom période concernée],E$4)","v":0},{"$f":"SUMIFS(TableMenus[Quantité viande],TableMenus[Nom produit viande],$A27,TableMenus[Nom période concernée],F$4)","v":0},{"$f":"SUMIFS(TableMenus[Quantité viande],TableMenus[Nom produit viande],$A27,TableMenus[Nom période concernée],G$4)","v":0},{"$f":"SUMIFS(TableMenus[Quantité viande],TableMenus[Nom produit viande],$A27,TableMenus[Nom période concernée],H$4)","v":0},{"$f":"SUMIFS(TableMenus[Quantité viande],TableMenus[Nom produit viande],$A27,TableMenus[Nom période concernée],I$4)","v":0},{"$f":"SUMIFS(TableMenus[Quantité viande],TableMenus[Nom produit viande],$A27,TableMenus[Nom période concernée],J$4)","v":0},{"$f":"SUMIFS(TableMenus[Quantité viande],TableMenus[Nom produit viande],$A27,TableMenus[Nom période concernée],K$4)","v":0},{"$f":"SUMIFS(TableMenus[Quantité viande],TableMenus[Nom produit viande],$A27,TableMenus[Nom période concernée],L$4)","v":0},{"$f":"SUMIFS(TableMenus[Quantité viande],TableMenus[Nom produit viande],$A27,TableMenus[Nom période concernée],M$4)","v":0},0]
["Rôti de bœuf",{"$f":"SUMIFS(TableMenus[Quantité viande],TableMenus[Nom produit viande],$A28,TableMenus[Nom période concernée],B$4)","v":0},{"$f":"SUMIFS(TableMenus[Quantité viande],TableMenus[Nom produit viande],$A28,TableMenus[Nom période concernée],C$4)","v":0},{"$f":"SUMIFS(TableMenus[Quantité viande],TableMenus[Nom produit viande],$A28,TableMenus[Nom période concernée],D$4)","v":0},{"$f":"SUMIFS(TableMenus[Quantité viande],TableMenus[Nom produit viande],$A28,TableMenus[Nom période concernée],E$4)","v":0},{"$f":"SUMIFS(TableMenus[Quantité viande],TableMenus[Nom produit viande],$A28,TableMenus[Nom période concernée],F$4)","v":0},{"$f":"SUMIFS(TableMenus[Quantité viande],TableMenus[Nom produit viande],$A28,TableMenus[Nom période concernée],G$4)","v":0},{"$f":"SUMIFS(TableMenus[Quantité viande],TableMenus[Nom produit viande],$A28,TableMenus[Nom période concernée],H$4)","v":0},{"$f":"SUMIFS(TableMenus[Quantité viande],TableMenus[Nom produit viande],$A28,TableMenus[Nom période concernée],I$4)","v":0},{"$f":"SUMIFS(TableMenus[Quantité viande],TableMenus[Nom produit viande],$A28,TableMenus[Nom période concernée],J$4)","v":0},{"$f":"SUMIFS(TableMenus[Quantité viande],TableMenus[Nom produit viande],$A28,TableMenus[Nom période concernée],K$4)","v":0},{"$f":"SUMIFS(TableMenus[Quantité viande],TableMenus[Nom produit viande],$A28,TableMenus[Nom période concernée],L$4)","v":0},{"$f":"SUMIFS(TableMenus[Quantité viande],TableMenus[Nom produit viande],$A28,TableMenus[Nom période concernée],M$4)","v":0},0]
["Rôti de cheval",{"$f":"SUMIFS(TableMenus[Quantité viande],TableMenus[Nom produit viande],$A29,TableMenus[Nom période concernée],B$4)","v":0},{"$f":"SUMIFS(TableMenus[Quantité viande],TableMenus[Nom produit viande],$A29,TableMenus[Nom période concernée],C$4)","v":0},{"$f":"SUMIFS(TableMenus[Quantité viande],TableMenus[Nom produit viande],$A29,TableMenus[Nom période concernée],D$4)","v":0},{"$f":"SUMIFS(TableMenus[Quantité viande],TableMenus[Nom produit viande],$A29,TableMenus[Nom période concernée],E$4)","v":0},{"$f":"SUMIFS(TableMenus[Quantité viande],TableMenus[Nom produit viande],$A29,TableMenus[Nom période concernée],F$4)","v":0},{"$f":"SUMIFS(TableMenus[Quantité viande],TableMenus[Nom produit viande],$A29,TableMenus[Nom période concernée],G$4)","v":0},{"$f":"SUMIFS(TableMenus[Quantité viande],TableMenus[Nom produit viande],$A29,TableMenus[Nom période concernée],H$4)","v":0},{"$f":"SUMIFS(TableMenus[Quantité viande],TableMenus[Nom produit viande],$A29,TableMenus[Nom période concernée],I$4)","v":0},{"$f":"SUMIFS(TableMenus[Quantité viande],TableMenus[Nom produit viande],$A29,TableMenus[Nom période concernée],J$4)","v":0},{"$f":"SUMIFS(TableMenus[Quantité viande],TableMenus[Nom produit viande],$A29,TableMenus[Nom période concernée],K$4)","v":0},{"$f":"SUMIFS(TableMenus[Quantité viande],TableMenus[Nom produit viande],$A29,TableMenus[Nom période concernée],L$4)","v":0},{"$f":"SUMIFS(TableMenus[Quantité viande],TableMenus[Nom produit viande],$A29,TableMenus[Nom période concernée],M$4)","v":0},0]
["Rôti de porc",{"$f":"SUMIFS(TableMenus[Quantité viande],TableMenus[Nom produit viande],$A30,TableMenus[Nom période concernée],B$4)","v":0},{"$f":"SUMIFS(TableMenus[Quantité viande],TableMenus[Nom produit viande],$A30,TableMenus[Nom période concernée],C$4)","v":0},{"$f":"SUMIFS(TableMenus[Quantité viande],TableMenus[Nom produit viande],$A30,TableMenus[Nom période concernée],D$4)","v":0},{"$f":"SUMIFS(TableMenus[Quantité viande],TableMenus[Nom produit viande],$A30,TableMenus[Nom période concernée],E$4)","v":0},{"$f":"SUMIFS(TableMenus[Quantité viande],TableMenus[Nom produit viande],$A30,TableMenus[Nom période concernée],F$4)","v":0},{"$f":"SUMIFS(TableMenus[Quantité viande],TableMenus[Nom produit viande],$A30,TableMenus[Nom période concernée],G$4)","v":0},{"$f":"SUMIFS(TableMenus[Quantité viande],TableMenus[Nom produit viande],$A30,TableMenus[Nom période concernée],H$4)","v":0},{"$f":"SUMIFS(TableMenus[Quantité viande],TableMenus[Nom produit viande],$A30,TableMenus[Nom période concernée],I$4)","v":0},{"$f":"SUMIFS(TableMenus[Quantité viande],TableMenus[Nom produit viande],$A30,TableMenus[Nom période concernée],J$4)","v":0},{"$f":"SUMIFS(TableMenus[Quantité viande],TableMenus[Nom produit viande],$A30,TableMenus[Nom période concernée],K$4)","v":0},{"$f":"SUMIFS(TableMenus[Quantité viande],TableMenus[Nom produit viande],$A30,TableMenus[Nom période concernée],L$4)","v":0},{"$f":"SUMIFS(TableMenus[Quantité viande],TableMenus[Nom produit viande],$A30,TableMenus[Nom période concernée],M$4)","v":0},0]
["Rôti de veau",{"$f":"SUMIFS(TableMenus[Quantité viande],TableMenus[Nom produit viande],$A31,TableMenus[Nom période concernée],B$4)","v":0},{"$f":"SUMIFS(TableMenus[Quantité viande],TableMenus[Nom produit viande],$A31,TableMenus[Nom période concernée],C$4)","v":0},{"$f":"SUMIFS(TableMenus[Quantité viande],TableMenus[Nom produit viande],$A31,TableMenus[Nom période concernée],D$4)","v":0},{"$f":"SUMIFS(TableMenus[Quantité viande],TableMenus[Nom produit viande],$A31,TableMenus[Nom période concernée],E$4)","v":0},{"$f":"SUMIFS(TableMenus[Quantité viande],TableMenus[Nom produit viande],$A31,TableMenus[Nom période concernée],F$4)","v":0},{"$f":"SUMIFS(TableMenus[Quantité viande],TableMenus[Nom produit viande],$A31,TableMenus[Nom période concernée],G$4)","v":0},{"$f":"SUMIFS(TableMenus[Quantité viande],TableMenus[Nom produit viande],$A31,TableMenus[Nom période concernée],H$4)","v":0},{"$f":"SUMIFS(TableMenus[Quantité viande],TableMenus[Nom produit viande],$A31,TableMenus[Nom période concernée],I$4)","v":0},{"$f":"SUMIFS(TableMenus[Quantité viande],TableMenus[Nom produit viande],$A31,TableMenus[Nom période concernée],J$4)","v":0},{"$f":"SUMIFS(TableMenus[Quantité viande],TableMenus[Nom produit viande],$A31,TableMenus[Nom période concernée],K$4)","v":0},{"$f":"SUMIFS(TableMenus[Quantité viande],TableMenus[Nom produit viande],$A31,TableMenus[Nom période concernée],L$4)","v":0},{"$f":"SUMIFS(TableMenus[Quantité viande],TableMenus[Nom produit viande],$A31,TableMenus[Nom période concernée],M$4)","v":0},0]
["Roulade à la pistache",{"$f":"SUMIFS(TableMenus[Quantité viande],TableMenus[Nom produit viande],$A32,TableMenus[Nom période concernée],B$4)","v":0},{"$f":"SUMIFS(TableMenus[Quantité viande],TableMenus[Nom produit viande],$A32,TableMenus[Nom période concernée],C$4)","v":0},{"$f":"SUMIFS(TableMenus[Quantité viande],TableMenus[Nom produit viande],$A32,TableMenus[Nom période concernée],D$4)","v":0},{"$f":"SUMIFS(TableMenus[Quantité viande],TableMenus[Nom produit viande],$A32,TableMenus[Nom période concernée],E$4)","v":0},{"$f":"SUMIFS(TableMenus[Quantité viande],TableMenus[Nom produit viande],$A32,TableMenus[Nom période concernée],F$4)","v":0},{"$f":"SUMIFS(TableMenus[Quantité viande],TableMenus[Nom produit viande],$A32,TableMenus[Nom période concernée],G$4)","v":0},{"$f":"SUMIFS(TableMenus[Quantité viande],TableMenus[Nom produit viande],$A32,TableMenus[Nom période concernée],H$4)","v":0},{"$f":"SUMIFS(TableMenus[Quantité viande],TableMenus[Nom produit viande],$A32,TableMenus[Nom période concernée],I$4)","v":0},{"$f":"SUMIFS(TableMenus[Quantité viande],TableMenus[Nom produit viande],$A32,TableMenus[Nom période concernée],J$4)","v":0},{"$f":"SUMIFS(TableMenus[Quantité viande],TableMenus[Nom produit viande],$A32,TableMenus[Nom période concernée],K$4)","v":0},{"$f":"SUMIFS(TableMenus[Quantité viande],TableMenus[Nom produit viande],$A32,TableMenus[Nom période concernée],L$4)","v":0},{"$f":"SUMIFS(TableMenus[Quantité viande],TableMenus[Nom produit viande],$A32,TableMenus[Nom période concernée],M$4)","v":0},0]
["Roulé au fromage",{"$f":"SUMIFS(TableMenus[Quantité viande],TableMenus[Nom produit viande],$A33,TableMenus[Nom période concernée],B$4)","v":0},{"$f":"SUMIFS(TableMenus[Quantité viande],TableMenus[Nom produit viande],$A33,TableMenus[Nom période concernée],C$4)","v":0},{"$f":"SUMIFS(TableMenus[Quantité viande],TableMenus[Nom produit viande],$A33,TableMenus[Nom période concernée],D$4)","v":0},{"$f":"SUMIFS(TableMenus[Quantité viande],TableMenus[Nom produit viande],$A33,TableMenus[Nom période concernée],E$4)","v":0},{"$f":"SUMIFS(TableMenus[Quantité viande],TableMenus[Nom produit viande],$A33,TableMenus[Nom période concernée],F$4)","v":0},{"$f":"SUMIFS(TableMenus[Quantité viande],TableMenus[Nom produit viande],$A33,TableMenus[Nom période concernée],G$4)","v":0},{"$f":"SUMIFS(TableMenus[Quantité viande],TableMenus[Nom produit viande],$A33,TableMenus[Nom période concernée],H$4)","v":0},{"$f":"SUMIFS(TableMenus[Quantité viande],TableMenus[Nom produit viande],$A33,TableMenus[Nom période concernée],I$4)","v":0},{"$f":"SUMIFS(TableMenus[Quantité viande],TableMenus[Nom produit viande],$A33,TableMenus[Nom période concernée],J$4)","v":0},{"$f":"SUMIFS(TableMenus[Quantité viande],TableMenus[Nom produit viande],$A33,TableMenus[Nom période concernée],K$4)","v":0},{"$f":"SUMIFS(TableMenus[Quantité viande],TableMenus[Nom produit viande],$A33,TableMenus[Nom période concernée],L$4)","v":0},{"$f":"SUMIFS(TableMenus[Quantité viande],TableMenus[Nom produit viande],$A33,TableMenus[Nom période concernée],M$4)","v":0},0]
["Salami",{"$f":"SUMIFS(TableMenus[Quantité viande],TableMenus[Nom produit viande],$A34,TableMenus[Nom période concernée],B$4)","v":0},{"$f":"SUMIFS(TableMenus[Quantité viande],TableMenus[Nom produit viande],$A34,TableMenus[Nom période concernée],C$4)","v":0},{"$f":"SUMIFS(TableMenus[Quantité viande],TableMenus[Nom produit viande],$A34,TableMenus[Nom période concernée],D$4)","v":0},{"$f":"SUMIFS(TableMenus[Quantité viande],TableMenus[Nom produit viande],$A34,TableMenus[Nom période concernée],E$4)","v":0},{"$f":"SUMIFS(TableMenus[Quantité viande],TableMenus[Nom produit viande],$A34,TableMenus[Nom période concernée],F$4)","v":0},{"$f":"SUMIFS(TableMenus[Quantité viande],TableMenus[Nom produit viande],$A34,TableMenus[Nom période concernée],G$4)","v":0},{"$f":"SUMIFS(TableMenus[Quantité viande],TableMenus[Nom produit viande],$A34,TableMenus[Nom période concernée],H$4)","v":0},{"$f":"SUMIFS(TableMenus[Quantité viande],TableMenus[Nom produit viande],$A34,TableMenus[Nom période concernée],I$4)","v":0},{"$f":"SUMIFS(TableMenus[Quantité viande],TableMenus[Nom produit viande],$A34,TableMenus[Nom période concernée],J$4)","v":0},{"$f":"SUMIFS(TableMenus[Quantité viande],TableMenus[Nom produit viande],$A34,TableMenus[Nom période concernée],K$4)","v":0},{"$f":"SUMIFS(TableMenus[Quantité viande],TableMenus[Nom produit viande],$A34,TableMenus[Nom période concernée],L$4)","v":0},{"$f":"SUMIFS(TableMenus[Quantité viande],TableMenus[Nom produit viande],$A34,TableMenus[Nom période concernée],M$4)","v":0},0]
["Saucisses",{"$f":"SUMIFS(TableMenus[Quantité viande],TableMenus[Nom produit viande],$A35,TableMenus[Nom période concernée],B$4)","v":0},{"$f":"SUMIFS(TableMenus[Quantité viande],TableMenus[Nom produit viande],$A35,TableMenus[Nom période concernée],C$4)","v":0},{"$f":"SUMIFS(TableMenus[Quantité viande],TableMenus[Nom produit viande],$A35,TableMenus[Nom période concernée],D$4)","v":0},{"$f":"SUMIFS(TableMenus[Quantité viande],TableMenus[Nom produit viande],$A35,TableMenus[Nom période concernée],E$4)","v":0},{"$f":"SUMIFS(TableMenus[Quantité viande],TableMenus[Nom produit viande],$A35,TableMenus[Nom période concernée],F$4)","v":0},{"$f":"SUMIFS(TableMenus[Quantité viande],TableMenus[Nom produit viande],$A35,TableMenus[Nom période concernée],G$4)","v":0},{"$f":"SUMIFS(TableMenus[Quantité viande],TableMenus[Nom produit viande],$A35,TableMenus[Nom période concernée],H$4)","v":0},{"$f":"SUMIFS(TableMenus[Quantité viande],TableMenus[Nom produit viande],$A35,TableMenus[Nom période concernée],I$4)","v":0},{"$f":"SUMIFS(TableMenus[Quantité viande],TableMenus[Nom produit viande],$A35,TableMenus[Nom période concernée],J$4)","v":0},{"$f":"SUMIFS(TableMenus[Quantité viande],TableMenus[Nom produit viande],$A35,TableMenus[Nom période concernée],K$4)","v":0},{"$f":"SUMIFS(TableMenus[Quantité viande],TableMenus[Nom produit viande],$A35,TableMenus[Nom période concernée],L$4)","v":0},{"$f":"SUMIFS(TableMenus[Quantité viande],TableMenus[Nom produit viande],$A35,TableMenus[Nom période concernée],M$4)","v":0},0]
["Saucisson",{"$f":"SUMIFS(TableMenus[Quantité viande],TableMenus[Nom produit viande],$A36,TableMenus[Nom période concernée],B$4)","v":0},{"$f":"SUMIFS(TableMenus[Quantité viande],TableMenus[Nom produit viande],$A36,TableMenus[Nom période concernée],C$4)","v":0},{"$f":"SUMIFS(TableMenus[Quantité viande],TableMenus[Nom produit viande],$A36,TableMenus[Nom période concernée],D$4)","v":0},{"$f":"SUMIFS(TableMenus[Quantité viande],TableMenus[Nom produit viande],$A36,TableMenus[Nom période concernée],E$4)","v":0},{"$f":"SUMIFS(TableMenus[Quantité viande],TableMenus[Nom produit viande],$A36,TableMenus[Nom période concernée],F$4)","v":0},{"$f":"SUMIFS(TableMenus[Quantité viande],TableMenus[Nom produit viande],$A36,TableMenus[Nom période concernée],G$4)","v":0},{"$f":"SUMIFS(TableMenus[Quantité viande],TableMenus[Nom produit viande],$A36,TableMenus[Nom période concernée],H$4)","v":0},{"$f":"SUMIFS(TableMenus[Quantité viande],TableMenus[Nom produit viande],$A36,TableMenus[Nom période concernée],I$4)","v":0},{"$f":"SUMIFS(TableMenus[Quantité viande],TableMenus[Nom produit viande],$A36,TableMenus[Nom période concernée],J$4)","v":0},{"$f":"SUMIFS(TableMenus[Quantité viande],TableMenus[Nom produit viande],$A36,TableMenus[Nom période concernée],K$4)","v":0},{"$f":"SUMIFS(TableMenus[Quantité viande],TableMenus[Nom produit viande],$A36,TableMenus[Nom période concernée],L$4)","v":0},{"$f":"SUMIFS(TableMenus[Quantité viande],TableMenus[Nom produit viande],$A36,TableMenus[Nom période concernée],M$4)","v":0},0]
["Tête persillée",{"$f":"SUMIFS(TableMenus[Quantité viande],TableMenus[Nom produit viande],$A37,TableMenus[Nom période concernée],B$4)","v":0},{"$f":"SUMIFS(TableMenus[Quantité viande],TableMenus[Nom produit viande],$A37,TableMenus[Nom période concernée],C$4)","v":0},{"$f":"SUMIFS(TableMenus[Quantité viande],TableMenus[Nom produit viande],$A37,TableMenus[Nom période concernée],D$4)","v":0},{"$f":"SUMIFS(TableMenus[Quantité viande],TableMenus[Nom produit viande],$A37,TableMenus[Nom période concernée],E$4)","v":0},{"$f":"SUMIFS(TableMenus[Quantité viande],TableMenus[Nom produit viande],$A37,TableMenus[Nom période concernée],F$4)","v":0},{"$f":"SUMIFS(TableMenus[Quantité viande],TableMenus[Nom produit viande],$A37,TableMenus[Nom période concernée],G$4)","v":0},{"$f":"SUMIFS(TableMenus[Quantité viande],TableMenus[Nom produit viande],$A37,TableMenus[Nom période concernée],H$4)","v":0},{"$f":"SUMIFS(TableMenus[Quantité viande],TableMenus[Nom produit viande],$A37,TableMenus[Nom période concernée],I$4)","v":0},{"$f":"SUMIFS(TableMenus[Quantité viande],TableMenus[Nom produit viande],$A37,TableMenus[Nom période concernée],J$4)","v":0},{"$f":"SUMIFS(TableMenus[Quantité viande],TableMenus[Nom produit viande],$A37,TableMenus[Nom période concernée],K$4)","v":0},{"$f":"SUMIFS(TableMenus[Quantité viande],TableMenus[Nom produit viande],$A37,TableMenus[Nom période concernée],L$4)","v":0},{"$f":"SUMIFS(TableMenus[Quantité viande],TableMenus[Nom produit viande],$A37,TableMenus[Nom période concernée],M$4)","v":0},0]
["Tête roulée",{"$f":"SUMIFS(TableMenus[Quantité viande],TableMenus[Nom produit viande],$A38,TableMenus[Nom période concernée],B$4)","v":0},{"$f":"SUMIFS(TableMenus[Quantité viande],TableMenus[Nom produit viande],$A38,TableMenus[Nom période concernée],C$4)","v":0},{"$f":"SUMIFS(TableMenus[Quantité viande],TableMenus[Nom produit viande],$A38,TableMenus[Nom période concernée],D$4)","v":0},{"$f":"SUMIFS(TableMenus[Quantité viande],TableMenus[Nom produit viande],$A38,TableMenus[Nom période concernée],E$4)","v":0},{"$f":"SUMIFS(TableMenus[Quantité viande],TableMenus[Nom produit viande],$A38,TableMenus[Nom période concernée],F$4)","v":0},{"$f":"SUMIFS(TableMenus[Quantité viande],TableMenus[Nom produit viande],$A38,TableMenus[Nom période concernée],G$4)","v":0},{"$f":"SUMIFS(TableMenus[Quantité viande],TableMenus[Nom produit viande],$A38,TableMenus[Nom période concernée],H$4)","v":0},{"$f":"SUMIFS(TableMenus[Quantité viande],TableMenus[Nom produit viande],$A38,TableMenus[Nom période concernée],I$4)","v":0},{"$f":"SUMIFS(TableMenus[Quantité viande],TableMenus[Nom produit viande],$A38,TableMenus[Nom période concernée],J$4)","v":0},{"$f":"SUMIFS(TableMenus[Quantité viande],TableMenus[Nom produit viande],$A38,TableMenus[Nom période concernée],K$4)","v":0},{"$f":"SUMIFS(TableMenus[Quantité viande],TableMenus[Nom produit viande],$A38,TableMenus[Nom période concernée],L$4)","v":0},{"$f":"SUMIFS(TableMenus[Quantité viande],TableMenus[Nom produit viande],$A38,TableMenus[Nom période concernée],M$4)","v":0},0]
["Thon",{"$f":"SUMIFS(TableMenus[Quantité viande],TableMenus[Nom produit viande],$A39,TableMenus[Nom période concernée],B$4)","v":0},{"$f":"SUMIFS(TableMenus[Quantité viande],TableMenus[Nom produit viande],$A39,TableMenus[Nom période concernée],C$4)","v":0},{"$f":"SUMIFS(TableMenus[Quantité viande],TableMenus[Nom produit viande],$A39,TableMenus[Nom période concernée],D$4)","v":0},{"$f":"SUMIFS(TableMenus[Quantité viande],TableMenus[Nom produit viande],$A39,TableMenus[Nom période concernée],E$4)","v":0},{"$f":"SUMIFS(TableMenus[Quantité viande],TableMenus[Nom produit viande],$A39,TableMenus[Nom période concernée],F$4)","v":0},{"$f":"SUMIFS(TableMenus[Quantité viande],TableMenus[Nom produit viande],$A39,TableMenus[Nom période concernée],G$4)","v":0},{"$f":"SUMIFS(TableMenus[Quantité viande],TableMenus[Nom produit viande],$A39,TableMenus[Nom période concernée],H$4)","v":0},{"$f":"SUMIFS(TableMenus[Quantité viande],TableMenus[Nom produit viande],$A39,TableMenus[Nom période concernée],I$4)","v":0},{"$f":"SUMIFS(TableMenus[Quantité viande],TableMenus[Nom produit viande],$A39,TableMenus[Nom période concernée],J$4)","v":0},{"$f":"SUMIFS(TableMenus[Quantité viande],TableMenus[Nom produit viande],$A39,TableMenus[Nom période concernée],K$4)","v":0},{"$f":"SUMIFS(TableMenus[Quantité viande],TableMenus[Nom produit viande],$A39,TableMenus[Nom période concernée],L$4)","v":0},{"$f":"SUMIFS(TableMenus[Quantité viande],TableMenus[Nom produit viande],$A39,TableMenus[Nom période concernée],M$4)","v":0},0]
["Veau",{"$f":"SUMIFS(TableMenus[Quantité viande],TableMenus[Nom produit viande],$A40,TableMenus[Nom période concernée],B$4)","v":0},{"$f":"SUMIFS(TableMenus[Quantité viande],TableMenus[Nom produit viande],$A40,TableMenus[Nom période concernée],C$4)","v":0},{"$f":"SUMIFS(TableMenus[Quantité viande],TableMenus[Nom produit viande],$A40,TableMenus[Nom période concernée],D$4)","v":0},{"$f":"SUMIFS(TableMenus[Quantité viande],TableMenus[Nom produit viande],$A40,TableMenus[Nom période concernée],E$4)","v":0},{"$f":"SUMIFS(TableMenus[Quantité viande],TableMenus[Nom produit viande],$A40,TableMenus[Nom période concernée],F$4)","v":0},{"$f":"SUMIFS(TableMenus[Quantité viande],TableMenus[Nom produit viande],$A40,TableMenus[Nom période concernée],G$4)","v":0},{"$f":"SUMIFS(TableMenus[Quantité viande],TableMenus[Nom produit viande],$A40,TableMenus[Nom période concernée],H$4)","v":0},{"$f":"SUMIFS(TableMenus[Quantité viande],TableMenus[Nom produit viande],$A40,TableMenus[Nom période concernée],I$4)","v":0},{"$f":"SUMIFS(TableMenus[Quantité viande],TableMenus[Nom produit viande],$A40,TableMenus[Nom période concernée],J$4)","v":0},{"$f":"SUMIFS(TableMenus[Quantité viande],TableMenus[Nom produit viande],$A40,TableMenus[Nom période concernée],K$4)","v":0},{"$f":"SUMIFS(TableMenus[Quantité viande],TableMenus[Nom produit viande],$A40,TableMenus[Nom période concernée],L$4)","v":0},{"$f":"SUMIFS(TableMenus[Quantité viande],TableMenus[Nom produit viande],$A40,TableMenus[Nom période concernée],M$4)","v":0},{"$f":"SUM(B40:M40)","v":0}]
["Viande cassoulet",{"$f":"SUMIFS(TableMenus[Quantité viande],TableMenus[Nom produit viande],$A41,TableMenus[Nom période concernée],B$4)","v":0},{"$f":"SUMIFS(TableMenus[Quantité viande],TableMenus[Nom produit viande],$A41,TableMenus[Nom période concernée],C$4)","v":0},{"$f":"SUMIFS(TableMenus[Quantité viande],TableMenus[Nom produit viande],$A41,TableMenus[Nom période concernée],D$4)","v":0},{"$f":"SUMIFS(TableMenus[Quantité viande],TableMenus[Nom produit viande],$A41,TableMenus[Nom période concernée],E$4)","v":0},{"$f":"SUMIFS(TableMenus[Quantité viande],TableMenus[Nom produit viande],$A41,TableMenus[Nom période concernée],F$4)","v":0},{"$f":"SUMIFS(TableMenus[Quantité viande],TableMenus[Nom produit viande],$A41,TableMenus[Nom période concernée],G$4)","v":0},{"$f":"SUMIFS(TableMenus[Quantité viande],TableMenus[Nom produit viande],$A41,TableMenus[Nom période concernée],H$4)","v":0},{"$f":"SUMIFS(TableMenus[Quantité viande],TableMenus[Nom produit viande],$A41,TableMenus[Nom période concernée],I$4)","v":0},{"$f":"SUMIFS(TableMenus[Quantité viande],TableMenus[Nom produit viande],$A41,TableMenus[Nom période concernée],J$4)","v":0},{"$f":"SUMIFS(TableMenus[Quantité viande],TableMenus[Nom produit viande],$A41,TableMenus[Nom période concernée],K$4)","v":0},{"$f":"SUMIFS(TableMenus[Quantité viande],TableMenus[Nom produit viande],$A41,TableMenus[Nom période concernée],L$4)","v":0},{"$f":"SUMIFS(TableMenus[Quantité viande],TableMenus[Nom produit viande],$A41,TableMenus[Nom période concernée],M$4)","v":0},0]
["Viande choucroute",{"$f":"SUMIFS(TableMenus[Quantité viande],TableMenus[Nom produit viande],$A42,TableMenus[Nom période concernée],B$4)","v":0},{"$f":"SUMIFS(TableMenus[Quantité viande],TableMenus[Nom produit viande],$A42,TableMenus[Nom période concernée],C$4)","v":0},{"$f":"SUMIFS(TableMenus[Quantité viande],TableMenus[Nom produit viande],$A42,TableMenus[Nom période concernée],D$4)","v":0},{"$f":"SUMIFS(TableMenus[Quantité viande],TableMenus[Nom produit viande],$A42,TableMenus[Nom période concernée],E$4)","v":0},{"$f":"SUMIFS(TableMenus[Quantité viande],TableMenus[Nom produit viande],$A42,TableMenus[Nom période concernée],F$4)","v":0},{"$f":"SUMIFS(TableMenus[Quantité viande],TableMenus[Nom produit viande],$A42,TableMenus[Nom période concernée],G$4)","v":0},{"$f":"SUMIFS(TableMenus[Quantité viande],TableMenus[Nom produit viande],$A42,TableMenus[Nom période concernée],H$4)","v":0},{"$f":"SUMIFS(TableMenus[Quantité viande],TableMenus[Nom produit viande],$A42,TableMenus[Nom période concernée],I$4)","v":0},{"$f":"SUMIFS(TableMenus[Quantité viande],TableMenus[Nom produit viande],$A42,TableMenus[Nom période concernée],J$4)","v":0},{"$f":"SUMIFS(TableMenus[Quantité viande],TableMenus[Nom produit viande],$A42,TableMenus[Nom période concernée],K$4)","v":0},{"$f":"SUMIFS(TableMenus[Quantité viande],TableMenus[Nom produit viande],$A42,TableMenus[Nom période concernée],L$4)","v":0},{"$f":"SUMIFS(TableMenus[Quantité viande],TableMenus[Nom produit viande],$A42,TableMenus[Nom période concernée],M$4)","v":0},0]
["Viande paella",{"$f":"SUMIFS(TableMenus[Quantité viande],TableMenus[Nom produit viande],$A43,TableMenus[Nom période concernée],B$4)","v":0},{"$f":"SUMIFS(TableMenus[Quantité viande],TableMenus[Nom produit viande],$A43,TableMenus[Nom période concernée],C$4)","v":0},{"$f":"SUMIFS(TableMenus[Quantité viande],TableMenus[Nom produit viande],$A43,TableMenus[Nom période concernée],D$4)","v":0},{"$f":"SUMIFS(TableMenus[Quantité viande],TableMenus[Nom produit viande],$A43,TableMenus[Nom période concernée],E$4)","v":0},{"$f":"SUMIFS(TableMenus[Quantité viande],TableMenus[Nom produit viande],$A43,TableMenus[Nom période concernée],F$4)","v":0},{"$f":"SUMIFS(TableMenus[Quantité viande],TableMenus[Nom produit viande],$A43,TableMenus[Nom période concernée],G$4)","v":0},{"$f":"SUMIFS(TableMenus[Quantité viande],TableMenus[Nom produit viande],$A43,TableMenus[Nom période concernée],H$4)","v":0},{"$f":"SUMIFS(TableMenus[Quantité viande],TableMenus[Nom produit viande],$A43,TableMenus[Nom période concernée],I$4)","v":0},{"$f":"SUMIFS(TableMenus[Quantité viande],TableMenus[Nom produit viande],$A43,TableMenus[Nom période concernée],J$4)","v":0},{"$f":"SUMIFS(TableMenus[Quantité viande],TableMenus[Nom produit viande],$A43,TableMenus[Nom période concernée],K$4)","v":0},{"$f":"SUMIFS(TableMenus[Quantité viande],TableMenus[Nom produit viande],$A43,TableMenus[Nom période concernée],L$4)","v":0},{"$f":"SUMIFS(TableMenus[Quantité viande],TableMenus[Nom produit viande],$A43,TableMenus[Nom période concernée],M$4)","v":0},0]
[]
[{"$f":"\"Fait à Limeil-Brévannes, le \"&TEXT(TODAY(),\"jjjj j mmmm aaaa\")","v":"Fait à Limeil-Brévannes, le mercredi 29 septembre 2021"}]

{"sheet":"Tab quantité desserts","index":18,"n_rows":29,"n_cols":14,"rows_kept":29,"cut":false,"hidden":true,"merged":[[0,1,0,12],[28,0,28,13]]}
[null,{"$f":"\"Quantités par dessert et par mois pour l'année \" &  'Accueil Menus'!D1","v":"Quantités par dessert et par mois pour l'année 2021"}]
[]
[]
[]
["Nom  dessert","janvier","février","mars","avril","mai","juin","juillet","août","septembre","octobre","novembre","décembre","Total"]
["Ananas",{"$f":"SUMIFS(TableMenus[Quantité dessert],TableMenus[Nom produit dessert],$A6,TableMenus[Nom période concernée],B$5)","v":0},{"$f":"SUMIFS(TableMenus[Quantité dessert],TableMenus[Nom produit dessert],$A6,TableMenus[Nom période concernée],C$5)","v":0},{"$f":"SUMIFS(TableMenus[Quantité dessert],TableMenus[Nom produit dessert],$A6,TableMenus[Nom période concernée],D$5)","v":0},{"$f":"SUMIFS(TableMenus[Quantité dessert],TableMenus[Nom produit dessert],$A6,TableMenus[Nom période concernée],E$5)","v":0},{"$f":"SUMIFS(TableMenus[Quantité dessert],TableMenus[Nom produit dessert],$A6,TableMenus[Nom période concernée],F$5)","v":0},{"$f":"SUMIFS(TableMenus[Quantité dessert],TableMenus[Nom produit dessert],$A6,TableMenus[Nom période concernée],G$5)","v":0},{"$f":"SUMIFS(TableMenus[Quantité dessert],TableMenus[Nom produit dessert],$A6,TableMenus[Nom période concernée],H$5)","v":0},{"$f":"SUMIFS(TableMenus[Quantité dessert],TableMenus[Nom produit dessert],$A6,TableMenus[Nom période concernée],I$5)","v":0},{"$f":"SUMIFS(TableMenus[Quantité dessert],TableMenus[Nom produit dessert],$A6,TableMenus[Nom période concernée],J$5)","v":0},{"$f":"SUMIFS(TableMenus[Quantité dessert],TableMenus[Nom produit dessert],$A6,TableMenus[Nom période concernée],K$5)","v":0},{"$f":"SUMIFS(TableMenus[Quantité dessert],TableMenus[Nom produit dessert],$A6,TableMenus[Nom période concernée],L$5)","v":0},{"$f":"SUMIFS(TableMenus[Quantité dessert],TableMenus[Nom produit dessert],$A6,TableMenus[Nom période concernée],M$5)","v":0},{"$f":"SUM(B6:M6)","v":0}]
["Autres fruits",{"$f":"SUMIFS(TableMenus[Quantité dessert],TableMenus[Nom produit dessert],$A7,TableMenus[Nom période concernée],B$5)","v":0},{"$f":"SUMIFS(TableMenus[Quantité dessert],TableMenus[Nom produit dessert],$A7,TableMenus[Nom période concernée],C$5)","v":0},{"$f":"SUMIFS(TableMenus[Quantité dessert],TableMenus[Nom produit dessert],$A7,TableMenus[Nom période concernée],D$5)","v":0},{"$f":"SUMIFS(TableMenus[Quantité dessert],TableMenus[Nom produit dessert],$A7,TableMenus[Nom période concernée],E$5)","v":0},{"$f":"SUMIFS(TableMenus[Quantité dessert],TableMenus[Nom produit dessert],$A7,TableMenus[Nom période concernée],F$5)","v":0},{"$f":"SUMIFS(TableMenus[Quantité dessert],TableMenus[Nom produit dessert],$A7,TableMenus[Nom période concernée],G$5)","v":0},{"$f":"SUMIFS(TableMenus[Quantité dessert],TableMenus[Nom produit dessert],$A7,TableMenus[Nom période concernée],H$5)","v":0},{"$f":"SUMIFS(TableMenus[Quantité dessert],TableMenus[Nom produit dessert],$A7,TableMenus[Nom période concernée],I$5)","v":0},{"$f":"SUMIFS(TableMenus[Quantité dessert],TableMenus[Nom produit dessert],$A7,TableMenus[Nom période concernée],J$5)","v":0},{"$f":"SUMIFS(TableMenus[Quantité dessert],TableMenus[Nom produit dessert],$A7,TableMenus[Nom période concernée],K$5)","v":0},{"$f":"SUMIFS(TableMenus[Quantité dessert],TableMenus[Nom produit dessert],$A7,TableMenus[Nom période concernée],L$5)","v":0},{"$f":"SUMIFS(TableMenus[Quantité dessert],TableMenus[Nom produit dessert],$A7,TableMenus[Nom période concernée],M$5)","v":0},0]
["Avocats",{"$f":"SUMIFS(TableMenus[Quantité dessert],TableMenus[Nom produit dessert],$A8,TableMenus[Nom période concernée],B$5)","v":0},{"$f":"SUMIFS(TableMenus[Quantité dessert],TableMenus[Nom produit dessert],$A8,TableMenus[Nom période concernée],C$5)","v":0},{"$f":"SUMIFS(TableMenus[Quantité dessert],TableMenus[Nom produit dessert],$A8,TableMenus[Nom période concernée],D$5)","v":0},{"$f":"SUMIFS(TableMenus[Quantité dessert],TableMenus[Nom produit dessert],$A8,TableMenus[Nom période concernée],E$5)","v":0},{"$f":"SUMIFS(TableMenus[Quantité dessert],TableMenus[Nom produit dessert],$A8,TableMenus[Nom période concernée],F$5)","v":0},{"$f":"SUMIFS(TableMenus[Quantité dessert],TableMenus[Nom produit dessert],$A8,TableMenus[Nom période concernée],G$5)","v":0},{"$f":"SUMIFS(TableMenus[Quantité dessert],TableMenus[Nom produit dessert],$A8,TableMenus[Nom période concernée],H$5)","v":0},{"$f":"SUMIFS(TableMenus[Quantité dessert],TableMenus[Nom produit dessert],$A8,TableMenus[Nom période concernée],I$5)","v":0},{"$f":"SUMIFS(TableMenus[Quantité dessert],TableMenus[Nom produit dessert],$A8,TableMenus[Nom période concernée],J$5)","v":0},{"$f":"SUMIFS(TableMenus[Quantité dessert],TableMenus[Nom produit dessert],$A8,TableMenus[Nom période concernée],K$5)","v":0},{"$f":"SUMIFS(TableMenus[Quantité dessert],TableMenus[Nom produit dessert],$A8,TableMenus[Nom période concernée],L$5)","v":0},{"$f":"SUMIFS(TableMenus[Quantité dessert],TableMenus[Nom produit dessert],$A8,TableMenus[Nom période concernée],M$5)","v":0},0]
["Bananes",{"$f":"SUMIFS(TableMenus[Quantité dessert],TableMenus[Nom produit dessert],$A9,TableMenus[Nom période concernée],B$5)","v":0},{"$f":"SUMIFS(TableMenus[Quantité dessert],TableMenus[Nom produit dessert],$A9,TableMenus[Nom période concernée],C$5)","v":0},{"$f":"SUMIFS(TableMenus[Quantité dessert],TableMenus[Nom produit dessert],$A9,TableMenus[Nom période concernée],D$5)","v":0},{"$f":"SUMIFS(TableMenus[Quantité dessert],TableMenus[Nom produit dessert],$A9,TableMenus[Nom période concernée],E$5)","v":0},{"$f":"SUMIFS(TableMenus[Quantité dessert],TableMenus[Nom produit dessert],$A9,TableMenus[Nom période concernée],F$5)","v":0},{"$f":"SUMIFS(TableMenus[Quantité dessert],TableMenus[Nom produit dessert],$A9,TableMenus[Nom période concernée],G$5)","v":0},{"$f":"SUMIFS(TableMenus[Quantité dessert],TableMenus[Nom produit dessert],$A9,TableMenus[Nom période concernée],H$5)","v":0},{"$f":"SUMIFS(TableMenus[Quantité dessert],TableMenus[Nom produit dessert],$A9,TableMenus[Nom période concernée],I$5)","v":0},{"$f":"SUMIFS(TableMenus[Quantité dessert],TableMenus[Nom produit dessert],$A9,TableMenus[Nom période concernée],J$5)","v":0},{"$f":"SUMIFS(TableMenus[Quantité dessert],TableMenus[Nom produit dessert],$A9,TableMenus[Nom période concernée],K$5)","v":0},{"$f":"SUMIFS(TableMenus[Quantité dessert],TableMenus[Nom produit dessert],$A9,TableMenus[Nom période concernée],L$5)","v":0},{"$f":"SUMIFS(TableMenus[Quantité dessert],TableMenus[Nom produit dessert],$A9,TableMenus[Nom période concernée],M$5)","v":0},0]
["Clémentines",{"$f":"SUMIFS(TableMenus[Quantité dessert],TableMenus[Nom produit dessert],$A10,TableMenus[Nom période concernée],B$5)","v":0},{"$f":"SUMIFS(TableMenus[Quantité dessert],TableMenus[Nom produit dessert],$A10,TableMenus[Nom période concernée],C$5)","v":0},{"$f":"SUMIFS(TableMenus[Quantité dessert],TableMenus[Nom produit dessert],$A10,TableMenus[Nom période concernée],D$5)","v":0},{"$f":"SUMIFS(TableMenus[Quantité dessert],TableMenus[Nom produit dessert],$A10,TableMenus[Nom période concernée],E$5)","v":0},{"$f":"SUMIFS(TableMenus[Quantité dessert],TableMenus[Nom produit dessert],$A10,TableMenus[Nom période concernée],F$5)","v":0},{"$f":"SUMIFS(TableMenus[Quantité dessert],TableMenus[Nom produit dessert],$A10,TableMenus[Nom période concernée],G$5)","v":0},{"$f":"SUMIFS(TableMenus[Quantité dessert],TableMenus[Nom produit dessert],$A10,TableMenus[Nom période concernée],H$5)","v":0},{"$f":"SUMIFS(TableMenus[Quantité dessert],TableMenus[Nom produit dessert],$A10,TableMenus[Nom période concernée],I$5)","v":0},{"$f":"SUMIFS(TableMenus[Quantité dessert],TableMenus[Nom produit dessert],$A10,TableMenus[Nom période concernée],J$5)","v":0},{"$f":"SUMIFS(TableMenus[Quantité dessert],TableMenus[Nom produit dessert],$A10,TableMenus[Nom période concernée],K$5)","v":0},{"$f":"SUMIFS(TableMenus[Quantité dessert],TableMenus[Nom produit dessert],$A10,TableMenus[Nom période concernée],L$5)","v":0},{"$f":"SUMIFS(TableMenus[Quantité dessert],TableMenus[Nom produit dessert],$A10,TableMenus[Nom période concernée],M$5)","v":0},0]
["Crème",{"$f":"SUMIFS(TableMenus[Quantité dessert],TableMenus[Nom produit dessert],$A11,TableMenus[Nom période concernée],B$5)","v":0},{"$f":"SUMIFS(TableMenus[Quantité dessert],TableMenus[Nom produit dessert],$A11,TableMenus[Nom période concernée],C$5)","v":0},{"$f":"SUMIFS(TableMenus[Quantité dessert],TableMenus[Nom produit dessert],$A11,TableMenus[Nom période concernée],D$5)","v":0},{"$f":"SUMIFS(TableMenus[Quantité dessert],TableMenus[Nom produit dessert],$A11,TableMenus[Nom période concernée],E$5)","v":0},{"$f":"SUMIFS(TableMenus[Quantité dessert],TableMenus[Nom produit dessert],$A11,TableMenus[Nom période concernée],F$5)","v":0},{"$f":"SUMIFS(TableMenus[Quantité dessert],TableMenus[Nom produit dessert],$A11,TableMenus[Nom période concernée],G$5)","v":0},{"$f":"SUMIFS(TableMenus[Quantité dessert],TableMenus[Nom produit dessert],$A11,TableMenus[Nom période concernée],H$5)","v":0},{"$f":"SUMIFS(TableMenus[Quantité dessert],TableMenus[Nom produit dessert],$A11,TableMenus[Nom période concernée],I$5)","v":0},{"$f":"SUMIFS(TableMenus[Quantité dessert],TableMenus[Nom produit dessert],$A11,TableMenus[Nom période concernée],J$5)","v":0},{"$f":"SUMIFS(TableMenus[Quantité dessert],TableMenus[Nom produit dessert],$A11,TableMenus[Nom période concernée],K$5)","v":0},{"$f":"SUMIFS(TableMenus[Quantité dessert],TableMenus[Nom produit dessert],$A11,TableMenus[Nom période concernée],L$5)","v":0},{"$f":"SUMIFS(TableMenus[Quantité dessert],TableMenus[Nom produit dessert],$A11,TableMenus[Nom période concernée],M$5)","v":0},0]
["Dattes",{"$f":"SUMIFS(TableMenus[Quantité dessert],TableMenus[Nom produit dessert],$A12,TableMenus[Nom période concernée],B$5)","v":0},{"$f":"SUMIFS(TableMenus[Quantité dessert],TableMenus[Nom produit dessert],$A12,TableMenus[Nom période concernée],C$5)","v":0},{"$f":"SUMIFS(TableMenus[Quantité dessert],TableMenus[Nom produit dessert],$A12,TableMenus[Nom période concernée],D$5)","v":0},{"$f":"SUMIFS(TableMenus[Quantité dessert],TableMenus[Nom produit dessert],$A12,TableMenus[Nom période concernée],E$5)","v":0},{"$f":"SUMIFS(TableMenus[Quantité dessert],TableMenus[Nom produit dessert],$A12,TableMenus[Nom période concernée],F$5)","v":0},{"$f":"SUMIFS(TableMenus[Quantité dessert],TableMenus[Nom produit dessert],$A12,TableMenus[Nom période concernée],G$5)","v":0},{"$f":"SUMIFS(TableMenus[Quantité dessert],TableMenus[Nom produit dessert],$A12,TableMenus[Nom période concernée],H$5)","v":0},{"$f":"SUMIFS(TableMenus[Quantité dessert],TableMenus[Nom produit dessert],$A12,TableMenus[Nom période concernée],I$5)","v":0},{"$f":"SUMIFS(TableMenus[Quantité dessert],TableMenus[Nom produit dessert],$A12,TableMenus[Nom période concernée],J$5)","v":0},{"$f":"SUMIFS(TableMenus[Quantité dessert],TableMenus[Nom produit dessert],$A12,TableMenus[Nom période concernée],K$5)","v":0},{"$f":"SUMIFS(TableMenus[Quantité dessert],TableMenus[Nom produit dessert],$A12,TableMenus[Nom période concernée],L$5)","v":0},{"$f":"SUMIFS(TableMenus[Quantité dessert],TableMenus[Nom produit dessert],$A12,TableMenus[Nom période concernée],M$5)","v":0},0]
["Figues",{"$f":"SUMIFS(TableMenus[Quantité dessert],TableMenus[Nom produit dessert],$A13,TableMenus[Nom période concernée],B$5)","v":0},{"$f":"SUMIFS(TableMenus[Quantité dessert],TableMenus[Nom produit dessert],$A13,TableMenus[Nom période concernée],C$5)","v":0},{"$f":"SUMIFS(TableMenus[Quantité dessert],TableMenus[Nom produit dessert],$A13,TableMenus[Nom période concernée],D$5)","v":0},{"$f":"SUMIFS(TableMenus[Quantité dessert],TableMenus[Nom produit dessert],$A13,TableMenus[Nom période concernée],E$5)","v":0},{"$f":"SUMIFS(TableMenus[Quantité dessert],TableMenus[Nom produit dessert],$A13,TableMenus[Nom période concernée],F$5)","v":0},{"$f":"SUMIFS(TableMenus[Quantité dessert],TableMenus[Nom produit dessert],$A13,TableMenus[Nom période concernée],G$5)","v":0},{"$f":"SUMIFS(TableMenus[Quantité dessert],TableMenus[Nom produit dessert],$A13,TableMenus[Nom période concernée],H$5)","v":0},{"$f":"SUMIFS(TableMenus[Quantité dessert],TableMenus[Nom produit dessert],$A13,TableMenus[Nom période concernée],I$5)","v":0},{"$f":"SUMIFS(TableMenus[Quantité dessert],TableMenus[Nom produit dessert],$A13,TableMenus[Nom période concernée],J$5)","v":0},{"$f":"SUMIFS(TableMenus[Quantité dessert],TableMenus[Nom produit dessert],$A13,TableMenus[Nom période concernée],K$5)","v":0},{"$f":"SUMIFS(TableMenus[Quantité dessert],TableMenus[Nom produit dessert],$A13,TableMenus[Nom période concernée],L$5)","v":0},{"$f":"SUMIFS(TableMenus[Quantité dessert],TableMenus[Nom produit dessert],$A13,TableMenus[Nom période concernée],M$5)","v":0},0]
["Fromage blanc",{"$f":"SUMIFS(TableMenus[Quantité dessert],TableMenus[Nom produit dessert],$A14,TableMenus[Nom période concernée],B$5)","v":0},{"$f":"SUMIFS(TableMenus[Quantité dessert],TableMenus[Nom produit dessert],$A14,TableMenus[Nom période concernée],C$5)","v":0},{"$f":"SUMIFS(TableMenus[Quantité dessert],TableMenus[Nom produit dessert],$A14,TableMenus[Nom période concernée],D$5)","v":0},{"$f":"SUMIFS(TableMenus[Quantité dessert],TableMenus[Nom produit dessert],$A14,TableMenus[Nom période concernée],E$5)","v":0},{"$f":"SUMIFS(TableMenus[Quantité dessert],TableMenus[Nom produit dessert],$A14,TableMenus[Nom période concernée],F$5)","v":0},{"$f":"SUMIFS(TableMenus[Quantité dessert],TableMenus[Nom produit dessert],$A14,TableMenus[Nom période concernée],G$5)","v":0},{"$f":"SUMIFS(TableMenus[Quantité dessert],TableMenus[Nom produit dessert],$A14,TableMenus[Nom période concernée],H$5)","v":0},{"$f":"SUMIFS(TableMenus[Quantité dessert],TableMenus[Nom produit dessert],$A14,TableMenus[Nom période concernée],I$5)","v":0},{"$f":"SUMIFS(TableMenus[Quantité dessert],TableMenus[Nom produit dessert],$A14,TableMenus[Nom période concernée],J$5)","v":0},{"$f":"SUMIFS(TableMenus[Quantité dessert],TableMenus[Nom produit dessert],$A14,TableMenus[Nom période concernée],K$5)","v":0},{"$f":"SUMIFS(TableMenus[Quantité dessert],TableMenus[Nom produit dessert],$A14,TableMenus[Nom période concernée],L$5)","v":0},{"$f":"SUMIFS(TableMenus[Quantité dessert],TableMenus[Nom produit dessert],$A14,TableMenus[Nom période concernée],M$5)","v":0},0]
["Fruits au sirop",{"$f":"SUMIFS(TableMenus[Quantité dessert],TableMenus[Nom produit dessert],$A15,TableMenus[Nom période concernée],B$5)","v":0},{"$f":"SUMIFS(TableMenus[Quantité dessert],TableMenus[Nom produit dessert],$A15,TableMenus[Nom période concernée],C$5)","v":0},{"$f":"SUMIFS(TableMenus[Quantité dessert],TableMenus[Nom produit dessert],$A15,TableMenus[Nom période concernée],D$5)","v":0},{"$f":"SUMIFS(TableMenus[Quantité dessert],TableMenus[Nom produit dessert],$A15,TableMenus[Nom période concernée],E$5)","v":0},{"$f":"SUMIFS(TableMenus[Quantité dessert],TableMenus[Nom produit dessert],$A15,TableMenus[Nom période concernée],F$5)","v":0},{"$f":"SUMIFS(TableMenus[Quantité dessert],TableMenus[Nom produit dessert],$A15,TableMenus[Nom période concernée],G$5)","v":0},{"$f":"SUMIFS(TableMenus[Quantité dessert],TableMenus[Nom produit dessert],$A15,TableMenus[Nom période concernée],H$5)","v":0},{"$f":"SUMIFS(TableMenus[Quantité dessert],TableMenus[Nom produit dessert],$A15,TableMenus[Nom période concernée],I$5)","v":0},{"$f":"SUMIFS(TableMenus[Quantité dessert],TableMenus[Nom produit dessert],$A15,TableMenus[Nom période concernée],J$5)","v":0},{"$f":"SUMIFS(TableMenus[Quantité dessert],TableMenus[Nom produit dessert],$A15,TableMenus[Nom période concernée],K$5)","v":0},{"$f":"SUMIFS(TableMenus[Quantité dessert],TableMenus[Nom produit dessert],$A15,TableMenus[Nom période concernée],L$5)","v":0},{"$f":"SUMIFS(TableMenus[Quantité dessert],TableMenus[Nom produit dessert],$A15,TableMenus[Nom période concernée],M$5)","v":0},0]
["Fruits de saison",{"$f":"SUMIFS(TableMenus[Quantité dessert],TableMenus[Nom produit dessert],$A16,TableMenus[Nom période concernée],B$5)","v":0},{"$f":"SUMIFS(TableMenus[Quantité dessert],TableMenus[Nom produit dessert],$A16,TableMenus[Nom période concernée],C$5)","v":0},{"$f":"SUMIFS(TableMenus[Quantité dessert],TableMenus[Nom produit dessert],$A16,TableMenus[Nom période concernée],D$5)","v":0},{"$f":"SUMIFS(TableMenus[Quantité dessert],TableMenus[Nom produit dessert],$A16,TableMenus[Nom période concernée],E$5)","v":0},{"$f":"SUMIFS(TableMenus[Quantité dessert],TableMenus[Nom produit dessert],$A16,TableMenus[Nom période concernée],F$5)","v":0},{"$f":"SUMIFS(TableMenus[Quantité dessert],TableMenus[Nom produit dessert],$A16,TableMenus[Nom période concernée],G$5)","v":0},{"$f":"SUMIFS(TableMenus[Quantité dessert],TableMenus[Nom produit dessert],$A16,TableMenus[Nom période concernée],H$5)","v":0},{"$f":"SUMIFS(TableMenus[Quantité dessert],TableMenus[Nom produit dessert],$A16,TableMenus[Nom période concernée],I$5)","v":0},{"$f":"SUMIFS(TableMenus[Quantité dessert],TableMenus[Nom produit dessert],$A16,TableMenus[Nom période concernée],J$5)","v":0},{"$f":"SUMIFS(TableMenus[Quantité dessert],TableMenus[Nom produit dessert],$A16,TableMenus[Nom période concernée],K$5)","v":0},{"$f":"SUMIFS(TableMenus[Quantité dessert],TableMenus[Nom produit dessert],$A16,TableMenus[Nom période concernée],L$5)","v":0},{"$f":"SUMIFS(TableMenus[Quantité dessert],TableMenus[Nom produit dessert],$A16,TableMenus[Nom période concernée],M$5)","v":0},0]
["Gâteau de riz",{"$f":"SUMIFS(TableMenus[Quantité dessert],TableMenus[Nom produit dessert],$A17,TableMenus[Nom période concernée],B$5)","v":0},{"$f":"SUMIFS(TableMenus[Quantité dessert],TableMenus[Nom produit dessert],$A17,TableMenus[Nom période concernée],C$5)","v":0},{"$f":"SUMIFS(TableMenus[Quantité dessert],TableMenus[Nom produit dessert],$A17,TableMenus[Nom période concernée],D$5)","v":0},{"$f":"SUMIFS(TableMenus[Quantité dessert],TableMenus[Nom produit dessert],$A17,TableMenus[Nom période concernée],E$5)","v":0},{"$f":"SUMIFS(TableMenus[Quantité dessert],TableMenus[Nom produit dessert],$A17,TableMenus[Nom période concernée],F$5)","v":0},{"$f":"SUMIFS(TableMenus[Quantité dessert],TableMenus[Nom produit dessert],$A17,TableMenus[Nom période concernée],G$5)","v":0},{"$f":"SUMIFS(TableMenus[Quantité dessert],TableMenus[Nom produit dessert],$A17,TableMenus[Nom période concernée],H$5)","v":0},{"$f":"SUMIFS(TableMenus[Quantité dessert],TableMenus[Nom produit dessert],$A17,TableMenus[Nom période concernée],I$5)","v":0},{"$f":"SUMIFS(TableMenus[Quantité dessert],TableMenus[Nom produit dessert],$A17,TableMenus[Nom période concernée],J$5)","v":0},{"$f":"SUMIFS(TableMenus[Quantité dessert],TableMenus[Nom produit dessert],$A17,TableMenus[Nom période concernée],K$5)","v":0},{"$f":"SUMIFS(TableMenus[Quantité dessert],TableMenus[Nom produit dessert],$A17,TableMenus[Nom période concernée],L$5)","v":0},{"$f":"SUMIFS(TableMenus[Quantité dessert],TableMenus[Nom produit dessert],$A17,TableMenus[Nom période concernée],M$5)","v":0},0]
["Gâteau de semoule",{"$f":"SUMIFS(TableMenus[Quantité dessert],TableMenus[Nom produit dessert],$A18,TableMenus[Nom période concernée],B$5)","v":0},{"$f":"SUMIFS(TableMenus[Quantité dessert],TableMenus[Nom produit dessert],$A18,TableMenus[Nom période concernée],C$5)","v":0},{"$f":"SUMIFS(TableMenus[Quantité dessert],TableMenus[Nom produit dessert],$A18,TableMenus[Nom période concernée],D$5)","v":0},{"$f":"SUMIFS(TableMenus[Quantité dessert],TableMenus[Nom produit dessert],$A18,TableMenus[Nom période concernée],E$5)","v":0},{"$f":"SUMIFS(TableMenus[Quantité dessert],TableMenus[Nom produit dessert],$A18,TableMenus[Nom période concernée],F$5)","v":0},{"$f":"SUMIFS(TableMenus[Quantité dessert],TableMenus[Nom produit dessert],$A18,TableMenus[Nom période concernée],G$5)","v":0},{"$f":"SUMIFS(TableMenus[Quantité dessert],TableMenus[Nom produit dessert],$A18,TableMenus[Nom période concernée],H$5)","v":0},{"$f":"SUMIFS(TableMenus[Quantité dessert],TableMenus[Nom produit dessert],$A18,TableMenus[Nom période concernée],I$5)","v":0},{"$f":"SUMIFS(TableMenus[Quantité dessert],TableMenus[Nom produit dessert],$A18,TableMenus[Nom période concernée],J$5)","v":0},{"$f":"SUMIFS(TableMenus[Quantité dessert],TableMenus[Nom produit dessert],$A18,TableMenus[Nom période concernée],K$5)","v":0},{"$f":"SUMIFS(TableMenus[Quantité dessert],TableMenus[Nom produit dessert],$A18,TableMenus[Nom période concernée],L$5)","v":0},{"$f":"SUMIFS(TableMenus[Quantité dessert],TableMenus[Nom produit dessert],$A18,TableMenus[Nom période concernée],M$5)","v":0},0]
["Gâteaux samedi dimanche",{"$f":"SUMIFS(TableMenus[Quantité dessert],TableMenus[Nom produit dessert],$A19,TableMenus[Nom période concernée],B$5)","v":0},{"$f":"SUMIFS(TableMenus[Quantité dessert],TableMenus[Nom produit dessert],$A19,TableMenus[Nom période concernée],C$5)","v":0},{"$f":"SUMIFS(TableMenus[Quantité dessert],TableMenus[Nom produit dessert],$A19,TableMenus[Nom période concernée],D$5)","v":0},{"$f":"SUMIFS(TableMenus[Quantité dessert],TableMenus[Nom produit dessert],$A19,TableMenus[Nom période concernée],E$5)","v":0},{"$f":"SUMIFS(TableMenus[Quantité dessert],TableMenus[Nom produit dessert],$A19,TableMenus[Nom période concernée],F$5)","v":0},{"$f":"SUMIFS(TableMenus[Quantité dessert],TableMenus[Nom produit dessert],$A19,TableMenus[Nom période concernée],G$5)","v":0},{"$f":"SUMIFS(TableMenus[Quantité dessert],TableMenus[Nom produit dessert],$A19,TableMenus[Nom période concernée],H$5)","v":0},{"$f":"SUMIFS(TableMenus[Quantité dessert],TableMenus[Nom produit dessert],$A19,TableMenus[Nom période concernée],I$5)","v":0},{"$f":"SUMIFS(TableMenus[Quantité dessert],TableMenus[Nom produit dessert],$A19,TableMenus[Nom période concernée],J$5)","v":0},{"$f":"SUMIFS(TableMenus[Quantité dessert],TableMenus[Nom produit dessert],$A19,TableMenus[Nom période concernée],K$5)","v":0},{"$f":"SUMIFS(TableMenus[Quantité dessert],TableMenus[Nom produit dessert],$A19,TableMenus[Nom période concernée],L$5)","v":0},{"$f":"SUMIFS(TableMenus[Quantité dessert],TableMenus[Nom produit dessert],$A19,TableMenus[Nom période concernée],M$5)","v":0},0]
["Mousse au chocolat",{"$f":"SUMIFS(TableMenus[Quantité dessert],TableMenus[Nom produit dessert],$A20,TableMenus[Nom période concernée],B$5)","v":0},{"$f":"SUMIFS(TableMenus[Quantité dessert],TableMenus[Nom produit dessert],$A20,TableMenus[Nom période concernée],C$5)","v":0},{"$f":"SUMIFS(TableMenus[Quantité dessert],TableMenus[Nom produit dessert],$A20,TableMenus[Nom période concernée],D$5)","v":0},{"$f":"SUMIFS(TableMenus[Quantité dessert],TableMenus[Nom produit dessert],$A20,TableMenus[Nom période concernée],E$5)","v":0},{"$f":"SUMIFS(TableMenus[Quantité dessert],TableMenus[Nom produit dessert],$A20,TableMenus[Nom période concernée],F$5)","v":0},{"$f":"SUMIFS(TableMenus[Quantité dessert],TableMenus[Nom produit dessert],$A20,TableMenus[Nom période concernée],G$5)","v":0},{"$f":"SUMIFS(TableMenus[Quantité dessert],TableMenus[Nom produit dessert],$A20,TableMenus[Nom période concernée],H$5)","v":0},{"$f":"SUMIFS(TableMenus[Quantité dessert],TableMenus[Nom produit dessert],$A20,TableMenus[Nom période concernée],I$5)","v":0},{"$f":"SUMIFS(TableMenus[Quantité dessert],TableMenus[Nom produit dessert],$A20,TableMenus[Nom période concernée],J$5)","v":0},{"$f":"SUMIFS(TableMenus[Quantité dessert],TableMenus[Nom produit dessert],$A20,TableMenus[Nom période concernée],K$5)","v":0},{"$f":"SUMIFS(TableMenus[Quantité dessert],TableMenus[Nom produit dessert],$A20,TableMenus[Nom période concernée],L$5)","v":0},{"$f":"SUMIFS(TableMenus[Quantité dessert],TableMenus[Nom produit dessert],$A20,TableMenus[Nom période concernée],M$5)","v":0},0]
["Oranges",{"$f":"SUMIFS(TableMenus[Quantité dessert],TableMenus[Nom produit dessert],$A21,TableMenus[Nom période concernée],B$5)","v":0},{"$f":"SUMIFS(TableMenus[Quantité dessert],TableMenus[Nom produit dessert],$A21,TableMenus[Nom période concernée],C$5)","v":0},{"$f":"SUMIFS(TableMenus[Quantité dessert],TableMenus[Nom produit dessert],$A21,TableMenus[Nom période concernée],D$5)","v":0},{"$f":"SUMIFS(TableMenus[Quantité dessert],TableMenus[Nom produit dessert],$A21,TableMenus[Nom période concernée],E$5)","v":0},{"$f":"SUMIFS(TableMenus[Quantité dessert],TableMenus[Nom produit dessert],$A21,TableMenus[Nom période concernée],F$5)","v":0},{"$f":"SUMIFS(TableMenus[Quantité dessert],TableMenus[Nom produit dessert],$A21,TableMenus[Nom période concernée],G$5)","v":0},{"$f":"SUMIFS(TableMenus[Quantité dessert],TableMenus[Nom produit dessert],$A21,TableMenus[Nom période concernée],H$5)","v":0},{"$f":"SUMIFS(TableMenus[Quantité dessert],TableMenus[Nom produit dessert],$A21,TableMenus[Nom période concernée],I$5)","v":0},{"$f":"SUMIFS(TableMenus[Quantité dessert],TableMenus[Nom produit dessert],$A21,TableMenus[Nom période concernée],J$5)","v":0},{"$f":"SUMIFS(TableMenus[Quantité dessert],TableMenus[Nom produit dessert],$A21,TableMenus[Nom période concernée],K$5)","v":0},{"$f":"SUMIFS(TableMenus[Quantité dessert],TableMenus[Nom produit dessert],$A21,TableMenus[Nom période concernée],L$5)","v":0},{"$f":"SUMIFS(TableMenus[Quantité dessert],TableMenus[Nom produit dessert],$A21,TableMenus[Nom période concernée],M$5)","v":0},0]
["Petits suisses",{"$f":"SUMIFS(TableMenus[Quantité dessert],TableMenus[Nom produit dessert],$A22,TableMenus[Nom période concernée],B$5)","v":0},{"$f":"SUMIFS(TableMenus[Quantité dessert],TableMenus[Nom produit dessert],$A22,TableMenus[Nom période concernée],C$5)","v":0},{"$f":"SUMIFS(TableMenus[Quantité dessert],TableMenus[Nom produit dessert],$A22,TableMenus[Nom période concernée],D$5)","v":0},{"$f":"SUMIFS(TableMenus[Quantité dessert],TableMenus[Nom produit dessert],$A22,TableMenus[Nom période concernée],E$5)","v":0},{"$f":"SUMIFS(TableMenus[Quantité dessert],TableMenus[Nom produit dessert],$A22,TableMenus[Nom période concernée],F$5)","v":0},{"$f":"SUMIFS(TableMenus[Quantité dessert],TableMenus[Nom produit dessert],$A22,TableMenus[Nom période concernée],G$5)","v":0},{"$f":"SUMIFS(TableMenus[Quantité dessert],TableMenus[Nom produit dessert],$A22,TableMenus[Nom période concernée],H$5)","v":0},{"$f":"SUMIFS(TableMenus[Quantité dessert],TableMenus[Nom produit dessert],$A22,TableMenus[Nom période concernée],I$5)","v":0},{"$f":"SUMIFS(TableMenus[Quantité dessert],TableMenus[Nom produit dessert],$A22,TableMenus[Nom période concernée],J$5)","v":0},{"$f":"SUMIFS(TableMenus[Quantité dessert],TableMenus[Nom produit dessert],$A22,TableMenus[Nom période concernée],K$5)","v":0},{"$f":"SUMIFS(TableMenus[Quantité dessert],TableMenus[Nom produit dessert],$A22,TableMenus[Nom période concernée],L$5)","v":0},{"$f":"SUMIFS(TableMenus[Quantité dessert],TableMenus[Nom produit dessert],$A22,TableMenus[Nom période concernée],M$5)","v":0},0]
["Pomme",{"$f":"SUMIFS(TableMenus[Quantité dessert],TableMenus[Nom produit dessert],$A23,TableMenus[Nom période concernée],B$5)","v":5},{"$f":"SUMIFS(TableMenus[Quantité dessert],TableMenus[Nom produit dessert],$A23,TableMenus[Nom période concernée],C$5)","v":0},{"$f":"SUMIFS(TableMenus[Quantité dessert],TableMenus[Nom produit dessert],$A23,TableMenus[Nom période concernée],D$5)","v":0},{"$f":"SUMIFS(TableMenus[Quantité dessert],TableMenus[Nom produit dessert],$A23,TableMenus[Nom période concernée],E$5)","v":0},{"$f":"SUMIFS(TableMenus[Quantité dessert],TableMenus[Nom produit dessert],$A23,TableMenus[Nom période concernée],F$5)","v":0},{"$f":"SUMIFS(TableMenus[Quantité dessert],TableMenus[Nom produit dessert],$A23,TableMenus[Nom période concernée],G$5)","v":0},{"$f":"SUMIFS(TableMenus[Quantité dessert],TableMenus[Nom produit dessert],$A23,TableMenus[Nom période concernée],H$5)","v":0},{"$f":"SUMIFS(TableMenus[Quantité dessert],TableMenus[Nom produit dessert],$A23,TableMenus[Nom période concernée],I$5)","v":0},{"$f":"SUMIFS(TableMenus[Quantité dessert],TableMenus[Nom produit dessert],$A23,TableMenus[Nom période concernée],J$5)","v":0},{"$f":"SUMIFS(TableMenus[Quantité dessert],TableMenus[Nom produit dessert],$A23,TableMenus[Nom période concernée],K$5)","v":0},{"$f":"SUMIFS(TableMenus[Quantité dessert],TableMenus[Nom produit dessert],$A23,TableMenus[Nom période concernée],L$5)","v":0},{"$f":"SUMIFS(TableMenus[Quantité dessert],TableMenus[Nom produit dessert],$A23,TableMenus[Nom période concernée],M$5)","v":0},5]
["Pruneaux",{"$f":"SUMIFS(TableMenus[Quantité dessert],TableMenus[Nom produit dessert],$A24,TableMenus[Nom période concernée],B$5)","v":0},{"$f":"SUMIFS(TableMenus[Quantité dessert],TableMenus[Nom produit dessert],$A24,TableMenus[Nom période concernée],C$5)","v":0},{"$f":"SUMIFS(TableMenus[Quantité dessert],TableMenus[Nom produit dessert],$A24,TableMenus[Nom période concernée],D$5)","v":0},{"$f":"SUMIFS(TableMenus[Quantité dessert],TableMenus[Nom produit dessert],$A24,TableMenus[Nom période concernée],E$5)","v":0},{"$f":"SUMIFS(TableMenus[Quantité dessert],TableMenus[Nom produit dessert],$A24,TableMenus[Nom période concernée],F$5)","v":0},{"$f":"SUMIFS(TableMenus[Quantité dessert],TableMenus[Nom produit dessert],$A24,TableMenus[Nom période concernée],G$5)","v":0},{"$f":"SUMIFS(TableMenus[Quantité dessert],TableMenus[Nom produit dessert],$A24,TableMenus[Nom période concernée],H$5)","v":0},{"$f":"SUMIFS(TableMenus[Quantité dessert],TableMenus[Nom produit dessert],$A24,TableMenus[Nom période concernée],I$5)","v":0},{"$f":"SUMIFS(TableMenus[Quantité dessert],TableMenus[Nom produit dessert],$A24,TableMenus[Nom période concernée],J$5)","v":0},{"$f":"SUMIFS(TableMenus[Quantité dessert],TableMenus[Nom produit dessert],$A24,TableMenus[Nom période concernée],K$5)","v":0},{"$f":"SUMIFS(TableMenus[Quantité dessert],TableMenus[Nom produit dessert],$A24,TableMenus[Nom période concernée],L$5)","v":0},{"$f":"SUMIFS(TableMenus[Quantité dessert],TableMenus[Nom produit dessert],$A24,TableMenus[Nom période concernée],M$5)","v":0},0]
["Riz au lait",{"$f":"SUMIFS(TableMenus[Quantité dessert],TableMenus[Nom produit dessert],$A25,TableMenus[Nom période concernée],B$5)","v":0},{"$f":"SUMIFS(TableMenus[Quantité dessert],TableMenus[Nom produit dessert],$A25,TableMenus[Nom période concernée],C$5)","v":0},{"$f":"SUMIFS(TableMenus[Quantité dessert],TableMenus[Nom produit dessert],$A25,TableMenus[Nom période concernée],D$5)","v":0},{"$f":"SUMIFS(TableMenus[Quantité dessert],TableMenus[Nom produit dessert],$A25,TableMenus[Nom période concernée],E$5)","v":0},{"$f":"SUMIFS(TableMenus[Quantité dessert],TableMenus[Nom produit dessert],$A25,TableMenus[Nom période concernée],F$5)","v":0},{"$f":"SUMIFS(TableMenus[Quantité dessert],TableMenus[Nom produit dessert],$A25,TableMenus[Nom période concernée],G$5)","v":0},{"$f":"SUMIFS(TableMenus[Quantité dessert],TableMenus[Nom produit dessert],$A25,TableMenus[Nom période concernée],H$5)","v":0},{"$f":"SUMIFS(TableMenus[Quantité dessert],TableMenus[Nom produit dessert],$A25,TableMenus[Nom période concernée],I$5)","v":0},{"$f":"SUMIFS(TableMenus[Quantité dessert],TableMenus[Nom produit dessert],$A25,TableMenus[Nom période concernée],J$5)","v":0},{"$f":"SUMIFS(TableMenus[Quantité dessert],TableMenus[Nom produit dessert],$A25,TableMenus[Nom période concernée],K$5)","v":0},{"$f":"SUMIFS(TableMenus[Quantité dessert],TableMenus[Nom produit dessert],$A25,TableMenus[Nom période concernée],L$5)","v":0},{"$f":"SUMIFS(TableMenus[Quantité dessert],TableMenus[Nom produit dessert],$A25,TableMenus[Nom période concernée],M$5)","v":0},0]
["Tapioca",{"$f":"SUMIFS(TableMenus[Quantité dessert],TableMenus[Nom produit dessert],$A26,TableMenus[Nom période concernée],B$5)","v":0},{"$f":"SUMIFS(TableMenus[Quantité dessert],TableMenus[Nom produit dessert],$A26,TableMenus[Nom période concernée],C$5)","v":0},{"$f":"SUMIFS(TableMenus[Quantité dessert],TableMenus[Nom produit dessert],$A26,TableMenus[Nom période concernée],D$5)","v":0},{"$f":"SUMIFS(TableMenus[Quantité dessert],TableMenus[Nom produit dessert],$A26,TableMenus[Nom période concernée],E$5)","v":0},{"$f":"SUMIFS(TableMenus[Quantité dessert],TableMenus[Nom produit dessert],$A26,TableMenus[Nom période concernée],F$5)","v":0},{"$f":"SUMIFS(TableMenus[Quantité dessert],TableMenus[Nom produit dessert],$A26,TableMenus[Nom période concernée],G$5)","v":0},{"$f":"SUMIFS(TableMenus[Quantité dessert],TableMenus[Nom produit dessert],$A26,TableMenus[Nom période concernée],H$5)","v":0},{"$f":"SUMIFS(TableMenus[Quantité dessert],TableMenus[Nom produit dessert],$A26,TableMenus[Nom période concernée],I$5)","v":0},{"$f":"SUMIFS(TableMenus[Quantité dessert],TableMenus[Nom produit dessert],$A26,TableMenus[Nom période concernée],J$5)","v":0},{"$f":"SUMIFS(TableMenus[Quantité dessert],TableMenus[Nom produit dessert],$A26,TableMenus[Nom période concernée],K$5)","v":0},{"$f":"SUMIFS(TableMenus[Quantité dessert],TableMenus[Nom produit dessert],$A26,TableMenus[Nom période concernée],L$5)","v":0},{"$f":"SUMIFS(TableMenus[Quantité dessert],TableMenus[Nom produit dessert],$A26,TableMenus[Nom période concernée],M$5)","v":0},0]
["Yaourts",{"$f":"SUMIFS(TableMenus[Quantité dessert],TableMenus[Nom produit dessert],$A27,TableMenus[Nom période concernée],B$5)","v":0},{"$f":"SUMIFS(TableMenus[Quantité dessert],TableMenus[Nom produit dessert],$A27,TableMenus[Nom période concernée],C$5)","v":0},{"$f":"SUMIFS(TableMenus[Quantité dessert],TableMenus[Nom produit dessert],$A27,TableMenus[Nom période concernée],D$5)","v":0},{"$f":"SUMIFS(TableMenus[Quantité dessert],TableMenus[Nom produit dessert],$A27,TableMenus[Nom période concernée],E$5)","v":0},{"$f":"SUMIFS(TableMenus[Quantité dessert],TableMenus[Nom produit dessert],$A27,TableMenus[Nom période concernée],F$5)","v":0},{"$f":"SUMIFS(TableMenus[Quantité dessert],TableMenus[Nom produit dessert],$A27,TableMenus[Nom période concernée],G$5)","v":0},{"$f":"SUMIFS(TableMenus[Quantité dessert],TableMenus[Nom produit dessert],$A27,TableMenus[Nom période concernée],H$5)","v":0},{"$f":"SUMIFS(TableMenus[Quantité dessert],TableMenus[Nom produit dessert],$A27,TableMenus[Nom période concernée],I$5)","v":0},{"$f":"SUMIFS(TableMenus[Quantité dessert],TableMenus[Nom produit dessert],$A27,TableMenus[Nom période concernée],J$5)","v":0},{"$f":"SUMIFS(TableMenus[Quantité dessert],TableMenus[Nom produit dessert],$A27,TableMenus[Nom période concernée],K$5)","v":0},{"$f":"SUMIFS(TableMenus[Quantité dessert],TableMenus[Nom produit dessert],$A27,TableMenus[Nom période concernée],L$5)","v":0},{"$f":"SUMIFS(TableMenus[Quantité dessert],TableMenus[Nom produit dessert],$A27,TableMenus[Nom période concernée],M$5)","v":0},0]
[]
[{"$f":"\"Fait à Limeil-Brévannes, le \"&TEXT(TODAY(),\"jjjj j mmmm aaaa\")","v":"Fait à Limeil-Brévannes, le mercredi 29 septembre 2021"}]

{"sheet":"Propositions","index":19,"n_rows":370,"n_cols":30,"rows_kept":370,"cut":false,"hidden":true,"merged":[[2,0,2,11],[2,12,2,23],[2,24,2,29],[0,0,0,29],[56,24,56,29]]}
["Propositions des menus journaliers, midi retraite et viandes weekend pour l'année 20…"]
[]
["Menus midi retraite",null,null,null,null,null,null,null,null,null,null,null,"Menus journaliers",null,null,null,null,null,null,null,null,null,null,null,"Menus viandes midi weekend premier semestre de l'année 2020"]
["Dates MR","CLMR","Légumes MR","QLMR","CVMR","Viandes MR","QVMR","CDMR","Desserts","QDMR","CO","Observations","Dates LS et WE","CLS et WE","Légumes soirs et we","QLS et WE","CVS et WE","Viandes soirs et WE","QVS et WE","CDS et WE","Desserts soirs et we","QDS et WE","CO","Observations","Dates VWE","CVWE","Viandes WE","QVWE","Code obsevations","Observations"]
["2020-01-01","LMR",null,null,"VMR",null,null,"DMR01","Pomme",null,"O13",null,"2020-01-01","LSMJ",null,null,"VS",null,null,"DS01",{"$f":"IF(T5=\"DS01\",\"Pomme\",\"\")","v":"Pomme"},null,null,null,"2020-01-04","VWE"]
["2020-01-02","LMR",null,null,"VMR",null,null,"DMR01","Pomme",null,null,null,"2020-01-02","LSMJ",null,null,"VS",null,null,"DS01",{"$f":"IF(T6=\"DS01\",\"Pomme\",\"\")","v":"Pomme"},null,null,null,{"$f":"Y5+1","v":"2020-01-05"},"VWE"]
["2020-01-03","LMR",null,null,"VMR",null,null,"DMR01","Pomme",null,null,null,"2020-01-03","LSV",null,null,"VS",null,null,"DS01","Pomme",null,null,null,{"$f":"Y5+7","v":"2020-01-11"},"VWE"]
["2020-01-06","LMR",null,null,"VMR",null,null,"DMR01","Pomme",null,null,null,"2020-01-04","LWES",null,null,"VS",null,null,"DWE","",null,null,null,"2020-01-12","VWE"]
["2020-01-07","LMR",null,null,"VMR",null,null,"DMR01","Pomme",null,null,null,"2020-01-05","LWED",null,null,"VS",null,null,"DWE","",null,null,null,"2020-01-18","VWE"]
["2020-01-08","LMR",null,null,"VMR",null,null,"DMR01","Pomme",null,null,null,"2020-01-06","LSLM",null,null,"VS",null,null,"DS01","Pomme",null,null,null,"2020-01-19","VWE"]
["2020-01-09","LMR",null,null,"VMR",null,null,"DMR01","Pomme",null,null,null,"2020-01-07","LSLM",null,null,"VS",null,null,"DS01","Pomme",null,null,null,"2020-01-25","VWE"]
["2020-01-10","LMR",null,null,"VMR",null,null,"DMR01","Pomme",null,null,null,"2020-01-08","LSMJ",null,null,"VS",null,null,"DS01","Pomme",null,null,null,"2020-01-26","VWE"]
[{"$f":"A8+7","v":"2020-01-13"},"LMR",null,null,"VMR",null,null,"DMR01","Pomme",null,null,null,"2020-01-09","LSMJ",null,null,"VS",null,null,"DS01","Pomme",null,null,null,"2020-02-01","VWE"]
["2020-01-14","LMR",null,null,"VMR",null,null,"DMR01","Pomme",null,null,null,"2020-01-10","LSV",null,null,"VS",null,null,"DS01","Pomme",null,null,null,"2020-02-02","VWE"]
["2020-01-15","LMR",null,null,"VMR",null,null,"DMR01","Pomme",null,null,null,"2020-01-11","LWES",null,null,"VS",null,null,"DWE","",null,null,null,"2020-02-08","VWE"]
["2020-01-16","LMR",null,null,"VMR",null,null,"DMR01","Pomme",null,null,null,"2020-01-12","LWED",null,null,"VS",null,null,"DWE","",null,null,null,"2020-02-09","VWE"]
["2020-01-17","LMR",null,null,"VMR",null,null,"DMR01","Pomme",null,null,null,"2020-01-13","LSLM",null,null,"VS",null,null,"DS01","Pomme",null,null,null,"2020-02-15","VWE"]
["2020-01-20","LMR",null,null,"VMR",null,null,"DMR01","Pomme",null,null,null,"2020-01-14","LSLM",null,null,"VS",null,null,"DS01","Pomme",null,null,null,"2020-02-16","VWE"]
["2020-01-21","LMR",null,null,"VMR",null,null,"DMR01","Pomme",null,null,null,"2020-01-15","LSMJ",null,null,"VS",null,null,"DS01","Pomme",null,null,null,"2020-02-22","VWE"]
["2020-01-22","LMR",null,null,"VMR",null,null,"DMR01","Pomme",null,null,null,"2020-01-16","LSMJ",null,null,"VS",null,null,"DS01","Pomme",null,null,null,"2020-02-23","VWE"]
["2020-01-23","LMR",null,null,"VMR",null,null,"DMR01","Pomme",null,null,null,"2020-01-17","LSV",null,null,"VS",null,null,"DS01","Pomme",null,null,null,"2020-02-29","VWE"]
["2020-01-24","LMR",null,null,"VMR",null,null,"DMR01","Pomme",null,null,null,"2020-01-18","LWES",null,null,"VS",null,null,"DWE","",null,null,null,"2020-03-01","VWE"]
["2020-01-27","LMR",null,null,"VMR",null,null,"DMR01","Pomme",null,null,null,"2020-01-19","LWED",null,null,"VS",null,null,"DWE","",null,null,null,"2020-03-07","VWE"]
["2020-01-28","LMR",null,null,"VMR",null,null,"DMR01","Pomme",null,null,null,"2020-01-20","LSLM",null,null,"VS",null,null,"DS01","Pomme",null,null,null,"2020-03-08","VWE"]
["2020-01-29","LMR",null,null,"VMR",null,null,"DMR01","Pomme",null,null,null,"2020-01-21","LSLM",null,null,"VS",null,null,"DS01","Pomme",null,null,null,"2020-03-14","VWE"]
["2020-01-30","LMR",null,null,"VMR",null,null,"DMR01","Pomme",null,null,null,"2020-01-22","LSMJ",null,null,"VS",null,null,"DS01","Pomme",null,null,null,"2020-03-15","VWE"]
["2020-01-31","LMR",null,null,"VMR",null,null,"DMR01","Pomme",null,null,null,"2020-01-23","LSMJ",null,null,"VS",null,null,"DS01","Pomme",null,null,null,"2020-03-21","VWE"]
["2020-02-03","LMR",null,null,"VMR",null,null,"DMR01","Pomme",null,null,null,"2020-01-24","LSV",null,null,"VS",null,null,"DS01","Pomme",null,null,null,"2020-03-22","VWE"]
["2020-02-04","LMR",null,null,"VMR",null,null,"DMR01","Pomme",null,null,null,"2020-01-25","LWES",null,null,"VS",null,null,"DWE","",null,null,null,"2020-03-28","VWE"]
["2020-02-05","LMR",null,null,"VMR",null,null,"DMR01","Pomme",null,null,null,"2020-01-26","LWED",null,null,"VS",null,null,"DWE","",null,null,null,"2020-03-29","VWE"]
["2020-02-06","LMR",null,null,"VMR",null,null,"DMR01","Pomme",null,null,null,"2020-01-27","LSLM",null,null,"VS",null,null,"DS01","Pomme",null,null,null,"2020-04-04","VWE"]
["2020-02-07","LMR",null,null,"VMR",null,null,"DMR01","Pomme",null,null,null,"2020-01-28","LSLM",null,null,"VS",null,null,"DS01","Pomme",null,null,null,"2020-04-05","VWE"]
["2020-02-10","LMR",null,null,"VMR",null,null,"DMR01","Pomme",null,null,null,"2020-01-29","LSMJ",null,null,"VS",null,null,"DS01","Pomme",null,null,null,"2020-04-11","VWE"]
["2020-02-11","LMR",null,null,"VMR",null,null,"DMR01","Pomme",null,null,null,"2020-01-30","LSMJ",null,null,"VS",null,null,"DS01","Pomme",null,null,null,"2020-04-12","VWE"]
["2020-02-12","LMR",null,null,"VMR",null,null,"DMR01","Pomme",null,null,null,"2020-01-31","LSV",null,null,"VS",null,null,"DS01","Pomme",null,null,null,"2020-04-18","VWE"]
["2020-02-13","LMR",null,null,"VMR",null,null,"DMR01","Pomme",null,null,null,"2020-02-01","LWES",null,null,"VS",null,null,"DWE","",null,null,null,"2020-04-19","VWE"]
["2020-02-14","LMR",null,null,"VMR",null,null,"DMR01","Pomme",null,null,null,"2020-02-02","LWED",null,null,"VS",null,null,"DWE","",null,null,null,"2020-04-25","VWE"]
["2020-02-17","LMR",null,null,"VMR",null,null,"DMR01","Pomme",null,null,null,"2020-02-03","LSLM",null,null,"VS",null,null,"DS01","Pomme",null,null,null,"2020-04-26","VWE"]
["2020-02-18","LMR",null,null,"VMR",null,null,"DMR01","Pomme",null,null,null,"2020-02-04","LSLM",null,null,"VS",null,null,"DS01","Pomme",null,null,null,{"$f":"Y37+7","v":"2020-05-02"},"VWE"]
["2020-02-19","LMR",null,null,"VMR",null,null,"DMR01","Pomme",null,null,null,"2020-02-05","LSMJ",null,null,"VS",null,null,"DS01","Pomme",null,null,null,"2020-05-03","VWE"]
["2020-02-20","LMR",null,null,"VMR",null,null,"DMR01","Pomme",null,null,null,"2020-02-06","LSMJ",null,null,"VS",null,null,"DS01","Pomme",null,null,null,"2020-05-09","VWE"]
["2020-02-21","LMR",null,null,"VMR",null,null,"DMR01","Pomme",null,null,null,"2020-02-07","LSV",null,null,"VS",null,null,"DS01","Pomme",null,null,null,"2020-05-10","VWE"]
["2020-02-24","LMR",null,null,"VMR",null,null,"DMR01","Pomme",null,null,null,"2020-02-08","LWES",null,null,"VS",null,null,"DWE","",null,null,null,"2020-05-16","VWE"]
["2020-02-25","LMR",null,null,"VMR",null,null,"DMR01","Pomme",null,null,null,"2020-02-09","LWED",null,null,"VS",null,null,"DWE","",null,null,null,"2020-05-17","VWE"]
["2020-02-26","LMR",null,null,"VMR",null,null,"DMR01","Pomme",null,null,null,"2020-02-10","LSLM",null,null,"VS",null,null,"DS01","Pomme",null,null,null,"2020-05-23","VWE"]
["2020-02-27","LMR",null,null,"VMR",null,null,"DMR01","Pomme",null,null,null,"2020-02-11","LSLM",null,null,"VS",null,null,"DS01","Pomme",null,null,null,"2020-05-24","VWE"]
["2020-02-28","LMR",null,null,"VMR",null,null,"DMR01","Pomme",null,null,null,"2020-02-12","LSMJ",null,null,"VS",null,null,"DS01","Pomme",null,null,null,"2020-05-30","VWE"]
["2020-03-02","LMR",null,null,"VMR",null,null,"DMR01","Pomme",null,null,null,"2020-02-13","LSMJ",null,null,"VS",null,null,"DS01","Pomme",null,null,null,"2020-05-31","VWE"]
["2020-03-03","LMR",null,null,"VMR",null,null,"DMR01","Pomme",null,null,null,"2020-02-14","LSV",null,null,"VS",null,null,"DS01","Pomme",null,null,null,"2020-06-06","VWE"]
["2020-03-04","LMR",null,null,"VMR",null,null,"DMR01","Pomme",null,null,null,"2020-02-15","LWES",null,null,"VS",null,null,"DWE","",null,null,null,"2020-06-07","VWE"]
["2020-03-05","LMR",null,null,"VMR",null,null,"DMR01","Pomme",null,null,null,"2020-02-16","LWED",null,null,"VS",null,null,"DWE","",null,null,null,"2020-06-13","VWE"]
["2020-03-06","LMR",null,null,"VMR",null,null,"DMR01","Pomme",null,null,null,"2020-02-17","LSLM",null,null,"VS",null,null,"DS01","Pomme",null,null,null,"2020-06-14","VWE"]
["2020-03-09","LMR",null,null,"VMR",null,null,"DMR01","Pomme",null,null,null,"2020-02-18","LSLM",null,null,"VS",null,null,"DS01","Pomme",null,null,null,"2020-06-20","VWE"]
["2020-03-10","LMR",null,null,"VMR",null,null,"DMR01","Pomme",null,null,null,"2020-02-19","LSMJ",null,null,"VS",null,null,"DS01","Pomme",null,null,null,"2020-06-21","VWE"]
["2020-03-11","LMR",null,null,"VMR",null,null,"DMR01","Pomme",null,null,null,"2020-02-20","LSMJ",null,null,"VS",null,null,"DS01","Pomme",null,null,null,"2020-06-27","VWE"]
["2020-03-12","LMR",null,null,"VMR",null,null,"DMR01","Pomme",null,null,null,"2020-02-21","LSV",null,null,"VS",null,null,"DS01","Pomme",null,null,null,"2020-06-28","VWE"]
["2020-03-13","LMR",null,null,"VMR",null,null,"DMR01","Pomme",null,null,null,"2020-02-22","LWES",null,null,"VS",null,null,"DWE","",null,null,null,"Menus viandes midi weekend du deuxième semestre de l'année 2020"]
["2020-03-16","LMR",null,null,"VMR",null,null,"DMR01","Pomme",null,null,null,"2020-02-23","LWED",null,null,"VS",null,null,"DWE","",null,null,null,"Dates VWE","CVWE","Viandes WE","QVWE","Code obsevations","Observations"]
["2020-03-17","LMR",null,null,"VMR",null,null,"DMR01","Pomme",null,null,null,"2020-02-24","LSLM",null,null,"VS",null,null,"DS01","Pomme",null,null,null,"2020-07-04","VWE"]
["2020-03-18","LMR",null,null,"VMR",null,null,"DMR01","Pomme",null,null,null,"2020-02-25","LSLM",null,null,"VS",null,null,"DS01","Pomme",null,null,null,{"$f":"Y59+1","v":"2020-07-05"},"VWE"]
["2020-03-19","LMR",null,null,"VMR",null,null,"DMR01","Pomme",null,null,null,"2020-02-26","LSMJ",null,null,"VS",null,null,"DS01","Pomme",null,null,null,{"$f":"Y59+7","v":"2020-07-11"},"VWE"]
["2020-03-20","LMR",null,null,"VMR",null,null,"DMR01","Pomme",null,null,null,"2020-02-27","LSMJ",null,null,"VS",null,null,"DS01","Pomme",null,null,null,{"$f":"Y60+7","v":"2020-07-12"},"VWE"]
["2020-03-23","LMR",null,null,"VMR",null,null,"DMR01","Pomme",null,null,null,"2020-02-28","LSV",null,null,"VS",null,null,"DS01","Pomme",null,null,null,"2020-07-18","VWE"]
["2020-03-24","LMR",null,null,"VMR",null,null,"DMR01","Pomme",null,null,null,"2020-02-29","LWES",null,null,"VS",null,null,"DWE","",null,null,null,"2020-07-19","VWE"]
["2020-03-25","LMR",null,null,"VMR",null,null,"DMR01","Pomme",null,null,null,"2020-03-01","LWED",null,null,"VS",null,null,"DWE","",null,null,null,"2020-07-25","VWE"]
["2020-03-26","LMR",null,null,"VMR",null,null,"DMR01","Pomme",null,null,null,"2020-03-02","LSLM",null,null,"VS",null,null,"DS01","Pomme",null,null,null,"2020-07-26","VWE"]
["2020-03-27","LMR",null,null,"VMR",null,null,"DMR01","Pomme",null,null,null,"2020-03-03","LSLM",null,null,"VS",null,null,"DS01","Pomme",null,null,null,"2020-08-01","VWE"]
["2020-03-30","LMR",null,null,"VMR",null,null,"DMR01","Pomme",null,null,null,"2020-03-04","LSMJ",null,null,"VS",null,null,"DS01","Pomme",null,null,null,"2020-08-02","VWE"]
["2020-03-31","LMR",null,null,"VMR",null,null,"DMR01","Pomme",null,null,null,"2020-03-05","LSMJ",null,null,"VS",null,null,"DS01","Pomme",null,null,null,"2020-08-08","VWE"]
["2020-04-01","LMR",null,null,"VMR",null,null,"DMR01","Pomme",null,null,null,"2020-03-06","LSV",null,null,"VS",null,null,"DS01",{"$f":"IF(T70=\"DS01\",\"Pomme\",\"\")","v":"Pomme"},null,null,null,"2020-08-09","VWE"]
["2020-04-02","LMR",null,null,"VMR",null,null,"DMR01","Pomme",null,null,null,"2020-03-07","LWES",null,null,"VS",null,null,"DWE","",null,null,null,"2020-08-15","VWE"]
["2020-04-03","LMR",null,null,"VMR",null,null,"DMR01","Pomme",null,null,null,"2020-03-08","LWED",null,null,"VS",null,null,"DWE","",null,null,null,"2020-08-16","VWE"]
["2020-04-06","LMR",null,null,"VMR",null,null,"DMR01","Pomme",null,null,null,"2020-03-09","LSLM",null,null,"VS",null,null,"DS01","Pomme",null,null,null,"2020-08-22","VWE"]
["2020-04-07","LMR",null,null,"VMR",null,null,"DMR01","Pomme",null,null,null,"2020-03-10","LSLM",null,null,"VS",null,null,"DS01","Pomme",null,null,null,"2020-08-23","VWE"]
["2020-04-08","LMR",null,null,"VMR",null,null,"DMR01","Pomme",null,null,null,"2020-03-11","LSMJ",null,null,"VS",null,null,"DS01","Pomme",null,null,null,"2020-08-29","VWE"]
["2020-04-09","LMR",null,null,"VMR",null,null,"DMR01","Pomme",null,null,null,"2020-03-12","LSMJ",null,null,"VS",null,null,"DS01","Pomme",null,null,null,"2020-08-30","VWE"]
[{"$f":"A72+7","v":"2020-04-10"},"LMR",null,null,"VMR",null,null,"DMR01","Pomme",null,null,null,"2020-03-13","LSV",null,null,"VS",null,null,"DS01","Pomme",null,null,null,"2020-09-05","VWE"]
["2020-04-13","LMR",null,null,"VMR",null,null,"DMR01","Pomme",null,null,null,"2020-03-14","LWES",null,null,"VS",null,null,"DWE","",null,null,null,"2020-09-06","VWE"]
["2020-04-14","LMR",null,null,"VMR",null,null,"DMR01","Pomme",null,null,null,"2020-03-15","LWED",null,null,"VS",null,null,"DWE","",null,null,null,"2020-09-12","VWE"]
["2020-04-15","LMR",null,null,"VMR",null,null,"DMR01","Pomme",null,null,null,"2020-03-16","LSLM",null,null,"VS",null,null,"DS01","Pomme",null,null,null,"2020-09-13","VWE"]
["2020-04-16","LMR",null,null,"VMR",null,null,"DMR01","Pomme",null,null,null,"2020-03-17","LSLM",null,null,"VS",null,null,"DS01","Pomme",null,null,null,"2020-09-19","VWE"]
["2020-04-17","LMR",null,null,"VMR",null,null,"DMR01","Pomme",null,null,null,"2020-03-18","LSMJ",null,null,"VS",null,null,"DS01","Pomme",null,null,null,"2020-09-20","VWE"]
["2020-04-20","LMR",null,null,"VMR",null,null,"DMR01","Pomme",null,null,null,"2020-03-19","LSMJ",null,null,"VS",null,null,"DS01","Pomme",null,null,null,"2020-09-26","VWE"]
["2020-04-21","LMR",null,null,"VMR",null,null,"DMR01","Pomme",null,null,null,"2020-03-20","LSV",null,null,"VS",null,null,"DS01","Pomme",null,null,null,"2020-09-27","VWE"]
["2020-04-22","LMR",null,null,"VMR",null,null,"DMR01","Pomme",null,null,null,"2020-03-21","LWES",null,null,"VS",null,null,"DWE","",null,null,null,"2020-10-03","VWE"]
["2020-04-23","LMR",null,null,"VMR",null,null,"DMR01","Pomme",null,null,null,"2020-03-22","LWED",null,null,"VS",null,null,"DWE","",null,null,null,"2020-10-04","VWE"]
["2020-04-24","LMR",null,null,"VMR",null,null,"DMR01","Pomme",null,null,null,"2020-03-23","LSLM",null,null,"VS",null,null,"DS01","Pomme",null,null,null,"2020-10-10","VWE"]
["2020-04-27","LMR",null,null,"VMR",null,null,"DMR01","Pomme",null,null,null,"2020-03-24","LSLM",null,null,"VS",null,null,"DS01","Pomme",null,null,null,"2020-10-11","VWE"]
["2020-04-28","LMR",null,null,"VMR",null,null,"DMR01","Pomme",null,null,null,"2020-03-25","LSMJ",null,null,"VS",null,null,"DS01","Pomme",null,null,null,"2020-10-17","VWE"]
["2020-04-29","LMR",null,null,"VMR",null,null,"DMR01","Pomme",null,null,null,"2020-03-26","LSMJ",null,null,"VS",null,null,"DS01","Pomme",null,null,null,"2020-10-18","VWE"]
["2020-04-30","LMR",null,null,"VMR",null,null,"DMR01","Pomme",null,null,null,"2020-03-27","LSV",null,null,"VS",null,null,"DS01","Pomme",null,null,null,"2020-10-24","VWE"]
["2020-05-01","LMR",null,null,"VMR",null,null,"DMR01","Pomme",null,null,null,"2020-03-28","LWES",null,null,"VS",null,null,"DWE","",null,null,null,"2020-10-25","VWE"]
["2020-05-04","LMR",null,null,"VMR",null,null,"DMR01","Pomme",null,null,null,"2020-03-29","LWED",null,null,"VS",null,null,"DWE","",null,null,null,"2020-10-31","VWE"]
["2020-05-05","LMR",null,null,"VMR",null,null,"DMR01","Pomme",null,null,null,"2020-03-30","LSLM",null,null,"VS",null,null,"DS01","Pomme",null,null,null,"2020-11-01","VWE"]
["2020-05-06","LMR",null,null,"VMR",null,null,"DMR01","Pomme",null,null,null,"2020-03-31","LSLM",null,null,"VS",null,null,"DS01","Pomme",null,null,null,"2020-11-07","VWE"]
["2020-05-07","LMR",null,null,"VMR",null,null,"DMR01","Pomme",null,null,null,"2020-04-01","LSMJ",null,null,"VS",null,null,"DS01","Pomme",null,null,null,"2020-11-08","VWE"]
["2020-05-08","LMR",null,null,"VMR",null,null,"DMR01","Pomme",null,null,null,"2020-04-02","LSMJ",null,null,"VS",null,null,"DS01","Pomme",null,null,null,"2020-11-14","VWE"]
["2020-05-11","LMR",null,null,"VMR",null,null,"DMR01","Pomme",null,null,null,"2020-04-03","LSV",null,null,"VS",null,null,"DS01","Pomme",null,null,null,"2020-11-15","VWE"]
["2020-05-12","LMR",null,null,"VMR",null,null,"DMR01","Pomme",null,null,null,"2020-04-04","LWES",null,null,"VS",null,null,"DWE","",null,null,null,"2020-11-21","VWE"]
["2020-05-13","LMR",null,null,"VMR",null,null,"DMR01","Pomme",null,null,null,"2020-04-05","LWED",null,null,"VS",null,null,"DWE","",null,null,null,"2020-11-22","VWE"]
["2020-05-14","LMR",null,null,"VMR",null,null,"DMR01","Pomme",null,null,null,"2020-04-06","LSLM",null,null,"VS",null,null,"DS01","Pomme",null,null,null,"2020-11-28","VWE"]
["2020-05-15","LMR",null,null,"VMR",null,null,"DMR01","Pomme",null,null,null,"2020-04-07","LSLM",null,null,"VS",null,null,"DS01","Pomme",null,null,null,"2020-11-29","VWE"]
["2020-05-18","LMR",null,null,"VMR",null,null,"DMR01","Pomme",null,null,null,"2020-04-08","LSMJ",null,null,"VS",null,null,"DS01","Pomme",null,null,null,"2020-12-05","VWE"]
["2020-05-19","LMR",null,null,"VMR",null,null,"DMR01","Pomme",null,null,null,"2020-04-09","LSMJ",null,null,"VS",null,null,"DS01","Pomme",null,null,null,"2020-12-06","VWE"]
["2020-05-20","LMR",null,null,"VMR",null,null,"DMR01","Pomme",null,null,null,"2020-04-10","LSV",null,null,"VS",null,null,"DS01","Pomme",null,null,null,"2020-12-12","VWE"]
["2020-05-21","LMR",null,null,"VMR",null,null,"DMR01","Pomme",null,null,null,"2020-04-11","LWES",null,null,"VS",null,null,"DWE","",null,null,null,"2020-12-13","VWE"]
["2020-05-22","LMR",null,null,"VMR",null,null,"DMR01","Pomme",null,null,null,"2020-04-12","LWED",null,null,"VS",null,null,"DWE","",null,null,null,"2020-12-19","VWE"]
["2020-05-25","LMR",null,null,"VMR",null,null,"DMR01","Pomme",null,null,null,"2020-04-13","LSLM",null,null,"VS",null,null,"DS01","Pomme",null,null,null,"2020-12-20","VWE"]
["2020-05-26","LMR",null,null,"VMR",null,null,"DMR01","Pomme",null,null,null,"2020-04-14","LSLM",null,null,"VS",null,null,"DS01","Pomme",null,null,null,"2020-12-26","VWE"]
["2020-05-27","LMR",null,null,"VMR",null,null,"DMR01","Pomme",null,null,null,"2020-04-15","LSMJ",null,null,"VS",null,null,"DS01","Pomme",null,null,null,"2020-12-27","VWE"]
["2020-05-28","LMR",null,null,"VMR",null,null,"DMR01","Pomme",null,null,null,"2020-04-16","LSMJ",null,null,"VS",null,null,"DS01","Pomme"]
["2020-05-29","LMR",null,null,"VMR",null,null,"DMR01","Pomme",null,null,null,"2020-04-17","LSV",null,null,"VS",null,null,"DS01","Pomme"]
["2020-06-01","LMR",null,null,"VMR",null,null,"DMR01","Pomme",null,null,null,"2020-04-18","LWES",null,null,"VS",null,null,"DWE",""]
["2020-06-02","LMR",null,null,"VMR",null,null,"DMR01","Pomme",null,null,null,"2020-04-19","LWED",null,null,"VS",null,null,"DWE",""]
["2020-06-03","LMR",null,null,"VMR",null,null,"DMR01","Pomme",null,null,null,"2020-04-20","LSLM",null,null,"VS",null,null,"DS01","Pomme"]
["2020-06-04","LMR",null,null,"VMR",null,null,"DMR01","Pomme",null,null,null,"2020-04-21","LSLM",null,null,"VS",null,null,"DS01","Pomme"]
["2020-06-05","LMR",null,null,"VMR",null,null,"DMR01","Pomme",null,null,null,"2020-04-22","LSMJ",null,null,"VS",null,null,"DS01","Pomme"]
["2020-06-08","LMR",null,null,"VMR",null,null,"DMR01","Pomme",null,null,null,"2020-04-23","LSMJ",null,null,"VS",null,null,"DS01","Pomme"]
["2020-06-09","LMR",null,null,"VMR",null,null,"DMR01","Pomme",null,null,null,"2020-04-24","LSV",null,null,"VS",null,null,"DS01","Pomme"]
["2020-06-10","LMR",null,null,"VMR",null,null,"DMR01","Pomme",null,null,null,"2020-04-25","LWES",null,null,"VS",null,null,"DWE",""]
["2020-06-11","LMR",null,null,"VMR",null,null,"DMR01","Pomme",null,null,null,"2020-04-26","LWED",null,null,"VS",null,null,"DWE",""]
["2020-06-12","LMR",null,null,"VMR",null,null,"DMR01","Pomme",null,null,null,"2020-04-27","LSLM",null,null,"VS",null,null,"DS01","Pomme"]
["2020-06-15","LMR",null,null,"VMR",null,null,"DMR01","Pomme",null,null,null,"2020-04-28","LSLM",null,null,"VS",null,null,"DS01","Pomme"]
["2020-06-16","LMR",null,null,"VMR",null,null,"DMR01","Pomme",null,null,null,"2020-04-29","LSMJ",null,null,"VS",null,null,"DS01","Pomme"]
["2020-06-17","LMR",null,null,"VMR",null,null,"DMR01","Pomme",null,null,null,"2020-04-30","LSMJ",null,null,"VS",null,null,"DS01","Pomme"]
["2020-06-18","LMR",null,null,"VMR",null,null,"DMR01","Pomme",null,null,null,"2020-05-01","LSV",null,null,"VS",null,null,"DS01","Pomme"]
["2020-06-19","LMR",null,null,"VMR",null,null,"DMR01","Pomme",null,null,null,"2020-05-02","LWES",null,null,"VS",null,null,"DWE",""]
["2020-06-22","LMR",null,null,"VMR",null,null,"DMR01","Pomme",null,null,null,"2020-05-03","LWED",null,null,"VS",null,null,"DWE",""]
["2020-06-23","LMR",null,null,"VMR",null,null,"DMR01","Pomme",null,null,null,"2020-05-04","LSLM",null,null,"VS",null,null,"DS01","Pomme"]
["2020-06-24","LMR",null,null,"VMR",null,null,"DMR01","Pomme",null,null,null,"2020-05-05","LSLM",null,null,"VS",null,null,"DS01","Pomme"]
["2020-06-25","LMR",null,null,"VMR",null,null,"DMR01","Pomme",null,null,null,"2020-05-06","LSMJ",null,null,"VS",null,null,"DS01","Pomme"]
["2020-06-26","LMR",null,null,"VMR",null,null,"DMR01","Pomme",null,null,null,"2020-05-07","LSMJ",null,null,"VS",null,null,"DS01","Pomme"]
["2020-06-29","LMR",null,null,"VMR",null,null,"DMR01","Pomme",null,null,null,"2020-05-08","LSV",null,null,"VS",null,null,"DS01","Pomme"]
["2020-06-30","LMR",null,null,"VMR",null,null,"DMR01","Pomme",null,null,null,"2020-05-09","LWES",null,null,"VS",null,null,"DWE",{"$f":"IF(T134=\"DS01\",\"Pomme\",\"\")","v":""}]
["2020-07-01","LMR",null,null,"VMR",null,null,"DMR01","Pomme",null,null,null,"2020-05-10","LWED",null,null,"VS",null,null,"DWE",""]
["2020-07-02","LMR",null,null,"VMR",null,null,"DMR01","Pomme",null,null,null,"2020-05-11","LSLM",null,null,"VS",null,null,"DS01","Pomme"]
["2020-07-03","LMR",null,null,"VMR",null,null,"DMR01","Pomme",null,null,null,"2020-05-12","LSLM",null,null,"VS",null,null,"DS01","Pomme"]
["2020-07-06","LMR",null,null,"VMR",null,null,"DMR01","Pomme",null,null,null,"2020-05-13","LSMJ",null,null,"VS",null,null,"DS01","Pomme"]
["2020-07-07","LMR",null,null,"VMR",null,null,"DMR01","Pomme",null,null,null,"2020-05-14","LSMJ",null,null,"VS",null,null,"DS01","Pomme"]
["2020-07-08","LMR",null,null,"VMR",null,null,"DMR01","Pomme",null,null,null,"2020-05-15","LSV",null,null,"VS",null,null,"DS01","Pomme"]
[{"$f":"A136+7","v":"2020-07-09"},"LMR",null,null,"VMR",null,null,"DMR01","Pomme",null,null,null,"2020-05-16","LWES",null,null,"VS",null,null,"DWE",""]
["2020-07-10","LMR",null,null,"VMR",null,null,"DMR01","Pomme",null,null,null,"2020-05-17","LWED",null,null,"VS",null,null,"DWE",""]
["2020-07-13","LMR",null,null,"VMR",null,null,"DMR01","Pomme",null,null,null,"2020-05-18","LSLM",null,null,"VS",null,null,"DS01","Pomme"]
["2020-07-14","LMR",null,null,"VMR",null,null,"DMR01","Pomme",null,null,null,"2020-05-19","LSLM",null,null,"VS",null,null,"DS01","Pomme"]
["2020-07-15","LMR",null,null,"VMR",null,null,"DMR01","Pomme",null,null,null,"2020-05-20","LSMJ",null,null,"VS",null,null,"DS01","Pomme"]
["2020-07-16","LMR",null,null,"VMR",null,null,"DMR01","Pomme",null,null,null,"2020-05-21","LSMJ",null,null,"VS",null,null,"DS01","Pomme"]
["2020-07-17","LMR",null,null,"VMR",null,null,"DMR01","Pomme",null,null,null,"2020-05-22","LSV",null,null,"VS",null,null,"DS01","Pomme"]
["2020-07-20","LMR",null,null,"VMR",null,null,"DMR01","Pomme",null,null,null,"2020-05-23","LWES",null,null,"VS",null,null,"DWE",""]
["2020-07-21","LMR",null,null,"VMR",null,null,"DMR01","Pomme",null,null,null,"2020-05-24","LWED",null,null,"VS",null,null,"DWE",""]
["2020-07-22","LMR",null,null,"VMR",null,null,"DMR01","Pomme",null,null,null,"2020-05-25","LSLM",null,null,"VS",null,null,"DS01","Pomme"]
["2020-07-23","LMR",null,null,"VMR",null,null,"DMR01","Pomme",null,null,null,"2020-05-26","LSLM",null,null,"VS",null,null,"DS01","Pomme"]
["2020-07-24","LMR",null,null,"VMR",null,null,"DMR01","Pomme",null,null,null,"2020-05-27","LSMJ",null,null,"VS",null,null,"DS01","Pomme"]
["2020-07-27","LMR",null,null,"VMR",null,null,"DMR01","Pomme",null,null,null,"2020-05-28","LSMJ",null,null,"VS",null,null,"DS01","Pomme"]
["2020-07-28","LMR",null,null,"VMR",null,null,"DMR01","Pomme",null,null,null,"2020-05-29","LSV",null,null,"VS",null,null,"DS01","Pomme"]
["2020-07-29","LMR",null,null,"VMR",null,null,"DMR01","Pomme",null,null,null,"2020-05-30","LWES",null,null,"VS",null,null,"DWE",""]
["2020-07-30","LMR",null,null,"VMR",null,null,"DMR01","Pomme",null,null,null,"2020-05-31","LWED",null,null,"VS",null,null,"DWE",""]
["2020-07-31","LMR",null,null,"VMR",null,null,"DMR01","Pomme",null,null,null,"2020-06-01","LSLM",null,null,"VS",null,null,"DS01","Pomme"]
["2020-08-03","LMR",null,null,"VMR",null,null,"DMR01","Pomme",null,null,null,"2020-06-02","LSLM",null,null,"VS",null,null,"DS01","Pomme"]
["2020-08-04","LMR",null,null,"VMR",null,null,"DMR01","Pomme",null,null,null,"2020-06-03","LSMJ",null,null,"VS",null,null,"DS01","Pomme"]
["2020-08-05","LMR",null,null,"VMR",null,null,"DMR01","Pomme",null,null,null,"2020-06-04","LSMJ",null,null,"VS",null,null,"DS01","Pomme"]
["2020-08-06","LMR",null,null,"VMR",null,null,"DMR01","Pomme",null,null,null,"2020-06-05","LSV",null,null,"VS",null,null,"DS01","Pomme"]
["2020-08-07","LMR",null,null,"VMR",null,null,"DMR01","Pomme",null,null,null,"2020-06-06","LWES",null,null,"VS",null,null,"DWE",""]
["2020-08-10","LMR",null,null,"VMR",null,null,"DMR01","Pomme",null,null,null,"2020-06-07","LWED",null,null,"VS",null,null,"DWE",""]
["2020-08-11","LMR",null,null,"VMR",null,null,"DMR01","Pomme",null,null,null,"2020-06-08","LSLM",null,null,"VS",null,null,"DS01","Pomme"]
["2020-08-12","LMR",null,null,"VMR",null,null,"DMR01","Pomme",null,null,null,"2020-06-09","LSLM",null,null,"VS",null,null,"DS01","Pomme"]
["2020-08-13","LMR",null,null,"VMR",null,null,"DMR01","Pomme",null,null,null,"2020-06-10","LSMJ",null,null,"VS",null,null,"DS01","Pomme"]
["2020-08-14","LMR",null,null,"VMR",null,null,"DMR01","Pomme",null,null,null,"2020-06-11","LSMJ",null,null,"VS",null,null,"DS01","Pomme"]
["2020-08-17","LMR",null,null,"VMR",null,null,"DMR01","Pomme",null,null,null,"2020-06-12","LSV",null,null,"VS",null,null,"DS01","Pomme"]
["2020-08-18","LMR",null,null,"VMR",null,null,"DMR01","Pomme",null,null,null,"2020-06-13","LWES",null,null,"VS",null,null,"DWE",""]
["2020-08-19","LMR",null,null,"VMR",null,null,"DMR01","Pomme",null,null,null,"2020-06-14","LWED",null,null,"VS",null,null,"DWE",""]
["2020-08-20","LMR",null,null,"VMR",null,null,"DMR01","Pomme",null,null,null,"2020-06-15","LSLM",null,null,"VS",null,null,"DS01","Pomme"]
["2020-08-21","LMR",null,null,"VMR",null,null,"DMR01","Pomme",null,null,null,"2020-06-16","LSLM",null,null,"VS",null,null,"DS01","Pomme"]
["2020-08-24","LMR",null,null,"VMR",null,null,"DMR01","Pomme",null,null,null,"2020-06-17","LSMJ",null,null,"VS",null,null,"DS01","Pomme"]
["2020-08-25","LMR",null,null,"VMR",null,null,"DMR01","Pomme",null,null,null,"2020-06-18","LSMJ",null,null,"VS",null,null,"DS01","Pomme"]
["2020-08-26","LMR",null,null,"VMR",null,null,"DMR01","Pomme",null,null,null,"2020-06-19","LSV",null,null,"VS",null,null,"DS01","Pomme"]
["2020-08-27","LMR",null,null,"VMR",null,null,"DMR01","Pomme",null,null,null,"2020-06-20","LWES",null,null,"VS",null,null,"DWE",""]
["2020-08-28","LMR",null,null,"VMR",null,null,"DMR01","Pomme",null,null,null,"2020-06-21","LWED",null,null,"VS",null,null,"DWE",""]
["2020-08-31","LMR",null,null,"VMR",null,null,"DMR01","Pomme",null,null,null,"2020-06-22","LSLM",null,null,"VS",null,null,"DS01","Pomme"]
["2020-09-01","LMR",null,null,"VMR",null,null,"DMR01","Pomme",null,null,null,"2020-06-23","LSLM",null,null,"VS",null,null,"DS01","Pomme"]
["2020-09-02","LMR",null,null,"VMR",null,null,"DMR01","Pomme",null,null,null,"2020-06-24","LSMJ",null,null,"VS",null,null,"DS01","Pomme"]
["2020-09-03","LMR",null,null,"VMR",null,null,"DMR01","Pomme",null,null,null,"2020-06-25","LSMJ",null,null,"VS",null,null,"DS01","Pomme"]
["2020-09-04","LMR",null,null,"VMR",null,null,"DMR01","Pomme",null,null,null,"2020-06-26","LSV",null,null,"VS",null,null,"DS01","Pomme"]
["2020-09-07","LMR",null,null,"VMR",null,null,"DMR01","Pomme",null,null,null,"2020-06-27","LWES",null,null,"VS",null,null,"DWE",""]
["2020-09-08","LMR",null,null,"VMR",null,null,"DMR01","Pomme",null,null,null,"2020-06-28","LWED",null,null,"VS",null,null,"DWE",""]
["2020-09-09","LMR",null,null,"VMR",null,null,"DMR01","Pomme",null,null,null,"2020-06-29","LSLM",null,null,"VS",null,null,"DS01","Pomme"]
["2020-09-10","LMR",null,null,"VMR",null,null,"DMR01","Pomme",null,null,null,"2020-06-30","LSLM",null,null,"VS",null,null,"DS01","Pomme"]
["2020-09-11","LMR",null,null,"VMR",null,null,"DMR01","Pomme",null,null,null,"2020-07-01","LSMJ",null,null,"VS",null,null,"DS01","Pomme"]
["2020-09-14","LMR",null,null,"VMR",null,null,"DMR01","Pomme",null,null,null,"2020-07-02","LSMJ",null,null,"VS",null,null,"DS01","Pomme"]
["2020-09-15","LMR",null,null,"VMR",null,null,"DMR01","Pomme",null,null,null,"2020-07-03","LSV",null,null,"VS",null,null,"DS01","Pomme"]
["2020-09-16","LMR",null,null,"VMR",null,null,"DMR01","Pomme",null,null,null,"2020-07-04","LWES",null,null,"VS",null,null,"DWE",""]
["2020-09-17","LMR",null,null,"VMR",null,null,"DMR01","Pomme",null,null,null,"2020-07-05","LWED",null,null,"VS",null,null,"DWE",""]
["2020-09-18","LMR",null,null,"VMR",null,null,"DMR01","Pomme",null,null,null,"2020-07-06","LSLM",null,null,"VS",null,null,"DS01","Pomme"]
["2020-09-21","LMR",null,null,"VMR",null,null,"DMR01","Pomme",null,null,null,"2020-07-07","LSLM",null,null,"VS",null,null,"DS01","Pomme"]
["2020-09-22","LMR",null,null,"VMR",null,null,"DMR01","Pomme",null,null,null,"2020-07-08","LSMJ",null,null,"VS",null,null,"DS01","Pomme"]
["2020-09-23","LMR",null,null,"VMR",null,null,"DMR01","Pomme",null,null,null,"2020-07-09","LSMJ",null,null,"VS",null,null,"DS01","Pomme"]
["2020-09-24","LMR",null,null,"VMR",null,null,"DMR01","Pomme",null,null,null,"2020-07-10","LSV",null,null,"VS",null,null,"DS01","Pomme"]
["2020-09-25","LMR",null,null,"VMR",null,null,"DMR01","Pomme",null,null,null,"2020-07-11","LWES",null,null,"VS",null,null,"DWE",""]
["2020-09-28","LMR",null,null,"VMR",null,null,"DMR01","Pomme",null,null,null,"2020-07-12","LWED",null,null,"VS",null,null,"DWE",{"$f":"IF(T198=\"DS01\",\"Pomme\",\"\")","v":""}]
["2020-09-29","LMR",null,null,"VMR",null,null,"DMR01","Pomme",null,null,null,"2020-07-13","LSLM",null,null,"VS",null,null,"DS01","Pomme"]
["2020-09-30","LMR",null,null,"VMR",null,null,"DMR01","Pomme",null,null,null,"2020-07-14","LSLM",null,null,"VS",null,null,"DS01","Pomme"]
["2020-10-01","LMR",null,null,"VMR",null,null,"DMR01","Pomme",null,null,null,"2020-07-15","LSMJ",null,null,"VS",null,null,"DS01","Pomme"]
["2020-10-02","LMR",null,null,"VMR",null,null,"DMR01","Pomme",null,null,null,"2020-07-16","LSMJ",null,null,"VS",null,null,"DS01","Pomme"]
["2020-10-05","LMR",null,null,"VMR",null,null,"DMR01","Pomme",null,null,null,"2020-07-17","LSV",null,null,"VS",null,null,"DS01","Pomme"]
["2020-10-06","LMR",null,null,"VMR",null,null,"DMR01","Pomme",null,null,null,"2020-07-18","LWES",null,null,"VS",null,null,"DWE",""]
[{"$f":"A200+7","v":"2020-10-07"},"LMR",null,null,"VMR",null,null,"DMR01","Pomme",null,null,null,"2020-07-19","LWED",null,null,"VS",null,null,"DWE",""]
["2020-10-08","LMR",null,null,"VMR",null,null,"DMR01","Pomme",null,null,null,"2020-07-20","LSLM",null,null,"VS",null,null,"DS01","Pomme"]
["2020-10-09","LMR",null,null,"VMR",null,null,"DMR01","Pomme",null,null,null,"2020-07-21","LSLM",null,null,"VS",null,null,"DS01","Pomme"]
["2020-10-12","LMR",null,null,"VMR",null,null,"DMR01","Pomme",null,null,null,"2020-07-22","LSMJ",null,null,"VS",null,null,"DS01","Pomme"]
["2020-10-13","LMR",null,null,"VMR",null,null,"DMR01","Pomme",null,null,null,"2020-07-23","LSMJ",null,null,"VS",null,null,"DS01","Pomme"]
["2020-10-14","LMR",null,null,"VMR",null,null,"DMR01","Pomme",null,null,null,"2020-07-24","LSV",null,null,"VS",null,null,"DS01","Pomme"]
["2020-10-15","LMR",null,null,"VMR",null,null,"DMR01","Pomme",null,null,null,"2020-07-25","LWES",null,null,"VS",null,null,"DWE",""]
["2020-10-16","LMR",null,null,"VMR",null,null,"DMR01","Pomme",null,null,null,"2020-07-26","LWED",null,null,"VS",null,null,"DWE",""]
["2020-10-19","LMR",null,null,"VMR",null,null,"DMR01","Pomme",null,null,null,"2020-07-27","LSLM",null,null,"VS",null,null,"DS01","Pomme"]
["2020-10-20","LMR",null,null,"VMR",null,null,"DMR01","Pomme",null,null,null,"2020-07-28","LSLM",null,null,"VS",null,null,"DS01","Pomme"]
["2020-10-21","LMR",null,null,"VMR",null,null,"DMR01","Pomme",null,null,null,"2020-07-29","LSMJ",null,null,"VS",null,null,"DS01","Pomme"]
["2020-10-22","LMR",null,null,"VMR",null,null,"DMR01","Pomme",null,null,null,"2020-07-30","LSMJ",null,null,"VS",null,null,"DS01","Pomme"]
["2020-10-23","LMR",null,null,"VMR",null,null,"DMR01","Pomme",null,null,null,"2020-07-31","LSV",null,null,"VS",null,null,"DS01","Pomme"]
["2020-10-26","LMR",null,null,"VMR",null,null,"DMR01","Pomme",null,null,null,"2020-08-01","LWES",null,null,"VS",null,null,"DWE",""]
["2020-10-27","LMR",null,null,"VMR",null,null,"DMR01","Pomme",null,null,null,"2020-08-02","LWED",null,null,"VS",null,null,"DWE",""]
["2020-10-28","LMR",null,null,"VMR",null,null,"DMR01","Pomme",null,null,null,"2020-08-03","LSLM",null,null,"VS",null,null,"DS01","Pomme"]
["2020-10-29","LMR",null,null,"VMR",null,null,"DMR01","Pomme",null,null,null,"2020-08-04","LSLM",null,null,"VS",null,null,"DS01","Pomme"]
["2020-10-30","LMR",null,null,"VMR",null,null,"DMR01","Pomme",null,null,null,"2020-08-05","LSMJ",null,null,"VS",null,null,"DS01","Pomme"]
["2020-11-02","LMR",null,null,"VMR",null,null,"DMR01","Pomme",null,null,null,"2020-08-06","LSMJ",null,null,"VS",null,null,"DS01","Pomme"]
["2020-11-03","LMR",null,null,"VMR",null,null,"DMR01","Pomme",null,null,null,"2020-08-07","LSV",null,null,"VS",null,null,"DS01","Pomme"]
["2020-11-04","LMR",null,null,"VMR",null,null,"DMR01","Pomme",null,null,null,"2020-08-08","LWES",null,null,"VS",null,null,"DWE",""]
["2020-11-05","LMR",null,null,"VMR",null,null,"DMR01","Pomme",null,null,null,"2020-08-09","LWED",null,null,"VS",null,null,"DWE",""]
["2020-11-06","LMR",null,null,"VMR",null,null,"DMR01","Pomme",null,null,null,"2020-08-10","LSLM",null,null,"VS",null,null,"DS01","Pomme"]
["2020-11-09","LMR",null,null,"VMR",null,null,"DMR01","Pomme",null,null,null,"2020-08-11","LSLM",null,null,"VS",null,null,"DS01","Pomme"]
["2020-11-10","LMR",null,null,"VMR",null,null,"DMR01","Pomme",null,null,null,"2020-08-12","LSMJ",null,null,"VS",null,null,"DS01","Pomme"]
["2020-11-11","LMR",null,null,"VMR",null,null,"DMR01","Pomme",null,null,null,"2020-08-13","LSMJ",null,null,"VS",null,null,"DS01","Pomme"]
["2020-11-12","LMR",null,null,"VMR",null,null,"DMR01","Pomme",null,null,null,"2020-08-14","LSV",null,null,"VS",null,null,"DS01","Pomme"]
["2020-11-13","LMR",null,null,"VMR",null,null,"DMR01","Pomme",null,null,null,"2020-08-15","LWES",null,null,"VS",null,null,"DWE",""]
["2020-11-16","LMR",null,null,"VMR",null,null,"DMR01","Pomme",null,null,null,"2020-08-16","LWED",null,null,"VS",null,null,"DWE",""]
["2020-11-17","LMR",null,null,"VMR",null,null,"DMR01","Pomme",null,null,null,"2020-08-17","LSLM",null,null,"VS",null,null,"DS01","Pomme"]
["2020-11-18","LMR",null,null,"VMR",null,null,"DMR01","Pomme",null,null,null,"2020-08-18","LSLM",null,null,"VS",null,null,"DS01","Pomme"]
["2020-11-19","LMR",null,null,"VMR",null,null,"DMR01","Pomme",null,null,null,"2020-08-19","LSMJ",null,null,"VS",null,null,"DS01","Pomme"]
["2020-11-20","LMR",null,null,"VMR",null,null,"DMR01","Pomme",null,null,null,"2020-08-20","LSMJ",null,null,"VS",null,null,"DS01","Pomme"]
["2020-11-23","LMR",null,null,"VMR",null,null,"DMR01","Pomme",null,null,null,"2020-08-21","LSV",null,null,"VS",null,null,"DS01","Pomme"]
["2020-11-24","LMR",null,null,"VMR",null,null,"DMR01","Pomme",null,null,null,"2020-08-22","LWES",null,null,"VS",null,null,"DWE",""]
["2020-11-25","LMR",null,null,"VMR",null,null,"DMR01","Pomme",null,null,null,"2020-08-23","LWED",null,null,"VS",null,null,"DWE",""]
["2020-11-26","LMR",null,null,"VMR",null,null,"DMR01","Pomme",null,null,null,"2020-08-24","LSLM",null,null,"VS",null,null,"DS01","Pomme"]
["2020-11-27","LMR",null,null,"VMR",null,null,"DMR01","Pomme",null,null,null,"2020-08-25","LSLM",null,null,"VS",null,null,"DS01","Pomme"]
["2020-11-30","LMR",null,null,"VMR",null,null,"DMR01","Pomme",null,null,null,"2020-08-26","LSMJ",null,null,"VS",null,null,"DS01","Pomme"]
["2020-12-01","LMR",null,null,"VMR",null,null,"DMR01","Pomme",null,null,null,"2020-08-27","LSMJ",null,null,"VS",null,null,"DS01","Pomme"]
["2020-12-02","LMR",null,null,"VMR",null,null,"DMR01","Pomme",null,null,null,"2020-08-28","LSV",null,null,"VS",null,null,"DS01","Pomme"]
["2020-12-03","LMR",null,null,"VMR",null,null,"DMR01","Pomme",null,null,null,"2020-08-29","LWES",null,null,"VS",null,null,"DWE",""]
["2020-12-04","LMR",null,null,"VMR",null,null,"DMR01","Pomme",null,null,null,"2020-08-30","LWED",null,null,"VS",null,null,"DWE",""]
["2020-12-07","LMR",null,null,"VMR",null,null,"DMR01","Pomme",null,null,null,"2020-08-31","LSLM",null,null,"VS",null,null,"DS01","Pomme"]
["2020-12-08","LMR",null,null,"VMR",null,null,"DMR01","Pomme",null,null,null,"2020-09-01","LSLM",null,null,"VS",null,null,"DS01","Pomme"]
["2020-12-09","LMR",null,null,"VMR",null,null,"DMR01","Pomme",null,null,null,"2020-09-02","LSMJ",null,null,"VS",null,null,"DS01","Pomme"]
["2020-12-10","LMR",null,null,"VMR",null,null,"DMR01","Pomme",null,null,null,"2020-09-03","LSMJ",null,null,"VS",null,null,"DS01","Pomme"]
["2020-12-11","LMR",null,null,"VMR",null,null,"DMR01","Pomme",null,null,null,"2020-09-04","LSV",null,null,"VS",null,null,"DS01","Pomme"]
["2020-12-14","LMR",null,null,"VMR",null,null,"DMR01","Pomme",null,null,null,"2020-09-05","LWES",null,null,"VS",null,null,"DWE",""]
["2020-12-15","LMR",null,null,"VMR",null,null,"DMR01","Pomme",null,null,null,"2020-09-06","LWED",null,null,"VS",null,null,"DWE",""]
["2020-12-16","LMR",null,null,"VMR",null,null,"DMR01","Pomme",null,null,null,"2020-09-07","LSLM",null,null,"VS",null,null,"DS01","Pomme"]
["2020-12-17","LMR",null,null,"VMR",null,null,"DMR01","Pomme",null,null,null,"2020-09-08","LSLM",null,null,"VS",null,null,"DS01","Pomme"]
["2020-12-18","LMR",null,null,"VMR",null,null,"DMR01","Pomme",null,null,null,"2020-09-09","LSMJ",null,null,"VS",null,null,"DS01","Pomme"]
["2020-12-21","LMR",null,null,"VMR",null,null,"DMR01","Pomme",null,null,null,"2020-09-10","LSMJ",null,null,"VS",null,null,"DS01","Pomme"]
["2020-12-22","LMR",null,null,"VMR",null,null,"DMR01","Pomme",null,null,null,"2020-09-11","LSV",null,null,"VS",null,null,"DS01","Pomme"]
["2020-12-23","LMR",null,null,"VMR",null,null,"DMR01","Pomme",null,null,null,"2020-09-12","LWES",null,null,"VS",null,null,"DWE",""]
["2020-12-24","LMR",null,null,"VMR",null,null,"DMR01","Pomme",null,null,null,"2020-09-13","LWED",null,null,"VS",null,null,"DWE",""]
["2020-12-25","LMR",null,null,"VMR",null,null,"DMR01","Pomme",null,null,null,"2020-09-14","LSLM",null,null,"VS",null,null,"DS01",{"$f":"IF(T262=\"DS01\",\"Pomme\",\"\")","v":"Pomme"}]
["2020-12-28","LMR",null,null,"VMR",null,null,"DMR01","Pomme",null,null,null,"2020-09-15","LSLM",null,null,"VS",null,null,"DS01","Pomme"]
["2020-12-29","LMR",null,null,"VMR",null,null,"DMR01","Pomme",null,null,null,"2020-09-16","LSMJ",null,null,"VS",null,null,"DS01","Pomme"]
["2020-12-30","LMR",null,null,"VMR",null,null,"DMR01","Pomme",null,null,null,"2020-09-17","LSMJ",null,null,"VS",null,null,"DS01","Pomme"]
["2020-12-31","LMR",null,null,"VMR",null,null,"DMR01","Pomme",null,null,null,"2020-09-18","LSV",null,null,"VS",null,null,"DS01","Pomme"]
[null,null,null,null,null,null,null,null,null,null,null,null,"2020-09-19","LWES",null,null,"VS",null,null,"DWE",""]
[null,null,null,null,null,null,null,null,null,null,null,null,"2020-09-20","LWED",null,null,"VS",null,null,"DWE",""]
[null,null,null,null,null,null,null,null,null,null,null,null,"2020-09-21","LSLM",null,null,"VS",null,null,"DS01","Pomme"]
[null,null,null,null,null,null,null,null,null,null,null,null,"2020-09-22","LSLM",null,null,"VS",null,null,"DS01","Pomme"]
[null,null,null,null,null,null,null,null,null,null,null,null,"2020-09-23","LSMJ",null,null,"VS",null,null,"DS01","Pomme"]
[null,null,null,null,null,null,null,null,null,null,null,null,"2020-09-24","LSMJ",null,null,"VS",null,null,"DS01","Pomme"]
[null,null,null,null,null,null,null,null,null,null,null,null,"2020-09-25","LSV",null,null,"VS",null,null,"DS01","Pomme"]
[null,null,null,null,null,null,null,null,null,null,null,null,"2020-09-26","LWES",null,null,"VS",null,null,"DWE",""]
[null,null,null,null,null,null,null,null,null,null,null,null,"2020-09-27","LWED",null,null,"VS",null,null,"DWE",""]
[null,null,null,null,null,null,null,null,null,null,null,null,"2020-09-28","LSLM",null,null,"VS",null,null,"DS01","Pomme"]
[null,null,null,null,null,null,null,null,null,null,null,null,"2020-09-29","LSLM",null,null,"VS",null,null,"DS01","Pomme"]
[null,null,null,null,null,null,null,null,null,null,null,null,"2020-09-30","LSMJ",null,null,"VS",null,null,"DS01","Pomme"]
[null,null,null,null,null,null,null,null,null,null,null,null,"2020-10-01","LSMJ",null,null,"VS",null,null,"DS01","Pomme"]
[null,null,null,null,null,null,null,null,null,null,null,null,"2020-10-02","LSV",null,null,"VS",null,null,"DS01","Pomme"]
[null,null,null,null,null,null,null,null,null,null,null,null,"2020-10-03","LWES",null,null,"VS",null,null,"DWE",""]
[null,null,null,null,null,null,null,null,null,null,null,null,"2020-10-04","LWED",null,null,"VS",null,null,"DWE",""]
[null,null,null,null,null,null,null,null,null,null,null,null,"2020-10-05","LSLM",null,null,"VS",null,null,"DS01","Pomme"]
[null,null,null,null,null,null,null,null,null,null,null,null,"2020-10-06","LSLM",null,null,"VS",null,null,"DS01","Pomme"]
[null,null,null,null,null,null,null,null,null,null,null,null,"2020-10-07","LSMJ",null,null,"VS",null,null,"DS01","Pomme"]
[null,null,null,null,null,null,null,null,null,null,null,null,"2020-10-08","LSMJ",null,null,"VS",null,null,"DS01","Pomme"]
[null,null,null,null,null,null,null,null,null,null,null,null,"2020-10-09","LSV",null,null,"VS",null,null,"DS01","Pomme"]
[null,null,null,null,null,null,null,null,null,null,null,null,"2020-10-10","LWES",null,null,"VS",null,null,"DWE",""]
[null,null,null,null,null,null,null,null,null,null,null,null,"2020-10-11","LWED",null,null,"VS",null,null,"DWE",""]
[null,null,null,null,null,null,null,null,null,null,null,null,"2020-10-12","LSLM",null,null,"VS",null,null,"DS01","Pomme"]
[null,null,null,null,null,null,null,null,null,null,null,null,"2020-10-13","LSLM",null,null,"VS",null,null,"DS01","Pomme"]
[null,null,null,null,null,null,null,null,null,null,null,null,"2020-10-14","LSMJ",null,null,"VS",null,null,"DS01","Pomme"]
[null,null,null,null,null,null,null,null,null,null,null,null,"2020-10-15","LSMJ",null,null,"VS",null,null,"DS01","Pomme"]
[null,null,null,null,null,null,null,null,null,null,null,null,"2020-10-16","LSV",null,null,"VS",null,null,"DS01","Pomme"]
[null,null,null,null,null,null,null,null,null,null,null,null,"2020-10-17","LWES",null,null,"VS",null,null,"DWE",""]
[null,null,null,null,null,null,null,null,null,null,null,null,"2020-10-18","LWED",null,null,"VS",null,null,"DWE",""]
[null,null,null,null,null,null,null,null,null,null,null,null,"2020-10-19","LSLM",null,null,"VS",null,null,"DS01","Pomme"]
[null,null,null,null,null,null,null,null,null,null,null,null,"2020-10-20","LSLM",null,null,"VS",null,null,"DS01","Pomme"]
[null,null,null,null,null,null,null,null,null,null,null,null,"2020-10-21","LSMJ",null,null,"VS",null,null,"DS01","Pomme"]
[null,null,null,null,null,null,null,null,null,null,null,null,"2020-10-22","LSMJ",null,null,"VS",null,null,"DS01","Pomme"]
[null,null,null,null,null,null,null,null,null,null,null,null,"2020-10-23","LSV",null,null,"VS",null,null,"DS01","Pomme"]
[null,null,null,null,null,null,null,null,null,null,null,null,"2020-10-24","LWES",null,null,"VS",null,null,"DWE",""]
[null,null,null,null,null,null,null,null,null,null,null,null,"2020-10-25","LWED",null,null,"VS",null,null,"DWE",""]
[null,null,null,null,null,null,null,null,null,null,null,null,"2020-10-26","LSLM",null,null,"VS",null,null,"DS01","Pomme"]
[null,null,null,null,null,null,null,null,null,null,null,null,"2020-10-27","LSLM",null,null,"VS",null,null,"DS01","Pomme"]
[null,null,null,null,null,null,null,null,null,null,null,null,"2020-10-28","LSMJ",null,null,"VS",null,null,"DS01","Pomme"]
[null,null,null,null,null,null,null,null,null,null,null,null,"2020-10-29","LSMJ",null,null,"VS",null,null,"DS01","Pomme"]
[null,null,null,null,null,null,null,null,null,null,null,null,"2020-10-30","LSV",null,null,"VS",null,null,"DS01","Pomme"]
[null,null,null,null,null,null,null,null,null,null,null,null,"2020-10-31","LWES",null,null,"VS",null,null,"DWE",""]
[null,null,null,null,null,null,null,null,null,null,null,null,"2020-11-01","LWED",null,null,"VS",null,null,"DWE",""]
[null,null,null,null,null,null,null,null,null,null,null,null,"2020-11-02","LSLM",null,null,"VS",null,null,"DS01","Pomme"]
[null,null,null,null,null,null,null,null,null,null,null,null,"2020-11-03","LSLM",null,null,"VS",null,null,"DS01","Pomme"]
[null,null,null,null,null,null,null,null,null,null,null,null,"2020-11-04","LSMJ",null,null,"VS",null,null,"DS01","Pomme"]
[null,null,null,null,null,null,null,null,null,null,null,null,"2020-11-05","LSMJ",null,null,"VS",null,null,"DS01","Pomme"]
[null,null,null,null,null,null,null,null,null,null,null,null,"2020-11-06","LSV",null,null,"VS",null,null,"DS01","Pomme"]
[null,null,null,null,null,null,null,null,null,null,null,null,"2020-11-07","LWES",null,null,"VS",null,null,"DWE",""]
[null,null,null,null,null,null,null,null,null,null,null,null,"2020-11-08","LWED",null,null,"VS",null,null,"DWE",""]
[null,null,null,null,null,null,null,null,null,null,null,null,"2020-11-09","LSLM",null,null,"VS",null,null,"DS01","Pomme"]
[null,null,null,null,null,null,null,null,null,null,null,null,"2020-11-10","LSLM",null,null,"VS",null,null,"DS01","Pomme"]
[null,null,null,null,null,null,null,null,null,null,null,null,"2020-11-11","LSMJ",null,null,"VS",null,null,"DS01","Pomme"]
[null,null,null,null,null,null,null,null,null,null,null,null,"2020-11-12","LSMJ",null,null,"VS",null,null,"DS01","Pomme"]
[null,null,null,null,null,null,null,null,null,null,null,null,"2020-11-13","LSV",null,null,"VS",null,null,"DS01","Pomme"]
[null,null,null,null,null,null,null,null,null,null,null,null,"2020-11-14","LWES",null,null,"VS",null,null,"DWE",""]
[null,null,null,null,null,null,null,null,null,null,null,null,"2020-11-15","LWED",null,null,"VS",null,null,"DWE",""]
[null,null,null,null,null,null,null,null,null,null,null,null,"2020-11-16","LSLM",null,null,"VS",null,null,"DS01","Pomme"]
[null,null,null,null,null,null,null,null,null,null,null,null,"2020-11-17","LSLM",null,null,"VS",null,null,"DS01",{"$f":"IF(T326=\"DS01\",\"Pomme\",\"\")","v":"Pomme"}]
[null,null,null,null,null,null,null,null,null,null,null,null,"2020-11-18","LSMJ",null,null,"VS",null,null,"DS01","Pomme"]
[null,null,null,null,null,null,null,null,null,null,null,null,"2020-11-19","LSMJ",null,null,"VS",null,null,"DS01","Pomme"]
[null,null,null,null,null,null,null,null,null,null,null,null,"2020-11-20","LSV",null,null,"VS",null,null,"DS01","Pomme"]
[null,null,null,null,null,null,null,null,null,null,null,null,"2020-11-21","LWES",null,null,"VS",null,null,"DWE",""]
[null,null,null,null,null,null,null,null,null,null,null,null,"2020-11-22","LWED",null,null,"VS",null,null,"DWE",""]
[null,null,null,null,null,null,null,null,null,null,null,null,"2020-11-23","LSLM",null,null,"VS",null,null,"DS01","Pomme"]
[null,null,null,null,null,null,null,null,null,null,null,null,"2020-11-24","LSLM",null,null,"VS",null,null,"DS01","Pomme"]
[null,null,null,null,null,null,null,null,null,null,null,null,"2020-11-25","LSMJ",null,null,"VS",null,null,"DS01","Pomme"]
[null,null,null,null,null,null,null,null,null,null,null,null,"2020-11-26","LSMJ",null,null,"VS",null,null,"DS01","Pomme"]
[null,null,null,null,null,null,null,null,null,null,null,null,"2020-11-27","LSV",null,null,"VS",null,null,"DS01","Pomme"]
[null,null,null,null,null,null,null,null,null,null,null,null,"2020-11-28","LWES",null,null,"VS",null,null,"DWE",""]
[null,null,null,null,null,null,null,null,null,null,null,null,"2020-11-29","LWED",null,null,"VS",null,null,"DWE",""]
[null,null,null,null,null,null,null,null,null,null,null,null,"2020-11-30","LSLM",null,null,"VS",null,null,"DS01","Pomme"]
[null,null,null,null,null,null,null,null,null,null,null,null,"2020-12-01","LSLM",null,null,"VS",null,null,"DS01","Pomme"]
[null,null,null,null,null,null,null,null,null,null,null,null,"2020-12-02","LSMJ",null,null,"VS",null,null,"DS01","Pomme"]
[null,null,null,null,null,null,null,null,null,null,null,null,"2020-12-03","LSMJ",null,null,"VS",null,null,"DS01","Pomme"]
[null,null,null,null,null,null,null,null,null,null,null,null,"2020-12-04","LSV",null,null,"VS",null,null,"DS01","Pomme"]
[null,null,null,null,null,null,null,null,null,null,null,null,"2020-12-05","LWES",null,null,"VS",null,null,"DWE",""]
[null,null,null,null,null,null,null,null,null,null,null,null,"2020-12-06","LWED",null,null,"VS",null,null,"DWE",""]
[null,null,null,null,null,null,null,null,null,null,null,null,"2020-12-07","LSLM",null,null,"VS",null,null,"DS01","Pomme"]
[null,null,null,null,null,null,null,null,null,null,null,null,"2020-12-08","LSLM",null,null,"VS",null,null,"DS01","Pomme"]
[null,null,null,null,null,null,null,null,null,null,null,null,"2020-12-09","LSMJ",null,null,"VS",null,null,"DS01","Pomme"]
[null,null,null,null,null,null,null,null,null,null,null,null,"2020-12-10","LSMJ",null,null,"VS",null,null,"DS01","Pomme"]
[null,null,null,null,null,null,null,null,null,null,null,null,"2020-12-11","LSV",null,null,"VS",null,null,"DS01","Pomme"]
[null,null,null,null,null,null,null,null,null,null,null,null,"2020-12-12","LWES",null,null,"VS",null,null,"DWE",""]
[null,null,null,null,null,null,null,null,null,null,null,null,"2020-12-13","LWED",null,null,"VS",null,null,"DWE",""]
[null,null,null,null,null,null,null,null,null,null,null,null,"2020-12-14","LSLM",null,null,"VS",null,null,"DS01","Pomme"]
[null,null,null,null,null,null,null,null,null,null,null,null,"2020-12-15","LSLM",null,null,"VS",null,null,"DS01","Pomme"]
[null,null,null,null,null,null,null,null,null,null,null,null,"2020-12-16","LSMJ",null,null,"VS",null,null,"DS01","Pomme"]
[null,null,null,null,null,null,null,null,null,null,null,null,"2020-12-17","LSMJ",null,null,"VS",null,null,"DS01","Pomme"]
[null,null,null,null,null,null,null,null,null,null,null,null,"2020-12-18","LSV",null,null,"VS",null,null,"DS01","Pomme"]
[null,null,null,null,null,null,null,null,null,null,null,null,"2020-12-19","LWES",null,null,"VS",null,null,"DWE",""]
[null,null,null,null,null,null,null,null,null,null,null,null,"2020-12-20","LWED",null,null,"VS",null,null,"DWE",""]
[null,null,null,null,null,null,null,null,null,null,null,null,"2020-12-21","LSLM",null,null,"VS",null,null,"DS01","Pomme"]
[null,null,null,null,null,null,null,null,null,null,null,null,"2020-12-22","LSLM",null,null,"VS",null,null,"DS01","Pomme"]
[null,null,null,null,null,null,null,null,null,null,null,null,"2020-12-23","LSMJ",null,null,"VS",null,null,"DS01","Pomme"]
[null,null,null,null,null,null,null,null,null,null,null,null,"2020-12-24","LSMJ",null,null,"VS",null,null,"DS01","Pomme"]
[null,null,null,null,null,null,null,null,null,null,null,null,"2020-12-25","LSV",null,null,"VS",null,null,"DS01","Pomme"]
[null,null,null,null,null,null,null,null,null,null,null,null,"2020-12-26","LWES",null,null,"VS",null,null,"DWE",""]
[null,null,null,null,null,null,null,null,null,null,null,null,"2020-12-27","LWED",null,null,"VS",null,null,"DWE",""]
[null,null,null,null,null,null,null,null,null,null,null,null,"2020-12-28","LSLM",null,null,"VS",null,null,"DS01","Pomme"]
[null,null,null,null,null,null,null,null,null,null,null,null,"2020-12-29","LSLM",null,null,"VS",null,null,"DS01","Pomme"]
[null,null,null,null,null,null,null,null,null,null,null,null,"2020-12-30","LSMJ",null,null,"VS",null,null,"DS01","Pomme"]
[null,null,null,null,null,null,null,null,null,null,null,null,"2020-12-31","LSMJ",null,null,"VS",null,null,"DS01","Pomme"]